Workbook

Sheet Content
D1: Product Price List
B4: Albania, Bosnia, Bulgaria, Croatia, Cyprus, Greece, Hungary, Kosovo, Macedonia, Montenegro, Serbia
B6: Product Category | D6: Product Name
B8: Business
B9: Bundles: | D9: Bitdefender GravityZone Business Security
B10: EOS 31st of March 2022 | D10: Bitdefender GravityZone Advanced Business Security
D11: Bitdefender GravityZone Business Security Premium ​
D12: Bitdefender GravityZone Business Security Enterprise
B14: A la carte: | D14: Bitdefender GravityZone Enterprise Security
B15: EOS 31st of March 2022 | D15: GravityZone Security for Virtualized Environments VDI
B16: EOS 31st of March 2022 | D16: GravityZone Security for Virtualized Environments VS
B17: EOS 31st of March 2022 | D17: GravityZone Security for Virtualized Environments CPU
B18: EOS 31st of March 2022 | D18: GravityZone Security for Endpoints Physical Workstations
B19: EOS 31st of March 2022 | D19: GravityZone Security for Endpoints Physical Servers
D20: Bitdefender GravityZone Security for Exchange Servers
D21: Bitdefender GravityZone Security for Mobile Devices
B22: EOS 24th of November 2022 | D22: Bitdefender GravityZone Security for Linux Mail Servers ​
D23: Bitdefender GravityZone EDR Cloud
D24: Bitdefender GravityZone Security for Containers | H24: * Bitdefender GravityZone Security for Containers is available on top of GZ Portfolio - except for Mobile
D25: Bitdefender GravityZone Security for Workstations
D26: Bitdefender GravityZone Security for Servers
D27: Bitdefender GravityZone Security for Virtual Env per CPU
B29: Add-ons: | D29: Bitdefender GravityZone Patch Management | H29: * GravityZone Patch Management is available on top of GZ Portfolio - except for Mobile
D30: Bitdefender GravityZone Full Disk Encryption | H30: * GravityZone Full Disk Encryption is available on top of GZ Portfolio - except for Mobile
B31: EOS 31st of March 2022 | D31: GravityZone HD (Hyperdetect, Sandbox) | H31: * GravityZone HD (Hyperdetect, Sandbox) is available on top of On-Prem portofolio - except for Mobile
D32: Bitdefender GravityZone Security for Storage | H32: * GravityZone Security for Storage is available on top of GZ Portfolio - except for Mobile
D33: Bitdefender GravityZone Security for Email | H33: * GravityZone Email Security is available on cloud to be sold together with the cloud version of the bundles
B34: EOL 28th of February 2023 | D34: Bitdefender GravityZone 30 days Data Retention Add-on | H34: * Bitdefender GravityZone 30 days Data Retention Add-on is available on top of Bitdefender GravityZone Business Security Enterprise
D35: Bitdefender GravityZone 90 days Data Retention Add-on | H35: * Bitdefender GravityZone 90 days Data Retention Add-on is available on top of Bitdefender GravityZone Business Security Enterprise
D36: Bitdefender GravityZone 180 days Data Retention Add-on | H36: * Bitdefender GravityZone 180 days Data Retention Add-on is available on top of Bitdefender GravityZone Business Security Enterprise
D37: Bitdefender GravityZone 365 days Data Retention Add-on | H37: * Bitdefender GravityZone 180 days Data Retention Add-on is available on top of Bitdefender GravityZone Business Security Enterprise
D38: Bitdefender GravityZone Endpoint Detection and Response | H38: * Bitdefender GravityZone Endpoint Detection and Response is available on top of GZ Portfolio - except for Mobile
D39: Bitdefender Integrity Monitoring | H39: * Bitdefender Integrity Monitoring Add-on is available on top of Bitdefender GravityZone Business Security / Premium / Enterprise, MDR Packages, Bitdefender GravityZone Security for Workstations / Servers
D40: Bitdefender GravityZone Integrity Monitoring 90 days Data Retention Add-on | H40: * Bitdefender GravityZone Integrity Monitoring 90 days Data Retention Add-on is available on top of Bitdefender Integrity Monitoring
D41: Bitdefender GravityZone Integrity Monitoring 180 days Data Retention Add-on | H41: * Bitdefender GravityZone Integrity Monitoring 180 days Data Retention Add-on is available on top of Bitdefender Integrity Monitoring
D42: Bitdefender GravityZone Integrity Monitoring 365 days Data Retention Add-on | H42: * Bitdefender GravityZone Integrity Monitoring 365 days Data Retention Add-on is available on top of Bitdefender Integrity Monitoring
B43: New | D43: Bitdefender GravityZone Security for Mobile | H43: * Bitdefender GravityZone Security for Mobile Add-on is available on top of GZ Portfolio
B45: Services | D45: Business Support
D46: Enterprise Support
D47: Enterprise Plus Support Premium
B48: EOS 27th of June 2022 | D48: Bitdefender Hypervisor Introspection Enterprise Support
B50: MDR
D51: Bitdefender Managed Detection and Response Service - Foundations
D52: Bitdefender Managed Detection and Response Service - Premium
D53: Bitdefender Managed Detection and Response Service - Enterprise
D54: Bitdefender XDR Sensor for MDR - Productivity Apps | H54: * Bitdefender XDR Sensor for MDR - Productivity is available on top of Bitdefender Managed Detection and Response Service - Premium & Bitdefender Managed Detection and Response Service - Enterprise
D55: Bitdefender XDR Sensor for MDR - Network | H55: * Bitdefender XDR Sensor for MDR - Network is available on top of Bitdefender Managed Detection and Response Service - Premium & Bitdefender Managed Detection and Response Service - Enterprise
D56: Bitdefender XDR Sensor for MDR - Cloud | H56: * Bitdefender XDR Sensor for MDR - Cloud is available on top of Bitdefender Managed Detection and Response Service - Premium & Bitdefender Managed Detection and Response Service - Enterprise
D57: Bitdefender XDR Sensor for MDR - Identity | H57: * Bitdefender XDR Sensor for MDR - Identity is available on top of Bitdefender Managed Detection and Response Service - Premium & Bitdefender Managed Detection and Response Service - Enterprise
B59: XDR - Add-ons
D60: Bitdefender XDR Sensor - Productivity Apps | H60: * Bitdefender XDR Sensor - Productivity is available on top of Bitdefender GravityZone Business Security Enterprise, GZ EDR Add-on, Bitdefender Endpoint Detection and Response
D61: Bitdefender XDR Sensor - Network | H61: * Bitdefender XDR Sensor - Network is available on top of Bitdefender GravityZone Business Security Enterprise, GZ EDR Add-on, Bitdefender Endpoint Detection and Response
D62: Bitdefender XDR Sensor - Cloud | H62: * Bitdefender XDR Sensor - Cloud is available on top of Bitdefender GravityZone Business Security Enterprise, GZ EDR Add-on, Bitdefender Endpoint Detection and Response
D63: Bitdefender XDR Sensor - Identity | H63: * Bitdefender XDR Sensor - Identity is available on top of Bitdefender GravityZone Business Security Enterprise, GZ EDR Add-on, Bitdefender Endpoint Detection and Response

Sheet Products
B2: Bitdefender Solutions | AB2: Consumer with VAT | AC2: Business Standard | AE2: Business Standard
AB3: Consumer without VAT | AC3: Education & Non Profit | AE3: =IF(OR($Y$7=1,$Y$7=2),"",AC3) -> Education & Non Profit
B4: Note : The prices below are without VAT | AB4: Business | AC4: Government | AE4: =IF(OR($Y$7=1,$Y$7=2),"",AC4) -> Government
B5: Enter the desired number of units in the appropriate yellow cell to calculate the price. Unless otherwise specified, all the units are users. | AB5: Previous & Legacy Business | AC5: Renew | AE5: Renew
AC6: Competitive Upgrade | AE6: Competitive Upgrade
Y7: 3 | Z7: =IF(Y7=1,AB2,IF(Y7=2,AB3,IF(Y7=3,AB4,AB5))) -> Business | AC7: Education & Non Profit Renew | AE7: Education & Non Profit Renew
C8: Select Offer Type | F8: Discount from MSRP | H8: =IF(OR(B14=" Bitdefender GravityZone Email Security ",B14=" Bitdefender GravityZone Email Security - EDU",B14=" Bitdefender GravityZone Email Security - R",B14=" Bitdefender GravityZone Email Security - CUPG",B14=" Bitdefender GravityZone Email Security - EDU R",B14=" Bitdefender GravityZone Email Security - GOV R"),'Base Prod'!G11,'Base Prod'!G10) -> 0 | Y8: 1 | Z8: =IF(OR(Y7=1,Y7=2),AC2,IF(Y8=1,AC2,IF(Y8=2,AC3,IF(Y8=3,AC4,IF(Y8=4,AC5,IF(Y8=5,AC6,IF(Y8=6,AC7,AC8))))))) -> Business Standard | AC8: Government Renew | AE8: Government Renew
AE9: 0
AE10: 0
B12: Total price per choosen configuration | G12: =SUM(G14:G793) -> 0
A13: Product Type | B13: Product | C13: Period | D13: Users | E13: Price/Unit | F13: # Units | G13: Total Price | H13: Part #
A14: =IF(B14=Base!B10,Base!A10,"") -> Packages | B14: ='Base Prod'!A14 -> Bitdefender GravityZone Business Security | C14: ='Base Prod'!B14 -> 1 year | D14: ='Base Prod'!C14 -> 3 - 14 | E14: ='Base Prod'!D14 -> 24.75 | G14: ='Base Prod'!F14 -> 0 | H14: ='Base Prod'!G14 -> 2759ZZBSN120ZLZZ
A15: =IF(B15=Base!B11,Base!A11,"") -> Packages | B15: ='Base Prod'!A15 -> Bitdefender GravityZone Business Security | C15: ='Base Prod'!B15 -> 1 year | D15: ='Base Prod'!C15 -> 15 - 24 | E15: ='Base Prod'!D15 -> 21.76 | G15: ='Base Prod'!F15 -> 0 | H15: ='Base Prod'!G15 -> 2759ZZBSN120ALZZ
A16: =IF(B16=Base!B12,Base!A12,"") -> Packages | B16: ='Base Prod'!A16 -> Bitdefender GravityZone Business Security | C16: ='Base Prod'!B16 -> 1 year | D16: ='Base Prod'!C16 -> 25 - 49 | E16: ='Base Prod'!D16 -> 19.58 | G16: ='Base Prod'!F16 -> 0 | H16: ='Base Prod'!G16 -> 2759ZZBSN120BLZZ
A17: =IF(B17=Base!B13,Base!A13,"") -> Packages | B17: ='Base Prod'!A17 -> Bitdefender GravityZone Business Security | C17: ='Base Prod'!B17 -> 1 year | D17: ='Base Prod'!C17 -> 50 - 99 | E17: ='Base Prod'!D17 -> 17.63 | G17: ='Base Prod'!F17 -> 0 | H17: ='Base Prod'!G17 -> 2759ZZBSN120CLZZ
A18: =IF(B18=Base!B14,Base!A14,"") -> Packages | B18: ='Base Prod'!A18 -> Bitdefender GravityZone Business Security | C18: ='Base Prod'!B18 -> 1 year | D18: ='Base Prod'!C18 -> 100 - 149 | E18: ='Base Prod'!D18 -> 15.86 | G18: ='Base Prod'!F18 -> 0 | H18: ='Base Prod'!G18 -> 2759ZZBSN120DLZZ
A19: =IF(B19=Base!B15,Base!A15,"") -> Packages | B19: ='Base Prod'!A19 -> Bitdefender GravityZone Business Security | C19: ='Base Prod'!B19 -> 1 year | D19: ='Base Prod'!C19 -> 150 - 249 | E19: ='Base Prod'!D19 -> 14.28 | G19: ='Base Prod'!F19 -> 0 | H19: ='Base Prod'!G19 -> 2759ZZBSN120ELZZ
A20: =IF(B20=Base!B16,Base!A16,"") -> Packages | B20: ='Base Prod'!A20 -> Bitdefender GravityZone Business Security | C20: ='Base Prod'!B20 -> 1 year | D20: ='Base Prod'!C20 -> 250 - 499 | E20: ='Base Prod'!D20 -> 12.99 | G20: ='Base Prod'!F20 -> 0 | H20: ='Base Prod'!G20 -> 2759ZZBSN120FLZZ
A21: =IF(B21=Base!B17,Base!A17,"") -> Packages | B21: ='Base Prod'!A21 -> Bitdefender GravityZone Business Security | C21: ='Base Prod'!B21 -> 1 year | D21: ='Base Prod'!C21 -> 500 - 999 | E21: ='Base Prod'!D21 -> 11.95 | G21: ='Base Prod'!F21 -> 0 | H21: ='Base Prod'!G21 -> 2759ZZBSN120GLZZ
A22: =IF(B22=Base!B18,Base!A18,"") -> Packages | B22: ='Base Prod'!A22 -> Bitdefender GravityZone Business Security | C22: ='Base Prod'!B22 -> 1 year | D22: ='Base Prod'!C22 -> 1000 - 2999 | E22: ='Base Prod'!D22 -> 11.12 | G22: ='Base Prod'!F22 -> 0 | H22: ='Base Prod'!G22 -> 2759ZZBSN120HLZZ
A23: =IF(B23=Base!B19,Base!A19,"") -> Packages | B23: ='Base Prod'!A23 -> Bitdefender GravityZone Business Security | C23: ='Base Prod'!B23 -> 1 year | D23: ='Base Prod'!C23 -> 3000+ | E23: ='Base Prod'!D23 -> 10.45 | G23: ='Base Prod'!F23 -> 0 | H23: ='Base Prod'!G23 -> 2759ZZBSN120ILZZ
A24: =IF(B24=Base!B20,Base!A20,"") -> Packages | B24: ='Base Prod'!A24 -> Bitdefender GravityZone Business Security | C24: ='Base Prod'!B24 -> 2 years | D24: ='Base Prod'!C24 -> 3 - 14 | E24: ='Base Prod'!D24 -> 39.6 | G24: ='Base Prod'!F24 -> 0 | H24: ='Base Prod'!G24 -> 2759ZZBSN240ZLZZ
A25: =IF(B25=Base!B21,Base!A21,"") -> Packages | B25: ='Base Prod'!A25 -> Bitdefender GravityZone Business Security | C25: ='Base Prod'!B25 -> 2 years | D25: ='Base Prod'!C25 -> 15 - 24 | E25: ='Base Prod'!D25 -> 34.82 | G25: ='Base Prod'!F25 -> 0 | H25: ='Base Prod'!G25 -> 2759ZZBSN240ALZZ
A26: =IF(B26=Base!B22,Base!A22,"") -> Packages | B26: ='Base Prod'!A26 -> Bitdefender GravityZone Business Security | C26: ='Base Prod'!B26 -> 2 years | D26: ='Base Prod'!C26 -> 25 - 49 | E26: ='Base Prod'!D26 -> 31.33 | G26: ='Base Prod'!F26 -> 0 | H26: ='Base Prod'!G26 -> 2759ZZBSN240BLZZ
A27: =IF(B27=Base!B23,Base!A23,"") -> Packages | B27: ='Base Prod'!A27 -> Bitdefender GravityZone Business Security | C27: ='Base Prod'!B27 -> 2 years | D27: ='Base Prod'!C27 -> 50 - 99 | E27: ='Base Prod'!D27 -> 28.21 | G27: ='Base Prod'!F27 -> 0 | H27: ='Base Prod'!G27 -> 2759ZZBSN240CLZZ
A28: =IF(B28=Base!B24,Base!A24,"") -> Packages | B28: ='Base Prod'!A28 -> Bitdefender GravityZone Business Security | C28: ='Base Prod'!B28 -> 2 years | D28: ='Base Prod'!C28 -> 100 - 149 | E28: ='Base Prod'!D28 -> 25.38 | G28: ='Base Prod'!F28 -> 0 | H28: ='Base Prod'!G28 -> 2759ZZBSN240DLZZ
A29: =IF(B29=Base!B25,Base!A25,"") -> Packages | B29: ='Base Prod'!A29 -> Bitdefender GravityZone Business Security | C29: ='Base Prod'!B29 -> 2 years | D29: ='Base Prod'!C29 -> 150 - 249 | E29: ='Base Prod'!D29 -> 22.85 | G29: ='Base Prod'!F29 -> 0 | H29: ='Base Prod'!G29 -> 2759ZZBSN240ELZZ
A30: =IF(B30=Base!B26,Base!A26,"") -> Packages | B30: ='Base Prod'!A30 -> Bitdefender GravityZone Business Security | C30: ='Base Prod'!B30 -> 2 years | D30: ='Base Prod'!C30 -> 250 - 499 | E30: ='Base Prod'!D30 -> 20.78 | G30: ='Base Prod'!F30 -> 0 | H30: ='Base Prod'!G30 -> 2759ZZBSN240FLZZ
A31: =IF(B31=Base!B27,Base!A27,"") -> Packages | B31: ='Base Prod'!A31 -> Bitdefender GravityZone Business Security | C31: ='Base Prod'!B31 -> 2 years | D31: ='Base Prod'!C31 -> 500 - 999 | E31: ='Base Prod'!D31 -> 19.12 | G31: ='Base Prod'!F31 -> 0 | H31: ='Base Prod'!G31 -> 2759ZZBSN240GLZZ
A32: =IF(B32=Base!B28,Base!A28,"") -> Packages | B32: ='Base Prod'!A32 -> Bitdefender GravityZone Business Security | C32: ='Base Prod'!B32 -> 2 years | D32: ='Base Prod'!C32 -> 1000 - 2999 | E32: ='Base Prod'!D32 -> 17.79 | G32: ='Base Prod'!F32 -> 0 | H32: ='Base Prod'!G32 -> 2759ZZBSN240HLZZ
A33: =IF(B33=Base!B29,Base!A29,"") -> Packages | B33: ='Base Prod'!A33 -> Bitdefender GravityZone Business Security | C33: ='Base Prod'!B33 -> 2 years | D33: ='Base Prod'!C33 -> 3000+ | E33: ='Base Prod'!D33 -> 16.72 | G33: ='Base Prod'!F33 -> 0 | H33: ='Base Prod'!G33 -> 2759ZZBSN240ILZZ
A34: =IF(B34=Base!B30,Base!A30,"") -> Packages | B34: ='Base Prod'!A34 -> Bitdefender GravityZone Business Security | C34: ='Base Prod'!B34 -> 3 years | D34: ='Base Prod'!C34 -> 3 - 14 | E34: ='Base Prod'!D34 -> 51.98 | G34: ='Base Prod'!F34 -> 0 | H34: ='Base Prod'!G34 -> 2759ZZBSN360ZLZZ
A35: =IF(B35=Base!B31,Base!A31,"") -> Packages | B35: ='Base Prod'!A35 -> Bitdefender GravityZone Business Security | C35: ='Base Prod'!B35 -> 3 years | D35: ='Base Prod'!C35 -> 15 - 24 | E35: ='Base Prod'!D35 -> 45.7 | G35: ='Base Prod'!F35 -> 0 | H35: ='Base Prod'!G35 -> 2759ZZBSN360ALZZ
A36: =IF(B36=Base!B32,Base!A32,"") -> Packages | B36: ='Base Prod'!A36 -> Bitdefender GravityZone Business Security | C36: ='Base Prod'!B36 -> 3 years | D36: ='Base Prod'!C36 -> 25 - 49 | E36: ='Base Prod'!D36 -> 41.12 | G36: ='Base Prod'!F36 -> 0 | H36: ='Base Prod'!G36 -> 2759ZZBSN360BLZZ
A37: =IF(B37=Base!B33,Base!A33,"") -> Packages | B37: ='Base Prod'!A37 -> Bitdefender GravityZone Business Security | C37: ='Base Prod'!B37 -> 3 years | D37: ='Base Prod'!C37 -> 50 - 99 | E37: ='Base Prod'!D37 -> 37.02 | G37: ='Base Prod'!F37 -> 0 | H37: ='Base Prod'!G37 -> 2759ZZBSN360CLZZ
A38: =IF(B38=Base!B34,Base!A34,"") -> Packages | B38: ='Base Prod'!A38 -> Bitdefender GravityZone Business Security | C38: ='Base Prod'!B38 -> 3 years | D38: ='Base Prod'!C38 -> 100 - 149 | E38: ='Base Prod'!D38 -> 33.31 | G38: ='Base Prod'!F38 -> 0 | H38: ='Base Prod'!G38 -> 2759ZZBSN360DLZZ
A39: =IF(B39=Base!B35,Base!A35,"") -> Packages | B39: ='Base Prod'!A39 -> Bitdefender GravityZone Business Security | C39: ='Base Prod'!B39 -> 3 years | D39: ='Base Prod'!C39 -> 150 - 249 | E39: ='Base Prod'!D39 -> 29.99 | G39: ='Base Prod'!F39 -> 0 | H39: ='Base Prod'!G39 -> 2759ZZBSN360ELZZ
A40: =IF(B40=Base!B36,Base!A36,"") -> Packages | B40: ='Base Prod'!A40 -> Bitdefender GravityZone Business Security | C40: ='Base Prod'!B40 -> 3 years | D40: ='Base Prod'!C40 -> 250 - 499 | E40: ='Base Prod'!D40 -> 27.28 | G40: ='Base Prod'!F40 -> 0 | H40: ='Base Prod'!G40 -> 2759ZZBSN360FLZZ
A41: =IF(B41=Base!B37,Base!A37,"") -> Packages | B41: ='Base Prod'!A41 -> Bitdefender GravityZone Business Security | C41: ='Base Prod'!B41 -> 3 years | D41: ='Base Prod'!C41 -> 500 - 999 | E41: ='Base Prod'!D41 -> 25.1 | G41: ='Base Prod'!F41 -> 0 | H41: ='Base Prod'!G41 -> 2759ZZBSN360GLZZ
A42: =IF(B42=Base!B38,Base!A38,"") -> Packages | B42: ='Base Prod'!A42 -> Bitdefender GravityZone Business Security | C42: ='Base Prod'!B42 -> 3 years | D42: ='Base Prod'!C42 -> 1000 - 2999 | E42: ='Base Prod'!D42 -> 23.35 | G42: ='Base Prod'!F42 -> 0 | H42: ='Base Prod'!G42 -> 2759ZZBSN360HLZZ
A43: =IF(B43=Base!B39,Base!A39,"") -> Packages | B43: ='Base Prod'!A43 -> Bitdefender GravityZone Business Security | C43: ='Base Prod'!B43 -> 3 years | D43: ='Base Prod'!C43 -> 3000+ | E43: ='Base Prod'!D43 -> 21.95 | G43: ='Base Prod'!F43 -> 0 | H43: ='Base Prod'!G43 -> 2759ZZBSN360ILZZ
A44: =IF(B44=Base!B40,Base!A40,"") -> Packages | B44: ='Base Prod'!A44 -> Bitdefender GravityZone Business Security Premium | C44: ='Base Prod'!B44 -> 1 year | D44: ='Base Prod'!C44 -> 5 - 14 | E44: ='Base Prod'!D44 -> 59.13 | G44: ='Base Prod'!F44 -> 0 | H44: ='Base Prod'!G44 -> 2883ZZBSN120YLZZ
A45: =IF(B45=Base!B41,Base!A41,"") -> Packages | B45: ='Base Prod'!A45 -> Bitdefender GravityZone Business Security Premium | C45: ='Base Prod'!B45 -> 1 year | D45: ='Base Prod'!C45 -> 15 - 24 | E45: ='Base Prod'!D45 -> 52.18 | G45: ='Base Prod'!F45 -> 0 | H45: ='Base Prod'!G45 -> 2883ZZBSN120ALZZ
A46: =IF(B46=Base!B42,Base!A42,"") -> Packages | B46: ='Base Prod'!A46 -> Bitdefender GravityZone Business Security Premium | C46: ='Base Prod'!B46 -> 1 year | D46: ='Base Prod'!C46 -> 25 - 49 | E46: ='Base Prod'!D46 -> 46.96 | G46: ='Base Prod'!F46 -> 0 | H46: ='Base Prod'!G46 -> 2883ZZBSN120BLZZ
A47: =IF(B47=Base!B43,Base!A43,"") -> Packages | B47: ='Base Prod'!A47 -> Bitdefender GravityZone Business Security Premium | C47: ='Base Prod'!B47 -> 1 year | D47: ='Base Prod'!C47 -> 50 - 99 | E47: ='Base Prod'!D47 -> 41.34 | G47: ='Base Prod'!F47 -> 0 | H47: ='Base Prod'!G47 -> 2883ZZBSN120CLZZ
A48: =IF(B48=Base!B44,Base!A44,"") -> Packages | B48: ='Base Prod'!A48 -> Bitdefender GravityZone Business Security Premium | C48: ='Base Prod'!B48 -> 1 year | D48: ='Base Prod'!C48 -> 100 - 149 | E48: ='Base Prod'!D48 -> 36.4 | G48: ='Base Prod'!F48 -> 0 | H48: ='Base Prod'!G48 -> 2883ZZBSN120DLZZ
A49: =IF(B49=Base!B45,Base!A45,"") -> Packages | B49: ='Base Prod'!A49 -> Bitdefender GravityZone Business Security Premium | C49: ='Base Prod'!B49 -> 1 year | D49: ='Base Prod'!C49 -> 150 - 249 | E49: ='Base Prod'!D49 -> 32.72 | G49: ='Base Prod'!F49 -> 0 | H49: ='Base Prod'!G49 -> 2883ZZBSN120ELZZ
A50: =IF(B50=Base!B46,Base!A46,"") -> Packages | B50: ='Base Prod'!A50 -> Bitdefender GravityZone Business Security Premium | C50: ='Base Prod'!B50 -> 1 year | D50: ='Base Prod'!C50 -> 250 - 499 | E50: ='Base Prod'!D50 -> 30.18 | G50: ='Base Prod'!F50 -> 0 | H50: ='Base Prod'!G50 -> 2883ZZBSN120FLZZ
A51: =IF(B51=Base!B47,Base!A47,"") -> Packages | B51: ='Base Prod'!A51 -> Bitdefender GravityZone Business Security Premium | C51: ='Base Prod'!B51 -> 1 year | D51: ='Base Prod'!C51 -> 500 - 999 | E51: ='Base Prod'!D51 -> 28.59 | G51: ='Base Prod'!F51 -> 0 | H51: ='Base Prod'!G51 -> 2883ZZBSN120GLZZ
A52: =IF(B52=Base!B48,Base!A48,"") -> Packages | B52: ='Base Prod'!A52 -> Bitdefender GravityZone Business Security Premium | C52: ='Base Prod'!B52 -> 1 year | D52: ='Base Prod'!C52 -> 1000 - 2999 | E52: ='Base Prod'!D52 -> 27.6 | G52: ='Base Prod'!F52 -> 0 | H52: ='Base Prod'!G52 -> 2883ZZBSN120HLZZ
A53: =IF(B53=Base!B49,Base!A49,"") -> Packages | B53: ='Base Prod'!A53 -> Bitdefender GravityZone Business Security Premium | C53: ='Base Prod'!B53 -> 1 year | D53: ='Base Prod'!C53 -> 3000+ | E53: ='Base Prod'!D53 -> 26.62 | G53: ='Base Prod'!F53 -> 0 | H53: ='Base Prod'!G53 -> 2883ZZBSN120ILZZ
A54: =IF(B54=Base!B50,Base!A50,"") -> Packages | B54: ='Base Prod'!A54 -> Bitdefender GravityZone Business Security Premium | C54: ='Base Prod'!B54 -> 2 years | D54: ='Base Prod'!C54 -> 5 - 14 | E54: ='Base Prod'!D54 -> 97.56 | G54: ='Base Prod'!F54 -> 0 | H54: ='Base Prod'!G54 -> 2883ZZBSN240YLZZ
A55: =IF(B55=Base!B51,Base!A51,"") -> Packages | B55: ='Base Prod'!A55 -> Bitdefender GravityZone Business Security Premium | C55: ='Base Prod'!B55 -> 2 years | D55: ='Base Prod'!C55 -> 15 - 24 | E55: ='Base Prod'!D55 -> 86.1 | G55: ='Base Prod'!F55 -> 0 | H55: ='Base Prod'!G55 -> 2883ZZBSN240ALZZ
A56: =IF(B56=Base!B52,Base!A52,"") -> Packages | B56: ='Base Prod'!A56 -> Bitdefender GravityZone Business Security Premium | C56: ='Base Prod'!B56 -> 2 years | D56: ='Base Prod'!C56 -> 25 - 49 | E56: ='Base Prod'!D56 -> 77.48 | G56: ='Base Prod'!F56 -> 0 | H56: ='Base Prod'!G56 -> 2883ZZBSN240BLZZ
A57: =IF(B57=Base!B53,Base!A53,"") -> Packages | B57: ='Base Prod'!A57 -> Bitdefender GravityZone Business Security Premium | C57: ='Base Prod'!B57 -> 2 years | D57: ='Base Prod'!C57 -> 50 - 99 | E57: ='Base Prod'!D57 -> 68.22 | G57: ='Base Prod'!F57 -> 0 | H57: ='Base Prod'!G57 -> 2883ZZBSN240CLZZ
A58: =IF(B58=Base!B54,Base!A54,"") -> Packages | B58: ='Base Prod'!A58 -> Bitdefender GravityZone Business Security Premium | C58: ='Base Prod'!B58 -> 2 years | D58: ='Base Prod'!C58 -> 100 - 149 | E58: ='Base Prod'!D58 -> 60.07 | G58: ='Base Prod'!F58 -> 0 | H58: ='Base Prod'!G58 -> 2883ZZBSN240DLZZ
A59: =IF(B59=Base!B55,Base!A55,"") -> Packages | B59: ='Base Prod'!A59 -> Bitdefender GravityZone Business Security Premium | C59: ='Base Prod'!B59 -> 2 years | D59: ='Base Prod'!C59 -> 150 - 249 | E59: ='Base Prod'!D59 -> 53.99 | G59: ='Base Prod'!F59 -> 0 | H59: ='Base Prod'!G59 -> 2883ZZBSN240ELZZ
A60: =IF(B60=Base!B56,Base!A56,"") -> Packages | B60: ='Base Prod'!A60 -> Bitdefender GravityZone Business Security Premium | C60: ='Base Prod'!B60 -> 2 years | D60: ='Base Prod'!C60 -> 250 - 499 | E60: ='Base Prod'!D60 -> 49.81 | G60: ='Base Prod'!F60 -> 0 | H60: ='Base Prod'!G60 -> 2883ZZBSN240FLZZ
A61: =IF(B61=Base!B57,Base!A57,"") -> Packages | B61: ='Base Prod'!A61 -> Bitdefender GravityZone Business Security Premium | C61: ='Base Prod'!B61 -> 2 years | D61: ='Base Prod'!C61 -> 500 - 999 | E61: ='Base Prod'!D61 -> 47.18 | G61: ='Base Prod'!F61 -> 0 | H61: ='Base Prod'!G61 -> 2883ZZBSN240GLZZ
A62: =IF(B62=Base!B58,Base!A58,"") -> Packages | B62: ='Base Prod'!A62 -> Bitdefender GravityZone Business Security Premium | C62: ='Base Prod'!B62 -> 2 years | D62: ='Base Prod'!C62 -> 1000 - 2999 | E62: ='Base Prod'!D62 -> 45.54 | G62: ='Base Prod'!F62 -> 0 | H62: ='Base Prod'!G62 -> 2883ZZBSN240HLZZ
A63: =IF(B63=Base!B59,Base!A59,"") -> Packages | B63: ='Base Prod'!A63 -> Bitdefender GravityZone Business Security Premium | C63: ='Base Prod'!B63 -> 2 years | D63: ='Base Prod'!C63 -> 3000+ | E63: ='Base Prod'!D63 -> 43.93 | G63: ='Base Prod'!F63 -> 0 | H63: ='Base Prod'!G63 -> 2883ZZBSN240ILZZ
A64: =IF(B64=Base!B60,Base!A60,"") -> Packages | B64: ='Base Prod'!A64 -> Bitdefender GravityZone Business Security Premium | C64: ='Base Prod'!B64 -> 3 years | D64: ='Base Prod'!C64 -> 5 - 14 | E64: ='Base Prod'!D64 -> 142.79 | G64: ='Base Prod'!F64 -> 0 | H64: ='Base Prod'!G64 -> 2883ZZBSN360YLZZ
A65: =IF(B65=Base!B61,Base!A61,"") -> Packages | B65: ='Base Prod'!A65 -> Bitdefender GravityZone Business Security Premium | C65: ='Base Prod'!B65 -> 3 years | D65: ='Base Prod'!C65 -> 15 - 24 | E65: ='Base Prod'!D65 -> 126.02 | G65: ='Base Prod'!F65 -> 0 | H65: ='Base Prod'!G65 -> 2883ZZBSN360ALZZ
A66: =IF(B66=Base!B62,Base!A62,"") -> Packages | B66: ='Base Prod'!A66 -> Bitdefender GravityZone Business Security Premium | C66: ='Base Prod'!B66 -> 3 years | D66: ='Base Prod'!C66 -> 25 - 49 | E66: ='Base Prod'!D66 -> 113.4 | G66: ='Base Prod'!F66 -> 0 | H66: ='Base Prod'!G66 -> 2883ZZBSN360BLZZ
A67: =IF(B67=Base!B63,Base!A63,"") -> Packages | B67: ='Base Prod'!A67 -> Bitdefender GravityZone Business Security Premium | C67: ='Base Prod'!B67 -> 3 years | D67: ='Base Prod'!C67 -> 50 - 99 | E67: ='Base Prod'!D67 -> 99.83 | G67: ='Base Prod'!F67 -> 0 | H67: ='Base Prod'!G67 -> 2883ZZBSN360CLZZ
A68: =IF(B68=Base!B64,Base!A64,"") -> Packages | B68: ='Base Prod'!A68 -> Bitdefender GravityZone Business Security Premium | C68: ='Base Prod'!B68 -> 3 years | D68: ='Base Prod'!C68 -> 100 - 149 | E68: ='Base Prod'!D68 -> 87.92 | G68: ='Base Prod'!F68 -> 0 | H68: ='Base Prod'!G68 -> 2883ZZBSN360DLZZ
A69: =IF(B69=Base!B65,Base!A65,"") -> Packages | B69: ='Base Prod'!A69 -> Bitdefender GravityZone Business Security Premium | C69: ='Base Prod'!B69 -> 3 years | D69: ='Base Prod'!C69 -> 150 - 249 | E69: ='Base Prod'!D69 -> 79.01 | G69: ='Base Prod'!F69 -> 0 | H69: ='Base Prod'!G69 -> 2883ZZBSN360ELZZ
A70: =IF(B70=Base!B66,Base!A66,"") -> Packages | B70: ='Base Prod'!A70 -> Bitdefender GravityZone Business Security Premium | C70: ='Base Prod'!B70 -> 3 years | D70: ='Base Prod'!C70 -> 250 - 499 | E70: ='Base Prod'!D70 -> 72.9 | G70: ='Base Prod'!F70 -> 0 | H70: ='Base Prod'!G70 -> 2883ZZBSN360FLZZ
A71: =IF(B71=Base!B67,Base!A67,"") -> Packages | B71: ='Base Prod'!A71 -> Bitdefender GravityZone Business Security Premium | C71: ='Base Prod'!B71 -> 3 years | D71: ='Base Prod'!C71 -> 500 - 999 | E71: ='Base Prod'!D71 -> 69.04 | G71: ='Base Prod'!F71 -> 0 | H71: ='Base Prod'!G71 -> 2883ZZBSN360GLZZ
A72: =IF(B72=Base!B68,Base!A68,"") -> Packages | B72: ='Base Prod'!A72 -> Bitdefender GravityZone Business Security Premium | C72: ='Base Prod'!B72 -> 3 years | D72: ='Base Prod'!C72 -> 1000 - 2999 | E72: ='Base Prod'!D72 -> 66.65 | G72: ='Base Prod'!F72 -> 0 | H72: ='Base Prod'!G72 -> 2883ZZBSN360HLZZ
A73: =IF(B73=Base!B69,Base!A69,"") -> Packages | B73: ='Base Prod'!A73 -> Bitdefender GravityZone Business Security Premium | C73: ='Base Prod'!B73 -> 3 years | D73: ='Base Prod'!C73 -> 3000+ | E73: ='Base Prod'!D73 -> 64.29 | G73: ='Base Prod'!F73 -> 0 | H73: ='Base Prod'!G73 -> 2883ZZBSN360ILZZ
A74: =IF(B74=Base!B70,Base!A70,"") -> Packages | B74: ='Base Prod'!A74 -> Bitdefender GravityZone Business Security Enterprise | C74: ='Base Prod'!B74 -> 1 year | D74: ='Base Prod'!C74 -> 5 - 14 | E74: ='Base Prod'!D74 -> 61.99 | G74: ='Base Prod'!F74 -> 0 | H74: ='Base Prod'!G74 -> 2892ZZBSN120YLZZ
A75: =IF(B75=Base!B71,Base!A71,"") -> Packages | B75: ='Base Prod'!A75 -> Bitdefender GravityZone Business Security Enterprise | C75: ='Base Prod'!B75 -> 1 year | D75: ='Base Prod'!C75 -> 15 - 24 | E75: ='Base Prod'!D75 -> 54.15 | G75: ='Base Prod'!F75 -> 0 | H75: ='Base Prod'!G75 -> 2892ZZBSN120ALZZ
A76: =IF(B76=Base!B72,Base!A72,"") -> Packages | B76: ='Base Prod'!A76 -> Bitdefender GravityZone Business Security Enterprise | C76: ='Base Prod'!B76 -> 1 year | D76: ='Base Prod'!C76 -> 25 - 49 | E76: ='Base Prod'!D76 -> 49.2 | G76: ='Base Prod'!F76 -> 0 | H76: ='Base Prod'!G76 -> 2892ZZBSN120BLZZ
A77: =IF(B77=Base!B73,Base!A73,"") -> Packages | B77: ='Base Prod'!A77 -> Bitdefender GravityZone Business Security Enterprise | C77: ='Base Prod'!B77 -> 1 year | D77: ='Base Prod'!C77 -> 50 - 99 | E77: ='Base Prod'!D77 -> 45.82 | G77: ='Base Prod'!F77 -> 0 | H77: ='Base Prod'!G77 -> 2892ZZBSN120CLZZ
A78: =IF(B78=Base!B74,Base!A74,"") -> Packages | B78: ='Base Prod'!A78 -> Bitdefender GravityZone Business Security Enterprise | C78: ='Base Prod'!B78 -> 1 year | D78: ='Base Prod'!C78 -> 100 - 149 | E78: ='Base Prod'!D78 -> 41.65 | G78: ='Base Prod'!F78 -> 0 | H78: ='Base Prod'!G78 -> 2892ZZBSN120DLZZ
A79: =IF(B79=Base!B75,Base!A75,"") -> Packages | B79: ='Base Prod'!A79 -> Bitdefender GravityZone Business Security Enterprise | C79: ='Base Prod'!B79 -> 1 year | D79: ='Base Prod'!C79 -> 150 - 249 | E79: ='Base Prod'!D79 -> 39.41 | G79: ='Base Prod'!F79 -> 0 | H79: ='Base Prod'!G79 -> 2892ZZBSN120ELZZ
A80: =IF(B80=Base!B76,Base!A76,"") -> Packages | B80: ='Base Prod'!A80 -> Bitdefender GravityZone Business Security Enterprise | C80: ='Base Prod'!B80 -> 1 year | D80: ='Base Prod'!C80 -> 250 - 499 | E80: ='Base Prod'!D80 -> 37.18 | G80: ='Base Prod'!F80 -> 0 | H80: ='Base Prod'!G80 -> 2892ZZBSN120FLZZ
A81: =IF(B81=Base!B77,Base!A77,"") -> Packages | B81: ='Base Prod'!A81 -> Bitdefender GravityZone Business Security Enterprise | C81: ='Base Prod'!B81 -> 1 year | D81: ='Base Prod'!C81 -> 500 - 999 | E81: ='Base Prod'!D81 -> 35.18 | G81: ='Base Prod'!F81 -> 0 | H81: ='Base Prod'!G81 -> 2892ZZBSN120GLZZ
A82: =IF(B82=Base!B78,Base!A78,"") -> Packages | B82: ='Base Prod'!A82 -> Bitdefender GravityZone Business Security Enterprise | C82: ='Base Prod'!B82 -> 1 year | D82: ='Base Prod'!C82 -> 1000 - 2999 | E82: ='Base Prod'!D82 -> 32.78 | G82: ='Base Prod'!F82 -> 0 | H82: ='Base Prod'!G82 -> 2892ZZBSN120HLZZ
A83: =IF(B83=Base!B79,Base!A79,"") -> Packages | B83: ='Base Prod'!A83 -> Bitdefender GravityZone Business Security Enterprise | C83: ='Base Prod'!B83 -> 1 year | D83: ='Base Prod'!C83 -> 3000+ | E83: ='Base Prod'!D83 -> 30.33 | G83: ='Base Prod'!F83 -> 0 | H83: ='Base Prod'!G83 -> 2892ZZBSN120ILZZ
A84: =IF(B84=Base!B80,Base!A80,"") -> Packages | B84: ='Base Prod'!A84 -> Bitdefender GravityZone Business Security Enterprise | C84: ='Base Prod'!B84 -> 2 years | D84: ='Base Prod'!C84 -> 5 - 14 | E84: ='Base Prod'!D84 -> 102.28 | G84: ='Base Prod'!F84 -> 0 | H84: ='Base Prod'!G84 -> 2892ZZBSN240YLZZ
A85: =IF(B85=Base!B81,Base!A81,"") -> Packages | B85: ='Base Prod'!A85 -> Bitdefender GravityZone Business Security Enterprise | C85: ='Base Prod'!B85 -> 2 years | D85: ='Base Prod'!C85 -> 15 - 24 | E85: ='Base Prod'!D85 -> 89.35 | G85: ='Base Prod'!F85 -> 0 | H85: ='Base Prod'!G85 -> 2892ZZBSN240ALZZ
A86: =IF(B86=Base!B82,Base!A82,"") -> Packages | B86: ='Base Prod'!A86 -> Bitdefender GravityZone Business Security Enterprise | C86: ='Base Prod'!B86 -> 2 years | D86: ='Base Prod'!C86 -> 25 - 49 | E86: ='Base Prod'!D86 -> 81.17 | G86: ='Base Prod'!F86 -> 0 | H86: ='Base Prod'!G86 -> 2892ZZBSN240BLZZ
A87: =IF(B87=Base!B83,Base!A83,"") -> Packages | B87: ='Base Prod'!A87 -> Bitdefender GravityZone Business Security Enterprise | C87: ='Base Prod'!B87 -> 2 years | D87: ='Base Prod'!C87 -> 50 - 99 | E87: ='Base Prod'!D87 -> 75.61 | G87: ='Base Prod'!F87 -> 0 | H87: ='Base Prod'!G87 -> 2892ZZBSN240CLZZ
A88: =IF(B88=Base!B84,Base!A84,"") -> Packages | B88: ='Base Prod'!A88 -> Bitdefender GravityZone Business Security Enterprise | C88: ='Base Prod'!B88 -> 2 years | D88: ='Base Prod'!C88 -> 100 - 149 | E88: ='Base Prod'!D88 -> 68.72 | G88: ='Base Prod'!F88 -> 0 | H88: ='Base Prod'!G88 -> 2892ZZBSN240DLZZ
A89: =IF(B89=Base!B85,Base!A85,"") -> Packages | B89: ='Base Prod'!A89 -> Bitdefender GravityZone Business Security Enterprise | C89: ='Base Prod'!B89 -> 2 years | D89: ='Base Prod'!C89 -> 150 - 249 | E89: ='Base Prod'!D89 -> 65.02 | G89: ='Base Prod'!F89 -> 0 | H89: ='Base Prod'!G89 -> 2892ZZBSN240ELZZ
A90: =IF(B90=Base!B86,Base!A86,"") -> Packages | B90: ='Base Prod'!A90 -> Bitdefender GravityZone Business Security Enterprise | C90: ='Base Prod'!B90 -> 2 years | D90: ='Base Prod'!C90 -> 250 - 499 | E90: ='Base Prod'!D90 -> 61.36 | G90: ='Base Prod'!F90 -> 0 | H90: ='Base Prod'!G90 -> 2892ZZBSN240FLZZ
A91: =IF(B91=Base!B87,Base!A87,"") -> Packages | B91: ='Base Prod'!A91 -> Bitdefender GravityZone Business Security Enterprise | C91: ='Base Prod'!B91 -> 2 years | D91: ='Base Prod'!C91 -> 500 - 999 | E91: ='Base Prod'!D91 -> 58.05 | G91: ='Base Prod'!F91 -> 0 | H91: ='Base Prod'!G91 -> 2892ZZBSN240GLZZ
A92: =IF(B92=Base!B88,Base!A88,"") -> Packages | B92: ='Base Prod'!A92 -> Bitdefender GravityZone Business Security Enterprise | C92: ='Base Prod'!B92 -> 2 years | D92: ='Base Prod'!C92 -> 1000 - 2999 | E92: ='Base Prod'!D92 -> 54.08 | G92: ='Base Prod'!F92 -> 0 | H92: ='Base Prod'!G92 -> 2892ZZBSN240HLZZ
A93: =IF(B93=Base!B89,Base!A89,"") -> Packages | B93: ='Base Prod'!A93 -> Bitdefender GravityZone Business Security Enterprise | C93: ='Base Prod'!B93 -> 2 years | D93: ='Base Prod'!C93 -> 3000+ | E93: ='Base Prod'!D93 -> 50.05 | G93: ='Base Prod'!F93 -> 0 | H93: ='Base Prod'!G93 -> 2892ZZBSN240ILZZ
A94: =IF(B94=Base!B90,Base!A90,"") -> Packages | B94: ='Base Prod'!A94 -> Bitdefender GravityZone Business Security Enterprise | C94: ='Base Prod'!B94 -> 3 years | D94: ='Base Prod'!C94 -> 5 - 14 | E94: ='Base Prod'!D94 -> 149.7 | G94: ='Base Prod'!F94 -> 0 | H94: ='Base Prod'!G94 -> 2892ZZBSN360YLZZ
A95: =IF(B95=Base!B91,Base!A91,"") -> Packages | B95: ='Base Prod'!A95 -> Bitdefender GravityZone Business Security Enterprise | C95: ='Base Prod'!B95 -> 3 years | D95: ='Base Prod'!C95 -> 15 - 24 | E95: ='Base Prod'!D95 -> 130.77 | G95: ='Base Prod'!F95 -> 0 | H95: ='Base Prod'!G95 -> 2892ZZBSN360ALZZ
A96: =IF(B96=Base!B92,Base!A92,"") -> Packages | B96: ='Base Prod'!A96 -> Bitdefender GravityZone Business Security Enterprise | C96: ='Base Prod'!B96 -> 3 years | D96: ='Base Prod'!C96 -> 25 - 49 | E96: ='Base Prod'!D96 -> 118.8 | G96: ='Base Prod'!F96 -> 0 | H96: ='Base Prod'!G96 -> 2892ZZBSN360BLZZ
A97: =IF(B97=Base!B93,Base!A93,"") -> Packages | B97: ='Base Prod'!A97 -> Bitdefender GravityZone Business Security Enterprise | C97: ='Base Prod'!B97 -> 3 years | D97: ='Base Prod'!C97 -> 50 - 99 | E97: ='Base Prod'!D97 -> 110.65 | G97: ='Base Prod'!F97 -> 0 | H97: ='Base Prod'!G97 -> 2892ZZBSN360CLZZ
A98: =IF(B98=Base!B94,Base!A94,"") -> Packages | B98: ='Base Prod'!A98 -> Bitdefender GravityZone Business Security Enterprise | C98: ='Base Prod'!B98 -> 3 years | D98: ='Base Prod'!C98 -> 100 - 149 | E98: ='Base Prod'!D98 -> 100.59 | G98: ='Base Prod'!F98 -> 0 | H98: ='Base Prod'!G98 -> 2892ZZBSN360DLZZ
A99: =IF(B99=Base!B95,Base!A95,"") -> Packages | B99: ='Base Prod'!A99 -> Bitdefender GravityZone Business Security Enterprise | C99: ='Base Prod'!B99 -> 3 years | D99: ='Base Prod'!C99 -> 150 - 249 | E99: ='Base Prod'!D99 -> 95.16 | G99: ='Base Prod'!F99 -> 0 | H99: ='Base Prod'!G99 -> 2892ZZBSN360ELZZ
A100: =IF(B100=Base!B96,Base!A96,"") -> Packages | B100: ='Base Prod'!A100 -> Bitdefender GravityZone Business Security Enterprise | C100: ='Base Prod'!B100 -> 3 years | D100: ='Base Prod'!C100 -> 250 - 499 | E100: ='Base Prod'!D100 -> 89.8 | G100: ='Base Prod'!F100 -> 0 | H100: ='Base Prod'!G100 -> 2892ZZBSN360FLZZ
A101: =IF(B101=Base!B97,Base!A97,"") -> Packages | B101: ='Base Prod'!A101 -> Bitdefender GravityZone Business Security Enterprise | C101: ='Base Prod'!B101 -> 3 years | D101: ='Base Prod'!C101 -> 500 - 999 | E101: ='Base Prod'!D101 -> 84.95 | G101: ='Base Prod'!F101 -> 0 | H101: ='Base Prod'!G101 -> 2892ZZBSN360GLZZ
A102: =IF(B102=Base!B98,Base!A98,"") -> Packages | B102: ='Base Prod'!A102 -> Bitdefender GravityZone Business Security Enterprise | C102: ='Base Prod'!B102 -> 3 years | D102: ='Base Prod'!C102 -> 1000 - 2999 | E102: ='Base Prod'!D102 -> 79.16 | G102: ='Base Prod'!F102 -> 0 | H102: ='Base Prod'!G102 -> 2892ZZBSN360HLZZ
A103: =IF(B103=Base!B99,Base!A99,"") -> Packages | B103: ='Base Prod'!A103 -> Bitdefender GravityZone Business Security Enterprise | C103: ='Base Prod'!B103 -> 3 years | D103: ='Base Prod'!C103 -> 3000+ | E103: ='Base Prod'!D103 -> 73.25 | G103: ='Base Prod'!F103 -> 0 | H103: ='Base Prod'!G103 -> 2892ZZBSN360ILZZ
A104: =IF(B104=Base!B100,Base!A100,"") -> A la carte | B104: ='Base Prod'!A104 -> Bitdefender GravityZone EDR Cloud | C104: ='Base Prod'!B104 -> 1 year | D104: ='Base Prod'!C104 -> 50 - 99 | E104: ='Base Prod'!D104 -> 30.29 | G104: ='Base Prod'!F104 -> 0 | H104: ='Base Prod'!G104 -> 3054ZZBSN120CLZZ
A105: =IF(B105=Base!B101,Base!A101,"") -> A la carte | B105: ='Base Prod'!A105 -> Bitdefender GravityZone EDR Cloud | C105: ='Base Prod'!B105 -> 1 year | D105: ='Base Prod'!C105 -> 100 - 149 | E105: ='Base Prod'!D105 -> 27.85 | G105: ='Base Prod'!F105 -> 0 | H105: ='Base Prod'!G105 -> 3054ZZBSN120DLZZ
A106: =IF(B106=Base!B102,Base!A102,"") -> A la carte | B106: ='Base Prod'!A106 -> Bitdefender GravityZone EDR Cloud | C106: ='Base Prod'!B106 -> 1 year | D106: ='Base Prod'!C106 -> 150 - 249 | E106: ='Base Prod'!D106 -> 25.63 | G106: ='Base Prod'!F106 -> 0 | H106: ='Base Prod'!G106 -> 3054ZZBSN120ELZZ
A107: =IF(B107=Base!B103,Base!A103,"") -> A la carte | B107: ='Base Prod'!A107 -> Bitdefender GravityZone EDR Cloud | C107: ='Base Prod'!B107 -> 1 year | D107: ='Base Prod'!C107 -> 250 - 499 | E107: ='Base Prod'!D107 -> 23.58 | G107: ='Base Prod'!F107 -> 0 | H107: ='Base Prod'!G107 -> 3054ZZBSN120FLZZ
A108: =IF(B108=Base!B104,Base!A104,"") -> A la carte | B108: ='Base Prod'!A108 -> Bitdefender GravityZone EDR Cloud | C108: ='Base Prod'!B108 -> 1 year | D108: ='Base Prod'!C108 -> 500 - 999 | E108: ='Base Prod'!D108 -> 21.7 | G108: ='Base Prod'!F108 -> 0 | H108: ='Base Prod'!G108 -> 3054ZZBSN120GLZZ
A109: =IF(B109=Base!B105,Base!A105,"") -> A la carte | B109: ='Base Prod'!A109 -> Bitdefender GravityZone EDR Cloud | C109: ='Base Prod'!B109 -> 1 year | D109: ='Base Prod'!C109 -> 1000 - 2999 | E109: ='Base Prod'!D109 -> 19.96 | G109: ='Base Prod'!F109 -> 0 | H109: ='Base Prod'!G109 -> 3054ZZBSN120HLZZ
A110: =IF(B110=Base!B106,Base!A106,"") -> A la carte | B110: ='Base Prod'!A110 -> Bitdefender GravityZone EDR Cloud | C110: ='Base Prod'!B110 -> 1 year | D110: ='Base Prod'!C110 -> 3000+ | E110: ='Base Prod'!D110 -> 18.36 | G110: ='Base Prod'!F110 -> 0 | H110: ='Base Prod'!G110 -> 3054ZZBSN120ILZZ
A111: =IF(B111=Base!B107,Base!A107,"") -> A la carte | B111: ='Base Prod'!A111 -> Bitdefender GravityZone EDR Cloud | C111: ='Base Prod'!B111 -> 2 years | D111: ='Base Prod'!C111 -> 50 - 99 | E111: ='Base Prod'!D111 -> 49.97 | G111: ='Base Prod'!F111 -> 0 | H111: ='Base Prod'!G111 -> 3054ZZBSN240CLZZ
A112: =IF(B112=Base!B108,Base!A108,"") -> A la carte | B112: ='Base Prod'!A112 -> Bitdefender GravityZone EDR Cloud | C112: ='Base Prod'!B112 -> 2 years | D112: ='Base Prod'!C112 -> 100 - 149 | E112: ='Base Prod'!D112 -> 45.97 | G112: ='Base Prod'!F112 -> 0 | H112: ='Base Prod'!G112 -> 3054ZZBSN240DLZZ
A113: =IF(B113=Base!B109,Base!A109,"") -> A la carte | B113: ='Base Prod'!A113 -> Bitdefender GravityZone EDR Cloud | C113: ='Base Prod'!B113 -> 2 years | D113: ='Base Prod'!C113 -> 150 - 249 | E113: ='Base Prod'!D113 -> 42.3 | G113: ='Base Prod'!F113 -> 0 | H113: ='Base Prod'!G113 -> 3054ZZBSN240ELZZ
A114: =IF(B114=Base!B110,Base!A110,"") -> A la carte | B114: ='Base Prod'!A114 -> Bitdefender GravityZone EDR Cloud | C114: ='Base Prod'!B114 -> 2 years | D114: ='Base Prod'!C114 -> 250 - 499 | E114: ='Base Prod'!D114 -> 38.91 | G114: ='Base Prod'!F114 -> 0 | H114: ='Base Prod'!G114 -> 3054ZZBSN240FLZZ
A115: =IF(B115=Base!B111,Base!A111,"") -> A la carte | B115: ='Base Prod'!A115 -> Bitdefender GravityZone EDR Cloud | C115: ='Base Prod'!B115 -> 2 years | D115: ='Base Prod'!C115 -> 500 - 999 | E115: ='Base Prod'!D115 -> 35.8 | G115: ='Base Prod'!F115 -> 0 | H115: ='Base Prod'!G115 -> 3054ZZBSN240GLZZ
A116: =IF(B116=Base!B112,Base!A112,"") -> A la carte | B116: ='Base Prod'!A116 -> Bitdefender GravityZone EDR Cloud | C116: ='Base Prod'!B116 -> 2 years | D116: ='Base Prod'!C116 -> 1000 - 2999 | E116: ='Base Prod'!D116 -> 32.93 | G116: ='Base Prod'!F116 -> 0 | H116: ='Base Prod'!G116 -> 3054ZZBSN240HLZZ
A117: =IF(B117=Base!B113,Base!A113,"") -> A la carte | B117: ='Base Prod'!A117 -> Bitdefender GravityZone EDR Cloud | C117: ='Base Prod'!B117 -> 2 years | D117: ='Base Prod'!C117 -> 3000+ | E117: ='Base Prod'!D117 -> 30.29 | G117: ='Base Prod'!F117 -> 0 | H117: ='Base Prod'!G117 -> 3054ZZBSN240ILZZ
A118: =IF(B118=Base!B114,Base!A114,"") -> A la carte | B118: ='Base Prod'!A118 -> Bitdefender GravityZone EDR Cloud | C118: ='Base Prod'!B118 -> 3 years | D118: ='Base Prod'!C118 -> 50 - 99 | E118: ='Base Prod'!D118 -> 69.66 | G118: ='Base Prod'!F118 -> 0 | H118: ='Base Prod'!G118 -> 3054ZZBSN360CLZZ
A119: =IF(B119=Base!B115,Base!A115,"") -> A la carte | B119: ='Base Prod'!A119 -> Bitdefender GravityZone EDR Cloud | C119: ='Base Prod'!B119 -> 3 years | D119: ='Base Prod'!C119 -> 100 - 149 | E119: ='Base Prod'!D119 -> 64.07 | G119: ='Base Prod'!F119 -> 0 | H119: ='Base Prod'!G119 -> 3054ZZBSN360DLZZ
A120: =IF(B120=Base!B116,Base!A116,"") -> A la carte | B120: ='Base Prod'!A120 -> Bitdefender GravityZone EDR Cloud | C120: ='Base Prod'!B120 -> 3 years | D120: ='Base Prod'!C120 -> 150 - 249 | E120: ='Base Prod'!D120 -> 58.96 | G120: ='Base Prod'!F120 -> 0 | H120: ='Base Prod'!G120 -> 3054ZZBSN360ELZZ
A121: =IF(B121=Base!B117,Base!A117,"") -> A la carte | B121: ='Base Prod'!A121 -> Bitdefender GravityZone EDR Cloud | C121: ='Base Prod'!B121 -> 3 years | D121: ='Base Prod'!C121 -> 250 - 499 | E121: ='Base Prod'!D121 -> 54.24 | G121: ='Base Prod'!F121 -> 0 | H121: ='Base Prod'!G121 -> 3054ZZBSN360FLZZ
A122: =IF(B122=Base!B118,Base!A118,"") -> A la carte | B122: ='Base Prod'!A122 -> Bitdefender GravityZone EDR Cloud | C122: ='Base Prod'!B122 -> 3 years | D122: ='Base Prod'!C122 -> 500 - 999 | E122: ='Base Prod'!D122 -> 49.9 | G122: ='Base Prod'!F122 -> 0 | H122: ='Base Prod'!G122 -> 3054ZZBSN360GLZZ
A123: =IF(B123=Base!B119,Base!A119,"") -> A la carte | B123: ='Base Prod'!A123 -> Bitdefender GravityZone EDR Cloud | C123: ='Base Prod'!B123 -> 3 years | D123: ='Base Prod'!C123 -> 1000 - 2999 | E123: ='Base Prod'!D123 -> 45.91 | G123: ='Base Prod'!F123 -> 0 | H123: ='Base Prod'!G123 -> 3054ZZBSN360HLZZ
A124: =IF(B124=Base!B120,Base!A120,"") -> A la carte | B124: ='Base Prod'!A124 -> Bitdefender GravityZone EDR Cloud | C124: ='Base Prod'!B124 -> 3 years | D124: ='Base Prod'!C124 -> 3000+ | E124: ='Base Prod'!D124 -> 42.24 | G124: ='Base Prod'!F124 -> 0 | H124: ='Base Prod'!G124 -> 3054ZZBSN360ILZZ
A125: =IF(B125=Base!B121,Base!A121,"") -> Add-On | B125: ='Base Prod'!A125 -> Bitdefender GravityZone 90 days Data Retention Add-on | C125: ='Base Prod'!B125 -> 1 year | D125: ='Base Prod'!C125 -> 50 - 99 | E125: ='Base Prod'!D125 -> 24.04 | G125: ='Base Prod'!F125 -> 0 | H125: ='Base Prod'!G125 -> 3051ZZBSN120CLZZ
A126: =IF(B126=Base!B122,Base!A122,"") -> Add-On | B126: ='Base Prod'!A126 -> Bitdefender GravityZone 90 days Data Retention Add-on | C126: ='Base Prod'!B126 -> 1 year | D126: ='Base Prod'!C126 -> 100 - 149 | E126: ='Base Prod'!D126 -> 22.59 | G126: ='Base Prod'!F126 -> 0 | H126: ='Base Prod'!G126 -> 3051ZZBSN120DLZZ
A127: =IF(B127=Base!B123,Base!A123,"") -> Add-On | B127: ='Base Prod'!A127 -> Bitdefender GravityZone 90 days Data Retention Add-on | C127: ='Base Prod'!B127 -> 1 year | D127: ='Base Prod'!C127 -> 150 - 249 | E127: ='Base Prod'!D127 -> 21.24 | G127: ='Base Prod'!F127 -> 0 | H127: ='Base Prod'!G127 -> 3051ZZBSN120ELZZ
A128: =IF(B128=Base!B124,Base!A124,"") -> Add-On | B128: ='Base Prod'!A128 -> Bitdefender GravityZone 90 days Data Retention Add-on | C128: ='Base Prod'!B128 -> 1 year | D128: ='Base Prod'!C128 -> 250 - 499 | E128: ='Base Prod'!D128 -> 19.97 | G128: ='Base Prod'!F128 -> 0 | H128: ='Base Prod'!G128 -> 3051ZZBSN120FLZZ
A129: =IF(B129=Base!B125,Base!A125,"") -> Add-On | B129: ='Base Prod'!A129 -> Bitdefender GravityZone 90 days Data Retention Add-on | C129: ='Base Prod'!B129 -> 1 year | D129: ='Base Prod'!C129 -> 500 - 999 | E129: ='Base Prod'!D129 -> 18.76 | G129: ='Base Prod'!F129 -> 0 | H129: ='Base Prod'!G129 -> 3051ZZBSN120GLZZ
A130: =IF(B130=Base!B126,Base!A126,"") -> Add-On | B130: ='Base Prod'!A130 -> Bitdefender GravityZone 90 days Data Retention Add-on | C130: ='Base Prod'!B130 -> 1 year | D130: ='Base Prod'!C130 -> 1000 - 2999 | E130: ='Base Prod'!D130 -> 17.26 | G130: ='Base Prod'!F130 -> 0 | H130: ='Base Prod'!G130 -> 3051ZZBSN120HLZZ
A131: =IF(B131=Base!B127,Base!A127,"") -> Add-On | B131: ='Base Prod'!A131 -> Bitdefender GravityZone 90 days Data Retention Add-on | C131: ='Base Prod'!B131 -> 1 year | D131: ='Base Prod'!C131 -> 3000+ | E131: ='Base Prod'!D131 -> 15.88 | G131: ='Base Prod'!F131 -> 0 | H131: ='Base Prod'!G131 -> 3051ZZBSN120ILZZ
A132: =IF(B132=Base!B128,Base!A128,"") -> Add-On | B132: ='Base Prod'!A132 -> Bitdefender GravityZone 90 days Data Retention Add-on | C132: ='Base Prod'!B132 -> 2 years | D132: ='Base Prod'!C132 -> 50 - 99 | E132: ='Base Prod'!D132 -> 39.66 | G132: ='Base Prod'!F132 -> 0 | H132: ='Base Prod'!G132 -> 3051ZZBSN240CLZZ
A133: =IF(B133=Base!B129,Base!A129,"") -> Add-On | B133: ='Base Prod'!A133 -> Bitdefender GravityZone 90 days Data Retention Add-on | C133: ='Base Prod'!B133 -> 2 years | D133: ='Base Prod'!C133 -> 100 - 149 | E133: ='Base Prod'!D133 -> 37.28 | G133: ='Base Prod'!F133 -> 0 | H133: ='Base Prod'!G133 -> 3051ZZBSN240DLZZ
A134: =IF(B134=Base!B130,Base!A130,"") -> Add-On | B134: ='Base Prod'!A134 -> Bitdefender GravityZone 90 days Data Retention Add-on | C134: ='Base Prod'!B134 -> 2 years | D134: ='Base Prod'!C134 -> 150 - 249 | E134: ='Base Prod'!D134 -> 35.05 | G134: ='Base Prod'!F134 -> 0 | H134: ='Base Prod'!G134 -> 3051ZZBSN240ELZZ
A135: =IF(B135=Base!B131,Base!A131,"") -> Add-On | B135: ='Base Prod'!A135 -> Bitdefender GravityZone 90 days Data Retention Add-on | C135: ='Base Prod'!B135 -> 2 years | D135: ='Base Prod'!C135 -> 250 - 499 | E135: ='Base Prod'!D135 -> 32.94 | G135: ='Base Prod'!F135 -> 0 | H135: ='Base Prod'!G135 -> 3051ZZBSN240FLZZ
A136: =IF(B136=Base!B132,Base!A132,"") -> Add-On | B136: ='Base Prod'!A136 -> Bitdefender GravityZone 90 days Data Retention Add-on | C136: ='Base Prod'!B136 -> 2 years | D136: ='Base Prod'!C136 -> 500 - 999 | E136: ='Base Prod'!D136 -> 30.97 | G136: ='Base Prod'!F136 -> 0 | H136: ='Base Prod'!G136 -> 3051ZZBSN240GLZZ
A137: =IF(B137=Base!B133,Base!A133,"") -> Add-On | B137: ='Base Prod'!A137 -> Bitdefender GravityZone 90 days Data Retention Add-on | C137: ='Base Prod'!B137 -> 2 years | D137: ='Base Prod'!C137 -> 1000 - 2999 | E137: ='Base Prod'!D137 -> 28.48 | G137: ='Base Prod'!F137 -> 0 | H137: ='Base Prod'!G137 -> 3051ZZBSN240HLZZ
A138: =IF(B138=Base!B134,Base!A134,"") -> Add-On | B138: ='Base Prod'!A138 -> Bitdefender GravityZone 90 days Data Retention Add-on | C138: ='Base Prod'!B138 -> 2 years | D138: ='Base Prod'!C138 -> 3000+ | E138: ='Base Prod'!D138 -> 26.2 | G138: ='Base Prod'!F138 -> 0 | H138: ='Base Prod'!G138 -> 3051ZZBSN240ILZZ
A139: =IF(B139=Base!B135,Base!A135,"") -> Add-On | B139: ='Base Prod'!A139 -> Bitdefender GravityZone 90 days Data Retention Add-on | C139: ='Base Prod'!B139 -> 3 years | D139: ='Base Prod'!C139 -> 50 - 99 | E139: ='Base Prod'!D139 -> 55.28 | G139: ='Base Prod'!F139 -> 0 | H139: ='Base Prod'!G139 -> 3051ZZBSN360CLZZ
A140: =IF(B140=Base!B136,Base!A136,"") -> Add-On | B140: ='Base Prod'!A140 -> Bitdefender GravityZone 90 days Data Retention Add-on | C140: ='Base Prod'!B140 -> 3 years | D140: ='Base Prod'!C140 -> 100 - 149 | E140: ='Base Prod'!D140 -> 51.96 | G140: ='Base Prod'!F140 -> 0 | H140: ='Base Prod'!G140 -> 3051ZZBSN360DLZZ
A141: =IF(B141=Base!B137,Base!A137,"") -> Add-On | B141: ='Base Prod'!A141 -> Bitdefender GravityZone 90 days Data Retention Add-on | C141: ='Base Prod'!B141 -> 3 years | D141: ='Base Prod'!C141 -> 150 - 249 | E141: ='Base Prod'!D141 -> 48.83 | G141: ='Base Prod'!F141 -> 0 | H141: ='Base Prod'!G141 -> 3051ZZBSN360ELZZ
A142: =IF(B142=Base!B138,Base!A138,"") -> Add-On | B142: ='Base Prod'!A142 -> Bitdefender GravityZone 90 days Data Retention Add-on | C142: ='Base Prod'!B142 -> 3 years | D142: ='Base Prod'!C142 -> 250 - 499 | E142: ='Base Prod'!D142 -> 45.91 | G142: ='Base Prod'!F142 -> 0 | H142: ='Base Prod'!G142 -> 3051ZZBSN360FLZZ
A143: =IF(B143=Base!B139,Base!A139,"") -> Add-On | B143: ='Base Prod'!A143 -> Bitdefender GravityZone 90 days Data Retention Add-on | C143: ='Base Prod'!B143 -> 3 years | D143: ='Base Prod'!C143 -> 500 - 999 | E143: ='Base Prod'!D143 -> 43.16 | G143: ='Base Prod'!F143 -> 0 | H143: ='Base Prod'!G143 -> 3051ZZBSN360GLZZ
A144: =IF(B144=Base!B140,Base!A140,"") -> Add-On | B144: ='Base Prod'!A144 -> Bitdefender GravityZone 90 days Data Retention Add-on | C144: ='Base Prod'!B144 -> 3 years | D144: ='Base Prod'!C144 -> 1000 - 2999 | E144: ='Base Prod'!D144 -> 39.71 | G144: ='Base Prod'!F144 -> 0 | H144: ='Base Prod'!G144 -> 3051ZZBSN360HLZZ
A145: =IF(B145=Base!B141,Base!A141,"") -> Add-On | B145: ='Base Prod'!A145 -> Bitdefender GravityZone 90 days Data Retention Add-on | C145: ='Base Prod'!B145 -> 3 years | D145: ='Base Prod'!C145 -> 3000+ | E145: ='Base Prod'!D145 -> 36.53 | G145: ='Base Prod'!F145 -> 0 | H145: ='Base Prod'!G145 -> 3051ZZBSN360ILZZ
A146: =IF(B146=Base!B142,Base!A142,"") -> Add-On | B146: ='Base Prod'!A146 -> Bitdefender GravityZone 180 days Data Retention Add-on | C146: ='Base Prod'!B146 -> 1 year | D146: ='Base Prod'!C146 -> 50 - 99 | E146: ='Base Prod'!D146 -> 36.06 | G146: ='Base Prod'!F146 -> 0 | H146: ='Base Prod'!G146 -> 3053ZZBSN120CLZZ
A147: =IF(B147=Base!B143,Base!A143,"") -> Add-On | B147: ='Base Prod'!A147 -> Bitdefender GravityZone 180 days Data Retention Add-on | C147: ='Base Prod'!B147 -> 1 year | D147: ='Base Prod'!C147 -> 100 - 149 | E147: ='Base Prod'!D147 -> 33.88 | G147: ='Base Prod'!F147 -> 0 | H147: ='Base Prod'!G147 -> 3053ZZBSN120DLZZ
A148: =IF(B148=Base!B144,Base!A144,"") -> Add-On | B148: ='Base Prod'!A148 -> Bitdefender GravityZone 180 days Data Retention Add-on | C148: ='Base Prod'!B148 -> 1 year | D148: ='Base Prod'!C148 -> 150 - 249 | E148: ='Base Prod'!D148 -> 31.87 | G148: ='Base Prod'!F148 -> 0 | H148: ='Base Prod'!G148 -> 3053ZZBSN120ELZZ
A149: =IF(B149=Base!B145,Base!A145,"") -> Add-On | B149: ='Base Prod'!A149 -> Bitdefender GravityZone 180 days Data Retention Add-on | C149: ='Base Prod'!B149 -> 1 year | D149: ='Base Prod'!C149 -> 250 - 499 | E149: ='Base Prod'!D149 -> 29.95 | G149: ='Base Prod'!F149 -> 0 | H149: ='Base Prod'!G149 -> 3053ZZBSN120FLZZ
A150: =IF(B150=Base!B146,Base!A146,"") -> Add-On | B150: ='Base Prod'!A150 -> Bitdefender GravityZone 180 days Data Retention Add-on | C150: ='Base Prod'!B150 -> 1 year | D150: ='Base Prod'!C150 -> 500 - 999 | E150: ='Base Prod'!D150 -> 28.14 | G150: ='Base Prod'!F150 -> 0 | H150: ='Base Prod'!G150 -> 3053ZZBSN120GLZZ
A151: =IF(B151=Base!B147,Base!A147,"") -> Add-On | B151: ='Base Prod'!A151 -> Bitdefender GravityZone 180 days Data Retention Add-on | C151: ='Base Prod'!B151 -> 1 year | D151: ='Base Prod'!C151 -> 1000 - 2999 | E151: ='Base Prod'!D151 -> 25.89 | G151: ='Base Prod'!F151 -> 0 | H151: ='Base Prod'!G151 -> 3053ZZBSN120HLZZ
A152: =IF(B152=Base!B148,Base!A148,"") -> Add-On | B152: ='Base Prod'!A152 -> Bitdefender GravityZone 180 days Data Retention Add-on | C152: ='Base Prod'!B152 -> 1 year | D152: ='Base Prod'!C152 -> 3000+ | E152: ='Base Prod'!D152 -> 23.83 | G152: ='Base Prod'!F152 -> 0 | H152: ='Base Prod'!G152 -> 3053ZZBSN120ILZZ
A153: =IF(B153=Base!B149,Base!A149,"") -> Add-On | B153: ='Base Prod'!A153 -> Bitdefender GravityZone 180 days Data Retention Add-on | C153: ='Base Prod'!B153 -> 2 years | D153: ='Base Prod'!C153 -> 50 - 99 | E153: ='Base Prod'!D153 -> 59.5 | G153: ='Base Prod'!F153 -> 0 | H153: ='Base Prod'!G153 -> 3053ZZBSN240CLZZ
A154: =IF(B154=Base!B150,Base!A150,"") -> Add-On | B154: ='Base Prod'!A154 -> Bitdefender GravityZone 180 days Data Retention Add-on | C154: ='Base Prod'!B154 -> 2 years | D154: ='Base Prod'!C154 -> 100 - 149 | E154: ='Base Prod'!D154 -> 55.92 | G154: ='Base Prod'!F154 -> 0 | H154: ='Base Prod'!G154 -> 3053ZZBSN240DLZZ
A155: =IF(B155=Base!B151,Base!A151,"") -> Add-On | B155: ='Base Prod'!A155 -> Bitdefender GravityZone 180 days Data Retention Add-on | C155: ='Base Prod'!B155 -> 2 years | D155: ='Base Prod'!C155 -> 150 - 249 | E155: ='Base Prod'!D155 -> 52.58 | G155: ='Base Prod'!F155 -> 0 | H155: ='Base Prod'!G155 -> 3053ZZBSN240ELZZ
A156: =IF(B156=Base!B152,Base!A152,"") -> Add-On | B156: ='Base Prod'!A156 -> Bitdefender GravityZone 180 days Data Retention Add-on | C156: ='Base Prod'!B156 -> 2 years | D156: ='Base Prod'!C156 -> 250 - 499 | E156: ='Base Prod'!D156 -> 49.41 | G156: ='Base Prod'!F156 -> 0 | H156: ='Base Prod'!G156 -> 3053ZZBSN240FLZZ
A157: =IF(B157=Base!B153,Base!A153,"") -> Add-On | B157: ='Base Prod'!A157 -> Bitdefender GravityZone 180 days Data Retention Add-on | C157: ='Base Prod'!B157 -> 2 years | D157: ='Base Prod'!C157 -> 500 - 999 | E157: ='Base Prod'!D157 -> 46.45 | G157: ='Base Prod'!F157 -> 0 | H157: ='Base Prod'!G157 -> 3053ZZBSN240GLZZ
A158: =IF(B158=Base!B154,Base!A154,"") -> Add-On | B158: ='Base Prod'!A158 -> Bitdefender GravityZone 180 days Data Retention Add-on | C158: ='Base Prod'!B158 -> 2 years | D158: ='Base Prod'!C158 -> 1000 - 2999 | E158: ='Base Prod'!D158 -> 42.71 | G158: ='Base Prod'!F158 -> 0 | H158: ='Base Prod'!G158 -> 3053ZZBSN240HLZZ
A159: =IF(B159=Base!B155,Base!A155,"") -> Add-On | B159: ='Base Prod'!A159 -> Bitdefender GravityZone 180 days Data Retention Add-on | C159: ='Base Prod'!B159 -> 2 years | D159: ='Base Prod'!C159 -> 3000+ | E159: ='Base Prod'!D159 -> 39.3 | G159: ='Base Prod'!F159 -> 0 | H159: ='Base Prod'!G159 -> 3053ZZBSN240ILZZ
A160: =IF(B160=Base!B156,Base!A156,"") -> Add-On | B160: ='Base Prod'!A160 -> Bitdefender GravityZone 180 days Data Retention Add-on | C160: ='Base Prod'!B160 -> 3 years | D160: ='Base Prod'!C160 -> 50 - 99 | E160: ='Base Prod'!D160 -> 82.93 | G160: ='Base Prod'!F160 -> 0 | H160: ='Base Prod'!G160 -> 3053ZZBSN360CLZZ
A161: =IF(B161=Base!B157,Base!A157,"") -> Add-On | B161: ='Base Prod'!A161 -> Bitdefender GravityZone 180 days Data Retention Add-on | C161: ='Base Prod'!B161 -> 3 years | D161: ='Base Prod'!C161 -> 100 - 149 | E161: ='Base Prod'!D161 -> 77.95 | G161: ='Base Prod'!F161 -> 0 | H161: ='Base Prod'!G161 -> 3053ZZBSN360DLZZ
A162: =IF(B162=Base!B158,Base!A158,"") -> Add-On | B162: ='Base Prod'!A162 -> Bitdefender GravityZone 180 days Data Retention Add-on | C162: ='Base Prod'!B162 -> 3 years | D162: ='Base Prod'!C162 -> 150 - 249 | E162: ='Base Prod'!D162 -> 73.25 | G162: ='Base Prod'!F162 -> 0 | H162: ='Base Prod'!G162 -> 3053ZZBSN360ELZZ
A163: =IF(B163=Base!B159,Base!A159,"") -> Add-On | B163: ='Base Prod'!A163 -> Bitdefender GravityZone 180 days Data Retention Add-on | C163: ='Base Prod'!B163 -> 3 years | D163: ='Base Prod'!C163 -> 250 - 499 | E163: ='Base Prod'!D163 -> 68.86 | G163: ='Base Prod'!F163 -> 0 | H163: ='Base Prod'!G163 -> 3053ZZBSN360FLZZ
A164: =IF(B164=Base!B160,Base!A160,"") -> Add-On | B164: ='Base Prod'!A164 -> Bitdefender GravityZone 180 days Data Retention Add-on | C164: ='Base Prod'!B164 -> 3 years | D164: ='Base Prod'!C164 -> 500 - 999 | E164: ='Base Prod'!D164 -> 64.75 | G164: ='Base Prod'!F164 -> 0 | H164: ='Base Prod'!G164 -> 3053ZZBSN360GLZZ
A165: =IF(B165=Base!B161,Base!A161,"") -> Add-On | B165: ='Base Prod'!A165 -> Bitdefender GravityZone 180 days Data Retention Add-on | C165: ='Base Prod'!B165 -> 3 years | D165: ='Base Prod'!C165 -> 1000 - 2999 | E165: ='Base Prod'!D165 -> 59.57 | G165: ='Base Prod'!F165 -> 0 | H165: ='Base Prod'!G165 -> 3053ZZBSN360HLZZ
A166: =IF(B166=Base!B162,Base!A162,"") -> Add-On | B166: ='Base Prod'!A166 -> Bitdefender GravityZone 180 days Data Retention Add-on | C166: ='Base Prod'!B166 -> 3 years | D166: ='Base Prod'!C166 -> 3000+ | E166: ='Base Prod'!D166 -> 54.8 | G166: ='Base Prod'!F166 -> 0 | H166: ='Base Prod'!G166 -> 3053ZZBSN360ILZZ
A167: =IF(B167=Base!B163,Base!A163,"") -> Add-On | B167: ='Base Prod'!A167 -> Bitdefender GravityZone 365 days Data Retention Add-on | C167: ='Base Prod'!B167 -> 1 year | D167: ='Base Prod'!C167 -> 50 - 99 | E167: ='Base Prod'!D167 -> 54.69 | G167: ='Base Prod'!F167 -> 0 | H167: ='Base Prod'!G167 -> 3132ZZBSN120CLZZ
A168: =IF(B168=Base!B164,Base!A164,"") -> Add-On | B168: ='Base Prod'!A168 -> Bitdefender GravityZone 365 days Data Retention Add-on | C168: ='Base Prod'!B168 -> 1 year | D168: ='Base Prod'!C168 -> 100 - 149 | E168: ='Base Prod'!D168 -> 51.4 | G168: ='Base Prod'!F168 -> 0 | H168: ='Base Prod'!G168 -> 3132ZZBSN120DLZZ
A169: =IF(B169=Base!B165,Base!A165,"") -> Add-On | B169: ='Base Prod'!A169 -> Bitdefender GravityZone 365 days Data Retention Add-on | C169: ='Base Prod'!B169 -> 1 year | D169: ='Base Prod'!C169 -> 150 - 249 | E169: ='Base Prod'!D169 -> 48.33 | G169: ='Base Prod'!F169 -> 0 | H169: ='Base Prod'!G169 -> 3132ZZBSN120ELZZ
A170: =IF(B170=Base!B166,Base!A166,"") -> Add-On | B170: ='Base Prod'!A170 -> Bitdefender GravityZone 365 days Data Retention Add-on | C170: ='Base Prod'!B170 -> 1 year | D170: ='Base Prod'!C170 -> 250 - 499 | E170: ='Base Prod'!D170 -> 45.43 | G170: ='Base Prod'!F170 -> 0 | H170: ='Base Prod'!G170 -> 3132ZZBSN120FLZZ
A171: =IF(B171=Base!B167,Base!A167,"") -> Add-On | B171: ='Base Prod'!A171 -> Bitdefender GravityZone 365 days Data Retention Add-on | C171: ='Base Prod'!B171 -> 1 year | D171: ='Base Prod'!C171 -> 500 - 999 | E171: ='Base Prod'!D171 -> 42.69 | G171: ='Base Prod'!F171 -> 0 | H171: ='Base Prod'!G171 -> 3132ZZBSN120GLZZ
A172: =IF(B172=Base!B168,Base!A168,"") -> Add-On | B172: ='Base Prod'!A172 -> Bitdefender GravityZone 365 days Data Retention Add-on | C172: ='Base Prod'!B172 -> 1 year | D172: ='Base Prod'!C172 -> 1000 - 2999 | E172: ='Base Prod'!D172 -> 39.28 | G172: ='Base Prod'!F172 -> 0 | H172: ='Base Prod'!G172 -> 3132ZZBSN120HLZZ
A173: =IF(B173=Base!B169,Base!A169,"") -> Add-On | B173: ='Base Prod'!A173 -> Bitdefender GravityZone 365 days Data Retention Add-on | C173: ='Base Prod'!B173 -> 1 year | D173: ='Base Prod'!C173 -> 3000 - 4999 | E173: ='Base Prod'!D173 -> 36.13 | G173: ='Base Prod'!F173 -> 0 | H173: ='Base Prod'!G173 -> 3132ZZBSN120ILZZ
A174: =IF(B174=Base!B170,Base!A170,"") -> Add-On | B174: ='Base Prod'!A174 -> Bitdefender GravityZone 365 days Data Retention Add-on | C174: ='Base Prod'!B174 -> 1 year | D174: ='Base Prod'!C174 -> 5000+ | E174: ='Base Prod'!D174 -> 33.43 | G174: ='Base Prod'!F174 -> 0 | H174: ='Base Prod'!G174 -> 3132ZZBSN120JLZZ
A175: =IF(B175=Base!B171,Base!A171,"") -> Add-On | B175: ='Base Prod'!A175 -> Bitdefender GravityZone 365 days Data Retention Add-on | C175: ='Base Prod'!B175 -> 2 years | D175: ='Base Prod'!C175 -> 50 - 99 | E175: ='Base Prod'!D175 -> 90.23 | G175: ='Base Prod'!F175 -> 0 | H175: ='Base Prod'!G175 -> 3132ZZBSN240CLZZ
A176: =IF(B176=Base!B172,Base!A172,"") -> Add-On | B176: ='Base Prod'!A176 -> Bitdefender GravityZone 365 days Data Retention Add-on | C176: ='Base Prod'!B176 -> 2 years | D176: ='Base Prod'!C176 -> 100 - 149 | E176: ='Base Prod'!D176 -> 84.81 | G176: ='Base Prod'!F176 -> 0 | H176: ='Base Prod'!G176 -> 3132ZZBSN240DLZZ
A177: =IF(B177=Base!B173,Base!A173,"") -> Add-On | B177: ='Base Prod'!A177 -> Bitdefender GravityZone 365 days Data Retention Add-on | C177: ='Base Prod'!B177 -> 2 years | D177: ='Base Prod'!C177 -> 150 - 249 | E177: ='Base Prod'!D177 -> 79.75 | G177: ='Base Prod'!F177 -> 0 | H177: ='Base Prod'!G177 -> 3132ZZBSN240ELZZ
A178: =IF(B178=Base!B174,Base!A174,"") -> Add-On | B178: ='Base Prod'!A178 -> Bitdefender GravityZone 365 days Data Retention Add-on | C178: ='Base Prod'!B178 -> 2 years | D178: ='Base Prod'!C178 -> 250 - 499 | E178: ='Base Prod'!D178 -> 74.96 | G178: ='Base Prod'!F178 -> 0 | H178: ='Base Prod'!G178 -> 3132ZZBSN240FLZZ
A179: =IF(B179=Base!B175,Base!A175,"") -> Add-On | B179: ='Base Prod'!A179 -> Bitdefender GravityZone 365 days Data Retention Add-on | C179: ='Base Prod'!B179 -> 2 years | D179: ='Base Prod'!C179 -> 500 - 999 | E179: ='Base Prod'!D179 -> 70.43 | G179: ='Base Prod'!F179 -> 0 | H179: ='Base Prod'!G179 -> 3132ZZBSN240GLZZ
A180: =IF(B180=Base!B176,Base!A176,"") -> Add-On | B180: ='Base Prod'!A180 -> Bitdefender GravityZone 365 days Data Retention Add-on | C180: ='Base Prod'!B180 -> 2 years | D180: ='Base Prod'!C180 -> 1000 - 2999 | E180: ='Base Prod'!D180 -> 64.81 | G180: ='Base Prod'!F180 -> 0 | H180: ='Base Prod'!G180 -> 3132ZZBSN240HLZZ
A181: =IF(B181=Base!B177,Base!A177,"") -> Add-On | B181: ='Base Prod'!A181 -> Bitdefender GravityZone 365 days Data Retention Add-on | C181: ='Base Prod'!B181 -> 2 years | D181: ='Base Prod'!C181 -> 3000 - 4999 | E181: ='Base Prod'!D181 -> 59.62 | G181: ='Base Prod'!F181 -> 0 | H181: ='Base Prod'!G181 -> 3132ZZBSN240ILZZ
A182: =IF(B182=Base!B178,Base!A178,"") -> Add-On | B182: ='Base Prod'!A182 -> Bitdefender GravityZone 365 days Data Retention Add-on | C182: ='Base Prod'!B182 -> 2 years | D182: ='Base Prod'!C182 -> 5000+ | E182: ='Base Prod'!D182 -> 55.16 | G182: ='Base Prod'!F182 -> 0 | H182: ='Base Prod'!G182 -> 3132ZZBSN240JLZZ
A183: =IF(B183=Base!B179,Base!A179,"") -> Add-On | B183: ='Base Prod'!A183 -> Bitdefender GravityZone 365 days Data Retention Add-on | C183: ='Base Prod'!B183 -> 3 years | D183: ='Base Prod'!C183 -> 50 - 99 | E183: ='Base Prod'!D183 -> 125.78 | G183: ='Base Prod'!F183 -> 0 | H183: ='Base Prod'!G183 -> 3132ZZBSN360CLZZ
A184: =IF(B184=Base!B180,Base!A180,"") -> Add-On | B184: ='Base Prod'!A184 -> Bitdefender GravityZone 365 days Data Retention Add-on | C184: ='Base Prod'!B184 -> 3 years | D184: ='Base Prod'!C184 -> 100 - 149 | E184: ='Base Prod'!D184 -> 118.22 | G184: ='Base Prod'!F184 -> 0 | H184: ='Base Prod'!G184 -> 3132ZZBSN360DLZZ
A185: =IF(B185=Base!B181,Base!A181,"") -> Add-On | B185: ='Base Prod'!A185 -> Bitdefender GravityZone 365 days Data Retention Add-on | C185: ='Base Prod'!B185 -> 3 years | D185: ='Base Prod'!C185 -> 150 - 249 | E185: ='Base Prod'!D185 -> 111.16 | G185: ='Base Prod'!F185 -> 0 | H185: ='Base Prod'!G185 -> 3132ZZBSN360ELZZ
A186: =IF(B186=Base!B182,Base!A182,"") -> Add-On | B186: ='Base Prod'!A186 -> Bitdefender GravityZone 365 days Data Retention Add-on | C186: ='Base Prod'!B186 -> 3 years | D186: ='Base Prod'!C186 -> 250 - 499 | E186: ='Base Prod'!D186 -> 104.5 | G186: ='Base Prod'!F186 -> 0 | H186: ='Base Prod'!G186 -> 3132ZZBSN360FLZZ
A187: =IF(B187=Base!B183,Base!A183,"") -> Add-On | B187: ='Base Prod'!A187 -> Bitdefender GravityZone 365 days Data Retention Add-on | C187: ='Base Prod'!B187 -> 3 years | D187: ='Base Prod'!C187 -> 500 - 999 | E187: ='Base Prod'!D187 -> 98.18 | G187: ='Base Prod'!F187 -> 0 | H187: ='Base Prod'!G187 -> 3132ZZBSN360GLZZ
A188: =IF(B188=Base!B184,Base!A184,"") -> Add-On | B188: ='Base Prod'!A188 -> Bitdefender GravityZone 365 days Data Retention Add-on | C188: ='Base Prod'!B188 -> 3 years | D188: ='Base Prod'!C188 -> 1000 - 2999 | E188: ='Base Prod'!D188 -> 90.34 | G188: ='Base Prod'!F188 -> 0 | H188: ='Base Prod'!G188 -> 3132ZZBSN360HLZZ
A189: =IF(B189=Base!B185,Base!A185,"") -> Add-On | B189: ='Base Prod'!A189 -> Bitdefender GravityZone 365 days Data Retention Add-on | C189: ='Base Prod'!B189 -> 3 years | D189: ='Base Prod'!C189 -> 3000 - 4999 | E189: ='Base Prod'!D189 -> 83.1 | G189: ='Base Prod'!F189 -> 0 | H189: ='Base Prod'!G189 -> 3132ZZBSN360ILZZ
A190: =IF(B190=Base!B186,Base!A186,"") -> Add-On | B190: ='Base Prod'!A190 -> Bitdefender GravityZone 365 days Data Retention Add-on | C190: ='Base Prod'!B190 -> 3 years | D190: ='Base Prod'!C190 -> 5000+ | E190: ='Base Prod'!D190 -> 76.89 | G190: ='Base Prod'!F190 -> 0 | H190: ='Base Prod'!G190 -> 3132ZZBSN360JLZZ
A191: =IF(B191=Base!B187,Base!A187,"") -> Add-On | B191: ='Base Prod'!A191 -> Bitdefender XDR Sensor - Productivity Apps | C191: ='Base Prod'!B191 -> 1 year | D191: ='Base Prod'!C191 -> 50 - 99 | E191: ='Base Prod'!D191 -> 21.08 | G191: ='Base Prod'!F191 -> 0 | H191: ='Base Prod'!G191 -> 3116ZZBSN120CLZZ
A192: =IF(B192=Base!B188,Base!A188,"") -> Add-On | B192: ='Base Prod'!A192 -> Bitdefender XDR Sensor - Productivity Apps | C192: ='Base Prod'!B192 -> 1 year | D192: ='Base Prod'!C192 -> 100 - 149 | E192: ='Base Prod'!D192 -> 19.6 | G192: ='Base Prod'!F192 -> 0 | H192: ='Base Prod'!G192 -> 3116ZZBSN120DLZZ
A193: =IF(B193=Base!B189,Base!A189,"") -> Add-On | B193: ='Base Prod'!A193 -> Bitdefender XDR Sensor - Productivity Apps | C193: ='Base Prod'!B193 -> 1 year | D193: ='Base Prod'!C193 -> 150 - 249 | E193: ='Base Prod'!D193 -> 18.22 | G193: ='Base Prod'!F193 -> 0 | H193: ='Base Prod'!G193 -> 3116ZZBSN120ELZZ
A194: =IF(B194=Base!B190,Base!A190,"") -> Add-On | B194: ='Base Prod'!A194 -> Bitdefender XDR Sensor - Productivity Apps | C194: ='Base Prod'!B194 -> 1 year | D194: ='Base Prod'!C194 -> 250 - 499 | E194: ='Base Prod'!D194 -> 17.31 | G194: ='Base Prod'!F194 -> 0 | H194: ='Base Prod'!G194 -> 3116ZZBSN120FLZZ
A195: =IF(B195=Base!B191,Base!A191,"") -> Add-On | B195: ='Base Prod'!A195 -> Bitdefender XDR Sensor - Productivity Apps | C195: ='Base Prod'!B195 -> 1 year | D195: ='Base Prod'!C195 -> 500 - 999 | E195: ='Base Prod'!D195 -> 16.1 | G195: ='Base Prod'!F195 -> 0 | H195: ='Base Prod'!G195 -> 3116ZZBSN120GLZZ
A196: =IF(B196=Base!B192,Base!A192,"") -> Add-On | B196: ='Base Prod'!A196 -> Bitdefender XDR Sensor - Productivity Apps | C196: ='Base Prod'!B196 -> 1 year | D196: ='Base Prod'!C196 -> 1000 - 1999 | E196: ='Base Prod'!D196 -> 14.98 | G196: ='Base Prod'!F196 -> 0 | H196: ='Base Prod'!G196 -> 3116ZZBSN120PLZZ
A197: =IF(B197=Base!B193,Base!A193,"") -> Add-On | B197: ='Base Prod'!A197 -> Bitdefender XDR Sensor - Productivity Apps | C197: ='Base Prod'!B197 -> 1 year | D197: ='Base Prod'!C197 -> 2000 - 2999 | E197: ='Base Prod'!D197 -> 13.93 | G197: ='Base Prod'!F197 -> 0 | H197: ='Base Prod'!G197 -> 3116ZZBSN120QLZZ
A198: =IF(B198=Base!B194,Base!A194,"") -> Add-On | B198: ='Base Prod'!A198 -> Bitdefender XDR Sensor - Productivity Apps | C198: ='Base Prod'!B198 -> 1 year | D198: ='Base Prod'!C198 -> 3000 - 4999 | E198: ='Base Prod'!D198 -> 12.95 | G198: ='Base Prod'!F198 -> 0 | H198: ='Base Prod'!G198 -> 3116ZZBSN120ILZZ
A199: =IF(B199=Base!B195,Base!A195,"") -> Add-On | B199: ='Base Prod'!A199 -> Bitdefender XDR Sensor - Productivity Apps | C199: ='Base Prod'!B199 -> 1 year | D199: ='Base Prod'!C199 -> 5000+ | E199: ='Base Prod'!D199 -> 12.04 | G199: ='Base Prod'!F199 -> 0 | H199: ='Base Prod'!G199 -> 3116ZZBSN120JLZZ
A200: =IF(B200=Base!B196,Base!A196,"") -> Add-On | B200: ='Base Prod'!A200 -> Bitdefender XDR Sensor - Productivity Apps | C200: ='Base Prod'!B200 -> 2 years | D200: ='Base Prod'!C200 -> 50 - 99 | E200: ='Base Prod'!D200 -> 34.78 | G200: ='Base Prod'!F200 -> 0 | H200: ='Base Prod'!G200 -> 3116ZZBSN240CLZZ
A201: =IF(B201=Base!B197,Base!A197,"") -> Add-On | B201: ='Base Prod'!A201 -> Bitdefender XDR Sensor - Productivity Apps | C201: ='Base Prod'!B201 -> 2 years | D201: ='Base Prod'!C201 -> 100 - 149 | E201: ='Base Prod'!D201 -> 32.34 | G201: ='Base Prod'!F201 -> 0 | H201: ='Base Prod'!G201 -> 3116ZZBSN240DLZZ
A202: =IF(B202=Base!B198,Base!A198,"") -> Add-On | B202: ='Base Prod'!A202 -> Bitdefender XDR Sensor - Productivity Apps | C202: ='Base Prod'!B202 -> 2 years | D202: ='Base Prod'!C202 -> 150 - 249 | E202: ='Base Prod'!D202 -> 30.07 | G202: ='Base Prod'!F202 -> 0 | H202: ='Base Prod'!G202 -> 3116ZZBSN240ELZZ
... 591 more rows

Sheet MDR
J1: Discount from MSRP
B2: Bitdefender Solutions | M2: *Bitdefender GravityZone Email Security only | AD2: Consumer with VAT | AE2: Business Standard | AG2: Business Standard
J3: Business Standard | K3: 0 | M3: Business Standard | N3: 0 | AD3: Consumer without VAT | AE3: Education & Non Profit | AG3: =IF($AA$7=1,"",AE3) -> Education & Non Profit
B4: Note : The prices below are without VAT | J4: Education & Non Profit | K4: -0.5 | M4: Education & Non Profit | N4: 0 | AD4: Business | AE4: Government | AG4: Government
B5: Enter the desired number of units in the appropriate yellow cell to calculate the price. Unless otherwise specified, all the units are users. | J5: Government | K5: -0.4 | M5: Government | N5: 0 | AD5: Previous & Legacy Business | AE5: Renew | AG5: Renew
J6: Renew | K6: -0.35 | M6: Renew | N6: -0.2 | AE6: Competitive Upgrade | AG6: Competitive Upgrade
J7: Competitive Upgrade | K7: -0.3 | M7: Competitive Upgrade | N7: 0 | AA7: 2 | AB7: =IF(AA7=1,AD3,IF(AA7=2,AD4,AD5)) -> Business | AE7: Education & Non Profit Renew | AG7: Education & Non Profit Renew
C8: Select Offer Type | F8: Discount from MSRP | J8: Education & Non Profit Renew | K8: -0.55 | M8: Education & Non Profit Renew | N8: -0.2 | AA8: 1 | AB8: =IF(AA7=1,AE2,IF(AA8=1,AE2,IF(AA8=2,AE3,IF(AA8=3,AE4,IF(AA8=4,AE5,IF(AA8=5,AE6,IF(AA8=6,AE7,AE8))))))) -> Business Standard | AE8: Government Renew | AG8: Government Renew
G9: =IF(OR(B14=" Bitdefender GravityZone Email Security ",B14=" Bitdefender GravityZone Email Security - EDU",B14=" Bitdefender GravityZone Email Security - R",B14=" Bitdefender GravityZone Email Security - CUPG",B14=" Bitdefender GravityZone Email Security - EDU R",B14=" Bitdefender GravityZone Email Security - GOV R"),'Base Prod'!G11,'Base Prod'!G10) -> 0 | J9: Government Renew | K9: -0.5 | M9: Government Renew | N9: -0.2
B12: Total price per choosen configuration | G12: =SUM(G14:G130) -> 0
A13: Product Type | B13: Product | C13: Period | D13: Users | E13: Price/Unit | F13: # Units | G13: Total Price | H13: Part #
A14: ='Base MDR'!A10 -> Packages | B14: ='Base Prod MDR'!A14 -> Bitdefender Managed Detection and Response Foundations | C14: ='Base Prod MDR'!B14 -> 1 year | D14: ='Base Prod MDR'!C14 -> 50 - 99 | E14: ='Base Prod MDR'!D14 -> 73.53 | G14: ='Base Prod MDR'!F14 -> 0 | H14: ='Base Prod MDR'!G14 -> 2892MFSSN120CLZZ
A15: ='Base MDR'!A11 -> Packages | B15: ='Base Prod MDR'!A15 -> Bitdefender Managed Detection and Response Foundations | C15: ='Base Prod MDR'!B15 -> 1 year | D15: ='Base Prod MDR'!C15 -> 100 - 249 | E15: ='Base Prod MDR'!D15 -> 66.18 | G15: ='Base Prod MDR'!F15 -> 0 | H15: ='Base Prod MDR'!G15 -> 2892MFSSN120ELZZ
A16: ='Base MDR'!A12 -> Packages | B16: ='Base Prod MDR'!A16 -> Bitdefender Managed Detection and Response Foundations | C16: ='Base Prod MDR'!B16 -> 1 year | D16: ='Base Prod MDR'!C16 -> 250 - 500 | E16: ='Base Prod MDR'!D16 -> 59.56 | G16: ='Base Prod MDR'!F16 -> 0 | H16: ='Base Prod MDR'!G16 -> 2892MFSSN120FLZZ
A17: ='Base MDR'!A13 -> Packages | B17: ='Base Prod MDR'!A17 -> Bitdefender Managed Detection and Response Foundations | C17: ='Base Prod MDR'!B17 -> 2 years | D17: ='Base Prod MDR'!C17 -> 50 - 99 | E17: ='Base Prod MDR'!D17 -> 132.36 | G17: ='Base Prod MDR'!F17 -> 0 | H17: ='Base Prod MDR'!G17 -> 2892MFSSN240CLZZ
A18: ='Base MDR'!A14 -> Packages | B18: ='Base Prod MDR'!A18 -> Bitdefender Managed Detection and Response Foundations | C18: ='Base Prod MDR'!B18 -> 2 years | D18: ='Base Prod MDR'!C18 -> 100 - 249 | E18: ='Base Prod MDR'!D18 -> 119.13 | G18: ='Base Prod MDR'!F18 -> 0 | H18: ='Base Prod MDR'!G18 -> 2892MFSSN240ELZZ
A19: ='Base MDR'!A15 -> Packages | B19: ='Base Prod MDR'!A19 -> Bitdefender Managed Detection and Response Foundations | C19: ='Base Prod MDR'!B19 -> 2 years | D19: ='Base Prod MDR'!C19 -> 250 - 500 | E19: ='Base Prod MDR'!D19 -> 107.21 | G19: ='Base Prod MDR'!F19 -> 0 | H19: ='Base Prod MDR'!G19 -> 2892MFSSN240FLZZ
A20: ='Base MDR'!A16 -> Packages | B20: ='Base Prod MDR'!A20 -> Bitdefender Managed Detection and Response Foundations | C20: ='Base Prod MDR'!B20 -> 3 years | D20: ='Base Prod MDR'!C20 -> 50 - 99 | E20: ='Base Prod MDR'!D20 -> 187.51 | G20: ='Base Prod MDR'!F20 -> 0 | H20: ='Base Prod MDR'!G20 -> 2892MFSSN360CLZZ
A21: ='Base MDR'!A17 -> Packages | B21: ='Base Prod MDR'!A21 -> Bitdefender Managed Detection and Response Foundations | C21: ='Base Prod MDR'!B21 -> 3 years | D21: ='Base Prod MDR'!C21 -> 100 - 249 | E21: ='Base Prod MDR'!D21 -> 168.75 | G21: ='Base Prod MDR'!F21 -> 0 | H21: ='Base Prod MDR'!G21 -> 2892MFSSN360ELZZ
A22: ='Base MDR'!A18 -> Packages | B22: ='Base Prod MDR'!A22 -> Bitdefender Managed Detection and Response Foundations | C22: ='Base Prod MDR'!B22 -> 3 years | D22: ='Base Prod MDR'!C22 -> 250 - 500 | E22: ='Base Prod MDR'!D22 -> 151.88 | G22: ='Base Prod MDR'!F22 -> 0 | H22: ='Base Prod MDR'!G22 -> 2892MFSSN360FLZZ
A23: ='Base MDR'!A19 -> Add-On | B23: ='Base Prod MDR'!A23 -> Bitdefender XDR Sensor for MDR - Productivity Apps | C23: ='Base Prod MDR'!B23 -> 1 year | D23: ='Base Prod MDR'!C23 -> 50 - 99 | E23: ='Base Prod MDR'!D23 -> 23.19 | G23: ='Base Prod MDR'!F23 -> 0 | H23: ='Base Prod MDR'!G23 -> 3116MXBSN120CLZZ
A24: ='Base MDR'!A20 -> Add-On | B24: ='Base Prod MDR'!A24 -> Bitdefender XDR Sensor for MDR - Productivity Apps | C24: ='Base Prod MDR'!B24 -> 1 year | D24: ='Base Prod MDR'!C24 -> 100 - 149 | E24: ='Base Prod MDR'!D24 -> 21.56 | G24: ='Base Prod MDR'!F24 -> 0 | H24: ='Base Prod MDR'!G24 -> 3116MXBSN120DLZZ
A25: ='Base MDR'!A21 -> Add-On | B25: ='Base Prod MDR'!A25 -> Bitdefender XDR Sensor for MDR - Productivity Apps | C25: ='Base Prod MDR'!B25 -> 1 year | D25: ='Base Prod MDR'!C25 -> 150 - 249 | E25: ='Base Prod MDR'!D25 -> 20.04 | G25: ='Base Prod MDR'!F25 -> 0 | H25: ='Base Prod MDR'!G25 -> 3116MXBSN120ELZZ
A26: ='Base MDR'!A22 -> Add-On | B26: ='Base Prod MDR'!A26 -> Bitdefender XDR Sensor for MDR - Productivity Apps | C26: ='Base Prod MDR'!B26 -> 1 year | D26: ='Base Prod MDR'!C26 -> 250 - 499 | E26: ='Base Prod MDR'!D26 -> 19.04 | G26: ='Base Prod MDR'!F26 -> 0 | H26: ='Base Prod MDR'!G26 -> 3116MXBSN120FLZZ
A27: ='Base MDR'!A23 -> Add-On | B27: ='Base Prod MDR'!A27 -> Bitdefender XDR Sensor for MDR - Productivity Apps | C27: ='Base Prod MDR'!B27 -> 1 year | D27: ='Base Prod MDR'!C27 -> 500 - 999 | E27: ='Base Prod MDR'!D27 -> 17.71 | G27: ='Base Prod MDR'!F27 -> 0 | H27: ='Base Prod MDR'!G27 -> 3116MXBSN120GLZZ
A28: ='Base MDR'!A24 -> Add-On | B28: ='Base Prod MDR'!A28 -> Bitdefender XDR Sensor for MDR - Productivity Apps | C28: ='Base Prod MDR'!B28 -> 1 year | D28: ='Base Prod MDR'!C28 -> 1000 - 1999 | E28: ='Base Prod MDR'!D28 -> 16.48 | G28: ='Base Prod MDR'!F28 -> 0 | H28: ='Base Prod MDR'!G28 -> 3116MXBSN120PLZZ
A29: ='Base MDR'!A25 -> Add-On | B29: ='Base Prod MDR'!A29 -> Bitdefender XDR Sensor for MDR - Productivity Apps | C29: ='Base Prod MDR'!B29 -> 1 year | D29: ='Base Prod MDR'!C29 -> 2000 - 2999 | E29: ='Base Prod MDR'!D29 -> 15.32 | G29: ='Base Prod MDR'!F29 -> 0 | H29: ='Base Prod MDR'!G29 -> 3116MXBSN120QLZZ
A30: ='Base MDR'!A26 -> Add-On | B30: ='Base Prod MDR'!A30 -> Bitdefender XDR Sensor for MDR - Productivity Apps | C30: ='Base Prod MDR'!B30 -> 1 year | D30: ='Base Prod MDR'!C30 -> 3000 - 4999 | E30: ='Base Prod MDR'!D30 -> 14.25 | G30: ='Base Prod MDR'!F30 -> 0 | H30: ='Base Prod MDR'!G30 -> 3116MXBSN120ILZZ
A31: ='Base MDR'!A27 -> Add-On | B31: ='Base Prod MDR'!A31 -> Bitdefender XDR Sensor for MDR - Productivity Apps | C31: ='Base Prod MDR'!B31 -> 1 year | D31: ='Base Prod MDR'!C31 -> 5000+ | E31: ='Base Prod MDR'!D31 -> 13.24 | G31: ='Base Prod MDR'!F31 -> 0 | H31: ='Base Prod MDR'!G31 -> 3116MXBSN120JLZZ
A32: ='Base MDR'!A28 -> Add-On | B32: ='Base Prod MDR'!A32 -> Bitdefender XDR Sensor for MDR - Productivity Apps | C32: ='Base Prod MDR'!B32 -> 2 years | D32: ='Base Prod MDR'!C32 -> 50 - 99 | E32: ='Base Prod MDR'!D32 -> 38.26 | G32: ='Base Prod MDR'!F32 -> 0 | H32: ='Base Prod MDR'!G32 -> 3116MXBSN240CLZZ
A33: ='Base MDR'!A29 -> Add-On | B33: ='Base Prod MDR'!A33 -> Bitdefender XDR Sensor for MDR - Productivity Apps | C33: ='Base Prod MDR'!B33 -> 2 years | D33: ='Base Prod MDR'!C33 -> 100 - 149 | E33: ='Base Prod MDR'!D33 -> 35.57 | G33: ='Base Prod MDR'!F33 -> 0 | H33: ='Base Prod MDR'!G33 -> 3116MXBSN240DLZZ
A34: ='Base MDR'!A30 -> Add-On | B34: ='Base Prod MDR'!A34 -> Bitdefender XDR Sensor for MDR - Productivity Apps | C34: ='Base Prod MDR'!B34 -> 2 years | D34: ='Base Prod MDR'!C34 -> 150 - 249 | E34: ='Base Prod MDR'!D34 -> 33.08 | G34: ='Base Prod MDR'!F34 -> 0 | H34: ='Base Prod MDR'!G34 -> 3116MXBSN240ELZZ
A35: ='Base MDR'!A31 -> Add-On | B35: ='Base Prod MDR'!A35 -> Bitdefender XDR Sensor for MDR - Productivity Apps | C35: ='Base Prod MDR'!B35 -> 2 years | D35: ='Base Prod MDR'!C35 -> 250 - 499 | E35: ='Base Prod MDR'!D35 -> 31.44 | G35: ='Base Prod MDR'!F35 -> 0 | H35: ='Base Prod MDR'!G35 -> 3116MXBSN240FLZZ
A36: ='Base MDR'!A32 -> Add-On | B36: ='Base Prod MDR'!A36 -> Bitdefender XDR Sensor for MDR - Productivity Apps | C36: ='Base Prod MDR'!B36 -> 2 years | D36: ='Base Prod MDR'!C36 -> 500 - 999 | E36: ='Base Prod MDR'!D36 -> 29.23 | G36: ='Base Prod MDR'!F36 -> 0 | H36: ='Base Prod MDR'!G36 -> 3116MXBSN240GLZZ
A37: ='Base MDR'!A33 -> Add-On | B37: ='Base Prod MDR'!A37 -> Bitdefender XDR Sensor for MDR - Productivity Apps | C37: ='Base Prod MDR'!B37 -> 2 years | D37: ='Base Prod MDR'!C37 -> 1000 - 1999 | E37: ='Base Prod MDR'!D37 -> 27.19 | G37: ='Base Prod MDR'!F37 -> 0 | H37: ='Base Prod MDR'!G37 -> 3116MXBSN240PLZZ
A38: ='Base MDR'!A34 -> Add-On | B38: ='Base Prod MDR'!A38 -> Bitdefender XDR Sensor for MDR - Productivity Apps | C38: ='Base Prod MDR'!B38 -> 2 years | D38: ='Base Prod MDR'!C38 -> 2000 - 2999 | E38: ='Base Prod MDR'!D38 -> 25.28 | G38: ='Base Prod MDR'!F38 -> 0 | H38: ='Base Prod MDR'!G38 -> 3116MXBSN240QLZZ
A39: ='Base MDR'!A35 -> Add-On | B39: ='Base Prod MDR'!A39 -> Bitdefender XDR Sensor for MDR - Productivity Apps | C39: ='Base Prod MDR'!B39 -> 2 years | D39: ='Base Prod MDR'!C39 -> 3000 - 4999 | E39: ='Base Prod MDR'!D39 -> 23.52 | G39: ='Base Prod MDR'!F39 -> 0 | H39: ='Base Prod MDR'!G39 -> 3116MXBSN240ILZZ
A40: ='Base MDR'!A36 -> Add-On | B40: ='Base Prod MDR'!A40 -> Bitdefender XDR Sensor for MDR - Productivity Apps | C40: ='Base Prod MDR'!B40 -> 2 years | D40: ='Base Prod MDR'!C40 -> 5000+ | E40: ='Base Prod MDR'!D40 -> 21.87 | G40: ='Base Prod MDR'!F40 -> 0 | H40: ='Base Prod MDR'!G40 -> 3116MXBSN240JLZZ
A41: ='Base MDR'!A37 -> Add-On | B41: ='Base Prod MDR'!A41 -> Bitdefender XDR Sensor for MDR - Productivity Apps | C41: ='Base Prod MDR'!B41 -> 3 years | D41: ='Base Prod MDR'!C41 -> 50 - 99 | E41: ='Base Prod MDR'!D41 -> 53.33 | G41: ='Base Prod MDR'!F41 -> 0 | H41: ='Base Prod MDR'!G41 -> 3116MXBSN360CLZZ
A42: ='Base MDR'!A38 -> Add-On | B42: ='Base Prod MDR'!A42 -> Bitdefender XDR Sensor for MDR - Productivity Apps | C42: ='Base Prod MDR'!B42 -> 3 years | D42: ='Base Prod MDR'!C42 -> 100 - 149 | E42: ='Base Prod MDR'!D42 -> 49.59 | G42: ='Base Prod MDR'!F42 -> 0 | H42: ='Base Prod MDR'!G42 -> 3116MXBSN360DLZZ
A43: ='Base MDR'!A39 -> Add-On | B43: ='Base Prod MDR'!A43 -> Bitdefender XDR Sensor for MDR - Productivity Apps | C43: ='Base Prod MDR'!B43 -> 3 years | D43: ='Base Prod MDR'!C43 -> 150 - 249 | E43: ='Base Prod MDR'!D43 -> 46.11 | G43: ='Base Prod MDR'!F43 -> 0 | H43: ='Base Prod MDR'!G43 -> 3116MXBSN360ELZZ
A44: ='Base MDR'!A40 -> Add-On | B44: ='Base Prod MDR'!A44 -> Bitdefender XDR Sensor for MDR - Productivity Apps | C44: ='Base Prod MDR'!B44 -> 3 years | D44: ='Base Prod MDR'!C44 -> 250 - 499 | E44: ='Base Prod MDR'!D44 -> 43.81 | G44: ='Base Prod MDR'!F44 -> 0 | H44: ='Base Prod MDR'!G44 -> 3116MXBSN360FLZZ
A45: ='Base MDR'!A41 -> Add-On | B45: ='Base Prod MDR'!A45 -> Bitdefender XDR Sensor for MDR - Productivity Apps | C45: ='Base Prod MDR'!B45 -> 3 years | D45: ='Base Prod MDR'!C45 -> 500 - 999 | E45: ='Base Prod MDR'!D45 -> 40.73 | G45: ='Base Prod MDR'!F45 -> 0 | H45: ='Base Prod MDR'!G45 -> 3116MXBSN360GLZZ
A46: ='Base MDR'!A42 -> Add-On | B46: ='Base Prod MDR'!A46 -> Bitdefender XDR Sensor for MDR - Productivity Apps | C46: ='Base Prod MDR'!B46 -> 3 years | D46: ='Base Prod MDR'!C46 -> 1000 - 1999 | E46: ='Base Prod MDR'!D46 -> 37.9 | G46: ='Base Prod MDR'!F46 -> 0 | H46: ='Base Prod MDR'!G46 -> 3116MXBSN360PLZZ
A47: ='Base MDR'!A43 -> Add-On | B47: ='Base Prod MDR'!A47 -> Bitdefender XDR Sensor for MDR - Productivity Apps | C47: ='Base Prod MDR'!B47 -> 3 years | D47: ='Base Prod MDR'!C47 -> 2000 - 2999 | E47: ='Base Prod MDR'!D47 -> 35.26 | G47: ='Base Prod MDR'!F47 -> 0 | H47: ='Base Prod MDR'!G47 -> 3116MXBSN360QLZZ
A48: ='Base MDR'!A44 -> Add-On | B48: ='Base Prod MDR'!A48 -> Bitdefender XDR Sensor for MDR - Productivity Apps | C48: ='Base Prod MDR'!B48 -> 3 years | D48: ='Base Prod MDR'!C48 -> 3000 - 4999 | E48: ='Base Prod MDR'!D48 -> 32.78 | G48: ='Base Prod MDR'!F48 -> 0 | H48: ='Base Prod MDR'!G48 -> 3116MXBSN360ILZZ
A49: ='Base MDR'!A45 -> Add-On | B49: ='Base Prod MDR'!A49 -> Bitdefender XDR Sensor for MDR - Productivity Apps | C49: ='Base Prod MDR'!B49 -> 3 years | D49: ='Base Prod MDR'!C49 -> 5000+ | E49: ='Base Prod MDR'!D49 -> 30.48 | G49: ='Base Prod MDR'!F49 -> 0 | H49: ='Base Prod MDR'!G49 -> 3116MXBSN360JLZZ
A50: ='Base MDR'!A46 -> Add-On | B50: ='Base Prod MDR'!A50 -> Bitdefender XDR Sensor for MDR - Cloud | C50: ='Base Prod MDR'!B50 -> 1 year | D50: ='Base Prod MDR'!C50 -> 50 - 99 | E50: ='Base Prod MDR'!D50 -> 23.19 | G50: ='Base Prod MDR'!F50 -> 0 | H50: ='Base Prod MDR'!G50 -> 3118MXBSN120CLZZ
A51: ='Base MDR'!A47 -> Add-On | B51: ='Base Prod MDR'!A51 -> Bitdefender XDR Sensor for MDR - Cloud | C51: ='Base Prod MDR'!B51 -> 1 year | D51: ='Base Prod MDR'!C51 -> 100 - 149 | E51: ='Base Prod MDR'!D51 -> 21.56 | G51: ='Base Prod MDR'!F51 -> 0 | H51: ='Base Prod MDR'!G51 -> 3118MXBSN120DLZZ
A52: ='Base MDR'!A48 -> Add-On | B52: ='Base Prod MDR'!A52 -> Bitdefender XDR Sensor for MDR - Cloud | C52: ='Base Prod MDR'!B52 -> 1 year | D52: ='Base Prod MDR'!C52 -> 150 - 249 | E52: ='Base Prod MDR'!D52 -> 20.04 | G52: ='Base Prod MDR'!F52 -> 0 | H52: ='Base Prod MDR'!G52 -> 3118MXBSN120ELZZ
A53: ='Base MDR'!A49 -> Add-On | B53: ='Base Prod MDR'!A53 -> Bitdefender XDR Sensor for MDR - Cloud | C53: ='Base Prod MDR'!B53 -> 1 year | D53: ='Base Prod MDR'!C53 -> 250 - 499 | E53: ='Base Prod MDR'!D53 -> 19.04 | G53: ='Base Prod MDR'!F53 -> 0 | H53: ='Base Prod MDR'!G53 -> 3118MXBSN120FLZZ
A54: ='Base MDR'!A50 -> Add-On | B54: ='Base Prod MDR'!A54 -> Bitdefender XDR Sensor for MDR - Cloud | C54: ='Base Prod MDR'!B54 -> 1 year | D54: ='Base Prod MDR'!C54 -> 500 - 999 | E54: ='Base Prod MDR'!D54 -> 17.71 | G54: ='Base Prod MDR'!F54 -> 0 | H54: ='Base Prod MDR'!G54 -> 3118MXBSN120GLZZ
A55: ='Base MDR'!A51 -> Add-On | B55: ='Base Prod MDR'!A55 -> Bitdefender XDR Sensor for MDR - Cloud | C55: ='Base Prod MDR'!B55 -> 1 year | D55: ='Base Prod MDR'!C55 -> 1000 - 1999 | E55: ='Base Prod MDR'!D55 -> 16.48 | G55: ='Base Prod MDR'!F55 -> 0 | H55: ='Base Prod MDR'!G55 -> 3118MXBSN120PLZZ
A56: ='Base MDR'!A52 -> Add-On | B56: ='Base Prod MDR'!A56 -> Bitdefender XDR Sensor for MDR - Cloud | C56: ='Base Prod MDR'!B56 -> 1 year | D56: ='Base Prod MDR'!C56 -> 2000 - 2999 | E56: ='Base Prod MDR'!D56 -> 15.32 | G56: ='Base Prod MDR'!F56 -> 0 | H56: ='Base Prod MDR'!G56 -> 3118MXBSN120QLZZ
A57: ='Base MDR'!A53 -> Add-On | B57: ='Base Prod MDR'!A57 -> Bitdefender XDR Sensor for MDR - Cloud | C57: ='Base Prod MDR'!B57 -> 1 year | D57: ='Base Prod MDR'!C57 -> 3000 - 4999 | E57: ='Base Prod MDR'!D57 -> 14.25 | G57: ='Base Prod MDR'!F57 -> 0 | H57: ='Base Prod MDR'!G57 -> 3118MXBSN120ILZZ
A58: ='Base MDR'!A54 -> Add-On | B58: ='Base Prod MDR'!A58 -> Bitdefender XDR Sensor for MDR - Cloud | C58: ='Base Prod MDR'!B58 -> 1 year | D58: ='Base Prod MDR'!C58 -> 5000+ | E58: ='Base Prod MDR'!D58 -> 13.24 | G58: ='Base Prod MDR'!F58 -> 0 | H58: ='Base Prod MDR'!G58 -> 3118MXBSN120JLZZ
A59: ='Base MDR'!A55 -> Add-On | B59: ='Base Prod MDR'!A59 -> Bitdefender XDR Sensor for MDR - Cloud | C59: ='Base Prod MDR'!B59 -> 2 years | D59: ='Base Prod MDR'!C59 -> 50 - 99 | E59: ='Base Prod MDR'!D59 -> 38.26 | G59: ='Base Prod MDR'!F59 -> 0 | H59: ='Base Prod MDR'!G59 -> 3118MXBSN240CLZZ
A60: ='Base MDR'!A56 -> Add-On | B60: ='Base Prod MDR'!A60 -> Bitdefender XDR Sensor for MDR - Cloud | C60: ='Base Prod MDR'!B60 -> 2 years | D60: ='Base Prod MDR'!C60 -> 100 - 149 | E60: ='Base Prod MDR'!D60 -> 35.57 | G60: ='Base Prod MDR'!F60 -> 0 | H60: ='Base Prod MDR'!G60 -> 3118MXBSN240DLZZ
A61: ='Base MDR'!A57 -> Add-On | B61: ='Base Prod MDR'!A61 -> Bitdefender XDR Sensor for MDR - Cloud | C61: ='Base Prod MDR'!B61 -> 2 years | D61: ='Base Prod MDR'!C61 -> 150 - 249 | E61: ='Base Prod MDR'!D61 -> 33.08 | G61: ='Base Prod MDR'!F61 -> 0 | H61: ='Base Prod MDR'!G61 -> 3118MXBSN240ELZZ
A62: ='Base MDR'!A58 -> Add-On | B62: ='Base Prod MDR'!A62 -> Bitdefender XDR Sensor for MDR - Cloud | C62: ='Base Prod MDR'!B62 -> 2 years | D62: ='Base Prod MDR'!C62 -> 250 - 499 | E62: ='Base Prod MDR'!D62 -> 31.44 | G62: ='Base Prod MDR'!F62 -> 0 | H62: ='Base Prod MDR'!G62 -> 3118MXBSN240FLZZ
A63: ='Base MDR'!A59 -> Add-On | B63: ='Base Prod MDR'!A63 -> Bitdefender XDR Sensor for MDR - Cloud | C63: ='Base Prod MDR'!B63 -> 2 years | D63: ='Base Prod MDR'!C63 -> 500 - 999 | E63: ='Base Prod MDR'!D63 -> 29.23 | G63: ='Base Prod MDR'!F63 -> 0 | H63: ='Base Prod MDR'!G63 -> 3118MXBSN240GLZZ
A64: ='Base MDR'!A60 -> Add-On | B64: ='Base Prod MDR'!A64 -> Bitdefender XDR Sensor for MDR - Cloud | C64: ='Base Prod MDR'!B64 -> 2 years | D64: ='Base Prod MDR'!C64 -> 1000 - 1999 | E64: ='Base Prod MDR'!D64 -> 27.19 | G64: ='Base Prod MDR'!F64 -> 0 | H64: ='Base Prod MDR'!G64 -> 3118MXBSN240PLZZ
A65: ='Base MDR'!A61 -> Add-On | B65: ='Base Prod MDR'!A65 -> Bitdefender XDR Sensor for MDR - Cloud | C65: ='Base Prod MDR'!B65 -> 2 years | D65: ='Base Prod MDR'!C65 -> 2000 - 2999 | E65: ='Base Prod MDR'!D65 -> 25.28 | G65: ='Base Prod MDR'!F65 -> 0 | H65: ='Base Prod MDR'!G65 -> 3118MXBSN240QLZZ
A66: ='Base MDR'!A62 -> Add-On | B66: ='Base Prod MDR'!A66 -> Bitdefender XDR Sensor for MDR - Cloud | C66: ='Base Prod MDR'!B66 -> 2 years | D66: ='Base Prod MDR'!C66 -> 3000 - 4999 | E66: ='Base Prod MDR'!D66 -> 23.52 | G66: ='Base Prod MDR'!F66 -> 0 | H66: ='Base Prod MDR'!G66 -> 3118MXBSN240ILZZ
A67: ='Base MDR'!A63 -> Add-On | B67: ='Base Prod MDR'!A67 -> Bitdefender XDR Sensor for MDR - Cloud | C67: ='Base Prod MDR'!B67 -> 2 years | D67: ='Base Prod MDR'!C67 -> 5000+ | E67: ='Base Prod MDR'!D67 -> 21.87 | G67: ='Base Prod MDR'!F67 -> 0 | H67: ='Base Prod MDR'!G67 -> 3118MXBSN240JLZZ
A68: ='Base MDR'!A64 -> Add-On | B68: ='Base Prod MDR'!A68 -> Bitdefender XDR Sensor for MDR - Cloud | C68: ='Base Prod MDR'!B68 -> 3 years | D68: ='Base Prod MDR'!C68 -> 50 - 99 | E68: ='Base Prod MDR'!D68 -> 53.33 | G68: ='Base Prod MDR'!F68 -> 0 | H68: ='Base Prod MDR'!G68 -> 3118MXBSN360CLZZ
A69: ='Base MDR'!A65 -> Add-On | B69: ='Base Prod MDR'!A69 -> Bitdefender XDR Sensor for MDR - Cloud | C69: ='Base Prod MDR'!B69 -> 3 years | D69: ='Base Prod MDR'!C69 -> 100 - 149 | E69: ='Base Prod MDR'!D69 -> 49.59 | G69: ='Base Prod MDR'!F69 -> 0 | H69: ='Base Prod MDR'!G69 -> 3118MXBSN360DLZZ
A70: ='Base MDR'!A66 -> Add-On | B70: ='Base Prod MDR'!A70 -> Bitdefender XDR Sensor for MDR - Cloud | C70: ='Base Prod MDR'!B70 -> 3 years | D70: ='Base Prod MDR'!C70 -> 150 - 249 | E70: ='Base Prod MDR'!D70 -> 46.11 | G70: ='Base Prod MDR'!F70 -> 0 | H70: ='Base Prod MDR'!G70 -> 3118MXBSN360ELZZ
A71: ='Base MDR'!A67 -> Add-On | B71: ='Base Prod MDR'!A71 -> Bitdefender XDR Sensor for MDR - Cloud | C71: ='Base Prod MDR'!B71 -> 3 years | D71: ='Base Prod MDR'!C71 -> 250 - 499 | E71: ='Base Prod MDR'!D71 -> 43.81 | G71: ='Base Prod MDR'!F71 -> 0 | H71: ='Base Prod MDR'!G71 -> 3118MXBSN360FLZZ
A72: ='Base MDR'!A68 -> Add-On | B72: ='Base Prod MDR'!A72 -> Bitdefender XDR Sensor for MDR - Cloud | C72: ='Base Prod MDR'!B72 -> 3 years | D72: ='Base Prod MDR'!C72 -> 500 - 999 | E72: ='Base Prod MDR'!D72 -> 40.73 | G72: ='Base Prod MDR'!F72 -> 0 | H72: ='Base Prod MDR'!G72 -> 3118MXBSN360GLZZ
A73: ='Base MDR'!A69 -> Add-On | B73: ='Base Prod MDR'!A73 -> Bitdefender XDR Sensor for MDR - Cloud | C73: ='Base Prod MDR'!B73 -> 3 years | D73: ='Base Prod MDR'!C73 -> 1000 - 1999 | E73: ='Base Prod MDR'!D73 -> 37.9 | G73: ='Base Prod MDR'!F73 -> 0 | H73: ='Base Prod MDR'!G73 -> 3118MXBSN360PLZZ
A74: ='Base MDR'!A70 -> Add-On | B74: ='Base Prod MDR'!A74 -> Bitdefender XDR Sensor for MDR - Cloud | C74: ='Base Prod MDR'!B74 -> 3 years | D74: ='Base Prod MDR'!C74 -> 2000 - 2999 | E74: ='Base Prod MDR'!D74 -> 35.26 | G74: ='Base Prod MDR'!F74 -> 0 | H74: ='Base Prod MDR'!G74 -> 3118MXBSN360QLZZ
A75: ='Base MDR'!A71 -> Add-On | B75: ='Base Prod MDR'!A75 -> Bitdefender XDR Sensor for MDR - Cloud | C75: ='Base Prod MDR'!B75 -> 3 years | D75: ='Base Prod MDR'!C75 -> 3000 - 4999 | E75: ='Base Prod MDR'!D75 -> 32.78 | G75: ='Base Prod MDR'!F75 -> 0 | H75: ='Base Prod MDR'!G75 -> 3118MXBSN360ILZZ
A76: ='Base MDR'!A72 -> Add-On | B76: ='Base Prod MDR'!A76 -> Bitdefender XDR Sensor for MDR - Cloud | C76: ='Base Prod MDR'!B76 -> 3 years | D76: ='Base Prod MDR'!C76 -> 5000+ | E76: ='Base Prod MDR'!D76 -> 30.48 | G76: ='Base Prod MDR'!F76 -> 0 | H76: ='Base Prod MDR'!G76 -> 3118MXBSN360JLZZ
A77: ='Base MDR'!A73 -> Add-On | B77: ='Base Prod MDR'!A77 -> Bitdefender XDR Sensor for MDR - Identity | C77: ='Base Prod MDR'!B77 -> 1 year | D77: ='Base Prod MDR'!C77 -> 50 - 99 | E77: ='Base Prod MDR'!D77 -> 23.19 | G77: ='Base Prod MDR'!F77 -> 0 | H77: ='Base Prod MDR'!G77 -> 3119MXBSN120CLZZ
A78: ='Base MDR'!A74 -> Add-On | B78: ='Base Prod MDR'!A78 -> Bitdefender XDR Sensor for MDR - Identity | C78: ='Base Prod MDR'!B78 -> 1 year | D78: ='Base Prod MDR'!C78 -> 100 - 149 | E78: ='Base Prod MDR'!D78 -> 21.56 | G78: ='Base Prod MDR'!F78 -> 0 | H78: ='Base Prod MDR'!G78 -> 3119MXBSN120DLZZ
A79: ='Base MDR'!A75 -> Add-On | B79: ='Base Prod MDR'!A79 -> Bitdefender XDR Sensor for MDR - Identity | C79: ='Base Prod MDR'!B79 -> 1 year | D79: ='Base Prod MDR'!C79 -> 150 - 249 | E79: ='Base Prod MDR'!D79 -> 20.04 | G79: ='Base Prod MDR'!F79 -> 0 | H79: ='Base Prod MDR'!G79 -> 3119MXBSN120ELZZ
A80: ='Base MDR'!A76 -> Add-On | B80: ='Base Prod MDR'!A80 -> Bitdefender XDR Sensor for MDR - Identity | C80: ='Base Prod MDR'!B80 -> 1 year | D80: ='Base Prod MDR'!C80 -> 250 - 499 | E80: ='Base Prod MDR'!D80 -> 19.04 | G80: ='Base Prod MDR'!F80 -> 0 | H80: ='Base Prod MDR'!G80 -> 3119MXBSN120FLZZ
A81: ='Base MDR'!A77 -> Add-On | B81: ='Base Prod MDR'!A81 -> Bitdefender XDR Sensor for MDR - Identity | C81: ='Base Prod MDR'!B81 -> 1 year | D81: ='Base Prod MDR'!C81 -> 500 - 999 | E81: ='Base Prod MDR'!D81 -> 17.71 | G81: ='Base Prod MDR'!F81 -> 0 | H81: ='Base Prod MDR'!G81 -> 3119MXBSN120GLZZ
A82: ='Base MDR'!A78 -> Add-On | B82: ='Base Prod MDR'!A82 -> Bitdefender XDR Sensor for MDR - Identity | C82: ='Base Prod MDR'!B82 -> 1 year | D82: ='Base Prod MDR'!C82 -> 1000 - 1999 | E82: ='Base Prod MDR'!D82 -> 16.48 | G82: ='Base Prod MDR'!F82 -> 0 | H82: ='Base Prod MDR'!G82 -> 3119MXBSN120PLZZ
A83: ='Base MDR'!A79 -> Add-On | B83: ='Base Prod MDR'!A83 -> Bitdefender XDR Sensor for MDR - Identity | C83: ='Base Prod MDR'!B83 -> 1 year | D83: ='Base Prod MDR'!C83 -> 2000 - 2999 | E83: ='Base Prod MDR'!D83 -> 15.32 | G83: ='Base Prod MDR'!F83 -> 0 | H83: ='Base Prod MDR'!G83 -> 3119MXBSN120QLZZ
A84: ='Base MDR'!A80 -> Add-On | B84: ='Base Prod MDR'!A84 -> Bitdefender XDR Sensor for MDR - Identity | C84: ='Base Prod MDR'!B84 -> 1 year | D84: ='Base Prod MDR'!C84 -> 3000 - 4999 | E84: ='Base Prod MDR'!D84 -> 14.25 | G84: ='Base Prod MDR'!F84 -> 0 | H84: ='Base Prod MDR'!G84 -> 3119MXBSN120ILZZ
A85: ='Base MDR'!A81 -> Add-On | B85: ='Base Prod MDR'!A85 -> Bitdefender XDR Sensor for MDR - Identity | C85: ='Base Prod MDR'!B85 -> 1 year | D85: ='Base Prod MDR'!C85 -> 5000+ | E85: ='Base Prod MDR'!D85 -> 13.24 | G85: ='Base Prod MDR'!F85 -> 0 | H85: ='Base Prod MDR'!G85 -> 3119MXBSN120JLZZ
A86: ='Base MDR'!A82 -> Add-On | B86: ='Base Prod MDR'!A86 -> Bitdefender XDR Sensor for MDR - Identity | C86: ='Base Prod MDR'!B86 -> 2 years | D86: ='Base Prod MDR'!C86 -> 50 - 99 | E86: ='Base Prod MDR'!D86 -> 38.26 | G86: ='Base Prod MDR'!F86 -> 0 | H86: ='Base Prod MDR'!G86 -> 3119MXBSN240CLZZ
A87: ='Base MDR'!A83 -> Add-On | B87: ='Base Prod MDR'!A87 -> Bitdefender XDR Sensor for MDR - Identity | C87: ='Base Prod MDR'!B87 -> 2 years | D87: ='Base Prod MDR'!C87 -> 100 - 149 | E87: ='Base Prod MDR'!D87 -> 35.57 | G87: ='Base Prod MDR'!F87 -> 0 | H87: ='Base Prod MDR'!G87 -> 3119MXBSN240DLZZ
A88: ='Base MDR'!A84 -> Add-On | B88: ='Base Prod MDR'!A88 -> Bitdefender XDR Sensor for MDR - Identity | C88: ='Base Prod MDR'!B88 -> 2 years | D88: ='Base Prod MDR'!C88 -> 150 - 249 | E88: ='Base Prod MDR'!D88 -> 33.08 | G88: ='Base Prod MDR'!F88 -> 0 | H88: ='Base Prod MDR'!G88 -> 3119MXBSN240ELZZ
A89: ='Base MDR'!A85 -> Add-On | B89: ='Base Prod MDR'!A89 -> Bitdefender XDR Sensor for MDR - Identity | C89: ='Base Prod MDR'!B89 -> 2 years | D89: ='Base Prod MDR'!C89 -> 250 - 499 | E89: ='Base Prod MDR'!D89 -> 31.44 | G89: ='Base Prod MDR'!F89 -> 0 | H89: ='Base Prod MDR'!G89 -> 3119MXBSN240FLZZ
A90: ='Base MDR'!A86 -> Add-On | B90: ='Base Prod MDR'!A90 -> Bitdefender XDR Sensor for MDR - Identity | C90: ='Base Prod MDR'!B90 -> 2 years | D90: ='Base Prod MDR'!C90 -> 500 - 999 | E90: ='Base Prod MDR'!D90 -> 29.23 | G90: ='Base Prod MDR'!F90 -> 0 | H90: ='Base Prod MDR'!G90 -> 3119MXBSN240GLZZ
A91: ='Base MDR'!A87 -> Add-On | B91: ='Base Prod MDR'!A91 -> Bitdefender XDR Sensor for MDR - Identity | C91: ='Base Prod MDR'!B91 -> 2 years | D91: ='Base Prod MDR'!C91 -> 1000 - 1999 | E91: ='Base Prod MDR'!D91 -> 27.19 | G91: ='Base Prod MDR'!F91 -> 0 | H91: ='Base Prod MDR'!G91 -> 3119MXBSN240PLZZ
A92: ='Base MDR'!A88 -> Add-On | B92: ='Base Prod MDR'!A92 -> Bitdefender XDR Sensor for MDR - Identity | C92: ='Base Prod MDR'!B92 -> 2 years | D92: ='Base Prod MDR'!C92 -> 2000 - 2999 | E92: ='Base Prod MDR'!D92 -> 25.28 | G92: ='Base Prod MDR'!F92 -> 0 | H92: ='Base Prod MDR'!G92 -> 3119MXBSN240QLZZ
A93: ='Base MDR'!A89 -> Add-On | B93: ='Base Prod MDR'!A93 -> Bitdefender XDR Sensor for MDR - Identity | C93: ='Base Prod MDR'!B93 -> 2 years | D93: ='Base Prod MDR'!C93 -> 3000 - 4999 | E93: ='Base Prod MDR'!D93 -> 23.52 | G93: ='Base Prod MDR'!F93 -> 0 | H93: ='Base Prod MDR'!G93 -> 3119MXBSN240ILZZ
A94: ='Base MDR'!A90 -> Add-On | B94: ='Base Prod MDR'!A94 -> Bitdefender XDR Sensor for MDR - Identity | C94: ='Base Prod MDR'!B94 -> 2 years | D94: ='Base Prod MDR'!C94 -> 5000+ | E94: ='Base Prod MDR'!D94 -> 21.87 | G94: ='Base Prod MDR'!F94 -> 0 | H94: ='Base Prod MDR'!G94 -> 3119MXBSN240JLZZ
A95: ='Base MDR'!A91 -> Add-On | B95: ='Base Prod MDR'!A95 -> Bitdefender XDR Sensor for MDR - Identity | C95: ='Base Prod MDR'!B95 -> 3 years | D95: ='Base Prod MDR'!C95 -> 50 - 99 | E95: ='Base Prod MDR'!D95 -> 53.33 | G95: ='Base Prod MDR'!F95 -> 0 | H95: ='Base Prod MDR'!G95 -> 3119MXBSN360CLZZ
A96: ='Base MDR'!A92 -> Add-On | B96: ='Base Prod MDR'!A96 -> Bitdefender XDR Sensor for MDR - Identity | C96: ='Base Prod MDR'!B96 -> 3 years | D96: ='Base Prod MDR'!C96 -> 100 - 149 | E96: ='Base Prod MDR'!D96 -> 49.59 | G96: ='Base Prod MDR'!F96 -> 0 | H96: ='Base Prod MDR'!G96 -> 3119MXBSN360DLZZ
A97: ='Base MDR'!A93 -> Add-On | B97: ='Base Prod MDR'!A97 -> Bitdefender XDR Sensor for MDR - Identity | C97: ='Base Prod MDR'!B97 -> 3 years | D97: ='Base Prod MDR'!C97 -> 150 - 249 | E97: ='Base Prod MDR'!D97 -> 46.11 | G97: ='Base Prod MDR'!F97 -> 0 | H97: ='Base Prod MDR'!G97 -> 3119MXBSN360ELZZ
A98: ='Base MDR'!A94 -> Add-On | B98: ='Base Prod MDR'!A98 -> Bitdefender XDR Sensor for MDR - Identity | C98: ='Base Prod MDR'!B98 -> 3 years | D98: ='Base Prod MDR'!C98 -> 250 - 499 | E98: ='Base Prod MDR'!D98 -> 43.81 | G98: ='Base Prod MDR'!F98 -> 0 | H98: ='Base Prod MDR'!G98 -> 3119MXBSN360FLZZ
A99: ='Base MDR'!A95 -> Add-On | B99: ='Base Prod MDR'!A99 -> Bitdefender XDR Sensor for MDR - Identity | C99: ='Base Prod MDR'!B99 -> 3 years | D99: ='Base Prod MDR'!C99 -> 500 - 999 | E99: ='Base Prod MDR'!D99 -> 40.73 | G99: ='Base Prod MDR'!F99 -> 0 | H99: ='Base Prod MDR'!G99 -> 3119MXBSN360GLZZ
A100: ='Base MDR'!A96 -> Add-On | B100: ='Base Prod MDR'!A100 -> Bitdefender XDR Sensor for MDR - Identity | C100: ='Base Prod MDR'!B100 -> 3 years | D100: ='Base Prod MDR'!C100 -> 1000 - 1999 | E100: ='Base Prod MDR'!D100 -> 37.9 | G100: ='Base Prod MDR'!F100 -> 0 | H100: ='Base Prod MDR'!G100 -> 3119MXBSN360PLZZ
A101: ='Base MDR'!A97 -> Add-On | B101: ='Base Prod MDR'!A101 -> Bitdefender XDR Sensor for MDR - Identity | C101: ='Base Prod MDR'!B101 -> 3 years | D101: ='Base Prod MDR'!C101 -> 2000 - 2999 | E101: ='Base Prod MDR'!D101 -> 35.26 | G101: ='Base Prod MDR'!F101 -> 0 | H101: ='Base Prod MDR'!G101 -> 3119MXBSN360QLZZ
A102: ='Base MDR'!A98 -> Add-On | B102: ='Base Prod MDR'!A102 -> Bitdefender XDR Sensor for MDR - Identity | C102: ='Base Prod MDR'!B102 -> 3 years | D102: ='Base Prod MDR'!C102 -> 3000 - 4999 | E102: ='Base Prod MDR'!D102 -> 32.78 | G102: ='Base Prod MDR'!F102 -> 0 | H102: ='Base Prod MDR'!G102 -> 3119MXBSN360ILZZ
A103: ='Base MDR'!A99 -> Add-On | B103: ='Base Prod MDR'!A103 -> Bitdefender XDR Sensor for MDR - Identity | C103: ='Base Prod MDR'!B103 -> 3 years | D103: ='Base Prod MDR'!C103 -> 5000+ | E103: ='Base Prod MDR'!D103 -> 30.48 | G103: ='Base Prod MDR'!F103 -> 0 | H103: ='Base Prod MDR'!G103 -> 3119MXBSN360JLZZ
A104: ='Base MDR'!A100 -> Add-On | B104: ='Base Prod MDR'!A104 -> Bitdefender XDR Sensor for MDR - Network | C104: ='Base Prod MDR'!B104 -> 1 year | D104: ='Base Prod MDR'!C104 -> 50 - 99 | E104: ='Base Prod MDR'!D104 -> 21.56 | G104: ='Base Prod MDR'!F104 -> 0 | H104: ='Base Prod MDR'!G104 -> 3117MXBSN120CLZZ
A105: ='Base MDR'!A101 -> Add-On | B105: ='Base Prod MDR'!A105 -> Bitdefender XDR Sensor for MDR - Network | C105: ='Base Prod MDR'!B105 -> 1 year | D105: ='Base Prod MDR'!C105 -> 100 - 149 | E105: ='Base Prod MDR'!D105 -> 20.04 | G105: ='Base Prod MDR'!F105 -> 0 | H105: ='Base Prod MDR'!G105 -> 3117MXBSN120DLZZ
A106: ='Base MDR'!A102 -> Add-On | B106: ='Base Prod MDR'!A106 -> Bitdefender XDR Sensor for MDR - Network | C106: ='Base Prod MDR'!B106 -> 1 year | D106: ='Base Prod MDR'!C106 -> 150 - 249 | E106: ='Base Prod MDR'!D106 -> 18.65 | G106: ='Base Prod MDR'!F106 -> 0 | H106: ='Base Prod MDR'!G106 -> 3117MXBSN120ELZZ
A107: ='Base MDR'!A103 -> Add-On | B107: ='Base Prod MDR'!A107 -> Bitdefender XDR Sensor for MDR - Network | C107: ='Base Prod MDR'!B107 -> 1 year | D107: ='Base Prod MDR'!C107 -> 250 - 499 | E107: ='Base Prod MDR'!D107 -> 17.71 | G107: ='Base Prod MDR'!F107 -> 0 | H107: ='Base Prod MDR'!G107 -> 3117MXBSN120FLZZ
A108: ='Base MDR'!A104 -> Add-On | B108: ='Base Prod MDR'!A108 -> Bitdefender XDR Sensor for MDR - Network | C108: ='Base Prod MDR'!B108 -> 1 year | D108: ='Base Prod MDR'!C108 -> 500 - 999 | E108: ='Base Prod MDR'!D108 -> 16.47 | G108: ='Base Prod MDR'!F108 -> 0 | H108: ='Base Prod MDR'!G108 -> 3117MXBSN120GLZZ
A109: ='Base MDR'!A105 -> Add-On | B109: ='Base Prod MDR'!A109 -> Bitdefender XDR Sensor for MDR - Network | C109: ='Base Prod MDR'!B109 -> 1 year | D109: ='Base Prod MDR'!C109 -> 1000 - 1999 | E109: ='Base Prod MDR'!D109 -> 15.31 | G109: ='Base Prod MDR'!F109 -> 0 | H109: ='Base Prod MDR'!G109 -> 3117MXBSN120PLZZ
A110: ='Base MDR'!A106 -> Add-On | B110: ='Base Prod MDR'!A110 -> Bitdefender XDR Sensor for MDR - Network | C110: ='Base Prod MDR'!B110 -> 1 year | D110: ='Base Prod MDR'!C110 -> 2000 - 2999 | E110: ='Base Prod MDR'!D110 -> 14.25 | G110: ='Base Prod MDR'!F110 -> 0 | H110: ='Base Prod MDR'!G110 -> 3117MXBSN120QLZZ
A111: ='Base MDR'!A107 -> Add-On | B111: ='Base Prod MDR'!A111 -> Bitdefender XDR Sensor for MDR - Network | C111: ='Base Prod MDR'!B111 -> 1 year | D111: ='Base Prod MDR'!C111 -> 3000 - 4999 | E111: ='Base Prod MDR'!D111 -> 13.24 | G111: ='Base Prod MDR'!F111 -> 0 | H111: ='Base Prod MDR'!G111 -> 3117MXBSN120ILZZ
A112: ='Base MDR'!A108 -> Add-On | B112: ='Base Prod MDR'!A112 -> Bitdefender XDR Sensor for MDR - Network | C112: ='Base Prod MDR'!B112 -> 1 year | D112: ='Base Prod MDR'!C112 -> 5000+ | E112: ='Base Prod MDR'!D112 -> 12.32 | G112: ='Base Prod MDR'!F112 -> 0 | H112: ='Base Prod MDR'!G112 -> 3117MXBSN120JLZZ
A113: ='Base MDR'!A109 -> Add-On | B113: ='Base Prod MDR'!A113 -> Bitdefender XDR Sensor for MDR - Network | C113: ='Base Prod MDR'!B113 -> 2 years | D113: ='Base Prod MDR'!C113 -> 50 - 99 | E113: ='Base Prod MDR'!D113 -> 35.57 | G113: ='Base Prod MDR'!F113 -> 0 | H113: ='Base Prod MDR'!G113 -> 3117MXBSN240CLZZ
A114: ='Base MDR'!A110 -> Add-On | B114: ='Base Prod MDR'!A114 -> Bitdefender XDR Sensor for MDR - Network | C114: ='Base Prod MDR'!B114 -> 2 years | D114: ='Base Prod MDR'!C114 -> 100 - 149 | E114: ='Base Prod MDR'!D114 -> 33.08 | G114: ='Base Prod MDR'!F114 -> 0 | H114: ='Base Prod MDR'!G114 -> 3117MXBSN240DLZZ
A115: ='Base MDR'!A111 -> Add-On | B115: ='Base Prod MDR'!A115 -> Bitdefender XDR Sensor for MDR - Network | C115: ='Base Prod MDR'!B115 -> 2 years | D115: ='Base Prod MDR'!C115 -> 150 - 249 | E115: ='Base Prod MDR'!D115 -> 30.77 | G115: ='Base Prod MDR'!F115 -> 0 | H115: ='Base Prod MDR'!G115 -> 3117MXBSN240ELZZ
A116: ='Base MDR'!A112 -> Add-On | B116: ='Base Prod MDR'!A116 -> Bitdefender XDR Sensor for MDR - Network | C116: ='Base Prod MDR'!B116 -> 2 years | D116: ='Base Prod MDR'!C116 -> 250 - 499 | E116: ='Base Prod MDR'!D116 -> 29.23 | G116: ='Base Prod MDR'!F116 -> 0 | H116: ='Base Prod MDR'!G116 -> 3117MXBSN240FLZZ
A117: ='Base MDR'!A113 -> Add-On | B117: ='Base Prod MDR'!A117 -> Bitdefender XDR Sensor for MDR - Network | C117: ='Base Prod MDR'!B117 -> 2 years | D117: ='Base Prod MDR'!C117 -> 500 - 999 | E117: ='Base Prod MDR'!D117 -> 27.18 | G117: ='Base Prod MDR'!F117 -> 0 | H117: ='Base Prod MDR'!G117 -> 3117MXBSN240GLZZ
A118: ='Base MDR'!A114 -> Add-On | B118: ='Base Prod MDR'!A118 -> Bitdefender XDR Sensor for MDR - Network | C118: ='Base Prod MDR'!B118 -> 2 years | D118: ='Base Prod MDR'!C118 -> 1000 - 1999 | E118: ='Base Prod MDR'!D118 -> 25.28 | G118: ='Base Prod MDR'!F118 -> 0 | H118: ='Base Prod MDR'!G118 -> 3117MXBSN240PLZZ
A119: ='Base MDR'!A115 -> Add-On | B119: ='Base Prod MDR'!A119 -> Bitdefender XDR Sensor for MDR - Network | C119: ='Base Prod MDR'!B119 -> 2 years | D119: ='Base Prod MDR'!C119 -> 2000 - 2999 | E119: ='Base Prod MDR'!D119 -> 23.51 | G119: ='Base Prod MDR'!F119 -> 0 | H119: ='Base Prod MDR'!G119 -> 3117MXBSN240QLZZ
A120: ='Base MDR'!A116 -> Add-On | B120: ='Base Prod MDR'!A120 -> Bitdefender XDR Sensor for MDR - Network | C120: ='Base Prod MDR'!B120 -> 2 years | D120: ='Base Prod MDR'!C120 -> 3000 - 4999 | E120: ='Base Prod MDR'!D120 -> 21.87 | G120: ='Base Prod MDR'!F120 -> 0 | H120: ='Base Prod MDR'!G120 -> 3117MXBSN240ILZZ
A121: ='Base MDR'!A117 -> Add-On | B121: ='Base Prod MDR'!A121 -> Bitdefender XDR Sensor for MDR - Network | C121: ='Base Prod MDR'!B121 -> 2 years | D121: ='Base Prod MDR'!C121 -> 5000+ | E121: ='Base Prod MDR'!D121 -> 20.34 | G121: ='Base Prod MDR'!F121 -> 0 | H121: ='Base Prod MDR'!G121 -> 3117MXBSN240JLZZ
A122: ='Base MDR'!A118 -> Add-On | B122: ='Base Prod MDR'!A122 -> Bitdefender XDR Sensor for MDR - Network | C122: ='Base Prod MDR'!B122 -> 3 years | D122: ='Base Prod MDR'!C122 -> 50 - 99 | E122: ='Base Prod MDR'!D122 -> 49.59 | G122: ='Base Prod MDR'!F122 -> 0 | H122: ='Base Prod MDR'!G122 -> 3117MXBSN360CLZZ
A123: ='Base MDR'!A119 -> Add-On | B123: ='Base Prod MDR'!A123 -> Bitdefender XDR Sensor for MDR - Network | C123: ='Base Prod MDR'!B123 -> 3 years | D123: ='Base Prod MDR'!C123 -> 100 - 149 | E123: ='Base Prod MDR'!D123 -> 46.11 | G123: ='Base Prod MDR'!F123 -> 0 | H123: ='Base Prod MDR'!G123 -> 3117MXBSN360DLZZ
A124: ='Base MDR'!A120 -> Add-On | B124: ='Base Prod MDR'!A124 -> Bitdefender XDR Sensor for MDR - Network | C124: ='Base Prod MDR'!B124 -> 3 years | D124: ='Base Prod MDR'!C124 -> 150 - 249 | E124: ='Base Prod MDR'!D124 -> 42.88 | G124: ='Base Prod MDR'!F124 -> 0 | H124: ='Base Prod MDR'!G124 -> 3117MXBSN360ELZZ
A125: ='Base MDR'!A121 -> Add-On | B125: ='Base Prod MDR'!A125 -> Bitdefender XDR Sensor for MDR - Network | C125: ='Base Prod MDR'!B125 -> 3 years | D125: ='Base Prod MDR'!C125 -> 250 - 499 | E125: ='Base Prod MDR'!D125 -> 40.73 | G125: ='Base Prod MDR'!F125 -> 0 | H125: ='Base Prod MDR'!G125 -> 3117MXBSN360FLZZ
A126: ='Base MDR'!A122 -> Add-On | B126: ='Base Prod MDR'!A126 -> Bitdefender XDR Sensor for MDR - Network | C126: ='Base Prod MDR'!B126 -> 3 years | D126: ='Base Prod MDR'!C126 -> 500 - 999 | E126: ='Base Prod MDR'!D126 -> 37.88 | G126: ='Base Prod MDR'!F126 -> 0 | H126: ='Base Prod MDR'!G126 -> 3117MXBSN360GLZZ
A127: ='Base MDR'!A123 -> Add-On | B127: ='Base Prod MDR'!A127 -> Bitdefender XDR Sensor for MDR - Network | C127: ='Base Prod MDR'!B127 -> 3 years | D127: ='Base Prod MDR'!C127 -> 1000 - 1999 | E127: ='Base Prod MDR'!D127 -> 35.24 | G127: ='Base Prod MDR'!F127 -> 0 | H127: ='Base Prod MDR'!G127 -> 3117MXBSN360PLZZ
A128: ='Base MDR'!A124 -> Add-On | B128: ='Base Prod MDR'!A128 -> Bitdefender XDR Sensor for MDR - Network | C128: ='Base Prod MDR'!B128 -> 3 years | D128: ='Base Prod MDR'!C128 -> 2000 - 2999 | E128: ='Base Prod MDR'!D128 -> 32.77 | G128: ='Base Prod MDR'!F128 -> 0 | H128: ='Base Prod MDR'!G128 -> 3117MXBSN360QLZZ
A129: ='Base MDR'!A125 -> Add-On | B129: ='Base Prod MDR'!A129 -> Bitdefender XDR Sensor for MDR - Network | C129: ='Base Prod MDR'!B129 -> 3 years | D129: ='Base Prod MDR'!C129 -> 3000 - 4999 | E129: ='Base Prod MDR'!D129 -> 30.48 | G129: ='Base Prod MDR'!F129 -> 0 | H129: ='Base Prod MDR'!G129 -> 3117MXBSN360ILZZ
A130: ='Base MDR'!A126 -> Add-On | B130: ='Base Prod MDR'!A130 -> Bitdefender XDR Sensor for MDR - Network | C130: ='Base Prod MDR'!B130 -> 3 years | D130: ='Base Prod MDR'!C130 -> 5000+ | E130: ='Base Prod MDR'!D130 -> 28.34 | G130: ='Base Prod MDR'!F130 -> 0 | H130: ='Base Prod MDR'!G130 -> 3117MXBSN360JLZZ

Sheet Base MDR (hidden)
D1: Business Standard | E1: 0 | I1: Business Standard | J1: 0 | N1: Business Standard | O1: 0 | Q1: XDR | S1: Business Standard | T1: 0
D2: Education & Non Profit | E2: 0 | I2: Education & Non Profit | J2: 0 | N2: Education & Non Profit | O2: -0.25 | S2: Education & Non Profit | T2: -0.25
B3: tier 1 | C3: 1 | D3: Government | E3: 0 | G3: tier 1 | H3: 1 | I3: Government | J3: 0 | L3: tier 1 | M3: 1 | N3: Government | O3: -0.2 | Q3: tier 1 | R3: 1 | S3: Government | T3: -0.2 | Z3: Bitdefender US Price List
B4: tier 2 | C4: 1 | D4: Renew | E4: 0 | G4: tier 2 | H4: 1 | I4: Renew | J4: -0.2 | L4: tier 2 | M4: 1 | N4: Renew | O4: -0.05 | Q4: tier 2 | R4: 1 | S4: Renew | T4: 0 | Z4: HOME & SMALL OFFICE/HOME OFFICE | AA4: 2013-06-01
B5: Discount from MSRP | C5: =IF(LEFT(Products!AB7,8)="Consumer",0,IF(Products!$AB$8=$D$1,$E$1,IF(Products!$AB$8=$D$2,$E$2,IF(Products!$AB$8=$D$3,$E$3,IF(Products!$AB$8=$D$4,$E$4,IF(Products!$AB$8=$D$5,$E$5,IF(Products!$AB$8=$D$6,$E$6,IF(Products!$AB$8=$D$7,$E$7)))))))) -> FALSE | D5: Competitive Upgrade | E5: 0 | G5: Discount from MSRP | H5: =IF(LEFT(Products!AG7,8)="Consumer",0,IF(Products!$AB$8=$D$1,$J$1,IF(Products!$AB$8=$D$2,$J$2,IF(Products!$AB$8=$D$3,$J$3,IF(Products!$AB$8=$D$4,$J$4,IF(Products!$AB$8=$J$5,$J$5,IF(Products!$AB$8=$D$6,$J$6,IF(Products!$AB$8=$D$7,$J$7)))))))) -> 0 | I5: Competitive Upgrade | J5: 0 | L5: Discount from MSRP | M5: =IF(LEFT(Products!AL7,8)="Consumer",0,IF(Products!$AB$8=$D$1,$J$1,IF(Products!$AB$8=$D$2,$J$2,IF(Products!$AB$8=$D$3,$J$3,IF(Products!$AB$8=$D$4,$J$4,IF(Products!$AB$8=$J$5,$J$5,IF(Products!$AB$8=$D$6,$J$6,IF(Products!$AB$8=$D$7,$J$7)))))))) -> 0 | N5: Competitive Upgrade | O5: 0 | Q5: Discount from MSRP | R5: =IF(LEFT(Products!AQ7,8)="Consumer",0,IF(Products!$AB$8=$D$1,$J$1,IF(Products!$AB$8=$D$2,$J$2,IF(Products!$AB$8=$D$3,$J$3,IF(Products!$AB$8=$D$4,$J$4,IF(Products!$AB$8=$J$5,$J$5,IF(Products!$AB$8=$D$6,$J$6,IF(Products!$AB$8=$D$7,$J$7)))))))) -> 0 | S5: Competitive Upgrade | T5: 0 | Z5: $, Taxes included
D6: Education & Non Profit Renew | E6: 0 | I6: Education & Non Profit Renew | J6: -0.2 | N6: Education & Non Profit Renew | O6: -0.3 | S6: Education & Non Profit Renew | T6: -0.25 | Z6: Product | AA6: Period | AB6: Users | AD6: Price | AE6: BD Part # | AF6: Alt. Part#
D7: Government Renew | E7: 0 | I7: Government Renew | J7: -0.2 | N7: Government Renew | O7: -0.25 | S7: Government Renew | T7: -0.2
Z8: Note: Only the license key is provided.
A9: Product Type | B9: Product | C9: Period | D9: Users | E9: Concatenate | G9: Price/Unit | I9: Part # | J9: Part # STD | K9: Part # EDU | L9: Part # GOV | M9: Part # RNW | N9: Part # EDU RNW | O9: Part # GOV RNW | P9: Part # CUPG | Q9: Product Code | R9: Part # STD | S9: Part # EDU | T9: Part # GOV | U9: Part # RNW | V9: Part # EDU RNW | W9: Part # GOV RNW | X9: Part # CUPG | Z9: For boxes replace the second character of the part number (L) with "B"
A10: Packages | B10: =IF(MDR!$AB$8=$D$1,R10,IF(MDR!$AB$8=$D$2,S10,IF(MDR!$AB$8=$D$3,T10,IF(MDR!$AB$8=$D$4,U10,IF(MDR!$AB$8=$D$5,X10,IF(MDR!$AB$8=$D$6,V10,IF(MDR!$AB$8=$D$7,W10))))))) -> Bitdefender Managed Detection and Response Foundations | C10: 1 year | D10: 50 - 99 | E10: =CONCATENATE(B10,C10,D10) -> Bitdefender Managed Detection and Response Foundations1 year50 - 99 | G10: 73.53 | H10: =IF(MDR!$AB$8=$D$1,ROUND(G10*$C$3,2),IF(MDR!$AB$8=$D$2,ROUND(G10*$C$3*(1+$E$2),2),IF(MDR!$AB$8=$D$3,ROUND(G10*$C$3*(1+$E$3),2),IF(MDR!$AB$8=$D$4,ROUND(G10*$C$3*(1+$E$4),2),IF(MDR!$AB$8=$D$5,ROUND(G10*$C$3*(1+$E$5),2),IF(MDR!$AB$8=$D$6,ROUND(G10*$C$3*(1+$E$6),2),IF(MDR!$AB$8=$D$7,ROUND(G10*$C$3*(1+$E$7),2)))))))) -> 73.53 | I10: =IF(MDR!$AB$8=$D$1,J10,IF(MDR!$AB$8=$D$2,K10,IF(MDR!$AB$8=$D$3,L10,IF(MDR!$AB$8=$D$4,M10,IF(MDR!$AB$8=$D$5,P10,IF(MDR!$AB$8=$D$6,N10,IF(MDR!$AB$8=$D$7,O10))))))) -> 2892MFSSN120CLZZ | J10: 2892MFSSN120CLZZ | K10: =J10 -> 2892MFSSN120CLZZ | L10: 2892MFSSN120CLZZ | M10: 2892MFSSN120CLZZ | N10: 2892MFSSN120CLZZ | O10: 2892MFSSN120CLZZ | P10: 2892MFSSN120CLZZ | R10: Bitdefender Managed Detection and Response Foundations | S10: Bitdefender Managed Detection and Response Foundations | T10: Bitdefender Managed Detection and Response Foundations | U10: Bitdefender Managed Detection and Response Foundations | V10: Bitdefender Managed Detection and Response Foundations | W10: Bitdefender Managed Detection and Response Foundations | X10: Bitdefender Managed Detection and Response Foundations
A11: Packages | B11: =IF(MDR!$AB$8=$D$1,R11,IF(MDR!$AB$8=$D$2,S11,IF(MDR!$AB$8=$D$3,T11,IF(MDR!$AB$8=$D$4,U11,IF(MDR!$AB$8=$D$5,X11,IF(MDR!$AB$8=$D$6,V11,IF(MDR!$AB$8=$D$7,W11))))))) -> Bitdefender Managed Detection and Response Foundations | C11: 1 year | D11: 100 - 249 | E11: Bitdefender Managed Detection and Response Foundations1 year100 - 249 | G11: 66.18 | H11: =IF(MDR!$AB$8=$D$1,ROUND(G11*$C$3,2),IF(MDR!$AB$8=$D$2,ROUND(G11*$C$3*(1+$E$2),2),IF(MDR!$AB$8=$D$3,ROUND(G11*$C$3*(1+$E$3),2),IF(MDR!$AB$8=$D$4,ROUND(G11*$C$3*(1+$E$4),2),IF(MDR!$AB$8=$D$5,ROUND(G11*$C$3*(1+$E$5),2),IF(MDR!$AB$8=$D$6,ROUND(G11*$C$3*(1+$E$6),2),IF(MDR!$AB$8=$D$7,ROUND(G11*$C$3*(1+$E$7),2)))))))) -> 66.18 | I11: =IF(MDR!$AB$8=$D$1,J11,IF(MDR!$AB$8=$D$2,K11,IF(MDR!$AB$8=$D$3,L11,IF(MDR!$AB$8=$D$4,M11,IF(MDR!$AB$8=$D$5,P11,IF(MDR!$AB$8=$D$6,N11,IF(MDR!$AB$8=$D$7,O11))))))) -> 2892MFSSN120ELZZ | J11: 2892MFSSN120ELZZ | K11: 2892MFSSN120ELZZ | L11: 2892MFSSN120ELZZ | M11: 2892MFSSN120ELZZ | N11: 2892MFSSN120ELZZ | O11: 2892MFSSN120ELZZ | P11: 2892MFSSN120ELZZ | R11: Bitdefender Managed Detection and Response Foundations | S11: Bitdefender Managed Detection and Response Foundations | T11: Bitdefender Managed Detection and Response Foundations | U11: Bitdefender Managed Detection and Response Foundations | V11: Bitdefender Managed Detection and Response Foundations | W11: Bitdefender Managed Detection and Response Foundations | X11: Bitdefender Managed Detection and Response Foundations | Z11: STANDARD PRICES
A12: Packages | B12: =IF(MDR!$AB$8=$D$1,R12,IF(MDR!$AB$8=$D$2,S12,IF(MDR!$AB$8=$D$3,T12,IF(MDR!$AB$8=$D$4,U12,IF(MDR!$AB$8=$D$5,X12,IF(MDR!$AB$8=$D$6,V12,IF(MDR!$AB$8=$D$7,W12))))))) -> Bitdefender Managed Detection and Response Foundations | C12: 1 year | D12: 250 - 500 | E12: Bitdefender Managed Detection and Response Foundations1 year250 - 500 | G12: 59.56 | H12: =IF(MDR!$AB$8=$D$1,ROUND(G12*$C$3,2),IF(MDR!$AB$8=$D$2,ROUND(G12*$C$3*(1+$E$2),2),IF(MDR!$AB$8=$D$3,ROUND(G12*$C$3*(1+$E$3),2),IF(MDR!$AB$8=$D$4,ROUND(G12*$C$3*(1+$E$4),2),IF(MDR!$AB$8=$D$5,ROUND(G12*$C$3*(1+$E$5),2),IF(MDR!$AB$8=$D$6,ROUND(G12*$C$3*(1+$E$6),2),IF(MDR!$AB$8=$D$7,ROUND(G12*$C$3*(1+$E$7),2)))))))) -> 59.56 | I12: =IF(MDR!$AB$8=$D$1,J12,IF(MDR!$AB$8=$D$2,K12,IF(MDR!$AB$8=$D$3,L12,IF(MDR!$AB$8=$D$4,M12,IF(MDR!$AB$8=$D$5,P12,IF(MDR!$AB$8=$D$6,N12,IF(MDR!$AB$8=$D$7,O12))))))) -> 2892MFSSN120FLZZ | J12: 2892MFSSN120FLZZ | K12: 2892MFSSN120FLZZ | L12: 2892MFSSN120FLZZ | M12: 2892MFSSN120FLZZ | N12: 2892MFSSN120FLZZ | O12: 2892MFSSN120FLZZ | P12: 2892MFSSN120FLZZ | R12: Bitdefender Managed Detection and Response Foundations | S12: Bitdefender Managed Detection and Response Foundations | T12: Bitdefender Managed Detection and Response Foundations | U12: Bitdefender Managed Detection and Response Foundations | V12: Bitdefender Managed Detection and Response Foundations | W12: Bitdefender Managed Detection and Response Foundations | X12: Bitdefender Managed Detection and Response Foundations | Z12: NEW Bitdefender | AD12: without VAT | AF12: with VAT | AG12: VAT
A13: Packages | B13: =IF(MDR!$AB$8=$D$1,R13,IF(MDR!$AB$8=$D$2,S13,IF(MDR!$AB$8=$D$3,T13,IF(MDR!$AB$8=$D$4,U13,IF(MDR!$AB$8=$D$5,X13,IF(MDR!$AB$8=$D$6,V13,IF(MDR!$AB$8=$D$7,W13))))))) -> Bitdefender Managed Detection and Response Foundations | C13: 2 years | D13: 50 - 99 | E13: Bitdefender Managed Detection and Response Foundations2 years50 - 99 | G13: 132.36 | H13: =IF(MDR!$AB$8=$D$1,ROUND(G13*$C$3,2),IF(MDR!$AB$8=$D$2,ROUND(G13*$C$3*(1+$E$2),2),IF(MDR!$AB$8=$D$3,ROUND(G13*$C$3*(1+$E$3),2),IF(MDR!$AB$8=$D$4,ROUND(G13*$C$3*(1+$E$4),2),IF(MDR!$AB$8=$D$5,ROUND(G13*$C$3*(1+$E$5),2),IF(MDR!$AB$8=$D$6,ROUND(G13*$C$3*(1+$E$6),2),IF(MDR!$AB$8=$D$7,ROUND(G13*$C$3*(1+$E$7),2)))))))) -> 132.36 | I13: =IF(MDR!$AB$8=$D$1,J13,IF(MDR!$AB$8=$D$2,K13,IF(MDR!$AB$8=$D$3,L13,IF(MDR!$AB$8=$D$4,M13,IF(MDR!$AB$8=$D$5,P13,IF(MDR!$AB$8=$D$6,N13,IF(MDR!$AB$8=$D$7,O13))))))) -> 2892MFSSN240CLZZ | J13: 2892MFSSN240CLZZ | K13: 2892MFSSN240CLZZ | L13: 2892MFSSN240CLZZ | M13: 2892MFSSN240CLZZ | N13: 2892MFSSN240CLZZ | O13: 2892MFSSN240CLZZ | P13: 2892MFSSN240CLZZ | R13: Bitdefender Managed Detection and Response Foundations | S13: Bitdefender Managed Detection and Response Foundations | T13: Bitdefender Managed Detection and Response Foundations | U13: Bitdefender Managed Detection and Response Foundations | V13: Bitdefender Managed Detection and Response Foundations | W13: Bitdefender Managed Detection and Response Foundations | X13: Bitdefender Managed Detection and Response Foundations | Z13: Bitdefender Antivirus Plus 2020 | AA13: 2 years | AB13: 1 PC | AC13: =CONCATENATE(Z13,AA13,AB13) -> Bitdefender Antivirus Plus 20202 years1 PC | AD13: 69.99 | AE13: AV01ZZCSN2401LEN | AF13: 69.99
A14: Packages | B14: =IF(MDR!$AB$8=$D$1,R14,IF(MDR!$AB$8=$D$2,S14,IF(MDR!$AB$8=$D$3,T14,IF(MDR!$AB$8=$D$4,U14,IF(MDR!$AB$8=$D$5,X14,IF(MDR!$AB$8=$D$6,V14,IF(MDR!$AB$8=$D$7,W14))))))) -> Bitdefender Managed Detection and Response Foundations | C14: 2 years | D14: 100 - 249 | E14: Bitdefender Managed Detection and Response Foundations2 years100 - 249 | G14: 119.13 | H14: =IF(MDR!$AB$8=$D$1,ROUND(G14*$C$3,2),IF(MDR!$AB$8=$D$2,ROUND(G14*$C$3*(1+$E$2),2),IF(MDR!$AB$8=$D$3,ROUND(G14*$C$3*(1+$E$3),2),IF(MDR!$AB$8=$D$4,ROUND(G14*$C$3*(1+$E$4),2),IF(MDR!$AB$8=$D$5,ROUND(G14*$C$3*(1+$E$5),2),IF(MDR!$AB$8=$D$6,ROUND(G14*$C$3*(1+$E$6),2),IF(MDR!$AB$8=$D$7,ROUND(G14*$C$3*(1+$E$7),2)))))))) -> 119.13 | I14: =IF(MDR!$AB$8=$D$1,J14,IF(MDR!$AB$8=$D$2,K14,IF(MDR!$AB$8=$D$3,L14,IF(MDR!$AB$8=$D$4,M14,IF(MDR!$AB$8=$D$5,P14,IF(MDR!$AB$8=$D$6,N14,IF(MDR!$AB$8=$D$7,O14))))))) -> 2892MFSSN240ELZZ | J14: 2892MFSSN240ELZZ | K14: 2892MFSSN240ELZZ | L14: 2892MFSSN240ELZZ | M14: 2892MFSSN240ELZZ | N14: 2892MFSSN240ELZZ | O14: 2892MFSSN240ELZZ | P14: 2892MFSSN240ELZZ | R14: Bitdefender Managed Detection and Response Foundations | S14: Bitdefender Managed Detection and Response Foundations | T14: Bitdefender Managed Detection and Response Foundations | U14: Bitdefender Managed Detection and Response Foundations | V14: Bitdefender Managed Detection and Response Foundations | W14: Bitdefender Managed Detection and Response Foundations | X14: Bitdefender Managed Detection and Response Foundations | Z14: Bitdefender Antivirus Plus 2020 | AA14: 2 years | AB14: 3 PCs | AC14: Bitdefender Antivirus Plus 20202 years3 PCs | AD14: 89.99 | AE14: AV01ZZCSN2403LEN | AF14: 89.99
A15: Packages | B15: =IF(MDR!$AB$8=$D$1,R15,IF(MDR!$AB$8=$D$2,S15,IF(MDR!$AB$8=$D$3,T15,IF(MDR!$AB$8=$D$4,U15,IF(MDR!$AB$8=$D$5,X15,IF(MDR!$AB$8=$D$6,V15,IF(MDR!$AB$8=$D$7,W15))))))) -> Bitdefender Managed Detection and Response Foundations | C15: 2 years | D15: 250 - 500 | E15: Bitdefender Managed Detection and Response Foundations2 years250 - 500 | G15: 107.21 | H15: =IF(MDR!$AB$8=$D$1,ROUND(G15*$C$3,2),IF(MDR!$AB$8=$D$2,ROUND(G15*$C$3*(1+$E$2),2),IF(MDR!$AB$8=$D$3,ROUND(G15*$C$3*(1+$E$3),2),IF(MDR!$AB$8=$D$4,ROUND(G15*$C$3*(1+$E$4),2),IF(MDR!$AB$8=$D$5,ROUND(G15*$C$3*(1+$E$5),2),IF(MDR!$AB$8=$D$6,ROUND(G15*$C$3*(1+$E$6),2),IF(MDR!$AB$8=$D$7,ROUND(G15*$C$3*(1+$E$7),2)))))))) -> 107.21 | I15: =IF(MDR!$AB$8=$D$1,J15,IF(MDR!$AB$8=$D$2,K15,IF(MDR!$AB$8=$D$3,L15,IF(MDR!$AB$8=$D$4,M15,IF(MDR!$AB$8=$D$5,P15,IF(MDR!$AB$8=$D$6,N15,IF(MDR!$AB$8=$D$7,O15))))))) -> 2892MFSSN240FLZZ | J15: 2892MFSSN240FLZZ | K15: 2892MFSSN240FLZZ | L15: 2892MFSSN240FLZZ | M15: 2892MFSSN240FLZZ | N15: 2892MFSSN240FLZZ | O15: 2892MFSSN240FLZZ | P15: 2892MFSSN240FLZZ | R15: Bitdefender Managed Detection and Response Foundations | S15: Bitdefender Managed Detection and Response Foundations | T15: Bitdefender Managed Detection and Response Foundations | U15: Bitdefender Managed Detection and Response Foundations | V15: Bitdefender Managed Detection and Response Foundations | W15: Bitdefender Managed Detection and Response Foundations | X15: Bitdefender Managed Detection and Response Foundations | Z15: Bitdefender Antivirus Plus 2020 | AA15: 2 years | AB15: 5 PCs | AC15: Bitdefender Antivirus Plus 20202 years5 PCs | AD15: 109.99 | AE15: AV01ZZCSN2405LEN | AF15: 109.99
A16: Packages | B16: =IF(MDR!$AB$8=$D$1,R16,IF(MDR!$AB$8=$D$2,S16,IF(MDR!$AB$8=$D$3,T16,IF(MDR!$AB$8=$D$4,U16,IF(MDR!$AB$8=$D$5,X16,IF(MDR!$AB$8=$D$6,V16,IF(MDR!$AB$8=$D$7,W16))))))) -> Bitdefender Managed Detection and Response Foundations | C16: 3 years | D16: 50 - 99 | E16: Bitdefender Managed Detection and Response Foundations3 years50 - 99 | G16: 187.51 | H16: =IF(MDR!$AB$8=$D$1,ROUND(G16*$C$3,2),IF(MDR!$AB$8=$D$2,ROUND(G16*$C$3*(1+$E$2),2),IF(MDR!$AB$8=$D$3,ROUND(G16*$C$3*(1+$E$3),2),IF(MDR!$AB$8=$D$4,ROUND(G16*$C$3*(1+$E$4),2),IF(MDR!$AB$8=$D$5,ROUND(G16*$C$3*(1+$E$5),2),IF(MDR!$AB$8=$D$6,ROUND(G16*$C$3*(1+$E$6),2),IF(MDR!$AB$8=$D$7,ROUND(G16*$C$3*(1+$E$7),2)))))))) -> 187.51 | I16: =IF(MDR!$AB$8=$D$1,J16,IF(MDR!$AB$8=$D$2,K16,IF(MDR!$AB$8=$D$3,L16,IF(MDR!$AB$8=$D$4,M16,IF(MDR!$AB$8=$D$5,P16,IF(MDR!$AB$8=$D$6,N16,IF(MDR!$AB$8=$D$7,O16))))))) -> 2892MFSSN360CLZZ | J16: 2892MFSSN360CLZZ | K16: 2892MFSSN360CLZZ | L16: 2892MFSSN360CLZZ | M16: 2892MFSSN360CLZZ | N16: 2892MFSSN360CLZZ | O16: 2892MFSSN360CLZZ | P16: 2892MFSSN360CLZZ | R16: Bitdefender Managed Detection and Response Foundations | S16: Bitdefender Managed Detection and Response Foundations | T16: Bitdefender Managed Detection and Response Foundations | U16: Bitdefender Managed Detection and Response Foundations | V16: Bitdefender Managed Detection and Response Foundations | W16: Bitdefender Managed Detection and Response Foundations | X16: Bitdefender Managed Detection and Response Foundations | Z16: Bitdefender Antivirus Plus 2020 | AA16: 3 years | AB16: 10 PCs | AC16: Bitdefender Antivirus Plus 20203 years10 PCs | AD16: 179.99 | AE16: AV01ZZCSN3610LEN | AF16: 179.99
A17: Packages | B17: =IF(MDR!$AB$8=$D$1,R17,IF(MDR!$AB$8=$D$2,S17,IF(MDR!$AB$8=$D$3,T17,IF(MDR!$AB$8=$D$4,U17,IF(MDR!$AB$8=$D$5,X17,IF(MDR!$AB$8=$D$6,V17,IF(MDR!$AB$8=$D$7,W17))))))) -> Bitdefender Managed Detection and Response Foundations | C17: 3 years | D17: 100 - 249 | E17: Bitdefender Managed Detection and Response Foundations3 years100 - 249 | G17: 168.75 | H17: =IF(MDR!$AB$8=$D$1,ROUND(G17*$C$3,2),IF(MDR!$AB$8=$D$2,ROUND(G17*$C$3*(1+$E$2),2),IF(MDR!$AB$8=$D$3,ROUND(G17*$C$3*(1+$E$3),2),IF(MDR!$AB$8=$D$4,ROUND(G17*$C$3*(1+$E$4),2),IF(MDR!$AB$8=$D$5,ROUND(G17*$C$3*(1+$E$5),2),IF(MDR!$AB$8=$D$6,ROUND(G17*$C$3*(1+$E$6),2),IF(MDR!$AB$8=$D$7,ROUND(G17*$C$3*(1+$E$7),2)))))))) -> 168.75 | I17: =IF(MDR!$AB$8=$D$1,J17,IF(MDR!$AB$8=$D$2,K17,IF(MDR!$AB$8=$D$3,L17,IF(MDR!$AB$8=$D$4,M17,IF(MDR!$AB$8=$D$5,P17,IF(MDR!$AB$8=$D$6,N17,IF(MDR!$AB$8=$D$7,O17))))))) -> 2892MFSSN360ELZZ | J17: 2892MFSSN360ELZZ | K17: 2892MFSSN360ELZZ | L17: 2892MFSSN360ELZZ | M17: 2892MFSSN360ELZZ | N17: 2892MFSSN360ELZZ | O17: 2892MFSSN360ELZZ | P17: 2892MFSSN360ELZZ | R17: Bitdefender Managed Detection and Response Foundations | S17: Bitdefender Managed Detection and Response Foundations | T17: Bitdefender Managed Detection and Response Foundations | U17: Bitdefender Managed Detection and Response Foundations | V17: Bitdefender Managed Detection and Response Foundations | W17: Bitdefender Managed Detection and Response Foundations | X17: Bitdefender Managed Detection and Response Foundations | Z17: Bitdefender Internet Security 2020 | AA17: 1 year | AB17: 1 PC | AC17: Bitdefender Internet Security 20201 year1 PC | AD17: 59.99 | AE17: IS01ZZCSN1201LEN | AF17: 59.99
A18: Packages | B18: =IF(MDR!$AB$8=$D$1,R18,IF(MDR!$AB$8=$D$2,S18,IF(MDR!$AB$8=$D$3,T18,IF(MDR!$AB$8=$D$4,U18,IF(MDR!$AB$8=$D$5,X18,IF(MDR!$AB$8=$D$6,V18,IF(MDR!$AB$8=$D$7,W18))))))) -> Bitdefender Managed Detection and Response Foundations | C18: 3 years | D18: 250 - 500 | E18: Bitdefender Managed Detection and Response Foundations3 years250 - 500 | G18: 151.88 | H18: =IF(MDR!$AB$8=$D$1,ROUND(G18*$C$3,2),IF(MDR!$AB$8=$D$2,ROUND(G18*$C$3*(1+$E$2),2),IF(MDR!$AB$8=$D$3,ROUND(G18*$C$3*(1+$E$3),2),IF(MDR!$AB$8=$D$4,ROUND(G18*$C$3*(1+$E$4),2),IF(MDR!$AB$8=$D$5,ROUND(G18*$C$3*(1+$E$5),2),IF(MDR!$AB$8=$D$6,ROUND(G18*$C$3*(1+$E$6),2),IF(MDR!$AB$8=$D$7,ROUND(G18*$C$3*(1+$E$7),2)))))))) -> 151.88 | I18: =IF(MDR!$AB$8=$D$1,J18,IF(MDR!$AB$8=$D$2,K18,IF(MDR!$AB$8=$D$3,L18,IF(MDR!$AB$8=$D$4,M18,IF(MDR!$AB$8=$D$5,P18,IF(MDR!$AB$8=$D$6,N18,IF(MDR!$AB$8=$D$7,O18))))))) -> 2892MFSSN360FLZZ | J18: 2892MFSSN360FLZZ | K18: 2892MFSSN360FLZZ | L18: 2892MFSSN360FLZZ | M18: 2892MFSSN360FLZZ | N18: 2892MFSSN360FLZZ | O18: 2892MFSSN360FLZZ | P18: 2892MFSSN360FLZZ | R18: Bitdefender Managed Detection and Response Foundations | S18: Bitdefender Managed Detection and Response Foundations | T18: Bitdefender Managed Detection and Response Foundations | U18: Bitdefender Managed Detection and Response Foundations | V18: Bitdefender Managed Detection and Response Foundations | W18: Bitdefender Managed Detection and Response Foundations | X18: Bitdefender Managed Detection and Response Foundations | Z18: Bitdefender Internet Security 2020 | AA18: 1 year | AB18: 3 PCs | AC18: Bitdefender Internet Security 20201 year3 PCs | AD18: 79.99 | AE18: IS01ZZCSN1203LEN | AF18: 79.99
A19: Add-On | B19: =IF(MDR!$AB$8=$D$1,R19,IF(MDR!$AB$8=$D$2,S19,IF(MDR!$AB$8=$D$3,T19,IF(MDR!$AB$8=$D$4,U19,IF(MDR!$AB$8=$D$5,X19,IF(MDR!$AB$8=$D$6,V19,IF(MDR!$AB$8=$D$7,W19))))))) -> Bitdefender XDR Sensor for MDR - Productivity Apps | C19: 1 year | D19: 50 - 99 | E19: Bitdefender XDR Sensor for MDR - Productivity Apps1 year50 - 99 | G19: 23.19 | H19: =IF(MDR!$AB$8=$D$1,ROUND(G19*$C$3,2),IF(MDR!$AB$8=$D$2,ROUND(G19*$C$3*(1+$T$2),2),IF(MDR!$AB$8=$D$3,ROUND(G19*$C$3*(1+$T$3),2),IF(MDR!$AB$8=$D$4,ROUND(G19*$C$3*(1+$T$4),2),IF(MDR!$AB$8=$D$5,ROUND(G19*$C$3*(1+$T$5),2),IF(MDR!$AB$8=$D$6,ROUND(G19*$C$3*(1+$T$6),2),IF(MDR!$AB$8=$D$7,ROUND(G19*$C$3*(1+$T$7),2)))))))) -> 23.19 | I19: =IF(MDR!$AB$8=$D$1,J19,IF(MDR!$AB$8=$D$2,K19,IF(MDR!$AB$8=$D$3,L19,IF(MDR!$AB$8=$D$4,M19,IF(MDR!$AB$8=$D$5,P19,IF(MDR!$AB$8=$D$6,N19,IF(MDR!$AB$8=$D$7,O19))))))) -> 3116MXBSN120CLZZ | J19: 3116MXBSN120CLZZ | K19: 3116MXBEN120CLZZ | L19: 3116MXBGN120CLZZ | M19: 3116MXBSR120CLZZ | N19: 3116MXBER120CLZZ | O19: 3116MXBGR120CLZZ | P19: 3116MXBCN120CLZZ | R19: Bitdefender XDR Sensor for MDR - Productivity Apps | S19: =CONCATENATE(R19," - EDU") -> Bitdefender XDR Sensor for MDR - Productivity Apps - EDU | T19: =CONCATENATE(R19," - GOV") -> Bitdefender XDR Sensor for MDR - Productivity Apps - GOV | U19: =CONCATENATE(R19," - R") -> Bitdefender XDR Sensor for MDR - Productivity Apps - R | V19: =CONCATENATE(R19," - EDU R") -> Bitdefender XDR Sensor for MDR - Productivity Apps - EDU R | W19: =CONCATENATE(R19," - GOV R") -> Bitdefender XDR Sensor for MDR - Productivity Apps - GOV R | X19: =CONCATENATE(R19," - CUPG") -> Bitdefender XDR Sensor for MDR - Productivity Apps - CUPG
A20: Add-On | B20: =IF(MDR!$AB$8=$D$1,R20,IF(MDR!$AB$8=$D$2,S20,IF(MDR!$AB$8=$D$3,T20,IF(MDR!$AB$8=$D$4,U20,IF(MDR!$AB$8=$D$5,X20,IF(MDR!$AB$8=$D$6,V20,IF(MDR!$AB$8=$D$7,W20))))))) -> Bitdefender XDR Sensor for MDR - Productivity Apps | C20: 1 year | D20: 100 - 149 | E20: Bitdefender XDR Sensor for MDR - Productivity Apps1 year100 - 149 | G20: 21.56 | H20: =IF(MDR!$AB$8=$D$1,ROUND(G20*$C$3,2),IF(MDR!$AB$8=$D$2,ROUND(G20*$C$3*(1+$T$2),2),IF(MDR!$AB$8=$D$3,ROUND(G20*$C$3*(1+$T$3),2),IF(MDR!$AB$8=$D$4,ROUND(G20*$C$3*(1+$T$4),2),IF(MDR!$AB$8=$D$5,ROUND(G20*$C$3*(1+$T$5),2),IF(MDR!$AB$8=$D$6,ROUND(G20*$C$3*(1+$T$6),2),IF(MDR!$AB$8=$D$7,ROUND(G20*$C$3*(1+$T$7),2)))))))) -> 21.56 | I20: =IF(MDR!$AB$8=$D$1,J20,IF(MDR!$AB$8=$D$2,K20,IF(MDR!$AB$8=$D$3,L20,IF(MDR!$AB$8=$D$4,M20,IF(MDR!$AB$8=$D$5,P20,IF(MDR!$AB$8=$D$6,N20,IF(MDR!$AB$8=$D$7,O20))))))) -> 3116MXBSN120DLZZ | J20: 3116MXBSN120DLZZ | K20: 3116MXBEN120DLZZ | L20: 3116MXBGN120DLZZ | M20: 3116MXBSR120DLZZ | N20: 3116MXBER120DLZZ | O20: 3116MXBGR120DLZZ | P20: 3116MXBCN120DLZZ | R20: Bitdefender XDR Sensor for MDR - Productivity Apps | S20: Bitdefender XDR Sensor for MDR - Productivity Apps - EDU | T20: Bitdefender XDR Sensor for MDR - Productivity Apps - GOV | U20: Bitdefender XDR Sensor for MDR - Productivity Apps - R | V20: Bitdefender XDR Sensor for MDR - Productivity Apps - EDU R | W20: Bitdefender XDR Sensor for MDR - Productivity Apps - GOV R | X20: Bitdefender XDR Sensor for MDR - Productivity Apps - CUPG
A21: Add-On | B21: =IF(MDR!$AB$8=$D$1,R21,IF(MDR!$AB$8=$D$2,S21,IF(MDR!$AB$8=$D$3,T21,IF(MDR!$AB$8=$D$4,U21,IF(MDR!$AB$8=$D$5,X21,IF(MDR!$AB$8=$D$6,V21,IF(MDR!$AB$8=$D$7,W21))))))) -> Bitdefender XDR Sensor for MDR - Productivity Apps | C21: 1 year | D21: 150 - 249 | E21: Bitdefender XDR Sensor for MDR - Productivity Apps1 year150 - 249 | G21: 20.04 | H21: =IF(MDR!$AB$8=$D$1,ROUND(G21*$C$3,2),IF(MDR!$AB$8=$D$2,ROUND(G21*$C$3*(1+$T$2),2),IF(MDR!$AB$8=$D$3,ROUND(G21*$C$3*(1+$T$3),2),IF(MDR!$AB$8=$D$4,ROUND(G21*$C$3*(1+$T$4),2),IF(MDR!$AB$8=$D$5,ROUND(G21*$C$3*(1+$T$5),2),IF(MDR!$AB$8=$D$6,ROUND(G21*$C$3*(1+$T$6),2),IF(MDR!$AB$8=$D$7,ROUND(G21*$C$3*(1+$T$7),2)))))))) -> 20.04 | I21: =IF(MDR!$AB$8=$D$1,J21,IF(MDR!$AB$8=$D$2,K21,IF(MDR!$AB$8=$D$3,L21,IF(MDR!$AB$8=$D$4,M21,IF(MDR!$AB$8=$D$5,P21,IF(MDR!$AB$8=$D$6,N21,IF(MDR!$AB$8=$D$7,O21))))))) -> 3116MXBSN120ELZZ | J21: 3116MXBSN120ELZZ | K21: 3116MXBEN120ELZZ | L21: 3116MXBGN120ELZZ | M21: 3116MXBSR120ELZZ | N21: 3116MXBER120ELZZ | O21: 3116MXBGR120ELZZ | P21: 3116MXBCN120ELZZ | R21: Bitdefender XDR Sensor for MDR - Productivity Apps | S21: Bitdefender XDR Sensor for MDR - Productivity Apps - EDU | T21: Bitdefender XDR Sensor for MDR - Productivity Apps - GOV | U21: Bitdefender XDR Sensor for MDR - Productivity Apps - R | V21: Bitdefender XDR Sensor for MDR - Productivity Apps - EDU R | W21: Bitdefender XDR Sensor for MDR - Productivity Apps - GOV R | X21: Bitdefender XDR Sensor for MDR - Productivity Apps - CUPG
A22: Add-On | B22: =IF(MDR!$AB$8=$D$1,R22,IF(MDR!$AB$8=$D$2,S22,IF(MDR!$AB$8=$D$3,T22,IF(MDR!$AB$8=$D$4,U22,IF(MDR!$AB$8=$D$5,X22,IF(MDR!$AB$8=$D$6,V22,IF(MDR!$AB$8=$D$7,W22))))))) -> Bitdefender XDR Sensor for MDR - Productivity Apps | C22: 1 year | D22: 250 - 499 | E22: Bitdefender XDR Sensor for MDR - Productivity Apps1 year250 - 499 | G22: 19.04 | H22: =IF(MDR!$AB$8=$D$1,ROUND(G22*$C$3,2),IF(MDR!$AB$8=$D$2,ROUND(G22*$C$3*(1+$T$2),2),IF(MDR!$AB$8=$D$3,ROUND(G22*$C$3*(1+$T$3),2),IF(MDR!$AB$8=$D$4,ROUND(G22*$C$3*(1+$T$4),2),IF(MDR!$AB$8=$D$5,ROUND(G22*$C$3*(1+$T$5),2),IF(MDR!$AB$8=$D$6,ROUND(G22*$C$3*(1+$T$6),2),IF(MDR!$AB$8=$D$7,ROUND(G22*$C$3*(1+$T$7),2)))))))) -> 19.04 | I22: =IF(MDR!$AB$8=$D$1,J22,IF(MDR!$AB$8=$D$2,K22,IF(MDR!$AB$8=$D$3,L22,IF(MDR!$AB$8=$D$4,M22,IF(MDR!$AB$8=$D$5,P22,IF(MDR!$AB$8=$D$6,N22,IF(MDR!$AB$8=$D$7,O22))))))) -> 3116MXBSN120FLZZ | J22: 3116MXBSN120FLZZ | K22: 3116MXBEN120FLZZ | L22: 3116MXBGN120FLZZ | M22: 3116MXBSR120FLZZ | N22: 3116MXBER120FLZZ | O22: 3116MXBGR120FLZZ | P22: 3116MXBCN120FLZZ | R22: Bitdefender XDR Sensor for MDR - Productivity Apps | S22: Bitdefender XDR Sensor for MDR - Productivity Apps - EDU | T22: Bitdefender XDR Sensor for MDR - Productivity Apps - GOV | U22: Bitdefender XDR Sensor for MDR - Productivity Apps - R | V22: Bitdefender XDR Sensor for MDR - Productivity Apps - EDU R | W22: Bitdefender XDR Sensor for MDR - Productivity Apps - GOV R | X22: Bitdefender XDR Sensor for MDR - Productivity Apps - CUPG
A23: Add-On | B23: =IF(MDR!$AB$8=$D$1,R23,IF(MDR!$AB$8=$D$2,S23,IF(MDR!$AB$8=$D$3,T23,IF(MDR!$AB$8=$D$4,U23,IF(MDR!$AB$8=$D$5,X23,IF(MDR!$AB$8=$D$6,V23,IF(MDR!$AB$8=$D$7,W23))))))) -> Bitdefender XDR Sensor for MDR - Productivity Apps | C23: 1 year | D23: 500 - 999 | E23: Bitdefender XDR Sensor for MDR - Productivity Apps1 year500 - 999 | G23: 17.71 | H23: =IF(MDR!$AB$8=$D$1,ROUND(G23*$C$3,2),IF(MDR!$AB$8=$D$2,ROUND(G23*$C$3*(1+$T$2),2),IF(MDR!$AB$8=$D$3,ROUND(G23*$C$3*(1+$T$3),2),IF(MDR!$AB$8=$D$4,ROUND(G23*$C$3*(1+$T$4),2),IF(MDR!$AB$8=$D$5,ROUND(G23*$C$3*(1+$T$5),2),IF(MDR!$AB$8=$D$6,ROUND(G23*$C$3*(1+$T$6),2),IF(MDR!$AB$8=$D$7,ROUND(G23*$C$3*(1+$T$7),2)))))))) -> 17.71 | I23: =IF(MDR!$AB$8=$D$1,J23,IF(MDR!$AB$8=$D$2,K23,IF(MDR!$AB$8=$D$3,L23,IF(MDR!$AB$8=$D$4,M23,IF(MDR!$AB$8=$D$5,P23,IF(MDR!$AB$8=$D$6,N23,IF(MDR!$AB$8=$D$7,O23))))))) -> 3116MXBSN120GLZZ | J23: 3116MXBSN120GLZZ | K23: 3116MXBEN120GLZZ | L23: 3116MXBGN120GLZZ | M23: 3116MXBSR120GLZZ | N23: 3116MXBER120GLZZ | O23: 3116MXBGR120GLZZ | P23: 3116MXBCN120GLZZ | R23: Bitdefender XDR Sensor for MDR - Productivity Apps | S23: Bitdefender XDR Sensor for MDR - Productivity Apps - EDU | T23: Bitdefender XDR Sensor for MDR - Productivity Apps - GOV | U23: Bitdefender XDR Sensor for MDR - Productivity Apps - R | V23: Bitdefender XDR Sensor for MDR - Productivity Apps - EDU R | W23: Bitdefender XDR Sensor for MDR - Productivity Apps - GOV R | X23: Bitdefender XDR Sensor for MDR - Productivity Apps - CUPG
A24: Add-On | B24: =IF(MDR!$AB$8=$D$1,R24,IF(MDR!$AB$8=$D$2,S24,IF(MDR!$AB$8=$D$3,T24,IF(MDR!$AB$8=$D$4,U24,IF(MDR!$AB$8=$D$5,X24,IF(MDR!$AB$8=$D$6,V24,IF(MDR!$AB$8=$D$7,W24))))))) -> Bitdefender XDR Sensor for MDR - Productivity Apps | C24: 1 year | D24: 1000 - 1999 | E24: Bitdefender XDR Sensor for MDR - Productivity Apps1 year1000 - 1999 | G24: 16.48 | H24: =IF(MDR!$AB$8=$D$1,ROUND(G24*$C$3,2),IF(MDR!$AB$8=$D$2,ROUND(G24*$C$3*(1+$T$2),2),IF(MDR!$AB$8=$D$3,ROUND(G24*$C$3*(1+$T$3),2),IF(MDR!$AB$8=$D$4,ROUND(G24*$C$3*(1+$T$4),2),IF(MDR!$AB$8=$D$5,ROUND(G24*$C$3*(1+$T$5),2),IF(MDR!$AB$8=$D$6,ROUND(G24*$C$3*(1+$T$6),2),IF(MDR!$AB$8=$D$7,ROUND(G24*$C$3*(1+$T$7),2)))))))) -> 16.48 | I24: =IF(MDR!$AB$8=$D$1,J24,IF(MDR!$AB$8=$D$2,K24,IF(MDR!$AB$8=$D$3,L24,IF(MDR!$AB$8=$D$4,M24,IF(MDR!$AB$8=$D$5,P24,IF(MDR!$AB$8=$D$6,N24,IF(MDR!$AB$8=$D$7,O24))))))) -> 3116MXBSN120PLZZ | J24: 3116MXBSN120PLZZ | K24: 3116MXBEN120PLZZ | L24: 3116MXBGN120PLZZ | M24: 3116MXBSR120PLZZ | N24: 3116MXBER120PLZZ | O24: 3116MXBGR120PLZZ | P24: 3116MXBCN120PLZZ | R24: Bitdefender XDR Sensor for MDR - Productivity Apps | S24: Bitdefender XDR Sensor for MDR - Productivity Apps - EDU | T24: Bitdefender XDR Sensor for MDR - Productivity Apps - GOV | U24: Bitdefender XDR Sensor for MDR - Productivity Apps - R | V24: Bitdefender XDR Sensor for MDR - Productivity Apps - EDU R | W24: Bitdefender XDR Sensor for MDR - Productivity Apps - GOV R | X24: Bitdefender XDR Sensor for MDR - Productivity Apps - CUPG
A25: Add-On | B25: =IF(MDR!$AB$8=$D$1,R25,IF(MDR!$AB$8=$D$2,S25,IF(MDR!$AB$8=$D$3,T25,IF(MDR!$AB$8=$D$4,U25,IF(MDR!$AB$8=$D$5,X25,IF(MDR!$AB$8=$D$6,V25,IF(MDR!$AB$8=$D$7,W25))))))) -> Bitdefender XDR Sensor for MDR - Productivity Apps | C25: 1 year | D25: 2000 - 2999 | E25: Bitdefender XDR Sensor for MDR - Productivity Apps1 year2000 - 2999 | G25: 15.32 | H25: =IF(MDR!$AB$8=$D$1,ROUND(G25*$C$3,2),IF(MDR!$AB$8=$D$2,ROUND(G25*$C$3*(1+$T$2),2),IF(MDR!$AB$8=$D$3,ROUND(G25*$C$3*(1+$T$3),2),IF(MDR!$AB$8=$D$4,ROUND(G25*$C$3*(1+$T$4),2),IF(MDR!$AB$8=$D$5,ROUND(G25*$C$3*(1+$T$5),2),IF(MDR!$AB$8=$D$6,ROUND(G25*$C$3*(1+$T$6),2),IF(MDR!$AB$8=$D$7,ROUND(G25*$C$3*(1+$T$7),2)))))))) -> 15.32 | I25: =IF(MDR!$AB$8=$D$1,J25,IF(MDR!$AB$8=$D$2,K25,IF(MDR!$AB$8=$D$3,L25,IF(MDR!$AB$8=$D$4,M25,IF(MDR!$AB$8=$D$5,P25,IF(MDR!$AB$8=$D$6,N25,IF(MDR!$AB$8=$D$7,O25))))))) -> 3116MXBSN120QLZZ | J25: 3116MXBSN120QLZZ | K25: 3116MXBEN120QLZZ | L25: 3116MXBGN120QLZZ | M25: 3116MXBSR120QLZZ | N25: 3116MXBER120QLZZ | O25: 3116MXBGR120QLZZ | P25: 3116MXBCN120QLZZ | R25: Bitdefender XDR Sensor for MDR - Productivity Apps | S25: Bitdefender XDR Sensor for MDR - Productivity Apps - EDU | T25: Bitdefender XDR Sensor for MDR - Productivity Apps - GOV | U25: Bitdefender XDR Sensor for MDR - Productivity Apps - R | V25: Bitdefender XDR Sensor for MDR - Productivity Apps - EDU R | W25: Bitdefender XDR Sensor for MDR - Productivity Apps - GOV R | X25: Bitdefender XDR Sensor for MDR - Productivity Apps - CUPG
A26: Add-On | B26: =IF(MDR!$AB$8=$D$1,R26,IF(MDR!$AB$8=$D$2,S26,IF(MDR!$AB$8=$D$3,T26,IF(MDR!$AB$8=$D$4,U26,IF(MDR!$AB$8=$D$5,X26,IF(MDR!$AB$8=$D$6,V26,IF(MDR!$AB$8=$D$7,W26))))))) -> Bitdefender XDR Sensor for MDR - Productivity Apps | C26: 1 year | D26: 3000 - 4999 | E26: Bitdefender XDR Sensor for MDR - Productivity Apps1 year3000 - 4999 | G26: 14.25 | H26: =IF(MDR!$AB$8=$D$1,ROUND(G26*$C$3,2),IF(MDR!$AB$8=$D$2,ROUND(G26*$C$3*(1+$T$2),2),IF(MDR!$AB$8=$D$3,ROUND(G26*$C$3*(1+$T$3),2),IF(MDR!$AB$8=$D$4,ROUND(G26*$C$3*(1+$T$4),2),IF(MDR!$AB$8=$D$5,ROUND(G26*$C$3*(1+$T$5),2),IF(MDR!$AB$8=$D$6,ROUND(G26*$C$3*(1+$T$6),2),IF(MDR!$AB$8=$D$7,ROUND(G26*$C$3*(1+$T$7),2)))))))) -> 14.25 | I26: =IF(MDR!$AB$8=$D$1,J26,IF(MDR!$AB$8=$D$2,K26,IF(MDR!$AB$8=$D$3,L26,IF(MDR!$AB$8=$D$4,M26,IF(MDR!$AB$8=$D$5,P26,IF(MDR!$AB$8=$D$6,N26,IF(MDR!$AB$8=$D$7,O26))))))) -> 3116MXBSN120ILZZ | J26: 3116MXBSN120ILZZ | K26: 3116MXBEN120ILZZ | L26: 3116MXBGN120ILZZ | M26: 3116MXBSR120ILZZ | N26: 3116MXBER120ILZZ | O26: 3116MXBGR120ILZZ | P26: 3116MXBCN120ILZZ | R26: Bitdefender XDR Sensor for MDR - Productivity Apps | S26: Bitdefender XDR Sensor for MDR - Productivity Apps - EDU | T26: Bitdefender XDR Sensor for MDR - Productivity Apps - GOV | U26: Bitdefender XDR Sensor for MDR - Productivity Apps - R | V26: Bitdefender XDR Sensor for MDR - Productivity Apps - EDU R | W26: Bitdefender XDR Sensor for MDR - Productivity Apps - GOV R | X26: Bitdefender XDR Sensor for MDR - Productivity Apps - CUPG
A27: Add-On | B27: =IF(MDR!$AB$8=$D$1,R27,IF(MDR!$AB$8=$D$2,S27,IF(MDR!$AB$8=$D$3,T27,IF(MDR!$AB$8=$D$4,U27,IF(MDR!$AB$8=$D$5,X27,IF(MDR!$AB$8=$D$6,V27,IF(MDR!$AB$8=$D$7,W27))))))) -> Bitdefender XDR Sensor for MDR - Productivity Apps | C27: 1 year | D27: 5000+ | E27: Bitdefender XDR Sensor for MDR - Productivity Apps1 year5000+ | G27: 13.24 | H27: =IF(MDR!$AB$8=$D$1,ROUND(G27*$C$3,2),IF(MDR!$AB$8=$D$2,ROUND(G27*$C$3*(1+$T$2),2),IF(MDR!$AB$8=$D$3,ROUND(G27*$C$3*(1+$T$3),2),IF(MDR!$AB$8=$D$4,ROUND(G27*$C$3*(1+$T$4),2),IF(MDR!$AB$8=$D$5,ROUND(G27*$C$3*(1+$T$5),2),IF(MDR!$AB$8=$D$6,ROUND(G27*$C$3*(1+$T$6),2),IF(MDR!$AB$8=$D$7,ROUND(G27*$C$3*(1+$T$7),2)))))))) -> 13.24 | I27: =IF(MDR!$AB$8=$D$1,J27,IF(MDR!$AB$8=$D$2,K27,IF(MDR!$AB$8=$D$3,L27,IF(MDR!$AB$8=$D$4,M27,IF(MDR!$AB$8=$D$5,P27,IF(MDR!$AB$8=$D$6,N27,IF(MDR!$AB$8=$D$7,O27))))))) -> 3116MXBSN120JLZZ | J27: 3116MXBSN120JLZZ | K27: 3116MXBEN120JLZZ | L27: 3116MXBGN120JLZZ | M27: 3116MXBSR120JLZZ | N27: 3116MXBER120JLZZ | O27: 3116MXBGR120JLZZ | P27: 3116MXBCN120JLZZ | R27: Bitdefender XDR Sensor for MDR - Productivity Apps | S27: Bitdefender XDR Sensor for MDR - Productivity Apps - EDU | T27: Bitdefender XDR Sensor for MDR - Productivity Apps - GOV | U27: Bitdefender XDR Sensor for MDR - Productivity Apps - R | V27: Bitdefender XDR Sensor for MDR - Productivity Apps - EDU R | W27: Bitdefender XDR Sensor for MDR - Productivity Apps - GOV R | X27: Bitdefender XDR Sensor for MDR - Productivity Apps - CUPG
A28: Add-On | B28: =IF(MDR!$AB$8=$D$1,R28,IF(MDR!$AB$8=$D$2,S28,IF(MDR!$AB$8=$D$3,T28,IF(MDR!$AB$8=$D$4,U28,IF(MDR!$AB$8=$D$5,X28,IF(MDR!$AB$8=$D$6,V28,IF(MDR!$AB$8=$D$7,W28))))))) -> Bitdefender XDR Sensor for MDR - Productivity Apps | C28: 2 years | D28: 50 - 99 | E28: Bitdefender XDR Sensor for MDR - Productivity Apps2 years50 - 99 | G28: 38.26 | H28: =IF(MDR!$AB$8=$D$1,ROUND(G28*$C$3,2),IF(MDR!$AB$8=$D$2,ROUND(G28*$C$3*(1+$T$2),2),IF(MDR!$AB$8=$D$3,ROUND(G28*$C$3*(1+$T$3),2),IF(MDR!$AB$8=$D$4,ROUND(G28*$C$3*(1+$T$4),2),IF(MDR!$AB$8=$D$5,ROUND(G28*$C$3*(1+$T$5),2),IF(MDR!$AB$8=$D$6,ROUND(G28*$C$3*(1+$T$6),2),IF(MDR!$AB$8=$D$7,ROUND(G28*$C$3*(1+$T$7),2)))))))) -> 38.26 | I28: =IF(MDR!$AB$8=$D$1,J28,IF(MDR!$AB$8=$D$2,K28,IF(MDR!$AB$8=$D$3,L28,IF(MDR!$AB$8=$D$4,M28,IF(MDR!$AB$8=$D$5,P28,IF(MDR!$AB$8=$D$6,N28,IF(MDR!$AB$8=$D$7,O28))))))) -> 3116MXBSN240CLZZ | J28: 3116MXBSN240CLZZ | K28: 3116MXBEN240CLZZ | L28: 3116MXBGN240CLZZ | M28: 3116MXBSR240CLZZ | N28: 3116MXBER240CLZZ | O28: 3116MXBGR240CLZZ | P28: 3116MXBCN240CLZZ | R28: Bitdefender XDR Sensor for MDR - Productivity Apps | S28: Bitdefender XDR Sensor for MDR - Productivity Apps - EDU | T28: Bitdefender XDR Sensor for MDR - Productivity Apps - GOV | U28: Bitdefender XDR Sensor for MDR - Productivity Apps - R | V28: Bitdefender XDR Sensor for MDR - Productivity Apps - EDU R | W28: Bitdefender XDR Sensor for MDR - Productivity Apps - GOV R | X28: Bitdefender XDR Sensor for MDR - Productivity Apps - CUPG
A29: Add-On | B29: =IF(MDR!$AB$8=$D$1,R29,IF(MDR!$AB$8=$D$2,S29,IF(MDR!$AB$8=$D$3,T29,IF(MDR!$AB$8=$D$4,U29,IF(MDR!$AB$8=$D$5,X29,IF(MDR!$AB$8=$D$6,V29,IF(MDR!$AB$8=$D$7,W29))))))) -> Bitdefender XDR Sensor for MDR - Productivity Apps | C29: 2 years | D29: 100 - 149 | E29: Bitdefender XDR Sensor for MDR - Productivity Apps2 years100 - 149 | G29: 35.57 | H29: =IF(MDR!$AB$8=$D$1,ROUND(G29*$C$3,2),IF(MDR!$AB$8=$D$2,ROUND(G29*$C$3*(1+$T$2),2),IF(MDR!$AB$8=$D$3,ROUND(G29*$C$3*(1+$T$3),2),IF(MDR!$AB$8=$D$4,ROUND(G29*$C$3*(1+$T$4),2),IF(MDR!$AB$8=$D$5,ROUND(G29*$C$3*(1+$T$5),2),IF(MDR!$AB$8=$D$6,ROUND(G29*$C$3*(1+$T$6),2),IF(MDR!$AB$8=$D$7,ROUND(G29*$C$3*(1+$T$7),2)))))))) -> 35.57 | I29: =IF(MDR!$AB$8=$D$1,J29,IF(MDR!$AB$8=$D$2,K29,IF(MDR!$AB$8=$D$3,L29,IF(MDR!$AB$8=$D$4,M29,IF(MDR!$AB$8=$D$5,P29,IF(MDR!$AB$8=$D$6,N29,IF(MDR!$AB$8=$D$7,O29))))))) -> 3116MXBSN240DLZZ | J29: 3116MXBSN240DLZZ | K29: 3116MXBEN240DLZZ | L29: 3116MXBGN240DLZZ | M29: 3116MXBSR240DLZZ | N29: 3116MXBER240DLZZ | O29: 3116MXBGR240DLZZ | P29: 3116MXBCN240DLZZ | R29: Bitdefender XDR Sensor for MDR - Productivity Apps | S29: Bitdefender XDR Sensor for MDR - Productivity Apps - EDU | T29: Bitdefender XDR Sensor for MDR - Productivity Apps - GOV | U29: Bitdefender XDR Sensor for MDR - Productivity Apps - R | V29: Bitdefender XDR Sensor for MDR - Productivity Apps - EDU R | W29: Bitdefender XDR Sensor for MDR - Productivity Apps - GOV R | X29: Bitdefender XDR Sensor for MDR - Productivity Apps - CUPG
A30: Add-On | B30: =IF(MDR!$AB$8=$D$1,R30,IF(MDR!$AB$8=$D$2,S30,IF(MDR!$AB$8=$D$3,T30,IF(MDR!$AB$8=$D$4,U30,IF(MDR!$AB$8=$D$5,X30,IF(MDR!$AB$8=$D$6,V30,IF(MDR!$AB$8=$D$7,W30))))))) -> Bitdefender XDR Sensor for MDR - Productivity Apps | C30: 2 years | D30: 150 - 249 | E30: Bitdefender XDR Sensor for MDR - Productivity Apps2 years150 - 249 | G30: 33.08 | H30: =IF(MDR!$AB$8=$D$1,ROUND(G30*$C$3,2),IF(MDR!$AB$8=$D$2,ROUND(G30*$C$3*(1+$T$2),2),IF(MDR!$AB$8=$D$3,ROUND(G30*$C$3*(1+$T$3),2),IF(MDR!$AB$8=$D$4,ROUND(G30*$C$3*(1+$T$4),2),IF(MDR!$AB$8=$D$5,ROUND(G30*$C$3*(1+$T$5),2),IF(MDR!$AB$8=$D$6,ROUND(G30*$C$3*(1+$T$6),2),IF(MDR!$AB$8=$D$7,ROUND(G30*$C$3*(1+$T$7),2)))))))) -> 33.08 | I30: =IF(MDR!$AB$8=$D$1,J30,IF(MDR!$AB$8=$D$2,K30,IF(MDR!$AB$8=$D$3,L30,IF(MDR!$AB$8=$D$4,M30,IF(MDR!$AB$8=$D$5,P30,IF(MDR!$AB$8=$D$6,N30,IF(MDR!$AB$8=$D$7,O30))))))) -> 3116MXBSN240ELZZ | J30: 3116MXBSN240ELZZ | K30: 3116MXBEN240ELZZ | L30: 3116MXBGN240ELZZ | M30: 3116MXBSR240ELZZ | N30: 3116MXBER240ELZZ | O30: 3116MXBGR240ELZZ | P30: 3116MXBCN240ELZZ | R30: Bitdefender XDR Sensor for MDR - Productivity Apps | S30: Bitdefender XDR Sensor for MDR - Productivity Apps - EDU | T30: Bitdefender XDR Sensor for MDR - Productivity Apps - GOV | U30: Bitdefender XDR Sensor for MDR - Productivity Apps - R | V30: Bitdefender XDR Sensor for MDR - Productivity Apps - EDU R | W30: Bitdefender XDR Sensor for MDR - Productivity Apps - GOV R | X30: Bitdefender XDR Sensor for MDR - Productivity Apps - CUPG
A31: Add-On | B31: =IF(MDR!$AB$8=$D$1,R31,IF(MDR!$AB$8=$D$2,S31,IF(MDR!$AB$8=$D$3,T31,IF(MDR!$AB$8=$D$4,U31,IF(MDR!$AB$8=$D$5,X31,IF(MDR!$AB$8=$D$6,V31,IF(MDR!$AB$8=$D$7,W31))))))) -> Bitdefender XDR Sensor for MDR - Productivity Apps | C31: 2 years | D31: 250 - 499 | E31: Bitdefender XDR Sensor for MDR - Productivity Apps2 years250 - 499 | G31: 31.44 | H31: =IF(MDR!$AB$8=$D$1,ROUND(G31*$C$3,2),IF(MDR!$AB$8=$D$2,ROUND(G31*$C$3*(1+$T$2),2),IF(MDR!$AB$8=$D$3,ROUND(G31*$C$3*(1+$T$3),2),IF(MDR!$AB$8=$D$4,ROUND(G31*$C$3*(1+$T$4),2),IF(MDR!$AB$8=$D$5,ROUND(G31*$C$3*(1+$T$5),2),IF(MDR!$AB$8=$D$6,ROUND(G31*$C$3*(1+$T$6),2),IF(MDR!$AB$8=$D$7,ROUND(G31*$C$3*(1+$T$7),2)))))))) -> 31.44 | I31: =IF(MDR!$AB$8=$D$1,J31,IF(MDR!$AB$8=$D$2,K31,IF(MDR!$AB$8=$D$3,L31,IF(MDR!$AB$8=$D$4,M31,IF(MDR!$AB$8=$D$5,P31,IF(MDR!$AB$8=$D$6,N31,IF(MDR!$AB$8=$D$7,O31))))))) -> 3116MXBSN240FLZZ | J31: 3116MXBSN240FLZZ | K31: 3116MXBEN240FLZZ | L31: 3116MXBGN240FLZZ | M31: 3116MXBSR240FLZZ | N31: 3116MXBER240FLZZ | O31: 3116MXBGR240FLZZ | P31: 3116MXBCN240FLZZ | R31: Bitdefender XDR Sensor for MDR - Productivity Apps | S31: Bitdefender XDR Sensor for MDR - Productivity Apps - EDU | T31: Bitdefender XDR Sensor for MDR - Productivity Apps - GOV | U31: Bitdefender XDR Sensor for MDR - Productivity Apps - R | V31: Bitdefender XDR Sensor for MDR - Productivity Apps - EDU R | W31: Bitdefender XDR Sensor for MDR - Productivity Apps - GOV R | X31: Bitdefender XDR Sensor for MDR - Productivity Apps - CUPG
A32: Add-On | B32: =IF(MDR!$AB$8=$D$1,R32,IF(MDR!$AB$8=$D$2,S32,IF(MDR!$AB$8=$D$3,T32,IF(MDR!$AB$8=$D$4,U32,IF(MDR!$AB$8=$D$5,X32,IF(MDR!$AB$8=$D$6,V32,IF(MDR!$AB$8=$D$7,W32))))))) -> Bitdefender XDR Sensor for MDR - Productivity Apps | C32: 2 years | D32: 500 - 999 | E32: Bitdefender XDR Sensor for MDR - Productivity Apps2 years500 - 999 | G32: 29.23 | H32: =IF(MDR!$AB$8=$D$1,ROUND(G32*$C$3,2),IF(MDR!$AB$8=$D$2,ROUND(G32*$C$3*(1+$T$2),2),IF(MDR!$AB$8=$D$3,ROUND(G32*$C$3*(1+$T$3),2),IF(MDR!$AB$8=$D$4,ROUND(G32*$C$3*(1+$T$4),2),IF(MDR!$AB$8=$D$5,ROUND(G32*$C$3*(1+$T$5),2),IF(MDR!$AB$8=$D$6,ROUND(G32*$C$3*(1+$T$6),2),IF(MDR!$AB$8=$D$7,ROUND(G32*$C$3*(1+$T$7),2)))))))) -> 29.23 | I32: =IF(MDR!$AB$8=$D$1,J32,IF(MDR!$AB$8=$D$2,K32,IF(MDR!$AB$8=$D$3,L32,IF(MDR!$AB$8=$D$4,M32,IF(MDR!$AB$8=$D$5,P32,IF(MDR!$AB$8=$D$6,N32,IF(MDR!$AB$8=$D$7,O32))))))) -> 3116MXBSN240GLZZ | J32: 3116MXBSN240GLZZ | K32: 3116MXBEN240GLZZ | L32: 3116MXBGN240GLZZ | M32: 3116MXBSR240GLZZ | N32: 3116MXBER240GLZZ | O32: 3116MXBGR240GLZZ | P32: 3116MXBCN240GLZZ | R32: Bitdefender XDR Sensor for MDR - Productivity Apps | S32: Bitdefender XDR Sensor for MDR - Productivity Apps - EDU | T32: Bitdefender XDR Sensor for MDR - Productivity Apps - GOV | U32: Bitdefender XDR Sensor for MDR - Productivity Apps - R | V32: Bitdefender XDR Sensor for MDR - Productivity Apps - EDU R | W32: Bitdefender XDR Sensor for MDR - Productivity Apps - GOV R | X32: Bitdefender XDR Sensor for MDR - Productivity Apps - CUPG
A33: Add-On | B33: =IF(MDR!$AB$8=$D$1,R33,IF(MDR!$AB$8=$D$2,S33,IF(MDR!$AB$8=$D$3,T33,IF(MDR!$AB$8=$D$4,U33,IF(MDR!$AB$8=$D$5,X33,IF(MDR!$AB$8=$D$6,V33,IF(MDR!$AB$8=$D$7,W33))))))) -> Bitdefender XDR Sensor for MDR - Productivity Apps | C33: 2 years | D33: 1000 - 1999 | E33: Bitdefender XDR Sensor for MDR - Productivity Apps2 years1000 - 1999 | G33: 27.19 | H33: =IF(MDR!$AB$8=$D$1,ROUND(G33*$C$3,2),IF(MDR!$AB$8=$D$2,ROUND(G33*$C$3*(1+$T$2),2),IF(MDR!$AB$8=$D$3,ROUND(G33*$C$3*(1+$T$3),2),IF(MDR!$AB$8=$D$4,ROUND(G33*$C$3*(1+$T$4),2),IF(MDR!$AB$8=$D$5,ROUND(G33*$C$3*(1+$T$5),2),IF(MDR!$AB$8=$D$6,ROUND(G33*$C$3*(1+$T$6),2),IF(MDR!$AB$8=$D$7,ROUND(G33*$C$3*(1+$T$7),2)))))))) -> 27.19 | I33: =IF(MDR!$AB$8=$D$1,J33,IF(MDR!$AB$8=$D$2,K33,IF(MDR!$AB$8=$D$3,L33,IF(MDR!$AB$8=$D$4,M33,IF(MDR!$AB$8=$D$5,P33,IF(MDR!$AB$8=$D$6,N33,IF(MDR!$AB$8=$D$7,O33))))))) -> 3116MXBSN240PLZZ | J33: 3116MXBSN240PLZZ | K33: 3116MXBEN240PLZZ | L33: 3116MXBGN240PLZZ | M33: 3116MXBSR240PLZZ | N33: 3116MXBER240PLZZ | O33: 3116MXBGR240PLZZ | P33: 3116MXBCN240PLZZ | R33: Bitdefender XDR Sensor for MDR - Productivity Apps | S33: Bitdefender XDR Sensor for MDR - Productivity Apps - EDU | T33: Bitdefender XDR Sensor for MDR - Productivity Apps - GOV | U33: Bitdefender XDR Sensor for MDR - Productivity Apps - R | V33: Bitdefender XDR Sensor for MDR - Productivity Apps - EDU R | W33: Bitdefender XDR Sensor for MDR - Productivity Apps - GOV R | X33: Bitdefender XDR Sensor for MDR - Productivity Apps - CUPG
A34: Add-On | B34: =IF(MDR!$AB$8=$D$1,R34,IF(MDR!$AB$8=$D$2,S34,IF(MDR!$AB$8=$D$3,T34,IF(MDR!$AB$8=$D$4,U34,IF(MDR!$AB$8=$D$5,X34,IF(MDR!$AB$8=$D$6,V34,IF(MDR!$AB$8=$D$7,W34))))))) -> Bitdefender XDR Sensor for MDR - Productivity Apps | C34: 2 years | D34: 2000 - 2999 | E34: Bitdefender XDR Sensor for MDR - Productivity Apps2 years2000 - 2999 | G34: 25.28 | H34: =IF(MDR!$AB$8=$D$1,ROUND(G34*$C$3,2),IF(MDR!$AB$8=$D$2,ROUND(G34*$C$3*(1+$T$2),2),IF(MDR!$AB$8=$D$3,ROUND(G34*$C$3*(1+$T$3),2),IF(MDR!$AB$8=$D$4,ROUND(G34*$C$3*(1+$T$4),2),IF(MDR!$AB$8=$D$5,ROUND(G34*$C$3*(1+$T$5),2),IF(MDR!$AB$8=$D$6,ROUND(G34*$C$3*(1+$T$6),2),IF(MDR!$AB$8=$D$7,ROUND(G34*$C$3*(1+$T$7),2)))))))) -> 25.28 | I34: =IF(MDR!$AB$8=$D$1,J34,IF(MDR!$AB$8=$D$2,K34,IF(MDR!$AB$8=$D$3,L34,IF(MDR!$AB$8=$D$4,M34,IF(MDR!$AB$8=$D$5,P34,IF(MDR!$AB$8=$D$6,N34,IF(MDR!$AB$8=$D$7,O34))))))) -> 3116MXBSN240QLZZ | J34: 3116MXBSN240QLZZ | K34: 3116MXBEN240QLZZ | L34: 3116MXBGN240QLZZ | M34: 3116MXBSR240QLZZ | N34: 3116MXBER240QLZZ | O34: 3116MXBGR240QLZZ | P34: 3116MXBCN240QLZZ | R34: Bitdefender XDR Sensor for MDR - Productivity Apps | S34: Bitdefender XDR Sensor for MDR - Productivity Apps - EDU | T34: Bitdefender XDR Sensor for MDR - Productivity Apps - GOV | U34: Bitdefender XDR Sensor for MDR - Productivity Apps - R | V34: Bitdefender XDR Sensor for MDR - Productivity Apps - EDU R | W34: Bitdefender XDR Sensor for MDR - Productivity Apps - GOV R | X34: Bitdefender XDR Sensor for MDR - Productivity Apps - CUPG
A35: Add-On | B35: =IF(MDR!$AB$8=$D$1,R35,IF(MDR!$AB$8=$D$2,S35,IF(MDR!$AB$8=$D$3,T35,IF(MDR!$AB$8=$D$4,U35,IF(MDR!$AB$8=$D$5,X35,IF(MDR!$AB$8=$D$6,V35,IF(MDR!$AB$8=$D$7,W35))))))) -> Bitdefender XDR Sensor for MDR - Productivity Apps | C35: 2 years | D35: 3000 - 4999 | E35: Bitdefender XDR Sensor for MDR - Productivity Apps2 years3000 - 4999 | G35: 23.52 | H35: =IF(MDR!$AB$8=$D$1,ROUND(G35*$C$3,2),IF(MDR!$AB$8=$D$2,ROUND(G35*$C$3*(1+$T$2),2),IF(MDR!$AB$8=$D$3,ROUND(G35*$C$3*(1+$T$3),2),IF(MDR!$AB$8=$D$4,ROUND(G35*$C$3*(1+$T$4),2),IF(MDR!$AB$8=$D$5,ROUND(G35*$C$3*(1+$T$5),2),IF(MDR!$AB$8=$D$6,ROUND(G35*$C$3*(1+$T$6),2),IF(MDR!$AB$8=$D$7,ROUND(G35*$C$3*(1+$T$7),2)))))))) -> 23.52 | I35: =IF(MDR!$AB$8=$D$1,J35,IF(MDR!$AB$8=$D$2,K35,IF(MDR!$AB$8=$D$3,L35,IF(MDR!$AB$8=$D$4,M35,IF(MDR!$AB$8=$D$5,P35,IF(MDR!$AB$8=$D$6,N35,IF(MDR!$AB$8=$D$7,O35))))))) -> 3116MXBSN240ILZZ | J35: 3116MXBSN240ILZZ | K35: 3116MXBEN240ILZZ | L35: 3116MXBGN240ILZZ | M35: 3116MXBSR240ILZZ | N35: 3116MXBER240ILZZ | O35: 3116MXBGR240ILZZ | P35: 3116MXBCN240ILZZ | R35: Bitdefender XDR Sensor for MDR - Productivity Apps | S35: Bitdefender XDR Sensor for MDR - Productivity Apps - EDU | T35: Bitdefender XDR Sensor for MDR - Productivity Apps - GOV | U35: Bitdefender XDR Sensor for MDR - Productivity Apps - R | V35: Bitdefender XDR Sensor for MDR - Productivity Apps - EDU R | W35: Bitdefender XDR Sensor for MDR - Productivity Apps - GOV R | X35: Bitdefender XDR Sensor for MDR - Productivity Apps - CUPG
A36: Add-On | B36: =IF(MDR!$AB$8=$D$1,R36,IF(MDR!$AB$8=$D$2,S36,IF(MDR!$AB$8=$D$3,T36,IF(MDR!$AB$8=$D$4,U36,IF(MDR!$AB$8=$D$5,X36,IF(MDR!$AB$8=$D$6,V36,IF(MDR!$AB$8=$D$7,W36))))))) -> Bitdefender XDR Sensor for MDR - Productivity Apps | C36: 2 years | D36: 5000+ | E36: Bitdefender XDR Sensor for MDR - Productivity Apps2 years5000+ | G36: 21.87 | H36: =IF(MDR!$AB$8=$D$1,ROUND(G36*$C$3,2),IF(MDR!$AB$8=$D$2,ROUND(G36*$C$3*(1+$T$2),2),IF(MDR!$AB$8=$D$3,ROUND(G36*$C$3*(1+$T$3),2),IF(MDR!$AB$8=$D$4,ROUND(G36*$C$3*(1+$T$4),2),IF(MDR!$AB$8=$D$5,ROUND(G36*$C$3*(1+$T$5),2),IF(MDR!$AB$8=$D$6,ROUND(G36*$C$3*(1+$T$6),2),IF(MDR!$AB$8=$D$7,ROUND(G36*$C$3*(1+$T$7),2)))))))) -> 21.87 | I36: =IF(MDR!$AB$8=$D$1,J36,IF(MDR!$AB$8=$D$2,K36,IF(MDR!$AB$8=$D$3,L36,IF(MDR!$AB$8=$D$4,M36,IF(MDR!$AB$8=$D$5,P36,IF(MDR!$AB$8=$D$6,N36,IF(MDR!$AB$8=$D$7,O36))))))) -> 3116MXBSN240JLZZ | J36: 3116MXBSN240JLZZ | K36: 3116MXBEN240JLZZ | L36: 3116MXBGN240JLZZ | M36: 3116MXBSR240JLZZ | N36: 3116MXBER240JLZZ | O36: 3116MXBGR240JLZZ | P36: 3116MXBCN240JLZZ | R36: Bitdefender XDR Sensor for MDR - Productivity Apps | S36: Bitdefender XDR Sensor for MDR - Productivity Apps - EDU | T36: Bitdefender XDR Sensor for MDR - Productivity Apps - GOV | U36: Bitdefender XDR Sensor for MDR - Productivity Apps - R | V36: Bitdefender XDR Sensor for MDR - Productivity Apps - EDU R | W36: Bitdefender XDR Sensor for MDR - Productivity Apps - GOV R | X36: Bitdefender XDR Sensor for MDR - Productivity Apps - CUPG
A37: Add-On | B37: =IF(MDR!$AB$8=$D$1,R37,IF(MDR!$AB$8=$D$2,S37,IF(MDR!$AB$8=$D$3,T37,IF(MDR!$AB$8=$D$4,U37,IF(MDR!$AB$8=$D$5,X37,IF(MDR!$AB$8=$D$6,V37,IF(MDR!$AB$8=$D$7,W37))))))) -> Bitdefender XDR Sensor for MDR - Productivity Apps | C37: 3 years | D37: 50 - 99 | E37: Bitdefender XDR Sensor for MDR - Productivity Apps3 years50 - 99 | G37: 53.33 | H37: =IF(MDR!$AB$8=$D$1,ROUND(G37*$C$3,2),IF(MDR!$AB$8=$D$2,ROUND(G37*$C$3*(1+$T$2),2),IF(MDR!$AB$8=$D$3,ROUND(G37*$C$3*(1+$T$3),2),IF(MDR!$AB$8=$D$4,ROUND(G37*$C$3*(1+$T$4),2),IF(MDR!$AB$8=$D$5,ROUND(G37*$C$3*(1+$T$5),2),IF(MDR!$AB$8=$D$6,ROUND(G37*$C$3*(1+$T$6),2),IF(MDR!$AB$8=$D$7,ROUND(G37*$C$3*(1+$T$7),2)))))))) -> 53.33 | I37: =IF(MDR!$AB$8=$D$1,J37,IF(MDR!$AB$8=$D$2,K37,IF(MDR!$AB$8=$D$3,L37,IF(MDR!$AB$8=$D$4,M37,IF(MDR!$AB$8=$D$5,P37,IF(MDR!$AB$8=$D$6,N37,IF(MDR!$AB$8=$D$7,O37))))))) -> 3116MXBSN360CLZZ | J37: 3116MXBSN360CLZZ | K37: 3116MXBEN360CLZZ | L37: 3116MXBGN360CLZZ | M37: 3116MXBSR360CLZZ | N37: 3116MXBER360CLZZ | O37: 3116MXBGR360CLZZ | P37: 3116MXBCN360CLZZ | R37: Bitdefender XDR Sensor for MDR - Productivity Apps | S37: Bitdefender XDR Sensor for MDR - Productivity Apps - EDU | T37: Bitdefender XDR Sensor for MDR - Productivity Apps - GOV | U37: Bitdefender XDR Sensor for MDR - Productivity Apps - R | V37: Bitdefender XDR Sensor for MDR - Productivity Apps - EDU R | W37: Bitdefender XDR Sensor for MDR - Productivity Apps - GOV R | X37: Bitdefender XDR Sensor for MDR - Productivity Apps - CUPG
A38: Add-On | B38: =IF(MDR!$AB$8=$D$1,R38,IF(MDR!$AB$8=$D$2,S38,IF(MDR!$AB$8=$D$3,T38,IF(MDR!$AB$8=$D$4,U38,IF(MDR!$AB$8=$D$5,X38,IF(MDR!$AB$8=$D$6,V38,IF(MDR!$AB$8=$D$7,W38))))))) -> Bitdefender XDR Sensor for MDR - Productivity Apps | C38: 3 years | D38: 100 - 149 | E38: Bitdefender XDR Sensor for MDR - Productivity Apps3 years100 - 149 | G38: 49.59 | H38: =IF(MDR!$AB$8=$D$1,ROUND(G38*$C$3,2),IF(MDR!$AB$8=$D$2,ROUND(G38*$C$3*(1+$T$2),2),IF(MDR!$AB$8=$D$3,ROUND(G38*$C$3*(1+$T$3),2),IF(MDR!$AB$8=$D$4,ROUND(G38*$C$3*(1+$T$4),2),IF(MDR!$AB$8=$D$5,ROUND(G38*$C$3*(1+$T$5),2),IF(MDR!$AB$8=$D$6,ROUND(G38*$C$3*(1+$T$6),2),IF(MDR!$AB$8=$D$7,ROUND(G38*$C$3*(1+$T$7),2)))))))) -> 49.59 | I38: =IF(MDR!$AB$8=$D$1,J38,IF(MDR!$AB$8=$D$2,K38,IF(MDR!$AB$8=$D$3,L38,IF(MDR!$AB$8=$D$4,M38,IF(MDR!$AB$8=$D$5,P38,IF(MDR!$AB$8=$D$6,N38,IF(MDR!$AB$8=$D$7,O38))))))) -> 3116MXBSN360DLZZ | J38: 3116MXBSN360DLZZ | K38: 3116MXBEN360DLZZ | L38: 3116MXBGN360DLZZ | M38: 3116MXBSR360DLZZ | N38: 3116MXBER360DLZZ | O38: 3116MXBGR360DLZZ | P38: 3116MXBCN360DLZZ | R38: Bitdefender XDR Sensor for MDR - Productivity Apps | S38: Bitdefender XDR Sensor for MDR - Productivity Apps - EDU | T38: Bitdefender XDR Sensor for MDR - Productivity Apps - GOV | U38: Bitdefender XDR Sensor for MDR - Productivity Apps - R | V38: Bitdefender XDR Sensor for MDR - Productivity Apps - EDU R | W38: Bitdefender XDR Sensor for MDR - Productivity Apps - GOV R | X38: Bitdefender XDR Sensor for MDR - Productivity Apps - CUPG
A39: Add-On | B39: =IF(MDR!$AB$8=$D$1,R39,IF(MDR!$AB$8=$D$2,S39,IF(MDR!$AB$8=$D$3,T39,IF(MDR!$AB$8=$D$4,U39,IF(MDR!$AB$8=$D$5,X39,IF(MDR!$AB$8=$D$6,V39,IF(MDR!$AB$8=$D$7,W39))))))) -> Bitdefender XDR Sensor for MDR - Productivity Apps | C39: 3 years | D39: 150 - 249 | E39: Bitdefender XDR Sensor for MDR - Productivity Apps3 years150 - 249 | G39: 46.11 | H39: =IF(MDR!$AB$8=$D$1,ROUND(G39*$C$3,2),IF(MDR!$AB$8=$D$2,ROUND(G39*$C$3*(1+$T$2),2),IF(MDR!$AB$8=$D$3,ROUND(G39*$C$3*(1+$T$3),2),IF(MDR!$AB$8=$D$4,ROUND(G39*$C$3*(1+$T$4),2),IF(MDR!$AB$8=$D$5,ROUND(G39*$C$3*(1+$T$5),2),IF(MDR!$AB$8=$D$6,ROUND(G39*$C$3*(1+$T$6),2),IF(MDR!$AB$8=$D$7,ROUND(G39*$C$3*(1+$T$7),2)))))))) -> 46.11 | I39: =IF(MDR!$AB$8=$D$1,J39,IF(MDR!$AB$8=$D$2,K39,IF(MDR!$AB$8=$D$3,L39,IF(MDR!$AB$8=$D$4,M39,IF(MDR!$AB$8=$D$5,P39,IF(MDR!$AB$8=$D$6,N39,IF(MDR!$AB$8=$D$7,O39))))))) -> 3116MXBSN360ELZZ | J39: 3116MXBSN360ELZZ | K39: 3116MXBEN360ELZZ | L39: 3116MXBGN360ELZZ | M39: 3116MXBSR360ELZZ | N39: 3116MXBER360ELZZ | O39: 3116MXBGR360ELZZ | P39: 3116MXBCN360ELZZ | R39: Bitdefender XDR Sensor for MDR - Productivity Apps | S39: Bitdefender XDR Sensor for MDR - Productivity Apps - EDU | T39: Bitdefender XDR Sensor for MDR - Productivity Apps - GOV | U39: Bitdefender XDR Sensor for MDR - Productivity Apps - R | V39: Bitdefender XDR Sensor for MDR - Productivity Apps - EDU R | W39: Bitdefender XDR Sensor for MDR - Productivity Apps - GOV R | X39: Bitdefender XDR Sensor for MDR - Productivity Apps - CUPG
A40: Add-On | B40: =IF(MDR!$AB$8=$D$1,R40,IF(MDR!$AB$8=$D$2,S40,IF(MDR!$AB$8=$D$3,T40,IF(MDR!$AB$8=$D$4,U40,IF(MDR!$AB$8=$D$5,X40,IF(MDR!$AB$8=$D$6,V40,IF(MDR!$AB$8=$D$7,W40))))))) -> Bitdefender XDR Sensor for MDR - Productivity Apps | C40: 3 years | D40: 250 - 499 | E40: Bitdefender XDR Sensor for MDR - Productivity Apps3 years250 - 499 | G40: 43.81 | H40: =IF(MDR!$AB$8=$D$1,ROUND(G40*$C$3,2),IF(MDR!$AB$8=$D$2,ROUND(G40*$C$3*(1+$T$2),2),IF(MDR!$AB$8=$D$3,ROUND(G40*$C$3*(1+$T$3),2),IF(MDR!$AB$8=$D$4,ROUND(G40*$C$3*(1+$T$4),2),IF(MDR!$AB$8=$D$5,ROUND(G40*$C$3*(1+$T$5),2),IF(MDR!$AB$8=$D$6,ROUND(G40*$C$3*(1+$T$6),2),IF(MDR!$AB$8=$D$7,ROUND(G40*$C$3*(1+$T$7),2)))))))) -> 43.81 | I40: =IF(MDR!$AB$8=$D$1,J40,IF(MDR!$AB$8=$D$2,K40,IF(MDR!$AB$8=$D$3,L40,IF(MDR!$AB$8=$D$4,M40,IF(MDR!$AB$8=$D$5,P40,IF(MDR!$AB$8=$D$6,N40,IF(MDR!$AB$8=$D$7,O40))))))) -> 3116MXBSN360FLZZ | J40: 3116MXBSN360FLZZ | K40: 3116MXBEN360FLZZ | L40: 3116MXBGN360FLZZ | M40: 3116MXBSR360FLZZ | N40: 3116MXBER360FLZZ | O40: 3116MXBGR360FLZZ | P40: 3116MXBCN360FLZZ | R40: Bitdefender XDR Sensor for MDR - Productivity Apps | S40: Bitdefender XDR Sensor for MDR - Productivity Apps - EDU | T40: Bitdefender XDR Sensor for MDR - Productivity Apps - GOV | U40: Bitdefender XDR Sensor for MDR - Productivity Apps - R | V40: Bitdefender XDR Sensor for MDR - Productivity Apps - EDU R | W40: Bitdefender XDR Sensor for MDR - Productivity Apps - GOV R | X40: Bitdefender XDR Sensor for MDR - Productivity Apps - CUPG
A41: Add-On | B41: =IF(MDR!$AB$8=$D$1,R41,IF(MDR!$AB$8=$D$2,S41,IF(MDR!$AB$8=$D$3,T41,IF(MDR!$AB$8=$D$4,U41,IF(MDR!$AB$8=$D$5,X41,IF(MDR!$AB$8=$D$6,V41,IF(MDR!$AB$8=$D$7,W41))))))) -> Bitdefender XDR Sensor for MDR - Productivity Apps | C41: 3 years | D41: 500 - 999 | E41: Bitdefender XDR Sensor for MDR - Productivity Apps3 years500 - 999 | G41: 40.73 | H41: =IF(MDR!$AB$8=$D$1,ROUND(G41*$C$3,2),IF(MDR!$AB$8=$D$2,ROUND(G41*$C$3*(1+$T$2),2),IF(MDR!$AB$8=$D$3,ROUND(G41*$C$3*(1+$T$3),2),IF(MDR!$AB$8=$D$4,ROUND(G41*$C$3*(1+$T$4),2),IF(MDR!$AB$8=$D$5,ROUND(G41*$C$3*(1+$T$5),2),IF(MDR!$AB$8=$D$6,ROUND(G41*$C$3*(1+$T$6),2),IF(MDR!$AB$8=$D$7,ROUND(G41*$C$3*(1+$T$7),2)))))))) -> 40.73 | I41: =IF(MDR!$AB$8=$D$1,J41,IF(MDR!$AB$8=$D$2,K41,IF(MDR!$AB$8=$D$3,L41,IF(MDR!$AB$8=$D$4,M41,IF(MDR!$AB$8=$D$5,P41,IF(MDR!$AB$8=$D$6,N41,IF(MDR!$AB$8=$D$7,O41))))))) -> 3116MXBSN360GLZZ | J41: 3116MXBSN360GLZZ | K41: 3116MXBEN360GLZZ | L41: 3116MXBGN360GLZZ | M41: 3116MXBSR360GLZZ | N41: 3116MXBER360GLZZ | O41: 3116MXBGR360GLZZ | P41: 3116MXBCN360GLZZ | R41: Bitdefender XDR Sensor for MDR - Productivity Apps | S41: Bitdefender XDR Sensor for MDR - Productivity Apps - EDU | T41: Bitdefender XDR Sensor for MDR - Productivity Apps - GOV | U41: Bitdefender XDR Sensor for MDR - Productivity Apps - R | V41: Bitdefender XDR Sensor for MDR - Productivity Apps - EDU R | W41: Bitdefender XDR Sensor for MDR - Productivity Apps - GOV R | X41: Bitdefender XDR Sensor for MDR - Productivity Apps - CUPG
A42: Add-On | B42: =IF(MDR!$AB$8=$D$1,R42,IF(MDR!$AB$8=$D$2,S42,IF(MDR!$AB$8=$D$3,T42,IF(MDR!$AB$8=$D$4,U42,IF(MDR!$AB$8=$D$5,X42,IF(MDR!$AB$8=$D$6,V42,IF(MDR!$AB$8=$D$7,W42))))))) -> Bitdefender XDR Sensor for MDR - Productivity Apps | C42: 3 years | D42: 1000 - 1999 | E42: =CONCATENATE(B42,C42,D42) -> Bitdefender XDR Sensor for MDR - Productivity Apps3 years1000 - 1999 | G42: 37.9 | H42: =IF(MDR!$AB$8=$D$1,ROUND(G42*$C$3,2),IF(MDR!$AB$8=$D$2,ROUND(G42*$C$3*(1+$T$2),2),IF(MDR!$AB$8=$D$3,ROUND(G42*$C$3*(1+$T$3),2),IF(MDR!$AB$8=$D$4,ROUND(G42*$C$3*(1+$T$4),2),IF(MDR!$AB$8=$D$5,ROUND(G42*$C$3*(1+$T$5),2),IF(MDR!$AB$8=$D$6,ROUND(G42*$C$3*(1+$T$6),2),IF(MDR!$AB$8=$D$7,ROUND(G42*$C$3*(1+$T$7),2)))))))) -> 37.9 | I42: =IF(MDR!$AB$8=$D$1,J42,IF(MDR!$AB$8=$D$2,K42,IF(MDR!$AB$8=$D$3,L42,IF(MDR!$AB$8=$D$4,M42,IF(MDR!$AB$8=$D$5,P42,IF(MDR!$AB$8=$D$6,N42,IF(MDR!$AB$8=$D$7,O42))))))) -> 3116MXBSN360PLZZ | J42: 3116MXBSN360PLZZ | K42: 3116MXBEN360PLZZ | L42: 3116MXBGN360PLZZ | M42: 3116MXBSR360PLZZ | N42: 3116MXBER360PLZZ | O42: 3116MXBGR360PLZZ | P42: 3116MXBCN360PLZZ | R42: Bitdefender XDR Sensor for MDR - Productivity Apps | S42: Bitdefender XDR Sensor for MDR - Productivity Apps - EDU | T42: Bitdefender XDR Sensor for MDR - Productivity Apps - GOV | U42: Bitdefender XDR Sensor for MDR - Productivity Apps - R | V42: Bitdefender XDR Sensor for MDR - Productivity Apps - EDU R | W42: Bitdefender XDR Sensor for MDR - Productivity Apps - GOV R | X42: Bitdefender XDR Sensor for MDR - Productivity Apps - CUPG
A43: Add-On | B43: =IF(MDR!$AB$8=$D$1,R43,IF(MDR!$AB$8=$D$2,S43,IF(MDR!$AB$8=$D$3,T43,IF(MDR!$AB$8=$D$4,U43,IF(MDR!$AB$8=$D$5,X43,IF(MDR!$AB$8=$D$6,V43,IF(MDR!$AB$8=$D$7,W43))))))) -> Bitdefender XDR Sensor for MDR - Productivity Apps | C43: 3 years | D43: 2000 - 2999 | E43: Bitdefender XDR Sensor for MDR - Productivity Apps3 years2000 - 2999 | G43: 35.26 | H43: =IF(MDR!$AB$8=$D$1,ROUND(G43*$C$3,2),IF(MDR!$AB$8=$D$2,ROUND(G43*$C$3*(1+$T$2),2),IF(MDR!$AB$8=$D$3,ROUND(G43*$C$3*(1+$T$3),2),IF(MDR!$AB$8=$D$4,ROUND(G43*$C$3*(1+$T$4),2),IF(MDR!$AB$8=$D$5,ROUND(G43*$C$3*(1+$T$5),2),IF(MDR!$AB$8=$D$6,ROUND(G43*$C$3*(1+$T$6),2),IF(MDR!$AB$8=$D$7,ROUND(G43*$C$3*(1+$T$7),2)))))))) -> 35.26 | I43: =IF(MDR!$AB$8=$D$1,J43,IF(MDR!$AB$8=$D$2,K43,IF(MDR!$AB$8=$D$3,L43,IF(MDR!$AB$8=$D$4,M43,IF(MDR!$AB$8=$D$5,P43,IF(MDR!$AB$8=$D$6,N43,IF(MDR!$AB$8=$D$7,O43))))))) -> 3116MXBSN360QLZZ | J43: 3116MXBSN360QLZZ | K43: 3116MXBEN360QLZZ | L43: 3116MXBGN360QLZZ | M43: 3116MXBSR360QLZZ | N43: 3116MXBER360QLZZ | O43: 3116MXBGR360QLZZ | P43: 3116MXBCN360QLZZ | R43: Bitdefender XDR Sensor for MDR - Productivity Apps | S43: Bitdefender XDR Sensor for MDR - Productivity Apps - EDU | T43: Bitdefender XDR Sensor for MDR - Productivity Apps - GOV | U43: Bitdefender XDR Sensor for MDR - Productivity Apps - R | V43: Bitdefender XDR Sensor for MDR - Productivity Apps - EDU R | W43: Bitdefender XDR Sensor for MDR - Productivity Apps - GOV R | X43: Bitdefender XDR Sensor for MDR - Productivity Apps - CUPG
A44: Add-On | B44: =IF(MDR!$AB$8=$D$1,R44,IF(MDR!$AB$8=$D$2,S44,IF(MDR!$AB$8=$D$3,T44,IF(MDR!$AB$8=$D$4,U44,IF(MDR!$AB$8=$D$5,X44,IF(MDR!$AB$8=$D$6,V44,IF(MDR!$AB$8=$D$7,W44))))))) -> Bitdefender XDR Sensor for MDR - Productivity Apps | C44: 3 years | D44: 3000 - 4999 | E44: Bitdefender XDR Sensor for MDR - Productivity Apps3 years3000 - 4999 | G44: 32.78 | H44: =IF(MDR!$AB$8=$D$1,ROUND(G44*$C$3,2),IF(MDR!$AB$8=$D$2,ROUND(G44*$C$3*(1+$T$2),2),IF(MDR!$AB$8=$D$3,ROUND(G44*$C$3*(1+$T$3),2),IF(MDR!$AB$8=$D$4,ROUND(G44*$C$3*(1+$T$4),2),IF(MDR!$AB$8=$D$5,ROUND(G44*$C$3*(1+$T$5),2),IF(MDR!$AB$8=$D$6,ROUND(G44*$C$3*(1+$T$6),2),IF(MDR!$AB$8=$D$7,ROUND(G44*$C$3*(1+$T$7),2)))))))) -> 32.78 | I44: =IF(MDR!$AB$8=$D$1,J44,IF(MDR!$AB$8=$D$2,K44,IF(MDR!$AB$8=$D$3,L44,IF(MDR!$AB$8=$D$4,M44,IF(MDR!$AB$8=$D$5,P44,IF(MDR!$AB$8=$D$6,N44,IF(MDR!$AB$8=$D$7,O44))))))) -> 3116MXBSN360ILZZ | J44: 3116MXBSN360ILZZ | K44: 3116MXBEN360ILZZ | L44: 3116MXBGN360ILZZ | M44: 3116MXBSR360ILZZ | N44: 3116MXBER360ILZZ | O44: 3116MXBGR360ILZZ | P44: 3116MXBCN360ILZZ | R44: Bitdefender XDR Sensor for MDR - Productivity Apps | S44: Bitdefender XDR Sensor for MDR - Productivity Apps - EDU | T44: Bitdefender XDR Sensor for MDR - Productivity Apps - GOV | U44: Bitdefender XDR Sensor for MDR - Productivity Apps - R | V44: Bitdefender XDR Sensor for MDR - Productivity Apps - EDU R | W44: Bitdefender XDR Sensor for MDR - Productivity Apps - GOV R | X44: Bitdefender XDR Sensor for MDR - Productivity Apps - CUPG
A45: Add-On | B45: =IF(MDR!$AB$8=$D$1,R45,IF(MDR!$AB$8=$D$2,S45,IF(MDR!$AB$8=$D$3,T45,IF(MDR!$AB$8=$D$4,U45,IF(MDR!$AB$8=$D$5,X45,IF(MDR!$AB$8=$D$6,V45,IF(MDR!$AB$8=$D$7,W45))))))) -> Bitdefender XDR Sensor for MDR - Productivity Apps | C45: 3 years | D45: 5000+ | E45: Bitdefender XDR Sensor for MDR - Productivity Apps3 years5000+ | G45: 30.48 | H45: =IF(MDR!$AB$8=$D$1,ROUND(G45*$C$3,2),IF(MDR!$AB$8=$D$2,ROUND(G45*$C$3*(1+$T$2),2),IF(MDR!$AB$8=$D$3,ROUND(G45*$C$3*(1+$T$3),2),IF(MDR!$AB$8=$D$4,ROUND(G45*$C$3*(1+$T$4),2),IF(MDR!$AB$8=$D$5,ROUND(G45*$C$3*(1+$T$5),2),IF(MDR!$AB$8=$D$6,ROUND(G45*$C$3*(1+$T$6),2),IF(MDR!$AB$8=$D$7,ROUND(G45*$C$3*(1+$T$7),2)))))))) -> 30.48 | I45: =IF(MDR!$AB$8=$D$1,J45,IF(MDR!$AB$8=$D$2,K45,IF(MDR!$AB$8=$D$3,L45,IF(MDR!$AB$8=$D$4,M45,IF(MDR!$AB$8=$D$5,P45,IF(MDR!$AB$8=$D$6,N45,IF(MDR!$AB$8=$D$7,O45))))))) -> 3116MXBSN360JLZZ | J45: 3116MXBSN360JLZZ | K45: 3116MXBEN360JLZZ | L45: 3116MXBGN360JLZZ | M45: 3116MXBSR360JLZZ | N45: 3116MXBER360JLZZ | O45: 3116MXBGR360JLZZ | P45: 3116MXBCN360JLZZ | R45: Bitdefender XDR Sensor for MDR - Productivity Apps | S45: Bitdefender XDR Sensor for MDR - Productivity Apps - EDU | T45: Bitdefender XDR Sensor for MDR - Productivity Apps - GOV | U45: Bitdefender XDR Sensor for MDR - Productivity Apps - R | V45: Bitdefender XDR Sensor for MDR - Productivity Apps - EDU R | W45: Bitdefender XDR Sensor for MDR - Productivity Apps - GOV R | X45: Bitdefender XDR Sensor for MDR - Productivity Apps - CUPG
A46: Add-On | B46: =IF(MDR!$AB$8=$D$1,R46,IF(MDR!$AB$8=$D$2,S46,IF(MDR!$AB$8=$D$3,T46,IF(MDR!$AB$8=$D$4,U46,IF(MDR!$AB$8=$D$5,X46,IF(MDR!$AB$8=$D$6,V46,IF(MDR!$AB$8=$D$7,W46))))))) -> Bitdefender XDR Sensor for MDR - Cloud | C46: 1 year | D46: 50 - 99 | E46: Bitdefender XDR Sensor for MDR - Cloud1 year50 - 99 | G46: 23.19 | H46: =IF(MDR!$AB$8=$D$1,ROUND(G46*$C$3,2),IF(MDR!$AB$8=$D$2,ROUND(G46*$C$3*(1+$T$2),2),IF(MDR!$AB$8=$D$3,ROUND(G46*$C$3*(1+$T$3),2),IF(MDR!$AB$8=$D$4,ROUND(G46*$C$3*(1+$T$4),2),IF(MDR!$AB$8=$D$5,ROUND(G46*$C$3*(1+$T$5),2),IF(MDR!$AB$8=$D$6,ROUND(G46*$C$3*(1+$T$6),2),IF(MDR!$AB$8=$D$7,ROUND(G46*$C$3*(1+$T$7),2)))))))) -> 23.19 | I46: =IF(MDR!$AB$8=$D$1,J46,IF(MDR!$AB$8=$D$2,K46,IF(MDR!$AB$8=$D$3,L46,IF(MDR!$AB$8=$D$4,M46,IF(MDR!$AB$8=$D$5,P46,IF(MDR!$AB$8=$D$6,N46,IF(MDR!$AB$8=$D$7,O46))))))) -> 3118MXBSN120CLZZ | J46: 3118MXBSN120CLZZ | K46: 3118MXBEN120CLZZ | L46: 3118MXBGN120CLZZ | M46: 3118MXBSR120CLZZ | N46: 3118MXBER120CLZZ | O46: 3118MXBGR120CLZZ | P46: 3118MXBCN120CLZZ | R46: Bitdefender XDR Sensor for MDR - Cloud | S46: Bitdefender XDR Sensor for MDR - Cloud - EDU | T46: Bitdefender XDR Sensor for MDR - Cloud - GOV | U46: Bitdefender XDR Sensor for MDR - Cloud - R | V46: Bitdefender XDR Sensor for MDR - Cloud - EDU R | W46: Bitdefender XDR Sensor for MDR - Cloud - GOV R | X46: Bitdefender XDR Sensor for MDR - Cloud - CUPG
A47: Add-On | B47: =IF(MDR!$AB$8=$D$1,R47,IF(MDR!$AB$8=$D$2,S47,IF(MDR!$AB$8=$D$3,T47,IF(MDR!$AB$8=$D$4,U47,IF(MDR!$AB$8=$D$5,X47,IF(MDR!$AB$8=$D$6,V47,IF(MDR!$AB$8=$D$7,W47))))))) -> Bitdefender XDR Sensor for MDR - Cloud | C47: 1 year | D47: 100 - 149 | E47: Bitdefender XDR Sensor for MDR - Cloud1 year100 - 149 | G47: 21.56 | H47: =IF(MDR!$AB$8=$D$1,ROUND(G47*$C$3,2),IF(MDR!$AB$8=$D$2,ROUND(G47*$C$3*(1+$T$2),2),IF(MDR!$AB$8=$D$3,ROUND(G47*$C$3*(1+$T$3),2),IF(MDR!$AB$8=$D$4,ROUND(G47*$C$3*(1+$T$4),2),IF(MDR!$AB$8=$D$5,ROUND(G47*$C$3*(1+$T$5),2),IF(MDR!$AB$8=$D$6,ROUND(G47*$C$3*(1+$T$6),2),IF(MDR!$AB$8=$D$7,ROUND(G47*$C$3*(1+$T$7),2)))))))) -> 21.56 | I47: =IF(MDR!$AB$8=$D$1,J47,IF(MDR!$AB$8=$D$2,K47,IF(MDR!$AB$8=$D$3,L47,IF(MDR!$AB$8=$D$4,M47,IF(MDR!$AB$8=$D$5,P47,IF(MDR!$AB$8=$D$6,N47,IF(MDR!$AB$8=$D$7,O47))))))) -> 3118MXBSN120DLZZ | J47: 3118MXBSN120DLZZ | K47: 3118MXBEN120DLZZ | L47: 3118MXBGN120DLZZ | M47: 3118MXBSR120DLZZ | N47: 3118MXBER120DLZZ | O47: 3118MXBGR120DLZZ | P47: 3118MXBCN120DLZZ | R47: Bitdefender XDR Sensor for MDR - Cloud | S47: Bitdefender XDR Sensor for MDR - Cloud - EDU | T47: Bitdefender XDR Sensor for MDR - Cloud - GOV | U47: Bitdefender XDR Sensor for MDR - Cloud - R | V47: Bitdefender XDR Sensor for MDR - Cloud - EDU R | W47: Bitdefender XDR Sensor for MDR - Cloud - GOV R | X47: Bitdefender XDR Sensor for MDR - Cloud - CUPG
A48: Add-On | B48: =IF(MDR!$AB$8=$D$1,R48,IF(MDR!$AB$8=$D$2,S48,IF(MDR!$AB$8=$D$3,T48,IF(MDR!$AB$8=$D$4,U48,IF(MDR!$AB$8=$D$5,X48,IF(MDR!$AB$8=$D$6,V48,IF(MDR!$AB$8=$D$7,W48))))))) -> Bitdefender XDR Sensor for MDR - Cloud | C48: 1 year | D48: 150 - 249 | E48: Bitdefender XDR Sensor for MDR - Cloud1 year150 - 249 | G48: 20.04 | H48: =IF(MDR!$AB$8=$D$1,ROUND(G48*$C$3,2),IF(MDR!$AB$8=$D$2,ROUND(G48*$C$3*(1+$T$2),2),IF(MDR!$AB$8=$D$3,ROUND(G48*$C$3*(1+$T$3),2),IF(MDR!$AB$8=$D$4,ROUND(G48*$C$3*(1+$T$4),2),IF(MDR!$AB$8=$D$5,ROUND(G48*$C$3*(1+$T$5),2),IF(MDR!$AB$8=$D$6,ROUND(G48*$C$3*(1+$T$6),2),IF(MDR!$AB$8=$D$7,ROUND(G48*$C$3*(1+$T$7),2)))))))) -> 20.04 | I48: =IF(MDR!$AB$8=$D$1,J48,IF(MDR!$AB$8=$D$2,K48,IF(MDR!$AB$8=$D$3,L48,IF(MDR!$AB$8=$D$4,M48,IF(MDR!$AB$8=$D$5,P48,IF(MDR!$AB$8=$D$6,N48,IF(MDR!$AB$8=$D$7,O48))))))) -> 3118MXBSN120ELZZ | J48: 3118MXBSN120ELZZ | K48: 3118MXBEN120ELZZ | L48: 3118MXBGN120ELZZ | M48: 3118MXBSR120ELZZ | N48: 3118MXBER120ELZZ | O48: 3118MXBGR120ELZZ | P48: 3118MXBCN120ELZZ | R48: Bitdefender XDR Sensor for MDR - Cloud | S48: Bitdefender XDR Sensor for MDR - Cloud - EDU | T48: Bitdefender XDR Sensor for MDR - Cloud - GOV | U48: Bitdefender XDR Sensor for MDR - Cloud - R | V48: Bitdefender XDR Sensor for MDR - Cloud - EDU R | W48: Bitdefender XDR Sensor for MDR - Cloud - GOV R | X48: Bitdefender XDR Sensor for MDR - Cloud - CUPG
A49: Add-On | B49: =IF(MDR!$AB$8=$D$1,R49,IF(MDR!$AB$8=$D$2,S49,IF(MDR!$AB$8=$D$3,T49,IF(MDR!$AB$8=$D$4,U49,IF(MDR!$AB$8=$D$5,X49,IF(MDR!$AB$8=$D$6,V49,IF(MDR!$AB$8=$D$7,W49))))))) -> Bitdefender XDR Sensor for MDR - Cloud | C49: 1 year | D49: 250 - 499 | E49: Bitdefender XDR Sensor for MDR - Cloud1 year250 - 499 | G49: 19.04 | H49: =IF(MDR!$AB$8=$D$1,ROUND(G49*$C$3,2),IF(MDR!$AB$8=$D$2,ROUND(G49*$C$3*(1+$T$2),2),IF(MDR!$AB$8=$D$3,ROUND(G49*$C$3*(1+$T$3),2),IF(MDR!$AB$8=$D$4,ROUND(G49*$C$3*(1+$T$4),2),IF(MDR!$AB$8=$D$5,ROUND(G49*$C$3*(1+$T$5),2),IF(MDR!$AB$8=$D$6,ROUND(G49*$C$3*(1+$T$6),2),IF(MDR!$AB$8=$D$7,ROUND(G49*$C$3*(1+$T$7),2)))))))) -> 19.04 | I49: =IF(MDR!$AB$8=$D$1,J49,IF(MDR!$AB$8=$D$2,K49,IF(MDR!$AB$8=$D$3,L49,IF(MDR!$AB$8=$D$4,M49,IF(MDR!$AB$8=$D$5,P49,IF(MDR!$AB$8=$D$6,N49,IF(MDR!$AB$8=$D$7,O49))))))) -> 3118MXBSN120FLZZ | J49: 3118MXBSN120FLZZ | K49: 3118MXBEN120FLZZ | L49: 3118MXBGN120FLZZ | M49: 3118MXBSR120FLZZ | N49: 3118MXBER120FLZZ | O49: 3118MXBGR120FLZZ | P49: 3118MXBCN120FLZZ | R49: Bitdefender XDR Sensor for MDR - Cloud | S49: Bitdefender XDR Sensor for MDR - Cloud - EDU | T49: Bitdefender XDR Sensor for MDR - Cloud - GOV | U49: Bitdefender XDR Sensor for MDR - Cloud - R | V49: Bitdefender XDR Sensor for MDR - Cloud - EDU R | W49: Bitdefender XDR Sensor for MDR - Cloud - GOV R | X49: Bitdefender XDR Sensor for MDR - Cloud - CUPG
A50: Add-On | B50: =IF(MDR!$AB$8=$D$1,R50,IF(MDR!$AB$8=$D$2,S50,IF(MDR!$AB$8=$D$3,T50,IF(MDR!$AB$8=$D$4,U50,IF(MDR!$AB$8=$D$5,X50,IF(MDR!$AB$8=$D$6,V50,IF(MDR!$AB$8=$D$7,W50))))))) -> Bitdefender XDR Sensor for MDR - Cloud | C50: 1 year | D50: 500 - 999 | E50: Bitdefender XDR Sensor for MDR - Cloud1 year500 - 999 | G50: 17.71 | H50: =IF(MDR!$AB$8=$D$1,ROUND(G50*$C$3,2),IF(MDR!$AB$8=$D$2,ROUND(G50*$C$3*(1+$T$2),2),IF(MDR!$AB$8=$D$3,ROUND(G50*$C$3*(1+$T$3),2),IF(MDR!$AB$8=$D$4,ROUND(G50*$C$3*(1+$T$4),2),IF(MDR!$AB$8=$D$5,ROUND(G50*$C$3*(1+$T$5),2),IF(MDR!$AB$8=$D$6,ROUND(G50*$C$3*(1+$T$6),2),IF(MDR!$AB$8=$D$7,ROUND(G50*$C$3*(1+$T$7),2)))))))) -> 17.71 | I50: =IF(MDR!$AB$8=$D$1,J50,IF(MDR!$AB$8=$D$2,K50,IF(MDR!$AB$8=$D$3,L50,IF(MDR!$AB$8=$D$4,M50,IF(MDR!$AB$8=$D$5,P50,IF(MDR!$AB$8=$D$6,N50,IF(MDR!$AB$8=$D$7,O50))))))) -> 3118MXBSN120GLZZ | J50: 3118MXBSN120GLZZ | K50: 3118MXBEN120GLZZ | L50: 3118MXBGN120GLZZ | M50: 3118MXBSR120GLZZ | N50: 3118MXBER120GLZZ | O50: 3118MXBGR120GLZZ | P50: 3118MXBCN120GLZZ | R50: Bitdefender XDR Sensor for MDR - Cloud | S50: Bitdefender XDR Sensor for MDR - Cloud - EDU | T50: Bitdefender XDR Sensor for MDR - Cloud - GOV | U50: Bitdefender XDR Sensor for MDR - Cloud - R | V50: Bitdefender XDR Sensor for MDR - Cloud - EDU R | W50: Bitdefender XDR Sensor for MDR - Cloud - GOV R | X50: Bitdefender XDR Sensor for MDR - Cloud - CUPG
A51: Add-On | B51: =IF(MDR!$AB$8=$D$1,R51,IF(MDR!$AB$8=$D$2,S51,IF(MDR!$AB$8=$D$3,T51,IF(MDR!$AB$8=$D$4,U51,IF(MDR!$AB$8=$D$5,X51,IF(MDR!$AB$8=$D$6,V51,IF(MDR!$AB$8=$D$7,W51))))))) -> Bitdefender XDR Sensor for MDR - Cloud | C51: 1 year | D51: 1000 - 1999 | E51: Bitdefender XDR Sensor for MDR - Cloud1 year1000 - 1999 | G51: 16.48 | H51: =IF(MDR!$AB$8=$D$1,ROUND(G51*$C$3,2),IF(MDR!$AB$8=$D$2,ROUND(G51*$C$3*(1+$T$2),2),IF(MDR!$AB$8=$D$3,ROUND(G51*$C$3*(1+$T$3),2),IF(MDR!$AB$8=$D$4,ROUND(G51*$C$3*(1+$T$4),2),IF(MDR!$AB$8=$D$5,ROUND(G51*$C$3*(1+$T$5),2),IF(MDR!$AB$8=$D$6,ROUND(G51*$C$3*(1+$T$6),2),IF(MDR!$AB$8=$D$7,ROUND(G51*$C$3*(1+$T$7),2)))))))) -> 16.48 | I51: =IF(MDR!$AB$8=$D$1,J51,IF(MDR!$AB$8=$D$2,K51,IF(MDR!$AB$8=$D$3,L51,IF(MDR!$AB$8=$D$4,M51,IF(MDR!$AB$8=$D$5,P51,IF(MDR!$AB$8=$D$6,N51,IF(MDR!$AB$8=$D$7,O51))))))) -> 3118MXBSN120PLZZ | J51: 3118MXBSN120PLZZ | K51: 3118MXBEN120PLZZ | L51: 3118MXBGN120PLZZ | M51: 3118MXBSR120PLZZ | N51: 3118MXBER120PLZZ | O51: 3118MXBGR120PLZZ | P51: 3118MXBCN120PLZZ | R51: Bitdefender XDR Sensor for MDR - Cloud | S51: =CONCATENATE(R51," - EDU") -> Bitdefender XDR Sensor for MDR - Cloud - EDU | T51: =CONCATENATE(R51," - GOV") -> Bitdefender XDR Sensor for MDR - Cloud - GOV | U51: =CONCATENATE(R51," - R") -> Bitdefender XDR Sensor for MDR - Cloud - R | V51: =CONCATENATE(R51," - EDU R") -> Bitdefender XDR Sensor for MDR - Cloud - EDU R | W51: =CONCATENATE(R51," - GOV R") -> Bitdefender XDR Sensor for MDR - Cloud - GOV R | X51: =CONCATENATE(R51," - CUPG") -> Bitdefender XDR Sensor for MDR - Cloud - CUPG
A52: Add-On | B52: =IF(MDR!$AB$8=$D$1,R52,IF(MDR!$AB$8=$D$2,S52,IF(MDR!$AB$8=$D$3,T52,IF(MDR!$AB$8=$D$4,U52,IF(MDR!$AB$8=$D$5,X52,IF(MDR!$AB$8=$D$6,V52,IF(MDR!$AB$8=$D$7,W52))))))) -> Bitdefender XDR Sensor for MDR - Cloud | C52: 1 year | D52: 2000 - 2999 | E52: Bitdefender XDR Sensor for MDR - Cloud1 year2000 - 2999 | G52: 15.32 | H52: =IF(MDR!$AB$8=$D$1,ROUND(G52*$C$3,2),IF(MDR!$AB$8=$D$2,ROUND(G52*$C$3*(1+$T$2),2),IF(MDR!$AB$8=$D$3,ROUND(G52*$C$3*(1+$T$3),2),IF(MDR!$AB$8=$D$4,ROUND(G52*$C$3*(1+$T$4),2),IF(MDR!$AB$8=$D$5,ROUND(G52*$C$3*(1+$T$5),2),IF(MDR!$AB$8=$D$6,ROUND(G52*$C$3*(1+$T$6),2),IF(MDR!$AB$8=$D$7,ROUND(G52*$C$3*(1+$T$7),2)))))))) -> 15.32 | I52: =IF(MDR!$AB$8=$D$1,J52,IF(MDR!$AB$8=$D$2,K52,IF(MDR!$AB$8=$D$3,L52,IF(MDR!$AB$8=$D$4,M52,IF(MDR!$AB$8=$D$5,P52,IF(MDR!$AB$8=$D$6,N52,IF(MDR!$AB$8=$D$7,O52))))))) -> 3118MXBSN120QLZZ | J52: 3118MXBSN120QLZZ | K52: 3118MXBEN120QLZZ | L52: 3118MXBGN120QLZZ | M52: 3118MXBSR120QLZZ | N52: 3118MXBER120QLZZ | O52: 3118MXBGR120QLZZ | P52: 3118MXBCN120QLZZ | R52: Bitdefender XDR Sensor for MDR - Cloud | S52: Bitdefender XDR Sensor for MDR - Cloud - EDU | T52: Bitdefender XDR Sensor for MDR - Cloud - GOV | U52: Bitdefender XDR Sensor for MDR - Cloud - R | V52: Bitdefender XDR Sensor for MDR - Cloud - EDU R | W52: Bitdefender XDR Sensor for MDR - Cloud - GOV R | X52: Bitdefender XDR Sensor for MDR - Cloud - CUPG
A53: Add-On | B53: =IF(MDR!$AB$8=$D$1,R53,IF(MDR!$AB$8=$D$2,S53,IF(MDR!$AB$8=$D$3,T53,IF(MDR!$AB$8=$D$4,U53,IF(MDR!$AB$8=$D$5,X53,IF(MDR!$AB$8=$D$6,V53,IF(MDR!$AB$8=$D$7,W53))))))) -> Bitdefender XDR Sensor for MDR - Cloud | C53: 1 year | D53: 3000 - 4999 | E53: Bitdefender XDR Sensor for MDR - Cloud1 year3000 - 4999 | G53: 14.25 | H53: =IF(MDR!$AB$8=$D$1,ROUND(G53*$C$3,2),IF(MDR!$AB$8=$D$2,ROUND(G53*$C$3*(1+$T$2),2),IF(MDR!$AB$8=$D$3,ROUND(G53*$C$3*(1+$T$3),2),IF(MDR!$AB$8=$D$4,ROUND(G53*$C$3*(1+$T$4),2),IF(MDR!$AB$8=$D$5,ROUND(G53*$C$3*(1+$T$5),2),IF(MDR!$AB$8=$D$6,ROUND(G53*$C$3*(1+$T$6),2),IF(MDR!$AB$8=$D$7,ROUND(G53*$C$3*(1+$T$7),2)))))))) -> 14.25 | I53: =IF(MDR!$AB$8=$D$1,J53,IF(MDR!$AB$8=$D$2,K53,IF(MDR!$AB$8=$D$3,L53,IF(MDR!$AB$8=$D$4,M53,IF(MDR!$AB$8=$D$5,P53,IF(MDR!$AB$8=$D$6,N53,IF(MDR!$AB$8=$D$7,O53))))))) -> 3118MXBSN120ILZZ | J53: 3118MXBSN120ILZZ | K53: 3118MXBEN120ILZZ | L53: 3118MXBGN120ILZZ | M53: 3118MXBSR120ILZZ | N53: 3118MXBER120ILZZ | O53: 3118MXBGR120ILZZ | P53: 3118MXBCN120ILZZ | R53: Bitdefender XDR Sensor for MDR - Cloud | S53: Bitdefender XDR Sensor for MDR - Cloud - EDU | T53: Bitdefender XDR Sensor for MDR - Cloud - GOV | U53: Bitdefender XDR Sensor for MDR - Cloud - R | V53: Bitdefender XDR Sensor for MDR - Cloud - EDU R | W53: Bitdefender XDR Sensor for MDR - Cloud - GOV R | X53: Bitdefender XDR Sensor for MDR - Cloud - CUPG
A54: Add-On | B54: =IF(MDR!$AB$8=$D$1,R54,IF(MDR!$AB$8=$D$2,S54,IF(MDR!$AB$8=$D$3,T54,IF(MDR!$AB$8=$D$4,U54,IF(MDR!$AB$8=$D$5,X54,IF(MDR!$AB$8=$D$6,V54,IF(MDR!$AB$8=$D$7,W54))))))) -> Bitdefender XDR Sensor for MDR - Cloud | C54: 1 year | D54: 5000+ | E54: Bitdefender XDR Sensor for MDR - Cloud1 year5000+ | G54: 13.24 | H54: =IF(MDR!$AB$8=$D$1,ROUND(G54*$C$3,2),IF(MDR!$AB$8=$D$2,ROUND(G54*$C$3*(1+$T$2),2),IF(MDR!$AB$8=$D$3,ROUND(G54*$C$3*(1+$T$3),2),IF(MDR!$AB$8=$D$4,ROUND(G54*$C$3*(1+$T$4),2),IF(MDR!$AB$8=$D$5,ROUND(G54*$C$3*(1+$T$5),2),IF(MDR!$AB$8=$D$6,ROUND(G54*$C$3*(1+$T$6),2),IF(MDR!$AB$8=$D$7,ROUND(G54*$C$3*(1+$T$7),2)))))))) -> 13.24 | I54: =IF(MDR!$AB$8=$D$1,J54,IF(MDR!$AB$8=$D$2,K54,IF(MDR!$AB$8=$D$3,L54,IF(MDR!$AB$8=$D$4,M54,IF(MDR!$AB$8=$D$5,P54,IF(MDR!$AB$8=$D$6,N54,IF(MDR!$AB$8=$D$7,O54))))))) -> 3118MXBSN120JLZZ | J54: 3118MXBSN120JLZZ | K54: 3118MXBEN120JLZZ | L54: 3118MXBGN120JLZZ | M54: 3118MXBSR120JLZZ | N54: 3118MXBER120JLZZ | O54: 3118MXBGR120JLZZ | P54: 3118MXBCN120JLZZ | R54: Bitdefender XDR Sensor for MDR - Cloud | S54: Bitdefender XDR Sensor for MDR - Cloud - EDU | T54: Bitdefender XDR Sensor for MDR - Cloud - GOV | U54: Bitdefender XDR Sensor for MDR - Cloud - R | V54: Bitdefender XDR Sensor for MDR - Cloud - EDU R | W54: Bitdefender XDR Sensor for MDR - Cloud - GOV R | X54: Bitdefender XDR Sensor for MDR - Cloud - CUPG
A55: Add-On | B55: =IF(MDR!$AB$8=$D$1,R55,IF(MDR!$AB$8=$D$2,S55,IF(MDR!$AB$8=$D$3,T55,IF(MDR!$AB$8=$D$4,U55,IF(MDR!$AB$8=$D$5,X55,IF(MDR!$AB$8=$D$6,V55,IF(MDR!$AB$8=$D$7,W55))))))) -> Bitdefender XDR Sensor for MDR - Cloud | C55: 2 years | D55: 50 - 99 | E55: Bitdefender XDR Sensor for MDR - Cloud2 years50 - 99 | G55: 38.26 | H55: =IF(MDR!$AB$8=$D$1,ROUND(G55*$C$3,2),IF(MDR!$AB$8=$D$2,ROUND(G55*$C$3*(1+$T$2),2),IF(MDR!$AB$8=$D$3,ROUND(G55*$C$3*(1+$T$3),2),IF(MDR!$AB$8=$D$4,ROUND(G55*$C$3*(1+$T$4),2),IF(MDR!$AB$8=$D$5,ROUND(G55*$C$3*(1+$T$5),2),IF(MDR!$AB$8=$D$6,ROUND(G55*$C$3*(1+$T$6),2),IF(MDR!$AB$8=$D$7,ROUND(G55*$C$3*(1+$T$7),2)))))))) -> 38.26 | I55: =IF(MDR!$AB$8=$D$1,J55,IF(MDR!$AB$8=$D$2,K55,IF(MDR!$AB$8=$D$3,L55,IF(MDR!$AB$8=$D$4,M55,IF(MDR!$AB$8=$D$5,P55,IF(MDR!$AB$8=$D$6,N55,IF(MDR!$AB$8=$D$7,O55))))))) -> 3118MXBSN240CLZZ | J55: 3118MXBSN240CLZZ | K55: 3118MXBEN240CLZZ | L55: 3118MXBGN240CLZZ | M55: 3118MXBSR240CLZZ | N55: 3118MXBER240CLZZ | O55: 3118MXBGR240CLZZ | P55: 3118MXBCN240CLZZ | R55: Bitdefender XDR Sensor for MDR - Cloud | S55: Bitdefender XDR Sensor for MDR - Cloud - EDU | T55: Bitdefender XDR Sensor for MDR - Cloud - GOV | U55: Bitdefender XDR Sensor for MDR - Cloud - R | V55: Bitdefender XDR Sensor for MDR - Cloud - EDU R | W55: Bitdefender XDR Sensor for MDR - Cloud - GOV R | X55: Bitdefender XDR Sensor for MDR - Cloud - CUPG
A56: Add-On | B56: =IF(MDR!$AB$8=$D$1,R56,IF(MDR!$AB$8=$D$2,S56,IF(MDR!$AB$8=$D$3,T56,IF(MDR!$AB$8=$D$4,U56,IF(MDR!$AB$8=$D$5,X56,IF(MDR!$AB$8=$D$6,V56,IF(MDR!$AB$8=$D$7,W56))))))) -> Bitdefender XDR Sensor for MDR - Cloud | C56: 2 years | D56: 100 - 149 | E56: Bitdefender XDR Sensor for MDR - Cloud2 years100 - 149 | G56: 35.57 | H56: =IF(MDR!$AB$8=$D$1,ROUND(G56*$C$3,2),IF(MDR!$AB$8=$D$2,ROUND(G56*$C$3*(1+$T$2),2),IF(MDR!$AB$8=$D$3,ROUND(G56*$C$3*(1+$T$3),2),IF(MDR!$AB$8=$D$4,ROUND(G56*$C$3*(1+$T$4),2),IF(MDR!$AB$8=$D$5,ROUND(G56*$C$3*(1+$T$5),2),IF(MDR!$AB$8=$D$6,ROUND(G56*$C$3*(1+$T$6),2),IF(MDR!$AB$8=$D$7,ROUND(G56*$C$3*(1+$T$7),2)))))))) -> 35.57 | I56: =IF(MDR!$AB$8=$D$1,J56,IF(MDR!$AB$8=$D$2,K56,IF(MDR!$AB$8=$D$3,L56,IF(MDR!$AB$8=$D$4,M56,IF(MDR!$AB$8=$D$5,P56,IF(MDR!$AB$8=$D$6,N56,IF(MDR!$AB$8=$D$7,O56))))))) -> 3118MXBSN240DLZZ | J56: 3118MXBSN240DLZZ | K56: 3118MXBEN240DLZZ | L56: 3118MXBGN240DLZZ | M56: 3118MXBSR240DLZZ | N56: 3118MXBER240DLZZ | O56: 3118MXBGR240DLZZ | P56: 3118MXBCN240DLZZ | R56: Bitdefender XDR Sensor for MDR - Cloud | S56: Bitdefender XDR Sensor for MDR - Cloud - EDU | T56: Bitdefender XDR Sensor for MDR - Cloud - GOV | U56: Bitdefender XDR Sensor for MDR - Cloud - R | V56: Bitdefender XDR Sensor for MDR - Cloud - EDU R | W56: Bitdefender XDR Sensor for MDR - Cloud - GOV R | X56: Bitdefender XDR Sensor for MDR - Cloud - CUPG
A57: Add-On | B57: =IF(MDR!$AB$8=$D$1,R57,IF(MDR!$AB$8=$D$2,S57,IF(MDR!$AB$8=$D$3,T57,IF(MDR!$AB$8=$D$4,U57,IF(MDR!$AB$8=$D$5,X57,IF(MDR!$AB$8=$D$6,V57,IF(MDR!$AB$8=$D$7,W57))))))) -> Bitdefender XDR Sensor for MDR - Cloud | C57: 2 years | D57: 150 - 249 | E57: Bitdefender XDR Sensor for MDR - Cloud2 years150 - 249 | G57: 33.08 | H57: =IF(MDR!$AB$8=$D$1,ROUND(G57*$C$3,2),IF(MDR!$AB$8=$D$2,ROUND(G57*$C$3*(1+$T$2),2),IF(MDR!$AB$8=$D$3,ROUND(G57*$C$3*(1+$T$3),2),IF(MDR!$AB$8=$D$4,ROUND(G57*$C$3*(1+$T$4),2),IF(MDR!$AB$8=$D$5,ROUND(G57*$C$3*(1+$T$5),2),IF(MDR!$AB$8=$D$6,ROUND(G57*$C$3*(1+$T$6),2),IF(MDR!$AB$8=$D$7,ROUND(G57*$C$3*(1+$T$7),2)))))))) -> 33.08 | I57: =IF(MDR!$AB$8=$D$1,J57,IF(MDR!$AB$8=$D$2,K57,IF(MDR!$AB$8=$D$3,L57,IF(MDR!$AB$8=$D$4,M57,IF(MDR!$AB$8=$D$5,P57,IF(MDR!$AB$8=$D$6,N57,IF(MDR!$AB$8=$D$7,O57))))))) -> 3118MXBSN240ELZZ | J57: 3118MXBSN240ELZZ | K57: 3118MXBEN240ELZZ | L57: 3118MXBGN240ELZZ | M57: 3118MXBSR240ELZZ | N57: 3118MXBER240ELZZ | O57: 3118MXBGR240ELZZ | P57: 3118MXBCN240ELZZ | R57: Bitdefender XDR Sensor for MDR - Cloud | S57: Bitdefender XDR Sensor for MDR - Cloud - EDU | T57: Bitdefender XDR Sensor for MDR - Cloud - GOV | U57: Bitdefender XDR Sensor for MDR - Cloud - R | V57: Bitdefender XDR Sensor for MDR - Cloud - EDU R | W57: Bitdefender XDR Sensor for MDR - Cloud - GOV R | X57: Bitdefender XDR Sensor for MDR - Cloud - CUPG
A58: Add-On | B58: =IF(MDR!$AB$8=$D$1,R58,IF(MDR!$AB$8=$D$2,S58,IF(MDR!$AB$8=$D$3,T58,IF(MDR!$AB$8=$D$4,U58,IF(MDR!$AB$8=$D$5,X58,IF(MDR!$AB$8=$D$6,V58,IF(MDR!$AB$8=$D$7,W58))))))) -> Bitdefender XDR Sensor for MDR - Cloud | C58: 2 years | D58: 250 - 499 | E58: Bitdefender XDR Sensor for MDR - Cloud2 years250 - 499 | G58: 31.44 | H58: =IF(MDR!$AB$8=$D$1,ROUND(G58*$C$3,2),IF(MDR!$AB$8=$D$2,ROUND(G58*$C$3*(1+$T$2),2),IF(MDR!$AB$8=$D$3,ROUND(G58*$C$3*(1+$T$3),2),IF(MDR!$AB$8=$D$4,ROUND(G58*$C$3*(1+$T$4),2),IF(MDR!$AB$8=$D$5,ROUND(G58*$C$3*(1+$T$5),2),IF(MDR!$AB$8=$D$6,ROUND(G58*$C$3*(1+$T$6),2),IF(MDR!$AB$8=$D$7,ROUND(G58*$C$3*(1+$T$7),2)))))))) -> 31.44 | I58: =IF(MDR!$AB$8=$D$1,J58,IF(MDR!$AB$8=$D$2,K58,IF(MDR!$AB$8=$D$3,L58,IF(MDR!$AB$8=$D$4,M58,IF(MDR!$AB$8=$D$5,P58,IF(MDR!$AB$8=$D$6,N58,IF(MDR!$AB$8=$D$7,O58))))))) -> 3118MXBSN240FLZZ | J58: 3118MXBSN240FLZZ | K58: 3118MXBEN240FLZZ | L58: 3118MXBGN240FLZZ | M58: 3118MXBSR240FLZZ | N58: 3118MXBER240FLZZ | O58: 3118MXBGR240FLZZ | P58: 3118MXBCN240FLZZ | R58: Bitdefender XDR Sensor for MDR - Cloud | S58: Bitdefender XDR Sensor for MDR - Cloud - EDU | T58: Bitdefender XDR Sensor for MDR - Cloud - GOV | U58: Bitdefender XDR Sensor for MDR - Cloud - R | V58: Bitdefender XDR Sensor for MDR - Cloud - EDU R | W58: Bitdefender XDR Sensor for MDR - Cloud - GOV R | X58: Bitdefender XDR Sensor for MDR - Cloud - CUPG
A59: Add-On | B59: =IF(MDR!$AB$8=$D$1,R59,IF(MDR!$AB$8=$D$2,S59,IF(MDR!$AB$8=$D$3,T59,IF(MDR!$AB$8=$D$4,U59,IF(MDR!$AB$8=$D$5,X59,IF(MDR!$AB$8=$D$6,V59,IF(MDR!$AB$8=$D$7,W59))))))) -> Bitdefender XDR Sensor for MDR - Cloud | C59: 2 years | D59: 500 - 999 | E59: Bitdefender XDR Sensor for MDR - Cloud2 years500 - 999 | G59: 29.23 | H59: =IF(MDR!$AB$8=$D$1,ROUND(G59*$C$3,2),IF(MDR!$AB$8=$D$2,ROUND(G59*$C$3*(1+$T$2),2),IF(MDR!$AB$8=$D$3,ROUND(G59*$C$3*(1+$T$3),2),IF(MDR!$AB$8=$D$4,ROUND(G59*$C$3*(1+$T$4),2),IF(MDR!$AB$8=$D$5,ROUND(G59*$C$3*(1+$T$5),2),IF(MDR!$AB$8=$D$6,ROUND(G59*$C$3*(1+$T$6),2),IF(MDR!$AB$8=$D$7,ROUND(G59*$C$3*(1+$T$7),2)))))))) -> 29.23 | I59: =IF(MDR!$AB$8=$D$1,J59,IF(MDR!$AB$8=$D$2,K59,IF(MDR!$AB$8=$D$3,L59,IF(MDR!$AB$8=$D$4,M59,IF(MDR!$AB$8=$D$5,P59,IF(MDR!$AB$8=$D$6,N59,IF(MDR!$AB$8=$D$7,O59))))))) -> 3118MXBSN240GLZZ | J59: 3118MXBSN240GLZZ | K59: 3118MXBEN240GLZZ | L59: 3118MXBGN240GLZZ | M59: 3118MXBSR240GLZZ | N59: 3118MXBER240GLZZ | O59: 3118MXBGR240GLZZ | P59: 3118MXBCN240GLZZ | R59: Bitdefender XDR Sensor for MDR - Cloud | S59: Bitdefender XDR Sensor for MDR - Cloud - EDU | T59: Bitdefender XDR Sensor for MDR - Cloud - GOV | U59: Bitdefender XDR Sensor for MDR - Cloud - R | V59: Bitdefender XDR Sensor for MDR - Cloud - EDU R | W59: Bitdefender XDR Sensor for MDR - Cloud - GOV R | X59: Bitdefender XDR Sensor for MDR - Cloud - CUPG
A60: Add-On | B60: =IF(MDR!$AB$8=$D$1,R60,IF(MDR!$AB$8=$D$2,S60,IF(MDR!$AB$8=$D$3,T60,IF(MDR!$AB$8=$D$4,U60,IF(MDR!$AB$8=$D$5,X60,IF(MDR!$AB$8=$D$6,V60,IF(MDR!$AB$8=$D$7,W60))))))) -> Bitdefender XDR Sensor for MDR - Cloud | C60: 2 years | D60: 1000 - 1999 | E60: Bitdefender XDR Sensor for MDR - Cloud2 years1000 - 1999 | G60: 27.19 | H60: =IF(MDR!$AB$8=$D$1,ROUND(G60*$C$3,2),IF(MDR!$AB$8=$D$2,ROUND(G60*$C$3*(1+$T$2),2),IF(MDR!$AB$8=$D$3,ROUND(G60*$C$3*(1+$T$3),2),IF(MDR!$AB$8=$D$4,ROUND(G60*$C$3*(1+$T$4),2),IF(MDR!$AB$8=$D$5,ROUND(G60*$C$3*(1+$T$5),2),IF(MDR!$AB$8=$D$6,ROUND(G60*$C$3*(1+$T$6),2),IF(MDR!$AB$8=$D$7,ROUND(G60*$C$3*(1+$T$7),2)))))))) -> 27.19 | I60: =IF(MDR!$AB$8=$D$1,J60,IF(MDR!$AB$8=$D$2,K60,IF(MDR!$AB$8=$D$3,L60,IF(MDR!$AB$8=$D$4,M60,IF(MDR!$AB$8=$D$5,P60,IF(MDR!$AB$8=$D$6,N60,IF(MDR!$AB$8=$D$7,O60))))))) -> 3118MXBSN240PLZZ | J60: 3118MXBSN240PLZZ | K60: 3118MXBEN240PLZZ | L60: 3118MXBGN240PLZZ | M60: 3118MXBSR240PLZZ | N60: 3118MXBER240PLZZ | O60: 3118MXBGR240PLZZ | P60: 3118MXBCN240PLZZ | R60: Bitdefender XDR Sensor for MDR - Cloud | S60: Bitdefender XDR Sensor for MDR - Cloud - EDU | T60: Bitdefender XDR Sensor for MDR - Cloud - GOV | U60: Bitdefender XDR Sensor for MDR - Cloud - R | V60: Bitdefender XDR Sensor for MDR - Cloud - EDU R | W60: Bitdefender XDR Sensor for MDR - Cloud - GOV R | X60: Bitdefender XDR Sensor for MDR - Cloud - CUPG
A61: Add-On | B61: =IF(MDR!$AB$8=$D$1,R61,IF(MDR!$AB$8=$D$2,S61,IF(MDR!$AB$8=$D$3,T61,IF(MDR!$AB$8=$D$4,U61,IF(MDR!$AB$8=$D$5,X61,IF(MDR!$AB$8=$D$6,V61,IF(MDR!$AB$8=$D$7,W61))))))) -> Bitdefender XDR Sensor for MDR - Cloud | C61: 2 years | D61: 2000 - 2999 | E61: Bitdefender XDR Sensor for MDR - Cloud2 years2000 - 2999 | G61: 25.28 | H61: =IF(MDR!$AB$8=$D$1,ROUND(G61*$C$3,2),IF(MDR!$AB$8=$D$2,ROUND(G61*$C$3*(1+$T$2),2),IF(MDR!$AB$8=$D$3,ROUND(G61*$C$3*(1+$T$3),2),IF(MDR!$AB$8=$D$4,ROUND(G61*$C$3*(1+$T$4),2),IF(MDR!$AB$8=$D$5,ROUND(G61*$C$3*(1+$T$5),2),IF(MDR!$AB$8=$D$6,ROUND(G61*$C$3*(1+$T$6),2),IF(MDR!$AB$8=$D$7,ROUND(G61*$C$3*(1+$T$7),2)))))))) -> 25.28 | I61: =IF(MDR!$AB$8=$D$1,J61,IF(MDR!$AB$8=$D$2,K61,IF(MDR!$AB$8=$D$3,L61,IF(MDR!$AB$8=$D$4,M61,IF(MDR!$AB$8=$D$5,P61,IF(MDR!$AB$8=$D$6,N61,IF(MDR!$AB$8=$D$7,O61))))))) -> 3118MXBSN240QLZZ | J61: 3118MXBSN240QLZZ | K61: 3118MXBEN240QLZZ | L61: 3118MXBGN240QLZZ | M61: 3118MXBSR240QLZZ | N61: 3118MXBER240QLZZ | O61: 3118MXBGR240QLZZ | P61: 3118MXBCN240QLZZ | R61: Bitdefender XDR Sensor for MDR - Cloud | S61: Bitdefender XDR Sensor for MDR - Cloud - EDU | T61: Bitdefender XDR Sensor for MDR - Cloud - GOV | U61: Bitdefender XDR Sensor for MDR - Cloud - R | V61: Bitdefender XDR Sensor for MDR - Cloud - EDU R | W61: Bitdefender XDR Sensor for MDR - Cloud - GOV R | X61: Bitdefender XDR Sensor for MDR - Cloud - CUPG
A62: Add-On | B62: =IF(MDR!$AB$8=$D$1,R62,IF(MDR!$AB$8=$D$2,S62,IF(MDR!$AB$8=$D$3,T62,IF(MDR!$AB$8=$D$4,U62,IF(MDR!$AB$8=$D$5,X62,IF(MDR!$AB$8=$D$6,V62,IF(MDR!$AB$8=$D$7,W62))))))) -> Bitdefender XDR Sensor for MDR - Cloud | C62: 2 years | D62: 3000 - 4999 | E62: Bitdefender XDR Sensor for MDR - Cloud2 years3000 - 4999 | G62: 23.52 | H62: =IF(MDR!$AB$8=$D$1,ROUND(G62*$C$3,2),IF(MDR!$AB$8=$D$2,ROUND(G62*$C$3*(1+$T$2),2),IF(MDR!$AB$8=$D$3,ROUND(G62*$C$3*(1+$T$3),2),IF(MDR!$AB$8=$D$4,ROUND(G62*$C$3*(1+$T$4),2),IF(MDR!$AB$8=$D$5,ROUND(G62*$C$3*(1+$T$5),2),IF(MDR!$AB$8=$D$6,ROUND(G62*$C$3*(1+$T$6),2),IF(MDR!$AB$8=$D$7,ROUND(G62*$C$3*(1+$T$7),2)))))))) -> 23.52 | I62: =IF(MDR!$AB$8=$D$1,J62,IF(MDR!$AB$8=$D$2,K62,IF(MDR!$AB$8=$D$3,L62,IF(MDR!$AB$8=$D$4,M62,IF(MDR!$AB$8=$D$5,P62,IF(MDR!$AB$8=$D$6,N62,IF(MDR!$AB$8=$D$7,O62))))))) -> 3118MXBSN240ILZZ | J62: 3118MXBSN240ILZZ | K62: 3118MXBEN240ILZZ | L62: 3118MXBGN240ILZZ | M62: 3118MXBSR240ILZZ | N62: 3118MXBER240ILZZ | O62: 3118MXBGR240ILZZ | P62: 3118MXBCN240ILZZ | R62: Bitdefender XDR Sensor for MDR - Cloud | S62: Bitdefender XDR Sensor for MDR - Cloud - EDU | T62: Bitdefender XDR Sensor for MDR - Cloud - GOV | U62: Bitdefender XDR Sensor for MDR - Cloud - R | V62: Bitdefender XDR Sensor for MDR - Cloud - EDU R | W62: Bitdefender XDR Sensor for MDR - Cloud - GOV R | X62: Bitdefender XDR Sensor for MDR - Cloud - CUPG
A63: Add-On | B63: =IF(MDR!$AB$8=$D$1,R63,IF(MDR!$AB$8=$D$2,S63,IF(MDR!$AB$8=$D$3,T63,IF(MDR!$AB$8=$D$4,U63,IF(MDR!$AB$8=$D$5,X63,IF(MDR!$AB$8=$D$6,V63,IF(MDR!$AB$8=$D$7,W63))))))) -> Bitdefender XDR Sensor for MDR - Cloud | C63: 2 years | D63: 5000+ | E63: Bitdefender XDR Sensor for MDR - Cloud2 years5000+ | G63: 21.87 | H63: =IF(MDR!$AB$8=$D$1,ROUND(G63*$C$3,2),IF(MDR!$AB$8=$D$2,ROUND(G63*$C$3*(1+$T$2),2),IF(MDR!$AB$8=$D$3,ROUND(G63*$C$3*(1+$T$3),2),IF(MDR!$AB$8=$D$4,ROUND(G63*$C$3*(1+$T$4),2),IF(MDR!$AB$8=$D$5,ROUND(G63*$C$3*(1+$T$5),2),IF(MDR!$AB$8=$D$6,ROUND(G63*$C$3*(1+$T$6),2),IF(MDR!$AB$8=$D$7,ROUND(G63*$C$3*(1+$T$7),2)))))))) -> 21.87 | I63: =IF(MDR!$AB$8=$D$1,J63,IF(MDR!$AB$8=$D$2,K63,IF(MDR!$AB$8=$D$3,L63,IF(MDR!$AB$8=$D$4,M63,IF(MDR!$AB$8=$D$5,P63,IF(MDR!$AB$8=$D$6,N63,IF(MDR!$AB$8=$D$7,O63))))))) -> 3118MXBSN240JLZZ | J63: 3118MXBSN240JLZZ | K63: 3118MXBEN240JLZZ | L63: 3118MXBGN240JLZZ | M63: 3118MXBSR240JLZZ | N63: 3118MXBER240JLZZ | O63: 3118MXBGR240JLZZ | P63: 3118MXBCN240JLZZ | R63: Bitdefender XDR Sensor for MDR - Cloud | S63: Bitdefender XDR Sensor for MDR - Cloud - EDU | T63: Bitdefender XDR Sensor for MDR - Cloud - GOV | U63: Bitdefender XDR Sensor for MDR - Cloud - R | V63: Bitdefender XDR Sensor for MDR - Cloud - EDU R | W63: Bitdefender XDR Sensor for MDR - Cloud - GOV R | X63: Bitdefender XDR Sensor for MDR - Cloud - CUPG
A64: Add-On | B64: =IF(MDR!$AB$8=$D$1,R64,IF(MDR!$AB$8=$D$2,S64,IF(MDR!$AB$8=$D$3,T64,IF(MDR!$AB$8=$D$4,U64,IF(MDR!$AB$8=$D$5,X64,IF(MDR!$AB$8=$D$6,V64,IF(MDR!$AB$8=$D$7,W64))))))) -> Bitdefender XDR Sensor for MDR - Cloud | C64: 3 years | D64: 50 - 99 | E64: Bitdefender XDR Sensor for MDR - Cloud3 years50 - 99 | G64: 53.33 | H64: =IF(MDR!$AB$8=$D$1,ROUND(G64*$C$3,2),IF(MDR!$AB$8=$D$2,ROUND(G64*$C$3*(1+$T$2),2),IF(MDR!$AB$8=$D$3,ROUND(G64*$C$3*(1+$T$3),2),IF(MDR!$AB$8=$D$4,ROUND(G64*$C$3*(1+$T$4),2),IF(MDR!$AB$8=$D$5,ROUND(G64*$C$3*(1+$T$5),2),IF(MDR!$AB$8=$D$6,ROUND(G64*$C$3*(1+$T$6),2),IF(MDR!$AB$8=$D$7,ROUND(G64*$C$3*(1+$T$7),2)))))))) -> 53.33 | I64: =IF(MDR!$AB$8=$D$1,J64,IF(MDR!$AB$8=$D$2,K64,IF(MDR!$AB$8=$D$3,L64,IF(MDR!$AB$8=$D$4,M64,IF(MDR!$AB$8=$D$5,P64,IF(MDR!$AB$8=$D$6,N64,IF(MDR!$AB$8=$D$7,O64))))))) -> 3118MXBSN360CLZZ | J64: 3118MXBSN360CLZZ | K64: 3118MXBEN360CLZZ | L64: 3118MXBGN360CLZZ | M64: 3118MXBSR360CLZZ | N64: 3118MXBER360CLZZ | O64: 3118MXBGR360CLZZ | P64: 3118MXBCN360CLZZ | R64: Bitdefender XDR Sensor for MDR - Cloud | S64: Bitdefender XDR Sensor for MDR - Cloud - EDU | T64: Bitdefender XDR Sensor for MDR - Cloud - GOV | U64: Bitdefender XDR Sensor for MDR - Cloud - R | V64: Bitdefender XDR Sensor for MDR - Cloud - EDU R | W64: Bitdefender XDR Sensor for MDR - Cloud - GOV R | X64: Bitdefender XDR Sensor for MDR - Cloud - CUPG
A65: Add-On | B65: =IF(MDR!$AB$8=$D$1,R65,IF(MDR!$AB$8=$D$2,S65,IF(MDR!$AB$8=$D$3,T65,IF(MDR!$AB$8=$D$4,U65,IF(MDR!$AB$8=$D$5,X65,IF(MDR!$AB$8=$D$6,V65,IF(MDR!$AB$8=$D$7,W65))))))) -> Bitdefender XDR Sensor for MDR - Cloud | C65: 3 years | D65: 100 - 149 | E65: Bitdefender XDR Sensor for MDR - Cloud3 years100 - 149 | G65: 49.59 | H65: =IF(MDR!$AB$8=$D$1,ROUND(G65*$C$3,2),IF(MDR!$AB$8=$D$2,ROUND(G65*$C$3*(1+$T$2),2),IF(MDR!$AB$8=$D$3,ROUND(G65*$C$3*(1+$T$3),2),IF(MDR!$AB$8=$D$4,ROUND(G65*$C$3*(1+$T$4),2),IF(MDR!$AB$8=$D$5,ROUND(G65*$C$3*(1+$T$5),2),IF(MDR!$AB$8=$D$6,ROUND(G65*$C$3*(1+$T$6),2),IF(MDR!$AB$8=$D$7,ROUND(G65*$C$3*(1+$T$7),2)))))))) -> 49.59 | I65: =IF(MDR!$AB$8=$D$1,J65,IF(MDR!$AB$8=$D$2,K65,IF(MDR!$AB$8=$D$3,L65,IF(MDR!$AB$8=$D$4,M65,IF(MDR!$AB$8=$D$5,P65,IF(MDR!$AB$8=$D$6,N65,IF(MDR!$AB$8=$D$7,O65))))))) -> 3118MXBSN360DLZZ | J65: 3118MXBSN360DLZZ | K65: 3118MXBEN360DLZZ | L65: 3118MXBGN360DLZZ | M65: 3118MXBSR360DLZZ | N65: 3118MXBER360DLZZ | O65: 3118MXBGR360DLZZ | P65: 3118MXBCN360DLZZ | R65: Bitdefender XDR Sensor for MDR - Cloud | S65: Bitdefender XDR Sensor for MDR - Cloud - EDU | T65: Bitdefender XDR Sensor for MDR - Cloud - GOV | U65: Bitdefender XDR Sensor for MDR - Cloud - R | V65: Bitdefender XDR Sensor for MDR - Cloud - EDU R | W65: Bitdefender XDR Sensor for MDR - Cloud - GOV R | X65: Bitdefender XDR Sensor for MDR - Cloud - CUPG
A66: Add-On | B66: =IF(MDR!$AB$8=$D$1,R66,IF(MDR!$AB$8=$D$2,S66,IF(MDR!$AB$8=$D$3,T66,IF(MDR!$AB$8=$D$4,U66,IF(MDR!$AB$8=$D$5,X66,IF(MDR!$AB$8=$D$6,V66,IF(MDR!$AB$8=$D$7,W66))))))) -> Bitdefender XDR Sensor for MDR - Cloud | C66: 3 years | D66: 150 - 249 | E66: Bitdefender XDR Sensor for MDR - Cloud3 years150 - 249 | G66: 46.11 | H66: =IF(MDR!$AB$8=$D$1,ROUND(G66*$C$3,2),IF(MDR!$AB$8=$D$2,ROUND(G66*$C$3*(1+$T$2),2),IF(MDR!$AB$8=$D$3,ROUND(G66*$C$3*(1+$T$3),2),IF(MDR!$AB$8=$D$4,ROUND(G66*$C$3*(1+$T$4),2),IF(MDR!$AB$8=$D$5,ROUND(G66*$C$3*(1+$T$5),2),IF(MDR!$AB$8=$D$6,ROUND(G66*$C$3*(1+$T$6),2),IF(MDR!$AB$8=$D$7,ROUND(G66*$C$3*(1+$T$7),2)))))))) -> 46.11 | I66: =IF(MDR!$AB$8=$D$1,J66,IF(MDR!$AB$8=$D$2,K66,IF(MDR!$AB$8=$D$3,L66,IF(MDR!$AB$8=$D$4,M66,IF(MDR!$AB$8=$D$5,P66,IF(MDR!$AB$8=$D$6,N66,IF(MDR!$AB$8=$D$7,O66))))))) -> 3118MXBSN360ELZZ | J66: 3118MXBSN360ELZZ | K66: 3118MXBEN360ELZZ | L66: 3118MXBGN360ELZZ | M66: 3118MXBSR360ELZZ | N66: 3118MXBER360ELZZ | O66: 3118MXBGR360ELZZ | P66: 3118MXBCN360ELZZ | R66: Bitdefender XDR Sensor for MDR - Cloud | S66: Bitdefender XDR Sensor for MDR - Cloud - EDU | T66: Bitdefender XDR Sensor for MDR - Cloud - GOV | U66: Bitdefender XDR Sensor for MDR - Cloud - R | V66: Bitdefender XDR Sensor for MDR - Cloud - EDU R | W66: Bitdefender XDR Sensor for MDR - Cloud - GOV R | X66: Bitdefender XDR Sensor for MDR - Cloud - CUPG
A67: Add-On | B67: =IF(MDR!$AB$8=$D$1,R67,IF(MDR!$AB$8=$D$2,S67,IF(MDR!$AB$8=$D$3,T67,IF(MDR!$AB$8=$D$4,U67,IF(MDR!$AB$8=$D$5,X67,IF(MDR!$AB$8=$D$6,V67,IF(MDR!$AB$8=$D$7,W67))))))) -> Bitdefender XDR Sensor for MDR - Cloud | C67: 3 years | D67: 250 - 499 | E67: Bitdefender XDR Sensor for MDR - Cloud3 years250 - 499 | G67: 43.81 | H67: =IF(MDR!$AB$8=$D$1,ROUND(G67*$C$3,2),IF(MDR!$AB$8=$D$2,ROUND(G67*$C$3*(1+$T$2),2),IF(MDR!$AB$8=$D$3,ROUND(G67*$C$3*(1+$T$3),2),IF(MDR!$AB$8=$D$4,ROUND(G67*$C$3*(1+$T$4),2),IF(MDR!$AB$8=$D$5,ROUND(G67*$C$3*(1+$T$5),2),IF(MDR!$AB$8=$D$6,ROUND(G67*$C$3*(1+$T$6),2),IF(MDR!$AB$8=$D$7,ROUND(G67*$C$3*(1+$T$7),2)))))))) -> 43.81 | I67: =IF(MDR!$AB$8=$D$1,J67,IF(MDR!$AB$8=$D$2,K67,IF(MDR!$AB$8=$D$3,L67,IF(MDR!$AB$8=$D$4,M67,IF(MDR!$AB$8=$D$5,P67,IF(MDR!$AB$8=$D$6,N67,IF(MDR!$AB$8=$D$7,O67))))))) -> 3118MXBSN360FLZZ | J67: 3118MXBSN360FLZZ | K67: 3118MXBEN360FLZZ | L67: 3118MXBGN360FLZZ | M67: 3118MXBSR360FLZZ | N67: 3118MXBER360FLZZ | O67: 3118MXBGR360FLZZ | P67: 3118MXBCN360FLZZ | R67: Bitdefender XDR Sensor for MDR - Cloud | S67: Bitdefender XDR Sensor for MDR - Cloud - EDU | T67: Bitdefender XDR Sensor for MDR - Cloud - GOV | U67: Bitdefender XDR Sensor for MDR - Cloud - R | V67: Bitdefender XDR Sensor for MDR - Cloud - EDU R | W67: Bitdefender XDR Sensor for MDR - Cloud - GOV R | X67: Bitdefender XDR Sensor for MDR - Cloud - CUPG
A68: Add-On | B68: =IF(MDR!$AB$8=$D$1,R68,IF(MDR!$AB$8=$D$2,S68,IF(MDR!$AB$8=$D$3,T68,IF(MDR!$AB$8=$D$4,U68,IF(MDR!$AB$8=$D$5,X68,IF(MDR!$AB$8=$D$6,V68,IF(MDR!$AB$8=$D$7,W68))))))) -> Bitdefender XDR Sensor for MDR - Cloud | C68: 3 years | D68: 500 - 999 | E68: Bitdefender XDR Sensor for MDR - Cloud3 years500 - 999 | G68: 40.73 | H68: =IF(MDR!$AB$8=$D$1,ROUND(G68*$C$3,2),IF(MDR!$AB$8=$D$2,ROUND(G68*$C$3*(1+$T$2),2),IF(MDR!$AB$8=$D$3,ROUND(G68*$C$3*(1+$T$3),2),IF(MDR!$AB$8=$D$4,ROUND(G68*$C$3*(1+$T$4),2),IF(MDR!$AB$8=$D$5,ROUND(G68*$C$3*(1+$T$5),2),IF(MDR!$AB$8=$D$6,ROUND(G68*$C$3*(1+$T$6),2),IF(MDR!$AB$8=$D$7,ROUND(G68*$C$3*(1+$T$7),2)))))))) -> 40.73 | I68: =IF(MDR!$AB$8=$D$1,J68,IF(MDR!$AB$8=$D$2,K68,IF(MDR!$AB$8=$D$3,L68,IF(MDR!$AB$8=$D$4,M68,IF(MDR!$AB$8=$D$5,P68,IF(MDR!$AB$8=$D$6,N68,IF(MDR!$AB$8=$D$7,O68))))))) -> 3118MXBSN360GLZZ | J68: 3118MXBSN360GLZZ | K68: 3118MXBEN360GLZZ | L68: 3118MXBGN360GLZZ | M68: 3118MXBSR360GLZZ | N68: 3118MXBER360GLZZ | O68: 3118MXBGR360GLZZ | P68: 3118MXBCN360GLZZ | R68: Bitdefender XDR Sensor for MDR - Cloud | S68: Bitdefender XDR Sensor for MDR - Cloud - EDU | T68: Bitdefender XDR Sensor for MDR - Cloud - GOV | U68: Bitdefender XDR Sensor for MDR - Cloud - R | V68: Bitdefender XDR Sensor for MDR - Cloud - EDU R | W68: Bitdefender XDR Sensor for MDR - Cloud - GOV R | X68: Bitdefender XDR Sensor for MDR - Cloud - CUPG
A69: Add-On | B69: =IF(MDR!$AB$8=$D$1,R69,IF(MDR!$AB$8=$D$2,S69,IF(MDR!$AB$8=$D$3,T69,IF(MDR!$AB$8=$D$4,U69,IF(MDR!$AB$8=$D$5,X69,IF(MDR!$AB$8=$D$6,V69,IF(MDR!$AB$8=$D$7,W69))))))) -> Bitdefender XDR Sensor for MDR - Cloud | C69: 3 years | D69: 1000 - 1999 | E69: Bitdefender XDR Sensor for MDR - Cloud3 years1000 - 1999 | G69: 37.9 | H69: =IF(MDR!$AB$8=$D$1,ROUND(G69*$C$3,2),IF(MDR!$AB$8=$D$2,ROUND(G69*$C$3*(1+$T$2),2),IF(MDR!$AB$8=$D$3,ROUND(G69*$C$3*(1+$T$3),2),IF(MDR!$AB$8=$D$4,ROUND(G69*$C$3*(1+$T$4),2),IF(MDR!$AB$8=$D$5,ROUND(G69*$C$3*(1+$T$5),2),IF(MDR!$AB$8=$D$6,ROUND(G69*$C$3*(1+$T$6),2),IF(MDR!$AB$8=$D$7,ROUND(G69*$C$3*(1+$T$7),2)))))))) -> 37.9 | I69: =IF(MDR!$AB$8=$D$1,J69,IF(MDR!$AB$8=$D$2,K69,IF(MDR!$AB$8=$D$3,L69,IF(MDR!$AB$8=$D$4,M69,IF(MDR!$AB$8=$D$5,P69,IF(MDR!$AB$8=$D$6,N69,IF(MDR!$AB$8=$D$7,O69))))))) -> 3118MXBSN360PLZZ | J69: 3118MXBSN360PLZZ | K69: 3118MXBEN360PLZZ | L69: 3118MXBGN360PLZZ | M69: 3118MXBSR360PLZZ | N69: 3118MXBER360PLZZ | O69: 3118MXBGR360PLZZ | P69: 3118MXBCN360PLZZ | R69: Bitdefender XDR Sensor for MDR - Cloud | S69: Bitdefender XDR Sensor for MDR - Cloud - EDU | T69: Bitdefender XDR Sensor for MDR - Cloud - GOV | U69: Bitdefender XDR Sensor for MDR - Cloud - R | V69: Bitdefender XDR Sensor for MDR - Cloud - EDU R | W69: Bitdefender XDR Sensor for MDR - Cloud - GOV R | X69: Bitdefender XDR Sensor for MDR - Cloud - CUPG
A70: Add-On | B70: =IF(MDR!$AB$8=$D$1,R70,IF(MDR!$AB$8=$D$2,S70,IF(MDR!$AB$8=$D$3,T70,IF(MDR!$AB$8=$D$4,U70,IF(MDR!$AB$8=$D$5,X70,IF(MDR!$AB$8=$D$6,V70,IF(MDR!$AB$8=$D$7,W70))))))) -> Bitdefender XDR Sensor for MDR - Cloud | C70: 3 years | D70: 2000 - 2999 | E70: Bitdefender XDR Sensor for MDR - Cloud3 years2000 - 2999 | G70: 35.26 | H70: =IF(MDR!$AB$8=$D$1,ROUND(G70*$C$3,2),IF(MDR!$AB$8=$D$2,ROUND(G70*$C$3*(1+$T$2),2),IF(MDR!$AB$8=$D$3,ROUND(G70*$C$3*(1+$T$3),2),IF(MDR!$AB$8=$D$4,ROUND(G70*$C$3*(1+$T$4),2),IF(MDR!$AB$8=$D$5,ROUND(G70*$C$3*(1+$T$5),2),IF(MDR!$AB$8=$D$6,ROUND(G70*$C$3*(1+$T$6),2),IF(MDR!$AB$8=$D$7,ROUND(G70*$C$3*(1+$T$7),2)))))))) -> 35.26 | I70: =IF(MDR!$AB$8=$D$1,J70,IF(MDR!$AB$8=$D$2,K70,IF(MDR!$AB$8=$D$3,L70,IF(MDR!$AB$8=$D$4,M70,IF(MDR!$AB$8=$D$5,P70,IF(MDR!$AB$8=$D$6,N70,IF(MDR!$AB$8=$D$7,O70))))))) -> 3118MXBSN360QLZZ | J70: 3118MXBSN360QLZZ | K70: 3118MXBEN360QLZZ | L70: 3118MXBGN360QLZZ | M70: 3118MXBSR360QLZZ | N70: 3118MXBER360QLZZ | O70: 3118MXBGR360QLZZ | P70: 3118MXBCN360QLZZ | R70: Bitdefender XDR Sensor for MDR - Cloud | S70: Bitdefender XDR Sensor for MDR - Cloud - EDU | T70: Bitdefender XDR Sensor for MDR - Cloud - GOV | U70: Bitdefender XDR Sensor for MDR - Cloud - R | V70: Bitdefender XDR Sensor for MDR - Cloud - EDU R | W70: Bitdefender XDR Sensor for MDR - Cloud - GOV R | X70: Bitdefender XDR Sensor for MDR - Cloud - CUPG
A71: Add-On | B71: =IF(MDR!$AB$8=$D$1,R71,IF(MDR!$AB$8=$D$2,S71,IF(MDR!$AB$8=$D$3,T71,IF(MDR!$AB$8=$D$4,U71,IF(MDR!$AB$8=$D$5,X71,IF(MDR!$AB$8=$D$6,V71,IF(MDR!$AB$8=$D$7,W71))))))) -> Bitdefender XDR Sensor for MDR - Cloud | C71: 3 years | D71: 3000 - 4999 | E71: Bitdefender XDR Sensor for MDR - Cloud3 years3000 - 4999 | G71: 32.78 | H71: =IF(MDR!$AB$8=$D$1,ROUND(G71*$C$3,2),IF(MDR!$AB$8=$D$2,ROUND(G71*$C$3*(1+$T$2),2),IF(MDR!$AB$8=$D$3,ROUND(G71*$C$3*(1+$T$3),2),IF(MDR!$AB$8=$D$4,ROUND(G71*$C$3*(1+$T$4),2),IF(MDR!$AB$8=$D$5,ROUND(G71*$C$3*(1+$T$5),2),IF(MDR!$AB$8=$D$6,ROUND(G71*$C$3*(1+$T$6),2),IF(MDR!$AB$8=$D$7,ROUND(G71*$C$3*(1+$T$7),2)))))))) -> 32.78 | I71: =IF(MDR!$AB$8=$D$1,J71,IF(MDR!$AB$8=$D$2,K71,IF(MDR!$AB$8=$D$3,L71,IF(MDR!$AB$8=$D$4,M71,IF(MDR!$AB$8=$D$5,P71,IF(MDR!$AB$8=$D$6,N71,IF(MDR!$AB$8=$D$7,O71))))))) -> 3118MXBSN360ILZZ | J71: 3118MXBSN360ILZZ | K71: 3118MXBEN360ILZZ | L71: 3118MXBGN360ILZZ | M71: 3118MXBSR360ILZZ | N71: 3118MXBER360ILZZ | O71: 3118MXBGR360ILZZ | P71: 3118MXBCN360ILZZ | R71: Bitdefender XDR Sensor for MDR - Cloud | S71: Bitdefender XDR Sensor for MDR - Cloud - EDU | T71: Bitdefender XDR Sensor for MDR - Cloud - GOV | U71: Bitdefender XDR Sensor for MDR - Cloud - R | V71: Bitdefender XDR Sensor for MDR - Cloud - EDU R | W71: Bitdefender XDR Sensor for MDR - Cloud - GOV R | X71: Bitdefender XDR Sensor for MDR - Cloud - CUPG
A72: Add-On | B72: =IF(MDR!$AB$8=$D$1,R72,IF(MDR!$AB$8=$D$2,S72,IF(MDR!$AB$8=$D$3,T72,IF(MDR!$AB$8=$D$4,U72,IF(MDR!$AB$8=$D$5,X72,IF(MDR!$AB$8=$D$6,V72,IF(MDR!$AB$8=$D$7,W72))))))) -> Bitdefender XDR Sensor for MDR - Cloud | C72: 3 years | D72: 5000+ | E72: Bitdefender XDR Sensor for MDR - Cloud3 years5000+ | G72: 30.48 | H72: =IF(MDR!$AB$8=$D$1,ROUND(G72*$C$3,2),IF(MDR!$AB$8=$D$2,ROUND(G72*$C$3*(1+$T$2),2),IF(MDR!$AB$8=$D$3,ROUND(G72*$C$3*(1+$T$3),2),IF(MDR!$AB$8=$D$4,ROUND(G72*$C$3*(1+$T$4),2),IF(MDR!$AB$8=$D$5,ROUND(G72*$C$3*(1+$T$5),2),IF(MDR!$AB$8=$D$6,ROUND(G72*$C$3*(1+$T$6),2),IF(MDR!$AB$8=$D$7,ROUND(G72*$C$3*(1+$T$7),2)))))))) -> 30.48 | I72: =IF(MDR!$AB$8=$D$1,J72,IF(MDR!$AB$8=$D$2,K72,IF(MDR!$AB$8=$D$3,L72,IF(MDR!$AB$8=$D$4,M72,IF(MDR!$AB$8=$D$5,P72,IF(MDR!$AB$8=$D$6,N72,IF(MDR!$AB$8=$D$7,O72))))))) -> 3118MXBSN360JLZZ | J72: 3118MXBSN360JLZZ | K72: 3118MXBEN360JLZZ | L72: 3118MXBGN360JLZZ | M72: 3118MXBSR360JLZZ | N72: 3118MXBER360JLZZ | O72: 3118MXBGR360JLZZ | P72: 3118MXBCN360JLZZ | R72: Bitdefender XDR Sensor for MDR - Cloud | S72: Bitdefender XDR Sensor for MDR - Cloud - EDU | T72: Bitdefender XDR Sensor for MDR - Cloud - GOV | U72: Bitdefender XDR Sensor for MDR - Cloud - R | V72: Bitdefender XDR Sensor for MDR - Cloud - EDU R | W72: Bitdefender XDR Sensor for MDR - Cloud - GOV R | X72: Bitdefender XDR Sensor for MDR - Cloud - CUPG
A73: Add-On | B73: =IF(MDR!$AB$8=$D$1,R73,IF(MDR!$AB$8=$D$2,S73,IF(MDR!$AB$8=$D$3,T73,IF(MDR!$AB$8=$D$4,U73,IF(MDR!$AB$8=$D$5,X73,IF(MDR!$AB$8=$D$6,V73,IF(MDR!$AB$8=$D$7,W73))))))) -> Bitdefender XDR Sensor for MDR - Identity | C73: 1 year | D73: 50 - 99 | E73: Bitdefender XDR Sensor for MDR - Identity1 year50 - 99 | G73: 23.19 | H73: =IF(MDR!$AB$8=$D$1,ROUND(G73*$C$3,2),IF(MDR!$AB$8=$D$2,ROUND(G73*$C$3*(1+$T$2),2),IF(MDR!$AB$8=$D$3,ROUND(G73*$C$3*(1+$T$3),2),IF(MDR!$AB$8=$D$4,ROUND(G73*$C$3*(1+$T$4),2),IF(MDR!$AB$8=$D$5,ROUND(G73*$C$3*(1+$T$5),2),IF(MDR!$AB$8=$D$6,ROUND(G73*$C$3*(1+$T$6),2),IF(MDR!$AB$8=$D$7,ROUND(G73*$C$3*(1+$T$7),2)))))))) -> 23.19 | I73: =IF(MDR!$AB$8=$D$1,J73,IF(MDR!$AB$8=$D$2,K73,IF(MDR!$AB$8=$D$3,L73,IF(MDR!$AB$8=$D$4,M73,IF(MDR!$AB$8=$D$5,P73,IF(MDR!$AB$8=$D$6,N73,IF(MDR!$AB$8=$D$7,O73))))))) -> 3119MXBSN120CLZZ | J73: 3119MXBSN120CLZZ | K73: 3119MXBEN120CLZZ | L73: 3119MXBGN120CLZZ | M73: 3119MXBSR120CLZZ | N73: 3119MXBER120CLZZ | O73: 3119MXBGR120CLZZ | P73: 3119MXBCN120CLZZ | R73: Bitdefender XDR Sensor for MDR - Identity | S73: Bitdefender XDR Sensor for MDR - Identity - EDU | T73: Bitdefender XDR Sensor for MDR - Identity - GOV | U73: Bitdefender XDR Sensor for MDR - Identity - R | V73: Bitdefender XDR Sensor for MDR - Identity - EDU R | W73: Bitdefender XDR Sensor for MDR - Identity - GOV R | X73: Bitdefender XDR Sensor for MDR - Identity - CUPG
A74: Add-On | B74: =IF(MDR!$AB$8=$D$1,R74,IF(MDR!$AB$8=$D$2,S74,IF(MDR!$AB$8=$D$3,T74,IF(MDR!$AB$8=$D$4,U74,IF(MDR!$AB$8=$D$5,X74,IF(MDR!$AB$8=$D$6,V74,IF(MDR!$AB$8=$D$7,W74))))))) -> Bitdefender XDR Sensor for MDR - Identity | C74: 1 year | D74: 100 - 149 | E74: =CONCATENATE(B74,C74,D74) -> Bitdefender XDR Sensor for MDR - Identity1 year100 - 149 | G74: 21.56 | H74: =IF(MDR!$AB$8=$D$1,ROUND(G74*$C$3,2),IF(MDR!$AB$8=$D$2,ROUND(G74*$C$3*(1+$T$2),2),IF(MDR!$AB$8=$D$3,ROUND(G74*$C$3*(1+$T$3),2),IF(MDR!$AB$8=$D$4,ROUND(G74*$C$3*(1+$T$4),2),IF(MDR!$AB$8=$D$5,ROUND(G74*$C$3*(1+$T$5),2),IF(MDR!$AB$8=$D$6,ROUND(G74*$C$3*(1+$T$6),2),IF(MDR!$AB$8=$D$7,ROUND(G74*$C$3*(1+$T$7),2)))))))) -> 21.56 | I74: =IF(MDR!$AB$8=$D$1,J74,IF(MDR!$AB$8=$D$2,K74,IF(MDR!$AB$8=$D$3,L74,IF(MDR!$AB$8=$D$4,M74,IF(MDR!$AB$8=$D$5,P74,IF(MDR!$AB$8=$D$6,N74,IF(MDR!$AB$8=$D$7,O74))))))) -> 3119MXBSN120DLZZ | J74: 3119MXBSN120DLZZ | K74: 3119MXBEN120DLZZ | L74: 3119MXBGN120DLZZ | M74: 3119MXBSR120DLZZ | N74: 3119MXBER120DLZZ | O74: 3119MXBGR120DLZZ | P74: 3119MXBCN120DLZZ | R74: Bitdefender XDR Sensor for MDR - Identity | S74: Bitdefender XDR Sensor for MDR - Identity - EDU | T74: Bitdefender XDR Sensor for MDR - Identity - GOV | U74: Bitdefender XDR Sensor for MDR - Identity - R | V74: Bitdefender XDR Sensor for MDR - Identity - EDU R | W74: Bitdefender XDR Sensor for MDR - Identity - GOV R | X74: Bitdefender XDR Sensor for MDR - Identity - CUPG
A75: Add-On | B75: =IF(MDR!$AB$8=$D$1,R75,IF(MDR!$AB$8=$D$2,S75,IF(MDR!$AB$8=$D$3,T75,IF(MDR!$AB$8=$D$4,U75,IF(MDR!$AB$8=$D$5,X75,IF(MDR!$AB$8=$D$6,V75,IF(MDR!$AB$8=$D$7,W75))))))) -> Bitdefender XDR Sensor for MDR - Identity | C75: 1 year | D75: 150 - 249 | E75: Bitdefender XDR Sensor for MDR - Identity1 year150 - 249 | G75: 20.04 | H75: =IF(MDR!$AB$8=$D$1,ROUND(G75*$C$3,2),IF(MDR!$AB$8=$D$2,ROUND(G75*$C$3*(1+$T$2),2),IF(MDR!$AB$8=$D$3,ROUND(G75*$C$3*(1+$T$3),2),IF(MDR!$AB$8=$D$4,ROUND(G75*$C$3*(1+$T$4),2),IF(MDR!$AB$8=$D$5,ROUND(G75*$C$3*(1+$T$5),2),IF(MDR!$AB$8=$D$6,ROUND(G75*$C$3*(1+$T$6),2),IF(MDR!$AB$8=$D$7,ROUND(G75*$C$3*(1+$T$7),2)))))))) -> 20.04 | I75: =IF(MDR!$AB$8=$D$1,J75,IF(MDR!$AB$8=$D$2,K75,IF(MDR!$AB$8=$D$3,L75,IF(MDR!$AB$8=$D$4,M75,IF(MDR!$AB$8=$D$5,P75,IF(MDR!$AB$8=$D$6,N75,IF(MDR!$AB$8=$D$7,O75))))))) -> 3119MXBSN120ELZZ | J75: 3119MXBSN120ELZZ | K75: 3119MXBEN120ELZZ | L75: 3119MXBGN120ELZZ | M75: 3119MXBSR120ELZZ | N75: 3119MXBER120ELZZ | O75: 3119MXBGR120ELZZ | P75: 3119MXBCN120ELZZ | R75: Bitdefender XDR Sensor for MDR - Identity | S75: Bitdefender XDR Sensor for MDR - Identity - EDU | T75: Bitdefender XDR Sensor for MDR - Identity - GOV | U75: Bitdefender XDR Sensor for MDR - Identity - R | V75: Bitdefender XDR Sensor for MDR - Identity - EDU R | W75: Bitdefender XDR Sensor for MDR - Identity - GOV R | X75: Bitdefender XDR Sensor for MDR - Identity - CUPG
A76: Add-On | B76: =IF(MDR!$AB$8=$D$1,R76,IF(MDR!$AB$8=$D$2,S76,IF(MDR!$AB$8=$D$3,T76,IF(MDR!$AB$8=$D$4,U76,IF(MDR!$AB$8=$D$5,X76,IF(MDR!$AB$8=$D$6,V76,IF(MDR!$AB$8=$D$7,W76))))))) -> Bitdefender XDR Sensor for MDR - Identity | C76: 1 year | D76: 250 - 499 | E76: Bitdefender XDR Sensor for MDR - Identity1 year250 - 499 | G76: 19.04 | H76: =IF(MDR!$AB$8=$D$1,ROUND(G76*$C$3,2),IF(MDR!$AB$8=$D$2,ROUND(G76*$C$3*(1+$T$2),2),IF(MDR!$AB$8=$D$3,ROUND(G76*$C$3*(1+$T$3),2),IF(MDR!$AB$8=$D$4,ROUND(G76*$C$3*(1+$T$4),2),IF(MDR!$AB$8=$D$5,ROUND(G76*$C$3*(1+$T$5),2),IF(MDR!$AB$8=$D$6,ROUND(G76*$C$3*(1+$T$6),2),IF(MDR!$AB$8=$D$7,ROUND(G76*$C$3*(1+$T$7),2)))))))) -> 19.04 | I76: =IF(MDR!$AB$8=$D$1,J76,IF(MDR!$AB$8=$D$2,K76,IF(MDR!$AB$8=$D$3,L76,IF(MDR!$AB$8=$D$4,M76,IF(MDR!$AB$8=$D$5,P76,IF(MDR!$AB$8=$D$6,N76,IF(MDR!$AB$8=$D$7,O76))))))) -> 3119MXBSN120FLZZ | J76: 3119MXBSN120FLZZ | K76: 3119MXBEN120FLZZ | L76: 3119MXBGN120FLZZ | M76: 3119MXBSR120FLZZ | N76: 3119MXBER120FLZZ | O76: 3119MXBGR120FLZZ | P76: 3119MXBCN120FLZZ | R76: Bitdefender XDR Sensor for MDR - Identity | S76: Bitdefender XDR Sensor for MDR - Identity - EDU | T76: Bitdefender XDR Sensor for MDR - Identity - GOV | U76: Bitdefender XDR Sensor for MDR - Identity - R | V76: Bitdefender XDR Sensor for MDR - Identity - EDU R | W76: Bitdefender XDR Sensor for MDR - Identity - GOV R | X76: Bitdefender XDR Sensor for MDR - Identity - CUPG
A77: Add-On | B77: =IF(MDR!$AB$8=$D$1,R77,IF(MDR!$AB$8=$D$2,S77,IF(MDR!$AB$8=$D$3,T77,IF(MDR!$AB$8=$D$4,U77,IF(MDR!$AB$8=$D$5,X77,IF(MDR!$AB$8=$D$6,V77,IF(MDR!$AB$8=$D$7,W77))))))) -> Bitdefender XDR Sensor for MDR - Identity | C77: 1 year | D77: 500 - 999 | E77: Bitdefender XDR Sensor for MDR - Identity1 year500 - 999 | G77: 17.71 | H77: =IF(MDR!$AB$8=$D$1,ROUND(G77*$C$3,2),IF(MDR!$AB$8=$D$2,ROUND(G77*$C$3*(1+$T$2),2),IF(MDR!$AB$8=$D$3,ROUND(G77*$C$3*(1+$T$3),2),IF(MDR!$AB$8=$D$4,ROUND(G77*$C$3*(1+$T$4),2),IF(MDR!$AB$8=$D$5,ROUND(G77*$C$3*(1+$T$5),2),IF(MDR!$AB$8=$D$6,ROUND(G77*$C$3*(1+$T$6),2),IF(MDR!$AB$8=$D$7,ROUND(G77*$C$3*(1+$T$7),2)))))))) -> 17.71 | I77: =IF(MDR!$AB$8=$D$1,J77,IF(MDR!$AB$8=$D$2,K77,IF(MDR!$AB$8=$D$3,L77,IF(MDR!$AB$8=$D$4,M77,IF(MDR!$AB$8=$D$5,P77,IF(MDR!$AB$8=$D$6,N77,IF(MDR!$AB$8=$D$7,O77))))))) -> 3119MXBSN120GLZZ | J77: 3119MXBSN120GLZZ | K77: 3119MXBEN120GLZZ | L77: 3119MXBGN120GLZZ | M77: 3119MXBSR120GLZZ | N77: 3119MXBER120GLZZ | O77: 3119MXBGR120GLZZ | P77: 3119MXBCN120GLZZ | R77: Bitdefender XDR Sensor for MDR - Identity | S77: Bitdefender XDR Sensor for MDR - Identity - EDU | T77: Bitdefender XDR Sensor for MDR - Identity - GOV | U77: Bitdefender XDR Sensor for MDR - Identity - R | V77: Bitdefender XDR Sensor for MDR - Identity - EDU R | W77: Bitdefender XDR Sensor for MDR - Identity - GOV R | X77: Bitdefender XDR Sensor for MDR - Identity - CUPG
A78: Add-On | B78: =IF(MDR!$AB$8=$D$1,R78,IF(MDR!$AB$8=$D$2,S78,IF(MDR!$AB$8=$D$3,T78,IF(MDR!$AB$8=$D$4,U78,IF(MDR!$AB$8=$D$5,X78,IF(MDR!$AB$8=$D$6,V78,IF(MDR!$AB$8=$D$7,W78))))))) -> Bitdefender XDR Sensor for MDR - Identity | C78: 1 year | D78: 1000 - 1999 | E78: Bitdefender XDR Sensor for MDR - Identity1 year1000 - 1999 | G78: 16.48 | H78: =IF(MDR!$AB$8=$D$1,ROUND(G78*$C$3,2),IF(MDR!$AB$8=$D$2,ROUND(G78*$C$3*(1+$T$2),2),IF(MDR!$AB$8=$D$3,ROUND(G78*$C$3*(1+$T$3),2),IF(MDR!$AB$8=$D$4,ROUND(G78*$C$3*(1+$T$4),2),IF(MDR!$AB$8=$D$5,ROUND(G78*$C$3*(1+$T$5),2),IF(MDR!$AB$8=$D$6,ROUND(G78*$C$3*(1+$T$6),2),IF(MDR!$AB$8=$D$7,ROUND(G78*$C$3*(1+$T$7),2)))))))) -> 16.48 | I78: =IF(MDR!$AB$8=$D$1,J78,IF(MDR!$AB$8=$D$2,K78,IF(MDR!$AB$8=$D$3,L78,IF(MDR!$AB$8=$D$4,M78,IF(MDR!$AB$8=$D$5,P78,IF(MDR!$AB$8=$D$6,N78,IF(MDR!$AB$8=$D$7,O78))))))) -> 3119MXBSN120PLZZ | J78: 3119MXBSN120PLZZ | K78: 3119MXBEN120PLZZ | L78: 3119MXBGN120PLZZ | M78: 3119MXBSR120PLZZ | N78: 3119MXBER120PLZZ | O78: 3119MXBGR120PLZZ | P78: 3119MXBCN120PLZZ | R78: Bitdefender XDR Sensor for MDR - Identity | S78: Bitdefender XDR Sensor for MDR - Identity - EDU | T78: Bitdefender XDR Sensor for MDR - Identity - GOV | U78: Bitdefender XDR Sensor for MDR - Identity - R | V78: Bitdefender XDR Sensor for MDR - Identity - EDU R | W78: Bitdefender XDR Sensor for MDR - Identity - GOV R | X78: Bitdefender XDR Sensor for MDR - Identity - CUPG
A79: Add-On | B79: =IF(MDR!$AB$8=$D$1,R79,IF(MDR!$AB$8=$D$2,S79,IF(MDR!$AB$8=$D$3,T79,IF(MDR!$AB$8=$D$4,U79,IF(MDR!$AB$8=$D$5,X79,IF(MDR!$AB$8=$D$6,V79,IF(MDR!$AB$8=$D$7,W79))))))) -> Bitdefender XDR Sensor for MDR - Identity | C79: 1 year | D79: 2000 - 2999 | E79: Bitdefender XDR Sensor for MDR - Identity1 year2000 - 2999 | G79: 15.32 | H79: =IF(MDR!$AB$8=$D$1,ROUND(G79*$C$3,2),IF(MDR!$AB$8=$D$2,ROUND(G79*$C$3*(1+$T$2),2),IF(MDR!$AB$8=$D$3,ROUND(G79*$C$3*(1+$T$3),2),IF(MDR!$AB$8=$D$4,ROUND(G79*$C$3*(1+$T$4),2),IF(MDR!$AB$8=$D$5,ROUND(G79*$C$3*(1+$T$5),2),IF(MDR!$AB$8=$D$6,ROUND(G79*$C$3*(1+$T$6),2),IF(MDR!$AB$8=$D$7,ROUND(G79*$C$3*(1+$T$7),2)))))))) -> 15.32 | I79: =IF(MDR!$AB$8=$D$1,J79,IF(MDR!$AB$8=$D$2,K79,IF(MDR!$AB$8=$D$3,L79,IF(MDR!$AB$8=$D$4,M79,IF(MDR!$AB$8=$D$5,P79,IF(MDR!$AB$8=$D$6,N79,IF(MDR!$AB$8=$D$7,O79))))))) -> 3119MXBSN120QLZZ | J79: 3119MXBSN120QLZZ | K79: 3119MXBEN120QLZZ | L79: 3119MXBGN120QLZZ | M79: 3119MXBSR120QLZZ | N79: 3119MXBER120QLZZ | O79: 3119MXBGR120QLZZ | P79: 3119MXBCN120QLZZ | R79: Bitdefender XDR Sensor for MDR - Identity | S79: Bitdefender XDR Sensor for MDR - Identity - EDU | T79: Bitdefender XDR Sensor for MDR - Identity - GOV | U79: Bitdefender XDR Sensor for MDR - Identity - R | V79: Bitdefender XDR Sensor for MDR - Identity - EDU R | W79: Bitdefender XDR Sensor for MDR - Identity - GOV R | X79: Bitdefender XDR Sensor for MDR - Identity - CUPG
A80: Add-On | B80: =IF(MDR!$AB$8=$D$1,R80,IF(MDR!$AB$8=$D$2,S80,IF(MDR!$AB$8=$D$3,T80,IF(MDR!$AB$8=$D$4,U80,IF(MDR!$AB$8=$D$5,X80,IF(MDR!$AB$8=$D$6,V80,IF(MDR!$AB$8=$D$7,W80))))))) -> Bitdefender XDR Sensor for MDR - Identity | C80: 1 year | D80: 3000 - 4999 | E80: Bitdefender XDR Sensor for MDR - Identity1 year3000 - 4999 | G80: 14.25 | H80: =IF(MDR!$AB$8=$D$1,ROUND(G80*$C$3,2),IF(MDR!$AB$8=$D$2,ROUND(G80*$C$3*(1+$T$2),2),IF(MDR!$AB$8=$D$3,ROUND(G80*$C$3*(1+$T$3),2),IF(MDR!$AB$8=$D$4,ROUND(G80*$C$3*(1+$T$4),2),IF(MDR!$AB$8=$D$5,ROUND(G80*$C$3*(1+$T$5),2),IF(MDR!$AB$8=$D$6,ROUND(G80*$C$3*(1+$T$6),2),IF(MDR!$AB$8=$D$7,ROUND(G80*$C$3*(1+$T$7),2)))))))) -> 14.25 | I80: =IF(MDR!$AB$8=$D$1,J80,IF(MDR!$AB$8=$D$2,K80,IF(MDR!$AB$8=$D$3,L80,IF(MDR!$AB$8=$D$4,M80,IF(MDR!$AB$8=$D$5,P80,IF(MDR!$AB$8=$D$6,N80,IF(MDR!$AB$8=$D$7,O80))))))) -> 3119MXBSN120ILZZ | J80: 3119MXBSN120ILZZ | K80: 3119MXBEN120ILZZ | L80: 3119MXBGN120ILZZ | M80: 3119MXBSR120ILZZ | N80: 3119MXBER120ILZZ | O80: 3119MXBGR120ILZZ | P80: 3119MXBCN120ILZZ | R80: Bitdefender XDR Sensor for MDR - Identity | S80: Bitdefender XDR Sensor for MDR - Identity - EDU | T80: Bitdefender XDR Sensor for MDR - Identity - GOV | U80: Bitdefender XDR Sensor for MDR - Identity - R | V80: Bitdefender XDR Sensor for MDR - Identity - EDU R | W80: Bitdefender XDR Sensor for MDR - Identity - GOV R | X80: Bitdefender XDR Sensor for MDR - Identity - CUPG
A81: Add-On | B81: =IF(MDR!$AB$8=$D$1,R81,IF(MDR!$AB$8=$D$2,S81,IF(MDR!$AB$8=$D$3,T81,IF(MDR!$AB$8=$D$4,U81,IF(MDR!$AB$8=$D$5,X81,IF(MDR!$AB$8=$D$6,V81,IF(MDR!$AB$8=$D$7,W81))))))) -> Bitdefender XDR Sensor for MDR - Identity | C81: 1 year | D81: 5000+ | E81: Bitdefender XDR Sensor for MDR - Identity1 year5000+ | G81: 13.24 | H81: =IF(MDR!$AB$8=$D$1,ROUND(G81*$C$3,2),IF(MDR!$AB$8=$D$2,ROUND(G81*$C$3*(1+$T$2),2),IF(MDR!$AB$8=$D$3,ROUND(G81*$C$3*(1+$T$3),2),IF(MDR!$AB$8=$D$4,ROUND(G81*$C$3*(1+$T$4),2),IF(MDR!$AB$8=$D$5,ROUND(G81*$C$3*(1+$T$5),2),IF(MDR!$AB$8=$D$6,ROUND(G81*$C$3*(1+$T$6),2),IF(MDR!$AB$8=$D$7,ROUND(G81*$C$3*(1+$T$7),2)))))))) -> 13.24 | I81: =IF(MDR!$AB$8=$D$1,J81,IF(MDR!$AB$8=$D$2,K81,IF(MDR!$AB$8=$D$3,L81,IF(MDR!$AB$8=$D$4,M81,IF(MDR!$AB$8=$D$5,P81,IF(MDR!$AB$8=$D$6,N81,IF(MDR!$AB$8=$D$7,O81))))))) -> 3119MXBSN120JLZZ | J81: 3119MXBSN120JLZZ | K81: 3119MXBEN120JLZZ | L81: 3119MXBGN120JLZZ | M81: 3119MXBSR120JLZZ | N81: 3119MXBER120JLZZ | O81: 3119MXBGR120JLZZ | P81: 3119MXBCN120JLZZ | R81: Bitdefender XDR Sensor for MDR - Identity | S81: Bitdefender XDR Sensor for MDR - Identity - EDU | T81: Bitdefender XDR Sensor for MDR - Identity - GOV | U81: Bitdefender XDR Sensor for MDR - Identity - R | V81: Bitdefender XDR Sensor for MDR - Identity - EDU R | W81: Bitdefender XDR Sensor for MDR - Identity - GOV R | X81: Bitdefender XDR Sensor for MDR - Identity - CUPG
A82: Add-On | B82: =IF(MDR!$AB$8=$D$1,R82,IF(MDR!$AB$8=$D$2,S82,IF(MDR!$AB$8=$D$3,T82,IF(MDR!$AB$8=$D$4,U82,IF(MDR!$AB$8=$D$5,X82,IF(MDR!$AB$8=$D$6,V82,IF(MDR!$AB$8=$D$7,W82))))))) -> Bitdefender XDR Sensor for MDR - Identity | C82: 2 years | D82: 50 - 99 | E82: Bitdefender XDR Sensor for MDR - Identity2 years50 - 99 | G82: 38.26 | H82: =IF(MDR!$AB$8=$D$1,ROUND(G82*$C$3,2),IF(MDR!$AB$8=$D$2,ROUND(G82*$C$3*(1+$T$2),2),IF(MDR!$AB$8=$D$3,ROUND(G82*$C$3*(1+$T$3),2),IF(MDR!$AB$8=$D$4,ROUND(G82*$C$3*(1+$T$4),2),IF(MDR!$AB$8=$D$5,ROUND(G82*$C$3*(1+$T$5),2),IF(MDR!$AB$8=$D$6,ROUND(G82*$C$3*(1+$T$6),2),IF(MDR!$AB$8=$D$7,ROUND(G82*$C$3*(1+$T$7),2)))))))) -> 38.26 | I82: =IF(MDR!$AB$8=$D$1,J82,IF(MDR!$AB$8=$D$2,K82,IF(MDR!$AB$8=$D$3,L82,IF(MDR!$AB$8=$D$4,M82,IF(MDR!$AB$8=$D$5,P82,IF(MDR!$AB$8=$D$6,N82,IF(MDR!$AB$8=$D$7,O82))))))) -> 3119MXBSN240CLZZ | J82: 3119MXBSN240CLZZ | K82: 3119MXBEN240CLZZ | L82: 3119MXBGN240CLZZ | M82: 3119MXBSR240CLZZ | N82: 3119MXBER240CLZZ | O82: 3119MXBGR240CLZZ | P82: 3119MXBCN240CLZZ | R82: Bitdefender XDR Sensor for MDR - Identity | S82: Bitdefender XDR Sensor for MDR - Identity - EDU | T82: Bitdefender XDR Sensor for MDR - Identity - GOV | U82: Bitdefender XDR Sensor for MDR - Identity - R | V82: Bitdefender XDR Sensor for MDR - Identity - EDU R | W82: Bitdefender XDR Sensor for MDR - Identity - GOV R | X82: Bitdefender XDR Sensor for MDR - Identity - CUPG
A83: Add-On | B83: =IF(MDR!$AB$8=$D$1,R83,IF(MDR!$AB$8=$D$2,S83,IF(MDR!$AB$8=$D$3,T83,IF(MDR!$AB$8=$D$4,U83,IF(MDR!$AB$8=$D$5,X83,IF(MDR!$AB$8=$D$6,V83,IF(MDR!$AB$8=$D$7,W83))))))) -> Bitdefender XDR Sensor for MDR - Identity | C83: 2 years | D83: 100 - 149 | E83: Bitdefender XDR Sensor for MDR - Identity2 years100 - 149 | G83: 35.57 | H83: =IF(MDR!$AB$8=$D$1,ROUND(G83*$C$3,2),IF(MDR!$AB$8=$D$2,ROUND(G83*$C$3*(1+$T$2),2),IF(MDR!$AB$8=$D$3,ROUND(G83*$C$3*(1+$T$3),2),IF(MDR!$AB$8=$D$4,ROUND(G83*$C$3*(1+$T$4),2),IF(MDR!$AB$8=$D$5,ROUND(G83*$C$3*(1+$T$5),2),IF(MDR!$AB$8=$D$6,ROUND(G83*$C$3*(1+$T$6),2),IF(MDR!$AB$8=$D$7,ROUND(G83*$C$3*(1+$T$7),2)))))))) -> 35.57 | I83: =IF(MDR!$AB$8=$D$1,J83,IF(MDR!$AB$8=$D$2,K83,IF(MDR!$AB$8=$D$3,L83,IF(MDR!$AB$8=$D$4,M83,IF(MDR!$AB$8=$D$5,P83,IF(MDR!$AB$8=$D$6,N83,IF(MDR!$AB$8=$D$7,O83))))))) -> 3119MXBSN240DLZZ | J83: 3119MXBSN240DLZZ | K83: 3119MXBEN240DLZZ | L83: 3119MXBGN240DLZZ | M83: 3119MXBSR240DLZZ | N83: 3119MXBER240DLZZ | O83: 3119MXBGR240DLZZ | P83: 3119MXBCN240DLZZ | R83: Bitdefender XDR Sensor for MDR - Identity | S83: =CONCATENATE(R83," - EDU") -> Bitdefender XDR Sensor for MDR - Identity - EDU | T83: =CONCATENATE(R83," - GOV") -> Bitdefender XDR Sensor for MDR - Identity - GOV | U83: =CONCATENATE(R83," - R") -> Bitdefender XDR Sensor for MDR - Identity - R | V83: =CONCATENATE(R83," - EDU R") -> Bitdefender XDR Sensor for MDR - Identity - EDU R | W83: =CONCATENATE(R83," - GOV R") -> Bitdefender XDR Sensor for MDR - Identity - GOV R | X83: =CONCATENATE(R83," - CUPG") -> Bitdefender XDR Sensor for MDR - Identity - CUPG
A84: Add-On | B84: =IF(MDR!$AB$8=$D$1,R84,IF(MDR!$AB$8=$D$2,S84,IF(MDR!$AB$8=$D$3,T84,IF(MDR!$AB$8=$D$4,U84,IF(MDR!$AB$8=$D$5,X84,IF(MDR!$AB$8=$D$6,V84,IF(MDR!$AB$8=$D$7,W84))))))) -> Bitdefender XDR Sensor for MDR - Identity | C84: 2 years | D84: 150 - 249 | E84: Bitdefender XDR Sensor for MDR - Identity2 years150 - 249 | G84: 33.08 | H84: =IF(MDR!$AB$8=$D$1,ROUND(G84*$C$3,2),IF(MDR!$AB$8=$D$2,ROUND(G84*$C$3*(1+$T$2),2),IF(MDR!$AB$8=$D$3,ROUND(G84*$C$3*(1+$T$3),2),IF(MDR!$AB$8=$D$4,ROUND(G84*$C$3*(1+$T$4),2),IF(MDR!$AB$8=$D$5,ROUND(G84*$C$3*(1+$T$5),2),IF(MDR!$AB$8=$D$6,ROUND(G84*$C$3*(1+$T$6),2),IF(MDR!$AB$8=$D$7,ROUND(G84*$C$3*(1+$T$7),2)))))))) -> 33.08 | I84: =IF(MDR!$AB$8=$D$1,J84,IF(MDR!$AB$8=$D$2,K84,IF(MDR!$AB$8=$D$3,L84,IF(MDR!$AB$8=$D$4,M84,IF(MDR!$AB$8=$D$5,P84,IF(MDR!$AB$8=$D$6,N84,IF(MDR!$AB$8=$D$7,O84))))))) -> 3119MXBSN240ELZZ | J84: 3119MXBSN240ELZZ | K84: 3119MXBEN240ELZZ | L84: 3119MXBGN240ELZZ | M84: 3119MXBSR240ELZZ | N84: 3119MXBER240ELZZ | O84: 3119MXBGR240ELZZ | P84: 3119MXBCN240ELZZ | R84: Bitdefender XDR Sensor for MDR - Identity | S84: Bitdefender XDR Sensor for MDR - Identity - EDU | T84: Bitdefender XDR Sensor for MDR - Identity - GOV | U84: Bitdefender XDR Sensor for MDR - Identity - R | V84: Bitdefender XDR Sensor for MDR - Identity - EDU R | W84: Bitdefender XDR Sensor for MDR - Identity - GOV R | X84: Bitdefender XDR Sensor for MDR - Identity - CUPG
A85: Add-On | B85: =IF(MDR!$AB$8=$D$1,R85,IF(MDR!$AB$8=$D$2,S85,IF(MDR!$AB$8=$D$3,T85,IF(MDR!$AB$8=$D$4,U85,IF(MDR!$AB$8=$D$5,X85,IF(MDR!$AB$8=$D$6,V85,IF(MDR!$AB$8=$D$7,W85))))))) -> Bitdefender XDR Sensor for MDR - Identity | C85: 2 years | D85: 250 - 499 | E85: Bitdefender XDR Sensor for MDR - Identity2 years250 - 499 | G85: 31.44 | H85: =IF(MDR!$AB$8=$D$1,ROUND(G85*$C$3,2),IF(MDR!$AB$8=$D$2,ROUND(G85*$C$3*(1+$T$2),2),IF(MDR!$AB$8=$D$3,ROUND(G85*$C$3*(1+$T$3),2),IF(MDR!$AB$8=$D$4,ROUND(G85*$C$3*(1+$T$4),2),IF(MDR!$AB$8=$D$5,ROUND(G85*$C$3*(1+$T$5),2),IF(MDR!$AB$8=$D$6,ROUND(G85*$C$3*(1+$T$6),2),IF(MDR!$AB$8=$D$7,ROUND(G85*$C$3*(1+$T$7),2)))))))) -> 31.44 | I85: =IF(MDR!$AB$8=$D$1,J85,IF(MDR!$AB$8=$D$2,K85,IF(MDR!$AB$8=$D$3,L85,IF(MDR!$AB$8=$D$4,M85,IF(MDR!$AB$8=$D$5,P85,IF(MDR!$AB$8=$D$6,N85,IF(MDR!$AB$8=$D$7,O85))))))) -> 3119MXBSN240FLZZ | J85: 3119MXBSN240FLZZ | K85: 3119MXBEN240FLZZ | L85: 3119MXBGN240FLZZ | M85: 3119MXBSR240FLZZ | N85: 3119MXBER240FLZZ | O85: 3119MXBGR240FLZZ | P85: 3119MXBCN240FLZZ | R85: Bitdefender XDR Sensor for MDR - Identity | S85: Bitdefender XDR Sensor for MDR - Identity - EDU | T85: Bitdefender XDR Sensor for MDR - Identity - GOV | U85: Bitdefender XDR Sensor for MDR - Identity - R | V85: Bitdefender XDR Sensor for MDR - Identity - EDU R | W85: Bitdefender XDR Sensor for MDR - Identity - GOV R | X85: Bitdefender XDR Sensor for MDR - Identity - CUPG
A86: Add-On | B86: =IF(MDR!$AB$8=$D$1,R86,IF(MDR!$AB$8=$D$2,S86,IF(MDR!$AB$8=$D$3,T86,IF(MDR!$AB$8=$D$4,U86,IF(MDR!$AB$8=$D$5,X86,IF(MDR!$AB$8=$D$6,V86,IF(MDR!$AB$8=$D$7,W86))))))) -> Bitdefender XDR Sensor for MDR - Identity | C86: 2 years | D86: 500 - 999 | E86: Bitdefender XDR Sensor for MDR - Identity2 years500 - 999 | G86: 29.23 | H86: =IF(MDR!$AB$8=$D$1,ROUND(G86*$C$3,2),IF(MDR!$AB$8=$D$2,ROUND(G86*$C$3*(1+$T$2),2),IF(MDR!$AB$8=$D$3,ROUND(G86*$C$3*(1+$T$3),2),IF(MDR!$AB$8=$D$4,ROUND(G86*$C$3*(1+$T$4),2),IF(MDR!$AB$8=$D$5,ROUND(G86*$C$3*(1+$T$5),2),IF(MDR!$AB$8=$D$6,ROUND(G86*$C$3*(1+$T$6),2),IF(MDR!$AB$8=$D$7,ROUND(G86*$C$3*(1+$T$7),2)))))))) -> 29.23 | I86: =IF(MDR!$AB$8=$D$1,J86,IF(MDR!$AB$8=$D$2,K86,IF(MDR!$AB$8=$D$3,L86,IF(MDR!$AB$8=$D$4,M86,IF(MDR!$AB$8=$D$5,P86,IF(MDR!$AB$8=$D$6,N86,IF(MDR!$AB$8=$D$7,O86))))))) -> 3119MXBSN240GLZZ | J86: 3119MXBSN240GLZZ | K86: 3119MXBEN240GLZZ | L86: 3119MXBGN240GLZZ | M86: 3119MXBSR240GLZZ | N86: 3119MXBER240GLZZ | O86: 3119MXBGR240GLZZ | P86: 3119MXBCN240GLZZ | R86: Bitdefender XDR Sensor for MDR - Identity | S86: Bitdefender XDR Sensor for MDR - Identity - EDU | T86: Bitdefender XDR Sensor for MDR - Identity - GOV | U86: Bitdefender XDR Sensor for MDR - Identity - R | V86: Bitdefender XDR Sensor for MDR - Identity - EDU R | W86: Bitdefender XDR Sensor for MDR - Identity - GOV R | X86: Bitdefender XDR Sensor for MDR - Identity - CUPG
A87: Add-On | B87: =IF(MDR!$AB$8=$D$1,R87,IF(MDR!$AB$8=$D$2,S87,IF(MDR!$AB$8=$D$3,T87,IF(MDR!$AB$8=$D$4,U87,IF(MDR!$AB$8=$D$5,X87,IF(MDR!$AB$8=$D$6,V87,IF(MDR!$AB$8=$D$7,W87))))))) -> Bitdefender XDR Sensor for MDR - Identity | C87: 2 years | D87: 1000 - 1999 | E87: Bitdefender XDR Sensor for MDR - Identity2 years1000 - 1999 | G87: 27.19 | H87: =IF(MDR!$AB$8=$D$1,ROUND(G87*$C$3,2),IF(MDR!$AB$8=$D$2,ROUND(G87*$C$3*(1+$T$2),2),IF(MDR!$AB$8=$D$3,ROUND(G87*$C$3*(1+$T$3),2),IF(MDR!$AB$8=$D$4,ROUND(G87*$C$3*(1+$T$4),2),IF(MDR!$AB$8=$D$5,ROUND(G87*$C$3*(1+$T$5),2),IF(MDR!$AB$8=$D$6,ROUND(G87*$C$3*(1+$T$6),2),IF(MDR!$AB$8=$D$7,ROUND(G87*$C$3*(1+$T$7),2)))))))) -> 27.19 | I87: =IF(MDR!$AB$8=$D$1,J87,IF(MDR!$AB$8=$D$2,K87,IF(MDR!$AB$8=$D$3,L87,IF(MDR!$AB$8=$D$4,M87,IF(MDR!$AB$8=$D$5,P87,IF(MDR!$AB$8=$D$6,N87,IF(MDR!$AB$8=$D$7,O87))))))) -> 3119MXBSN240PLZZ | J87: 3119MXBSN240PLZZ | K87: 3119MXBEN240PLZZ | L87: 3119MXBGN240PLZZ | M87: 3119MXBSR240PLZZ | N87: 3119MXBER240PLZZ | O87: 3119MXBGR240PLZZ | P87: 3119MXBCN240PLZZ | R87: Bitdefender XDR Sensor for MDR - Identity | S87: Bitdefender XDR Sensor for MDR - Identity - EDU | T87: Bitdefender XDR Sensor for MDR - Identity - GOV | U87: Bitdefender XDR Sensor for MDR - Identity - R | V87: Bitdefender XDR Sensor for MDR - Identity - EDU R | W87: Bitdefender XDR Sensor for MDR - Identity - GOV R | X87: Bitdefender XDR Sensor for MDR - Identity - CUPG
A88: Add-On | B88: =IF(MDR!$AB$8=$D$1,R88,IF(MDR!$AB$8=$D$2,S88,IF(MDR!$AB$8=$D$3,T88,IF(MDR!$AB$8=$D$4,U88,IF(MDR!$AB$8=$D$5,X88,IF(MDR!$AB$8=$D$6,V88,IF(MDR!$AB$8=$D$7,W88))))))) -> Bitdefender XDR Sensor for MDR - Identity | C88: 2 years | D88: 2000 - 2999 | E88: Bitdefender XDR Sensor for MDR - Identity2 years2000 - 2999 | G88: 25.28 | H88: =IF(MDR!$AB$8=$D$1,ROUND(G88*$C$3,2),IF(MDR!$AB$8=$D$2,ROUND(G88*$C$3*(1+$T$2),2),IF(MDR!$AB$8=$D$3,ROUND(G88*$C$3*(1+$T$3),2),IF(MDR!$AB$8=$D$4,ROUND(G88*$C$3*(1+$T$4),2),IF(MDR!$AB$8=$D$5,ROUND(G88*$C$3*(1+$T$5),2),IF(MDR!$AB$8=$D$6,ROUND(G88*$C$3*(1+$T$6),2),IF(MDR!$AB$8=$D$7,ROUND(G88*$C$3*(1+$T$7),2)))))))) -> 25.28 | I88: =IF(MDR!$AB$8=$D$1,J88,IF(MDR!$AB$8=$D$2,K88,IF(MDR!$AB$8=$D$3,L88,IF(MDR!$AB$8=$D$4,M88,IF(MDR!$AB$8=$D$5,P88,IF(MDR!$AB$8=$D$6,N88,IF(MDR!$AB$8=$D$7,O88))))))) -> 3119MXBSN240QLZZ | J88: 3119MXBSN240QLZZ | K88: 3119MXBEN240QLZZ | L88: 3119MXBGN240QLZZ | M88: 3119MXBSR240QLZZ | N88: 3119MXBER240QLZZ | O88: 3119MXBGR240QLZZ | P88: 3119MXBCN240QLZZ | R88: Bitdefender XDR Sensor for MDR - Identity | S88: Bitdefender XDR Sensor for MDR - Identity - EDU | T88: Bitdefender XDR Sensor for MDR - Identity - GOV | U88: Bitdefender XDR Sensor for MDR - Identity - R | V88: Bitdefender XDR Sensor for MDR - Identity - EDU R | W88: Bitdefender XDR Sensor for MDR - Identity - GOV R | X88: Bitdefender XDR Sensor for MDR - Identity - CUPG
A89: Add-On | B89: =IF(MDR!$AB$8=$D$1,R89,IF(MDR!$AB$8=$D$2,S89,IF(MDR!$AB$8=$D$3,T89,IF(MDR!$AB$8=$D$4,U89,IF(MDR!$AB$8=$D$5,X89,IF(MDR!$AB$8=$D$6,V89,IF(MDR!$AB$8=$D$7,W89))))))) -> Bitdefender XDR Sensor for MDR - Identity | C89: 2 years | D89: 3000 - 4999 | E89: Bitdefender XDR Sensor for MDR - Identity2 years3000 - 4999 | G89: 23.52 | H89: =IF(MDR!$AB$8=$D$1,ROUND(G89*$C$3,2),IF(MDR!$AB$8=$D$2,ROUND(G89*$C$3*(1+$T$2),2),IF(MDR!$AB$8=$D$3,ROUND(G89*$C$3*(1+$T$3),2),IF(MDR!$AB$8=$D$4,ROUND(G89*$C$3*(1+$T$4),2),IF(MDR!$AB$8=$D$5,ROUND(G89*$C$3*(1+$T$5),2),IF(MDR!$AB$8=$D$6,ROUND(G89*$C$3*(1+$T$6),2),IF(MDR!$AB$8=$D$7,ROUND(G89*$C$3*(1+$T$7),2)))))))) -> 23.52 | I89: =IF(MDR!$AB$8=$D$1,J89,IF(MDR!$AB$8=$D$2,K89,IF(MDR!$AB$8=$D$3,L89,IF(MDR!$AB$8=$D$4,M89,IF(MDR!$AB$8=$D$5,P89,IF(MDR!$AB$8=$D$6,N89,IF(MDR!$AB$8=$D$7,O89))))))) -> 3119MXBSN240ILZZ | J89: 3119MXBSN240ILZZ | K89: 3119MXBEN240ILZZ | L89: 3119MXBGN240ILZZ | M89: 3119MXBSR240ILZZ | N89: 3119MXBER240ILZZ | O89: 3119MXBGR240ILZZ | P89: 3119MXBCN240ILZZ | R89: Bitdefender XDR Sensor for MDR - Identity | S89: Bitdefender XDR Sensor for MDR - Identity - EDU | T89: Bitdefender XDR Sensor for MDR - Identity - GOV | U89: Bitdefender XDR Sensor for MDR - Identity - R | V89: Bitdefender XDR Sensor for MDR - Identity - EDU R | W89: Bitdefender XDR Sensor for MDR - Identity - GOV R | X89: Bitdefender XDR Sensor for MDR - Identity - CUPG
A90: Add-On | B90: =IF(MDR!$AB$8=$D$1,R90,IF(MDR!$AB$8=$D$2,S90,IF(MDR!$AB$8=$D$3,T90,IF(MDR!$AB$8=$D$4,U90,IF(MDR!$AB$8=$D$5,X90,IF(MDR!$AB$8=$D$6,V90,IF(MDR!$AB$8=$D$7,W90))))))) -> Bitdefender XDR Sensor for MDR - Identity | C90: 2 years | D90: 5000+ | E90: Bitdefender XDR Sensor for MDR - Identity2 years5000+ | G90: 21.87 | H90: =IF(MDR!$AB$8=$D$1,ROUND(G90*$C$3,2),IF(MDR!$AB$8=$D$2,ROUND(G90*$C$3*(1+$T$2),2),IF(MDR!$AB$8=$D$3,ROUND(G90*$C$3*(1+$T$3),2),IF(MDR!$AB$8=$D$4,ROUND(G90*$C$3*(1+$T$4),2),IF(MDR!$AB$8=$D$5,ROUND(G90*$C$3*(1+$T$5),2),IF(MDR!$AB$8=$D$6,ROUND(G90*$C$3*(1+$T$6),2),IF(MDR!$AB$8=$D$7,ROUND(G90*$C$3*(1+$T$7),2)))))))) -> 21.87 | I90: =IF(MDR!$AB$8=$D$1,J90,IF(MDR!$AB$8=$D$2,K90,IF(MDR!$AB$8=$D$3,L90,IF(MDR!$AB$8=$D$4,M90,IF(MDR!$AB$8=$D$5,P90,IF(MDR!$AB$8=$D$6,N90,IF(MDR!$AB$8=$D$7,O90))))))) -> 3119MXBSN240JLZZ | J90: 3119MXBSN240JLZZ | K90: 3119MXBEN240JLZZ | L90: 3119MXBGN240JLZZ | M90: 3119MXBSR240JLZZ | N90: 3119MXBER240JLZZ | O90: 3119MXBGR240JLZZ | P90: 3119MXBCN240JLZZ | R90: Bitdefender XDR Sensor for MDR - Identity | S90: Bitdefender XDR Sensor for MDR - Identity - EDU | T90: Bitdefender XDR Sensor for MDR - Identity - GOV | U90: Bitdefender XDR Sensor for MDR - Identity - R | V90: Bitdefender XDR Sensor for MDR - Identity - EDU R | W90: Bitdefender XDR Sensor for MDR - Identity - GOV R | X90: Bitdefender XDR Sensor for MDR - Identity - CUPG
A91: Add-On | B91: =IF(MDR!$AB$8=$D$1,R91,IF(MDR!$AB$8=$D$2,S91,IF(MDR!$AB$8=$D$3,T91,IF(MDR!$AB$8=$D$4,U91,IF(MDR!$AB$8=$D$5,X91,IF(MDR!$AB$8=$D$6,V91,IF(MDR!$AB$8=$D$7,W91))))))) -> Bitdefender XDR Sensor for MDR - Identity | C91: 3 years | D91: 50 - 99 | E91: Bitdefender XDR Sensor for MDR - Identity3 years50 - 99 | G91: 53.33 | H91: =IF(MDR!$AB$8=$D$1,ROUND(G91*$C$3,2),IF(MDR!$AB$8=$D$2,ROUND(G91*$C$3*(1+$T$2),2),IF(MDR!$AB$8=$D$3,ROUND(G91*$C$3*(1+$T$3),2),IF(MDR!$AB$8=$D$4,ROUND(G91*$C$3*(1+$T$4),2),IF(MDR!$AB$8=$D$5,ROUND(G91*$C$3*(1+$T$5),2),IF(MDR!$AB$8=$D$6,ROUND(G91*$C$3*(1+$T$6),2),IF(MDR!$AB$8=$D$7,ROUND(G91*$C$3*(1+$T$7),2)))))))) -> 53.33 | I91: =IF(MDR!$AB$8=$D$1,J91,IF(MDR!$AB$8=$D$2,K91,IF(MDR!$AB$8=$D$3,L91,IF(MDR!$AB$8=$D$4,M91,IF(MDR!$AB$8=$D$5,P91,IF(MDR!$AB$8=$D$6,N91,IF(MDR!$AB$8=$D$7,O91))))))) -> 3119MXBSN360CLZZ | J91: 3119MXBSN360CLZZ | K91: 3119MXBEN360CLZZ | L91: 3119MXBGN360CLZZ | M91: 3119MXBSR360CLZZ | N91: 3119MXBER360CLZZ | O91: 3119MXBGR360CLZZ | P91: 3119MXBCN360CLZZ | R91: Bitdefender XDR Sensor for MDR - Identity | S91: Bitdefender XDR Sensor for MDR - Identity - EDU | T91: Bitdefender XDR Sensor for MDR - Identity - GOV | U91: Bitdefender XDR Sensor for MDR - Identity - R | V91: Bitdefender XDR Sensor for MDR - Identity - EDU R | W91: Bitdefender XDR Sensor for MDR - Identity - GOV R | X91: Bitdefender XDR Sensor for MDR - Identity - CUPG
A92: Add-On | B92: =IF(MDR!$AB$8=$D$1,R92,IF(MDR!$AB$8=$D$2,S92,IF(MDR!$AB$8=$D$3,T92,IF(MDR!$AB$8=$D$4,U92,IF(MDR!$AB$8=$D$5,X92,IF(MDR!$AB$8=$D$6,V92,IF(MDR!$AB$8=$D$7,W92))))))) -> Bitdefender XDR Sensor for MDR - Identity | C92: 3 years | D92: 100 - 149 | E92: Bitdefender XDR Sensor for MDR - Identity3 years100 - 149 | G92: 49.59 | H92: =IF(MDR!$AB$8=$D$1,ROUND(G92*$C$3,2),IF(MDR!$AB$8=$D$2,ROUND(G92*$C$3*(1+$T$2),2),IF(MDR!$AB$8=$D$3,ROUND(G92*$C$3*(1+$T$3),2),IF(MDR!$AB$8=$D$4,ROUND(G92*$C$3*(1+$T$4),2),IF(MDR!$AB$8=$D$5,ROUND(G92*$C$3*(1+$T$5),2),IF(MDR!$AB$8=$D$6,ROUND(G92*$C$3*(1+$T$6),2),IF(MDR!$AB$8=$D$7,ROUND(G92*$C$3*(1+$T$7),2)))))))) -> 49.59 | I92: =IF(MDR!$AB$8=$D$1,J92,IF(MDR!$AB$8=$D$2,K92,IF(MDR!$AB$8=$D$3,L92,IF(MDR!$AB$8=$D$4,M92,IF(MDR!$AB$8=$D$5,P92,IF(MDR!$AB$8=$D$6,N92,IF(MDR!$AB$8=$D$7,O92))))))) -> 3119MXBSN360DLZZ | J92: 3119MXBSN360DLZZ | K92: 3119MXBEN360DLZZ | L92: 3119MXBGN360DLZZ | M92: 3119MXBSR360DLZZ | N92: 3119MXBER360DLZZ | O92: 3119MXBGR360DLZZ | P92: 3119MXBCN360DLZZ | R92: Bitdefender XDR Sensor for MDR - Identity | S92: Bitdefender XDR Sensor for MDR - Identity - EDU | T92: Bitdefender XDR Sensor for MDR - Identity - GOV | U92: Bitdefender XDR Sensor for MDR - Identity - R | V92: Bitdefender XDR Sensor for MDR - Identity - EDU R | W92: Bitdefender XDR Sensor for MDR - Identity - GOV R | X92: Bitdefender XDR Sensor for MDR - Identity - CUPG
A93: Add-On | B93: =IF(MDR!$AB$8=$D$1,R93,IF(MDR!$AB$8=$D$2,S93,IF(MDR!$AB$8=$D$3,T93,IF(MDR!$AB$8=$D$4,U93,IF(MDR!$AB$8=$D$5,X93,IF(MDR!$AB$8=$D$6,V93,IF(MDR!$AB$8=$D$7,W93))))))) -> Bitdefender XDR Sensor for MDR - Identity | C93: 3 years | D93: 150 - 249 | E93: Bitdefender XDR Sensor for MDR - Identity3 years150 - 249 | G93: 46.11 | H93: =IF(MDR!$AB$8=$D$1,ROUND(G93*$C$3,2),IF(MDR!$AB$8=$D$2,ROUND(G93*$C$3*(1+$T$2),2),IF(MDR!$AB$8=$D$3,ROUND(G93*$C$3*(1+$T$3),2),IF(MDR!$AB$8=$D$4,ROUND(G93*$C$3*(1+$T$4),2),IF(MDR!$AB$8=$D$5,ROUND(G93*$C$3*(1+$T$5),2),IF(MDR!$AB$8=$D$6,ROUND(G93*$C$3*(1+$T$6),2),IF(MDR!$AB$8=$D$7,ROUND(G93*$C$3*(1+$T$7),2)))))))) -> 46.11 | I93: =IF(MDR!$AB$8=$D$1,J93,IF(MDR!$AB$8=$D$2,K93,IF(MDR!$AB$8=$D$3,L93,IF(MDR!$AB$8=$D$4,M93,IF(MDR!$AB$8=$D$5,P93,IF(MDR!$AB$8=$D$6,N93,IF(MDR!$AB$8=$D$7,O93))))))) -> 3119MXBSN360ELZZ | J93: 3119MXBSN360ELZZ | K93: 3119MXBEN360ELZZ | L93: 3119MXBGN360ELZZ | M93: 3119MXBSR360ELZZ | N93: 3119MXBER360ELZZ | O93: 3119MXBGR360ELZZ | P93: 3119MXBCN360ELZZ | R93: Bitdefender XDR Sensor for MDR - Identity | S93: Bitdefender XDR Sensor for MDR - Identity - EDU | T93: Bitdefender XDR Sensor for MDR - Identity - GOV | U93: Bitdefender XDR Sensor for MDR - Identity - R | V93: Bitdefender XDR Sensor for MDR - Identity - EDU R | W93: Bitdefender XDR Sensor for MDR - Identity - GOV R | X93: Bitdefender XDR Sensor for MDR - Identity - CUPG
A94: Add-On | B94: =IF(MDR!$AB$8=$D$1,R94,IF(MDR!$AB$8=$D$2,S94,IF(MDR!$AB$8=$D$3,T94,IF(MDR!$AB$8=$D$4,U94,IF(MDR!$AB$8=$D$5,X94,IF(MDR!$AB$8=$D$6,V94,IF(MDR!$AB$8=$D$7,W94))))))) -> Bitdefender XDR Sensor for MDR - Identity | C94: 3 years | D94: 250 - 499 | E94: Bitdefender XDR Sensor for MDR - Identity3 years250 - 499 | G94: 43.81 | H94: =IF(MDR!$AB$8=$D$1,ROUND(G94*$C$3,2),IF(MDR!$AB$8=$D$2,ROUND(G94*$C$3*(1+$T$2),2),IF(MDR!$AB$8=$D$3,ROUND(G94*$C$3*(1+$T$3),2),IF(MDR!$AB$8=$D$4,ROUND(G94*$C$3*(1+$T$4),2),IF(MDR!$AB$8=$D$5,ROUND(G94*$C$3*(1+$T$5),2),IF(MDR!$AB$8=$D$6,ROUND(G94*$C$3*(1+$T$6),2),IF(MDR!$AB$8=$D$7,ROUND(G94*$C$3*(1+$T$7),2)))))))) -> 43.81 | I94: =IF(MDR!$AB$8=$D$1,J94,IF(MDR!$AB$8=$D$2,K94,IF(MDR!$AB$8=$D$3,L94,IF(MDR!$AB$8=$D$4,M94,IF(MDR!$AB$8=$D$5,P94,IF(MDR!$AB$8=$D$6,N94,IF(MDR!$AB$8=$D$7,O94))))))) -> 3119MXBSN360FLZZ | J94: 3119MXBSN360FLZZ | K94: 3119MXBEN360FLZZ | L94: 3119MXBGN360FLZZ | M94: 3119MXBSR360FLZZ | N94: 3119MXBER360FLZZ | O94: 3119MXBGR360FLZZ | P94: 3119MXBCN360FLZZ | R94: Bitdefender XDR Sensor for MDR - Identity | S94: Bitdefender XDR Sensor for MDR - Identity - EDU | T94: Bitdefender XDR Sensor for MDR - Identity - GOV | U94: Bitdefender XDR Sensor for MDR - Identity - R | V94: Bitdefender XDR Sensor for MDR - Identity - EDU R | W94: Bitdefender XDR Sensor for MDR - Identity - GOV R | X94: Bitdefender XDR Sensor for MDR - Identity - CUPG
A95: Add-On | B95: =IF(MDR!$AB$8=$D$1,R95,IF(MDR!$AB$8=$D$2,S95,IF(MDR!$AB$8=$D$3,T95,IF(MDR!$AB$8=$D$4,U95,IF(MDR!$AB$8=$D$5,X95,IF(MDR!$AB$8=$D$6,V95,IF(MDR!$AB$8=$D$7,W95))))))) -> Bitdefender XDR Sensor for MDR - Identity | C95: 3 years | D95: 500 - 999 | E95: Bitdefender XDR Sensor for MDR - Identity3 years500 - 999 | G95: 40.73 | H95: =IF(MDR!$AB$8=$D$1,ROUND(G95*$C$3,2),IF(MDR!$AB$8=$D$2,ROUND(G95*$C$3*(1+$T$2),2),IF(MDR!$AB$8=$D$3,ROUND(G95*$C$3*(1+$T$3),2),IF(MDR!$AB$8=$D$4,ROUND(G95*$C$3*(1+$T$4),2),IF(MDR!$AB$8=$D$5,ROUND(G95*$C$3*(1+$T$5),2),IF(MDR!$AB$8=$D$6,ROUND(G95*$C$3*(1+$T$6),2),IF(MDR!$AB$8=$D$7,ROUND(G95*$C$3*(1+$T$7),2)))))))) -> 40.73 | I95: =IF(MDR!$AB$8=$D$1,J95,IF(MDR!$AB$8=$D$2,K95,IF(MDR!$AB$8=$D$3,L95,IF(MDR!$AB$8=$D$4,M95,IF(MDR!$AB$8=$D$5,P95,IF(MDR!$AB$8=$D$6,N95,IF(MDR!$AB$8=$D$7,O95))))))) -> 3119MXBSN360GLZZ | J95: 3119MXBSN360GLZZ | K95: 3119MXBEN360GLZZ | L95: 3119MXBGN360GLZZ | M95: 3119MXBSR360GLZZ | N95: 3119MXBER360GLZZ | O95: 3119MXBGR360GLZZ | P95: 3119MXBCN360GLZZ | R95: Bitdefender XDR Sensor for MDR - Identity | S95: Bitdefender XDR Sensor for MDR - Identity - EDU | T95: Bitdefender XDR Sensor for MDR - Identity - GOV | U95: Bitdefender XDR Sensor for MDR - Identity - R | V95: Bitdefender XDR Sensor for MDR - Identity - EDU R | W95: Bitdefender XDR Sensor for MDR - Identity - GOV R | X95: Bitdefender XDR Sensor for MDR - Identity - CUPG
A96: Add-On | B96: =IF(MDR!$AB$8=$D$1,R96,IF(MDR!$AB$8=$D$2,S96,IF(MDR!$AB$8=$D$3,T96,IF(MDR!$AB$8=$D$4,U96,IF(MDR!$AB$8=$D$5,X96,IF(MDR!$AB$8=$D$6,V96,IF(MDR!$AB$8=$D$7,W96))))))) -> Bitdefender XDR Sensor for MDR - Identity | C96: 3 years | D96: 1000 - 1999 | E96: Bitdefender XDR Sensor for MDR - Identity3 years1000 - 1999 | G96: 37.9 | H96: =IF(MDR!$AB$8=$D$1,ROUND(G96*$C$3,2),IF(MDR!$AB$8=$D$2,ROUND(G96*$C$3*(1+$T$2),2),IF(MDR!$AB$8=$D$3,ROUND(G96*$C$3*(1+$T$3),2),IF(MDR!$AB$8=$D$4,ROUND(G96*$C$3*(1+$T$4),2),IF(MDR!$AB$8=$D$5,ROUND(G96*$C$3*(1+$T$5),2),IF(MDR!$AB$8=$D$6,ROUND(G96*$C$3*(1+$T$6),2),IF(MDR!$AB$8=$D$7,ROUND(G96*$C$3*(1+$T$7),2)))))))) -> 37.9 | I96: =IF(MDR!$AB$8=$D$1,J96,IF(MDR!$AB$8=$D$2,K96,IF(MDR!$AB$8=$D$3,L96,IF(MDR!$AB$8=$D$4,M96,IF(MDR!$AB$8=$D$5,P96,IF(MDR!$AB$8=$D$6,N96,IF(MDR!$AB$8=$D$7,O96))))))) -> 3119MXBSN360PLZZ | J96: 3119MXBSN360PLZZ | K96: 3119MXBEN360PLZZ | L96: 3119MXBGN360PLZZ | M96: 3119MXBSR360PLZZ | N96: 3119MXBER360PLZZ | O96: 3119MXBGR360PLZZ | P96: 3119MXBCN360PLZZ | R96: Bitdefender XDR Sensor for MDR - Identity | S96: Bitdefender XDR Sensor for MDR - Identity - EDU | T96: Bitdefender XDR Sensor for MDR - Identity - GOV | U96: Bitdefender XDR Sensor for MDR - Identity - R | V96: Bitdefender XDR Sensor for MDR - Identity - EDU R | W96: Bitdefender XDR Sensor for MDR - Identity - GOV R | X96: Bitdefender XDR Sensor for MDR - Identity - CUPG
A97: Add-On | B97: =IF(MDR!$AB$8=$D$1,R97,IF(MDR!$AB$8=$D$2,S97,IF(MDR!$AB$8=$D$3,T97,IF(MDR!$AB$8=$D$4,U97,IF(MDR!$AB$8=$D$5,X97,IF(MDR!$AB$8=$D$6,V97,IF(MDR!$AB$8=$D$7,W97))))))) -> Bitdefender XDR Sensor for MDR - Identity | C97: 3 years | D97: 2000 - 2999 | E97: Bitdefender XDR Sensor for MDR - Identity3 years2000 - 2999 | G97: 35.26 | H97: =IF(MDR!$AB$8=$D$1,ROUND(G97*$C$3,2),IF(MDR!$AB$8=$D$2,ROUND(G97*$C$3*(1+$T$2),2),IF(MDR!$AB$8=$D$3,ROUND(G97*$C$3*(1+$T$3),2),IF(MDR!$AB$8=$D$4,ROUND(G97*$C$3*(1+$T$4),2),IF(MDR!$AB$8=$D$5,ROUND(G97*$C$3*(1+$T$5),2),IF(MDR!$AB$8=$D$6,ROUND(G97*$C$3*(1+$T$6),2),IF(MDR!$AB$8=$D$7,ROUND(G97*$C$3*(1+$T$7),2)))))))) -> 35.26 | I97: =IF(MDR!$AB$8=$D$1,J97,IF(MDR!$AB$8=$D$2,K97,IF(MDR!$AB$8=$D$3,L97,IF(MDR!$AB$8=$D$4,M97,IF(MDR!$AB$8=$D$5,P97,IF(MDR!$AB$8=$D$6,N97,IF(MDR!$AB$8=$D$7,O97))))))) -> 3119MXBSN360QLZZ | J97: 3119MXBSN360QLZZ | K97: 3119MXBEN360QLZZ | L97: 3119MXBGN360QLZZ | M97: 3119MXBSR360QLZZ | N97: 3119MXBER360QLZZ | O97: 3119MXBGR360QLZZ | P97: 3119MXBCN360QLZZ | R97: Bitdefender XDR Sensor for MDR - Identity | S97: Bitdefender XDR Sensor for MDR - Identity - EDU | T97: Bitdefender XDR Sensor for MDR - Identity - GOV | U97: Bitdefender XDR Sensor for MDR - Identity - R | V97: Bitdefender XDR Sensor for MDR - Identity - EDU R | W97: Bitdefender XDR Sensor for MDR - Identity - GOV R | X97: Bitdefender XDR Sensor for MDR - Identity - CUPG
A98: Add-On | B98: =IF(MDR!$AB$8=$D$1,R98,IF(MDR!$AB$8=$D$2,S98,IF(MDR!$AB$8=$D$3,T98,IF(MDR!$AB$8=$D$4,U98,IF(MDR!$AB$8=$D$5,X98,IF(MDR!$AB$8=$D$6,V98,IF(MDR!$AB$8=$D$7,W98))))))) -> Bitdefender XDR Sensor for MDR - Identity | C98: 3 years | D98: 3000 - 4999 | E98: Bitdefender XDR Sensor for MDR - Identity3 years3000 - 4999 | G98: 32.78 | H98: =IF(MDR!$AB$8=$D$1,ROUND(G98*$C$3,2),IF(MDR!$AB$8=$D$2,ROUND(G98*$C$3*(1+$T$2),2),IF(MDR!$AB$8=$D$3,ROUND(G98*$C$3*(1+$T$3),2),IF(MDR!$AB$8=$D$4,ROUND(G98*$C$3*(1+$T$4),2),IF(MDR!$AB$8=$D$5,ROUND(G98*$C$3*(1+$T$5),2),IF(MDR!$AB$8=$D$6,ROUND(G98*$C$3*(1+$T$6),2),IF(MDR!$AB$8=$D$7,ROUND(G98*$C$3*(1+$T$7),2)))))))) -> 32.78 | I98: =IF(MDR!$AB$8=$D$1,J98,IF(MDR!$AB$8=$D$2,K98,IF(MDR!$AB$8=$D$3,L98,IF(MDR!$AB$8=$D$4,M98,IF(MDR!$AB$8=$D$5,P98,IF(MDR!$AB$8=$D$6,N98,IF(MDR!$AB$8=$D$7,O98))))))) -> 3119MXBSN360ILZZ | J98: 3119MXBSN360ILZZ | K98: 3119MXBEN360ILZZ | L98: 3119MXBGN360ILZZ | M98: 3119MXBSR360ILZZ | N98: 3119MXBER360ILZZ | O98: 3119MXBGR360ILZZ | P98: 3119MXBCN360ILZZ | R98: Bitdefender XDR Sensor for MDR - Identity | S98: Bitdefender XDR Sensor for MDR - Identity - EDU | T98: Bitdefender XDR Sensor for MDR - Identity - GOV | U98: Bitdefender XDR Sensor for MDR - Identity - R | V98: Bitdefender XDR Sensor for MDR - Identity - EDU R | W98: Bitdefender XDR Sensor for MDR - Identity - GOV R | X98: Bitdefender XDR Sensor for MDR - Identity - CUPG
A99: Add-On | B99: =IF(MDR!$AB$8=$D$1,R99,IF(MDR!$AB$8=$D$2,S99,IF(MDR!$AB$8=$D$3,T99,IF(MDR!$AB$8=$D$4,U99,IF(MDR!$AB$8=$D$5,X99,IF(MDR!$AB$8=$D$6,V99,IF(MDR!$AB$8=$D$7,W99))))))) -> Bitdefender XDR Sensor for MDR - Identity | C99: 3 years | D99: 5000+ | E99: Bitdefender XDR Sensor for MDR - Identity3 years5000+ | G99: 30.48 | H99: =IF(MDR!$AB$8=$D$1,ROUND(G99*$C$3,2),IF(MDR!$AB$8=$D$2,ROUND(G99*$C$3*(1+$T$2),2),IF(MDR!$AB$8=$D$3,ROUND(G99*$C$3*(1+$T$3),2),IF(MDR!$AB$8=$D$4,ROUND(G99*$C$3*(1+$T$4),2),IF(MDR!$AB$8=$D$5,ROUND(G99*$C$3*(1+$T$5),2),IF(MDR!$AB$8=$D$6,ROUND(G99*$C$3*(1+$T$6),2),IF(MDR!$AB$8=$D$7,ROUND(G99*$C$3*(1+$T$7),2)))))))) -> 30.48 | I99: =IF(MDR!$AB$8=$D$1,J99,IF(MDR!$AB$8=$D$2,K99,IF(MDR!$AB$8=$D$3,L99,IF(MDR!$AB$8=$D$4,M99,IF(MDR!$AB$8=$D$5,P99,IF(MDR!$AB$8=$D$6,N99,IF(MDR!$AB$8=$D$7,O99))))))) -> 3119MXBSN360JLZZ | J99: 3119MXBSN360JLZZ | K99: 3119MXBEN360JLZZ | L99: 3119MXBGN360JLZZ | M99: 3119MXBSR360JLZZ | N99: 3119MXBER360JLZZ | O99: 3119MXBGR360JLZZ | P99: 3119MXBCN360JLZZ | R99: Bitdefender XDR Sensor for MDR - Identity | S99: Bitdefender XDR Sensor for MDR - Identity - EDU | T99: Bitdefender XDR Sensor for MDR - Identity - GOV | U99: Bitdefender XDR Sensor for MDR - Identity - R | V99: Bitdefender XDR Sensor for MDR - Identity - EDU R | W99: Bitdefender XDR Sensor for MDR - Identity - GOV R | X99: Bitdefender XDR Sensor for MDR - Identity - CUPG
A100: Add-On | B100: =IF(MDR!$AB$8=$D$1,R100,IF(MDR!$AB$8=$D$2,S100,IF(MDR!$AB$8=$D$3,T100,IF(MDR!$AB$8=$D$4,U100,IF(MDR!$AB$8=$D$5,X100,IF(MDR!$AB$8=$D$6,V100,IF(MDR!$AB$8=$D$7,W100))))))) -> Bitdefender XDR Sensor for MDR - Network | C100: 1 year | D100: 50 - 99 | E100: Bitdefender XDR Sensor for MDR - Network 1 year50 - 99 | G100: 21.56 | H100: =IF(MDR!$AB$8=$D$1,ROUND(G100*$C$3,2),IF(MDR!$AB$8=$D$2,ROUND(G100*$C$3*(1+$T$2),2),IF(MDR!$AB$8=$D$3,ROUND(G100*$C$3*(1+$T$3),2),IF(MDR!$AB$8=$D$4,ROUND(G100*$C$3*(1+$T$4),2),IF(MDR!$AB$8=$D$5,ROUND(G100*$C$3*(1+$T$5),2),IF(MDR!$AB$8=$D$6,ROUND(G100*$C$3*(1+$T$6),2),IF(MDR!$AB$8=$D$7,ROUND(G100*$C$3*(1+$T$7),2)))))))) -> 21.56 | I100: =IF(MDR!$AB$8=$D$1,J100,IF(MDR!$AB$8=$D$2,K100,IF(MDR!$AB$8=$D$3,L100,IF(MDR!$AB$8=$D$4,M100,IF(MDR!$AB$8=$D$5,P100,IF(MDR!$AB$8=$D$6,N100,IF(MDR!$AB$8=$D$7,O100))))))) -> 3117MXBSN120CLZZ | J100: 3117MXBSN120CLZZ | K100: 3117MXBEN120CLZZ | L100: 3117MXBGN120CLZZ | M100: 3117MXBSR120CLZZ | N100: 3117MXBER120CLZZ | O100: 3117MXBGR120CLZZ | P100: 3117MXBCN120CLZZ | R100: Bitdefender XDR Sensor for MDR - Network | S100: Bitdefender XDR Sensor for MDR - Network - EDU | T100: Bitdefender XDR Sensor for MDR - Network - GOV | U100: Bitdefender XDR Sensor for MDR - Network - R | V100: Bitdefender XDR Sensor for MDR - Network - EDU R | W100: Bitdefender XDR Sensor for MDR - Network - GOV R | X100: Bitdefender XDR Sensor for MDR - Network - CUPG
A101: Add-On | B101: =IF(MDR!$AB$8=$D$1,R101,IF(MDR!$AB$8=$D$2,S101,IF(MDR!$AB$8=$D$3,T101,IF(MDR!$AB$8=$D$4,U101,IF(MDR!$AB$8=$D$5,X101,IF(MDR!$AB$8=$D$6,V101,IF(MDR!$AB$8=$D$7,W101))))))) -> Bitdefender XDR Sensor for MDR - Network | C101: 1 year | D101: 100 - 149 | E101: Bitdefender XDR Sensor for MDR - Network 1 year100 - 149 | G101: 20.04 | H101: =IF(MDR!$AB$8=$D$1,ROUND(G101*$C$3,2),IF(MDR!$AB$8=$D$2,ROUND(G101*$C$3*(1+$T$2),2),IF(MDR!$AB$8=$D$3,ROUND(G101*$C$3*(1+$T$3),2),IF(MDR!$AB$8=$D$4,ROUND(G101*$C$3*(1+$T$4),2),IF(MDR!$AB$8=$D$5,ROUND(G101*$C$3*(1+$T$5),2),IF(MDR!$AB$8=$D$6,ROUND(G101*$C$3*(1+$T$6),2),IF(MDR!$AB$8=$D$7,ROUND(G101*$C$3*(1+$T$7),2)))))))) -> 20.04 | I101: =IF(MDR!$AB$8=$D$1,J101,IF(MDR!$AB$8=$D$2,K101,IF(MDR!$AB$8=$D$3,L101,IF(MDR!$AB$8=$D$4,M101,IF(MDR!$AB$8=$D$5,P101,IF(MDR!$AB$8=$D$6,N101,IF(MDR!$AB$8=$D$7,O101))))))) -> 3117MXBSN120DLZZ | J101: 3117MXBSN120DLZZ | K101: 3117MXBEN120DLZZ | L101: 3117MXBGN120DLZZ | M101: 3117MXBSR120DLZZ | N101: 3117MXBER120DLZZ | O101: 3117MXBGR120DLZZ | P101: 3117MXBCN120DLZZ | R101: Bitdefender XDR Sensor for MDR - Network | S101: Bitdefender XDR Sensor for MDR - Network - EDU | T101: Bitdefender XDR Sensor for MDR - Network - GOV | U101: Bitdefender XDR Sensor for MDR - Network - R | V101: Bitdefender XDR Sensor for MDR - Network - EDU R | W101: Bitdefender XDR Sensor for MDR - Network - GOV R | X101: Bitdefender XDR Sensor for MDR - Network - CUPG
A102: Add-On | B102: =IF(MDR!$AB$8=$D$1,R102,IF(MDR!$AB$8=$D$2,S102,IF(MDR!$AB$8=$D$3,T102,IF(MDR!$AB$8=$D$4,U102,IF(MDR!$AB$8=$D$5,X102,IF(MDR!$AB$8=$D$6,V102,IF(MDR!$AB$8=$D$7,W102))))))) -> Bitdefender XDR Sensor for MDR - Network | C102: 1 year | D102: 150 - 249 | E102: Bitdefender XDR Sensor for MDR - Network 1 year150 - 249 | G102: 18.65 | H102: =IF(MDR!$AB$8=$D$1,ROUND(G102*$C$3,2),IF(MDR!$AB$8=$D$2,ROUND(G102*$C$3*(1+$T$2),2),IF(MDR!$AB$8=$D$3,ROUND(G102*$C$3*(1+$T$3),2),IF(MDR!$AB$8=$D$4,ROUND(G102*$C$3*(1+$T$4),2),IF(MDR!$AB$8=$D$5,ROUND(G102*$C$3*(1+$T$5),2),IF(MDR!$AB$8=$D$6,ROUND(G102*$C$3*(1+$T$6),2),IF(MDR!$AB$8=$D$7,ROUND(G102*$C$3*(1+$T$7),2)))))))) -> 18.65 | I102: =IF(MDR!$AB$8=$D$1,J102,IF(MDR!$AB$8=$D$2,K102,IF(MDR!$AB$8=$D$3,L102,IF(MDR!$AB$8=$D$4,M102,IF(MDR!$AB$8=$D$5,P102,IF(MDR!$AB$8=$D$6,N102,IF(MDR!$AB$8=$D$7,O102))))))) -> 3117MXBSN120ELZZ | J102: 3117MXBSN120ELZZ | K102: 3117MXBEN120ELZZ | L102: 3117MXBGN120ELZZ | M102: 3117MXBSR120ELZZ | N102: 3117MXBER120ELZZ | O102: 3117MXBGR120ELZZ | P102: 3117MXBCN120ELZZ | R102: Bitdefender XDR Sensor for MDR - Network | S102: Bitdefender XDR Sensor for MDR - Network - EDU | T102: Bitdefender XDR Sensor for MDR - Network - GOV | U102: Bitdefender XDR Sensor for MDR - Network - R | V102: Bitdefender XDR Sensor for MDR - Network - EDU R | W102: Bitdefender XDR Sensor for MDR - Network - GOV R | X102: Bitdefender XDR Sensor for MDR - Network - CUPG
A103: Add-On | B103: =IF(MDR!$AB$8=$D$1,R103,IF(MDR!$AB$8=$D$2,S103,IF(MDR!$AB$8=$D$3,T103,IF(MDR!$AB$8=$D$4,U103,IF(MDR!$AB$8=$D$5,X103,IF(MDR!$AB$8=$D$6,V103,IF(MDR!$AB$8=$D$7,W103))))))) -> Bitdefender XDR Sensor for MDR - Network | C103: 1 year | D103: 250 - 499 | E103: Bitdefender XDR Sensor for MDR - Network 1 year250 - 499 | G103: 17.71 | H103: =IF(MDR!$AB$8=$D$1,ROUND(G103*$C$3,2),IF(MDR!$AB$8=$D$2,ROUND(G103*$C$3*(1+$T$2),2),IF(MDR!$AB$8=$D$3,ROUND(G103*$C$3*(1+$T$3),2),IF(MDR!$AB$8=$D$4,ROUND(G103*$C$3*(1+$T$4),2),IF(MDR!$AB$8=$D$5,ROUND(G103*$C$3*(1+$T$5),2),IF(MDR!$AB$8=$D$6,ROUND(G103*$C$3*(1+$T$6),2),IF(MDR!$AB$8=$D$7,ROUND(G103*$C$3*(1+$T$7),2)))))))) -> 17.71 | I103: =IF(MDR!$AB$8=$D$1,J103,IF(MDR!$AB$8=$D$2,K103,IF(MDR!$AB$8=$D$3,L103,IF(MDR!$AB$8=$D$4,M103,IF(MDR!$AB$8=$D$5,P103,IF(MDR!$AB$8=$D$6,N103,IF(MDR!$AB$8=$D$7,O103))))))) -> 3117MXBSN120FLZZ | J103: 3117MXBSN120FLZZ | K103: 3117MXBEN120FLZZ | L103: 3117MXBGN120FLZZ | M103: 3117MXBSR120FLZZ | N103: 3117MXBER120FLZZ | O103: 3117MXBGR120FLZZ | P103: 3117MXBCN120FLZZ | R103: Bitdefender XDR Sensor for MDR - Network | S103: Bitdefender XDR Sensor for MDR - Network - EDU | T103: Bitdefender XDR Sensor for MDR - Network - GOV | U103: Bitdefender XDR Sensor for MDR - Network - R | V103: Bitdefender XDR Sensor for MDR - Network - EDU R | W103: Bitdefender XDR Sensor for MDR - Network - GOV R | X103: Bitdefender XDR Sensor for MDR - Network - CUPG
A104: Add-On | B104: =IF(MDR!$AB$8=$D$1,R104,IF(MDR!$AB$8=$D$2,S104,IF(MDR!$AB$8=$D$3,T104,IF(MDR!$AB$8=$D$4,U104,IF(MDR!$AB$8=$D$5,X104,IF(MDR!$AB$8=$D$6,V104,IF(MDR!$AB$8=$D$7,W104))))))) -> Bitdefender XDR Sensor for MDR - Network | C104: 1 year | D104: 500 - 999 | E104: Bitdefender XDR Sensor for MDR - Network 1 year500 - 999 | G104: 16.47 | H104: =IF(MDR!$AB$8=$D$1,ROUND(G104*$C$3,2),IF(MDR!$AB$8=$D$2,ROUND(G104*$C$3*(1+$T$2),2),IF(MDR!$AB$8=$D$3,ROUND(G104*$C$3*(1+$T$3),2),IF(MDR!$AB$8=$D$4,ROUND(G104*$C$3*(1+$T$4),2),IF(MDR!$AB$8=$D$5,ROUND(G104*$C$3*(1+$T$5),2),IF(MDR!$AB$8=$D$6,ROUND(G104*$C$3*(1+$T$6),2),IF(MDR!$AB$8=$D$7,ROUND(G104*$C$3*(1+$T$7),2)))))))) -> 16.47 | I104: =IF(MDR!$AB$8=$D$1,J104,IF(MDR!$AB$8=$D$2,K104,IF(MDR!$AB$8=$D$3,L104,IF(MDR!$AB$8=$D$4,M104,IF(MDR!$AB$8=$D$5,P104,IF(MDR!$AB$8=$D$6,N104,IF(MDR!$AB$8=$D$7,O104))))))) -> 3117MXBSN120GLZZ | J104: 3117MXBSN120GLZZ | K104: 3117MXBEN120GLZZ | L104: 3117MXBGN120GLZZ | M104: 3117MXBSR120GLZZ | N104: 3117MXBER120GLZZ | O104: 3117MXBGR120GLZZ | P104: 3117MXBCN120GLZZ | R104: Bitdefender XDR Sensor for MDR - Network | S104: Bitdefender XDR Sensor for MDR - Network - EDU | T104: Bitdefender XDR Sensor for MDR - Network - GOV | U104: Bitdefender XDR Sensor for MDR - Network - R | V104: Bitdefender XDR Sensor for MDR - Network - EDU R | W104: Bitdefender XDR Sensor for MDR - Network - GOV R | X104: Bitdefender XDR Sensor for MDR - Network - CUPG
A105: Add-On | B105: =IF(MDR!$AB$8=$D$1,R105,IF(MDR!$AB$8=$D$2,S105,IF(MDR!$AB$8=$D$3,T105,IF(MDR!$AB$8=$D$4,U105,IF(MDR!$AB$8=$D$5,X105,IF(MDR!$AB$8=$D$6,V105,IF(MDR!$AB$8=$D$7,W105))))))) -> Bitdefender XDR Sensor for MDR - Network | C105: 1 year | D105: 1000 - 1999 | E105: Bitdefender XDR Sensor for MDR - Network 1 year1000 - 1999 | G105: 15.31 | H105: =IF(MDR!$AB$8=$D$1,ROUND(G105*$C$3,2),IF(MDR!$AB$8=$D$2,ROUND(G105*$C$3*(1+$T$2),2),IF(MDR!$AB$8=$D$3,ROUND(G105*$C$3*(1+$T$3),2),IF(MDR!$AB$8=$D$4,ROUND(G105*$C$3*(1+$T$4),2),IF(MDR!$AB$8=$D$5,ROUND(G105*$C$3*(1+$T$5),2),IF(MDR!$AB$8=$D$6,ROUND(G105*$C$3*(1+$T$6),2),IF(MDR!$AB$8=$D$7,ROUND(G105*$C$3*(1+$T$7),2)))))))) -> 15.31 | I105: =IF(MDR!$AB$8=$D$1,J105,IF(MDR!$AB$8=$D$2,K105,IF(MDR!$AB$8=$D$3,L105,IF(MDR!$AB$8=$D$4,M105,IF(MDR!$AB$8=$D$5,P105,IF(MDR!$AB$8=$D$6,N105,IF(MDR!$AB$8=$D$7,O105))))))) -> 3117MXBSN120PLZZ | J105: 3117MXBSN120PLZZ | K105: 3117MXBEN120PLZZ | L105: 3117MXBGN120PLZZ | M105: 3117MXBSR120PLZZ | N105: 3117MXBER120PLZZ | O105: 3117MXBGR120PLZZ | P105: 3117MXBCN120PLZZ | R105: Bitdefender XDR Sensor for MDR - Network | S105: Bitdefender XDR Sensor for MDR - Network - EDU | T105: Bitdefender XDR Sensor for MDR - Network - GOV | U105: Bitdefender XDR Sensor for MDR - Network - R | V105: Bitdefender XDR Sensor for MDR - Network - EDU R | W105: Bitdefender XDR Sensor for MDR - Network - GOV R | X105: Bitdefender XDR Sensor for MDR - Network - CUPG
A106: Add-On | B106: =IF(MDR!$AB$8=$D$1,R106,IF(MDR!$AB$8=$D$2,S106,IF(MDR!$AB$8=$D$3,T106,IF(MDR!$AB$8=$D$4,U106,IF(MDR!$AB$8=$D$5,X106,IF(MDR!$AB$8=$D$6,V106,IF(MDR!$AB$8=$D$7,W106))))))) -> Bitdefender XDR Sensor for MDR - Network | C106: 1 year | D106: 2000 - 2999 | E106: =CONCATENATE(B106,C106,D106) -> Bitdefender XDR Sensor for MDR - Network 1 year2000 - 2999 | G106: 14.25 | H106: =IF(MDR!$AB$8=$D$1,ROUND(G106*$C$3,2),IF(MDR!$AB$8=$D$2,ROUND(G106*$C$3*(1+$T$2),2),IF(MDR!$AB$8=$D$3,ROUND(G106*$C$3*(1+$T$3),2),IF(MDR!$AB$8=$D$4,ROUND(G106*$C$3*(1+$T$4),2),IF(MDR!$AB$8=$D$5,ROUND(G106*$C$3*(1+$T$5),2),IF(MDR!$AB$8=$D$6,ROUND(G106*$C$3*(1+$T$6),2),IF(MDR!$AB$8=$D$7,ROUND(G106*$C$3*(1+$T$7),2)))))))) -> 14.25 | I106: =IF(MDR!$AB$8=$D$1,J106,IF(MDR!$AB$8=$D$2,K106,IF(MDR!$AB$8=$D$3,L106,IF(MDR!$AB$8=$D$4,M106,IF(MDR!$AB$8=$D$5,P106,IF(MDR!$AB$8=$D$6,N106,IF(MDR!$AB$8=$D$7,O106))))))) -> 3117MXBSN120QLZZ | J106: 3117MXBSN120QLZZ | K106: 3117MXBEN120QLZZ | L106: 3117MXBGN120QLZZ | M106: 3117MXBSR120QLZZ | N106: 3117MXBER120QLZZ | O106: 3117MXBGR120QLZZ | P106: 3117MXBCN120QLZZ | R106: Bitdefender XDR Sensor for MDR - Network | S106: Bitdefender XDR Sensor for MDR - Network - EDU | T106: Bitdefender XDR Sensor for MDR - Network - GOV | U106: Bitdefender XDR Sensor for MDR - Network - R | V106: Bitdefender XDR Sensor for MDR - Network - EDU R | W106: Bitdefender XDR Sensor for MDR - Network - GOV R | X106: Bitdefender XDR Sensor for MDR - Network - CUPG
A107: Add-On | B107: =IF(MDR!$AB$8=$D$1,R107,IF(MDR!$AB$8=$D$2,S107,IF(MDR!$AB$8=$D$3,T107,IF(MDR!$AB$8=$D$4,U107,IF(MDR!$AB$8=$D$5,X107,IF(MDR!$AB$8=$D$6,V107,IF(MDR!$AB$8=$D$7,W107))))))) -> Bitdefender XDR Sensor for MDR - Network | C107: 1 year | D107: 3000 - 4999 | E107: Bitdefender XDR Sensor for MDR - Network 1 year3000 - 4999 | G107: 13.24 | H107: =IF(MDR!$AB$8=$D$1,ROUND(G107*$C$3,2),IF(MDR!$AB$8=$D$2,ROUND(G107*$C$3*(1+$T$2),2),IF(MDR!$AB$8=$D$3,ROUND(G107*$C$3*(1+$T$3),2),IF(MDR!$AB$8=$D$4,ROUND(G107*$C$3*(1+$T$4),2),IF(MDR!$AB$8=$D$5,ROUND(G107*$C$3*(1+$T$5),2),IF(MDR!$AB$8=$D$6,ROUND(G107*$C$3*(1+$T$6),2),IF(MDR!$AB$8=$D$7,ROUND(G107*$C$3*(1+$T$7),2)))))))) -> 13.24 | I107: =IF(MDR!$AB$8=$D$1,J107,IF(MDR!$AB$8=$D$2,K107,IF(MDR!$AB$8=$D$3,L107,IF(MDR!$AB$8=$D$4,M107,IF(MDR!$AB$8=$D$5,P107,IF(MDR!$AB$8=$D$6,N107,IF(MDR!$AB$8=$D$7,O107))))))) -> 3117MXBSN120ILZZ | J107: 3117MXBSN120ILZZ | K107: 3117MXBEN120ILZZ | L107: 3117MXBGN120ILZZ | M107: 3117MXBSR120ILZZ | N107: 3117MXBER120ILZZ | O107: 3117MXBGR120ILZZ | P107: 3117MXBCN120ILZZ | R107: Bitdefender XDR Sensor for MDR - Network | S107: Bitdefender XDR Sensor for MDR - Network - EDU | T107: Bitdefender XDR Sensor for MDR - Network - GOV | U107: Bitdefender XDR Sensor for MDR - Network - R | V107: Bitdefender XDR Sensor for MDR - Network - EDU R | W107: Bitdefender XDR Sensor for MDR - Network - GOV R | X107: Bitdefender XDR Sensor for MDR - Network - CUPG
A108: Add-On | B108: =IF(MDR!$AB$8=$D$1,R108,IF(MDR!$AB$8=$D$2,S108,IF(MDR!$AB$8=$D$3,T108,IF(MDR!$AB$8=$D$4,U108,IF(MDR!$AB$8=$D$5,X108,IF(MDR!$AB$8=$D$6,V108,IF(MDR!$AB$8=$D$7,W108))))))) -> Bitdefender XDR Sensor for MDR - Network | C108: 1 year | D108: 5000+ | E108: Bitdefender XDR Sensor for MDR - Network 1 year5000+ | G108: 12.32 | H108: =IF(MDR!$AB$8=$D$1,ROUND(G108*$C$3,2),IF(MDR!$AB$8=$D$2,ROUND(G108*$C$3*(1+$T$2),2),IF(MDR!$AB$8=$D$3,ROUND(G108*$C$3*(1+$T$3),2),IF(MDR!$AB$8=$D$4,ROUND(G108*$C$3*(1+$T$4),2),IF(MDR!$AB$8=$D$5,ROUND(G108*$C$3*(1+$T$5),2),IF(MDR!$AB$8=$D$6,ROUND(G108*$C$3*(1+$T$6),2),IF(MDR!$AB$8=$D$7,ROUND(G108*$C$3*(1+$T$7),2)))))))) -> 12.32 | I108: =IF(MDR!$AB$8=$D$1,J108,IF(MDR!$AB$8=$D$2,K108,IF(MDR!$AB$8=$D$3,L108,IF(MDR!$AB$8=$D$4,M108,IF(MDR!$AB$8=$D$5,P108,IF(MDR!$AB$8=$D$6,N108,IF(MDR!$AB$8=$D$7,O108))))))) -> 3117MXBSN120JLZZ | J108: 3117MXBSN120JLZZ | K108: 3117MXBEN120JLZZ | L108: 3117MXBGN120JLZZ | M108: 3117MXBSR120JLZZ | N108: 3117MXBER120JLZZ | O108: 3117MXBGR120JLZZ | P108: 3117MXBCN120JLZZ | R108: Bitdefender XDR Sensor for MDR - Network | S108: Bitdefender XDR Sensor for MDR - Network - EDU | T108: Bitdefender XDR Sensor for MDR - Network - GOV | U108: Bitdefender XDR Sensor for MDR - Network - R | V108: Bitdefender XDR Sensor for MDR - Network - EDU R | W108: Bitdefender XDR Sensor for MDR - Network - GOV R | X108: Bitdefender XDR Sensor for MDR - Network - CUPG
A109: Add-On | B109: =IF(MDR!$AB$8=$D$1,R109,IF(MDR!$AB$8=$D$2,S109,IF(MDR!$AB$8=$D$3,T109,IF(MDR!$AB$8=$D$4,U109,IF(MDR!$AB$8=$D$5,X109,IF(MDR!$AB$8=$D$6,V109,IF(MDR!$AB$8=$D$7,W109))))))) -> Bitdefender XDR Sensor for MDR - Network | C109: 2 years | D109: 50 - 99 | E109: Bitdefender XDR Sensor for MDR - Network 2 years50 - 99 | G109: 35.57 | H109: =IF(MDR!$AB$8=$D$1,ROUND(G109*$C$3,2),IF(MDR!$AB$8=$D$2,ROUND(G109*$C$3*(1+$T$2),2),IF(MDR!$AB$8=$D$3,ROUND(G109*$C$3*(1+$T$3),2),IF(MDR!$AB$8=$D$4,ROUND(G109*$C$3*(1+$T$4),2),IF(MDR!$AB$8=$D$5,ROUND(G109*$C$3*(1+$T$5),2),IF(MDR!$AB$8=$D$6,ROUND(G109*$C$3*(1+$T$6),2),IF(MDR!$AB$8=$D$7,ROUND(G109*$C$3*(1+$T$7),2)))))))) -> 35.57 | I109: =IF(MDR!$AB$8=$D$1,J109,IF(MDR!$AB$8=$D$2,K109,IF(MDR!$AB$8=$D$3,L109,IF(MDR!$AB$8=$D$4,M109,IF(MDR!$AB$8=$D$5,P109,IF(MDR!$AB$8=$D$6,N109,IF(MDR!$AB$8=$D$7,O109))))))) -> 3117MXBSN240CLZZ | J109: 3117MXBSN240CLZZ | K109: 3117MXBEN240CLZZ | L109: 3117MXBGN240CLZZ | M109: 3117MXBSR240CLZZ | N109: 3117MXBER240CLZZ | O109: 3117MXBGR240CLZZ | P109: 3117MXBCN240CLZZ | R109: Bitdefender XDR Sensor for MDR - Network | S109: Bitdefender XDR Sensor for MDR - Network - EDU | T109: Bitdefender XDR Sensor for MDR - Network - GOV | U109: Bitdefender XDR Sensor for MDR - Network - R | V109: Bitdefender XDR Sensor for MDR - Network - EDU R | W109: Bitdefender XDR Sensor for MDR - Network - GOV R | X109: Bitdefender XDR Sensor for MDR - Network - CUPG
A110: Add-On | B110: =IF(MDR!$AB$8=$D$1,R110,IF(MDR!$AB$8=$D$2,S110,IF(MDR!$AB$8=$D$3,T110,IF(MDR!$AB$8=$D$4,U110,IF(MDR!$AB$8=$D$5,X110,IF(MDR!$AB$8=$D$6,V110,IF(MDR!$AB$8=$D$7,W110))))))) -> Bitdefender XDR Sensor for MDR - Network | C110: 2 years | D110: 100 - 149 | E110: Bitdefender XDR Sensor for MDR - Network 2 years100 - 149 | G110: 33.08 | H110: =IF(MDR!$AB$8=$D$1,ROUND(G110*$C$3,2),IF(MDR!$AB$8=$D$2,ROUND(G110*$C$3*(1+$T$2),2),IF(MDR!$AB$8=$D$3,ROUND(G110*$C$3*(1+$T$3),2),IF(MDR!$AB$8=$D$4,ROUND(G110*$C$3*(1+$T$4),2),IF(MDR!$AB$8=$D$5,ROUND(G110*$C$3*(1+$T$5),2),IF(MDR!$AB$8=$D$6,ROUND(G110*$C$3*(1+$T$6),2),IF(MDR!$AB$8=$D$7,ROUND(G110*$C$3*(1+$T$7),2)))))))) -> 33.08 | I110: =IF(MDR!$AB$8=$D$1,J110,IF(MDR!$AB$8=$D$2,K110,IF(MDR!$AB$8=$D$3,L110,IF(MDR!$AB$8=$D$4,M110,IF(MDR!$AB$8=$D$5,P110,IF(MDR!$AB$8=$D$6,N110,IF(MDR!$AB$8=$D$7,O110))))))) -> 3117MXBSN240DLZZ | J110: 3117MXBSN240DLZZ | K110: 3117MXBEN240DLZZ | L110: 3117MXBGN240DLZZ | M110: 3117MXBSR240DLZZ | N110: 3117MXBER240DLZZ | O110: 3117MXBGR240DLZZ | P110: 3117MXBCN240DLZZ | R110: Bitdefender XDR Sensor for MDR - Network | S110: Bitdefender XDR Sensor for MDR - Network - EDU | T110: Bitdefender XDR Sensor for MDR - Network - GOV | U110: Bitdefender XDR Sensor for MDR - Network - R | V110: Bitdefender XDR Sensor for MDR - Network - EDU R | W110: Bitdefender XDR Sensor for MDR - Network - GOV R | X110: Bitdefender XDR Sensor for MDR - Network - CUPG
A111: Add-On | B111: =IF(MDR!$AB$8=$D$1,R111,IF(MDR!$AB$8=$D$2,S111,IF(MDR!$AB$8=$D$3,T111,IF(MDR!$AB$8=$D$4,U111,IF(MDR!$AB$8=$D$5,X111,IF(MDR!$AB$8=$D$6,V111,IF(MDR!$AB$8=$D$7,W111))))))) -> Bitdefender XDR Sensor for MDR - Network | C111: 2 years | D111: 150 - 249 | E111: Bitdefender XDR Sensor for MDR - Network 2 years150 - 249 | G111: 30.77 | H111: =IF(MDR!$AB$8=$D$1,ROUND(G111*$C$3,2),IF(MDR!$AB$8=$D$2,ROUND(G111*$C$3*(1+$T$2),2),IF(MDR!$AB$8=$D$3,ROUND(G111*$C$3*(1+$T$3),2),IF(MDR!$AB$8=$D$4,ROUND(G111*$C$3*(1+$T$4),2),IF(MDR!$AB$8=$D$5,ROUND(G111*$C$3*(1+$T$5),2),IF(MDR!$AB$8=$D$6,ROUND(G111*$C$3*(1+$T$6),2),IF(MDR!$AB$8=$D$7,ROUND(G111*$C$3*(1+$T$7),2)))))))) -> 30.77 | I111: =IF(MDR!$AB$8=$D$1,J111,IF(MDR!$AB$8=$D$2,K111,IF(MDR!$AB$8=$D$3,L111,IF(MDR!$AB$8=$D$4,M111,IF(MDR!$AB$8=$D$5,P111,IF(MDR!$AB$8=$D$6,N111,IF(MDR!$AB$8=$D$7,O111))))))) -> 3117MXBSN240ELZZ | J111: 3117MXBSN240ELZZ | K111: 3117MXBEN240ELZZ | L111: 3117MXBGN240ELZZ | M111: 3117MXBSR240ELZZ | N111: 3117MXBER240ELZZ | O111: 3117MXBGR240ELZZ | P111: 3117MXBCN240ELZZ | R111: Bitdefender XDR Sensor for MDR - Network | S111: Bitdefender XDR Sensor for MDR - Network - EDU | T111: Bitdefender XDR Sensor for MDR - Network - GOV | U111: Bitdefender XDR Sensor for MDR - Network - R | V111: Bitdefender XDR Sensor for MDR - Network - EDU R | W111: Bitdefender XDR Sensor for MDR - Network - GOV R | X111: Bitdefender XDR Sensor for MDR - Network - CUPG
A112: Add-On | B112: =IF(MDR!$AB$8=$D$1,R112,IF(MDR!$AB$8=$D$2,S112,IF(MDR!$AB$8=$D$3,T112,IF(MDR!$AB$8=$D$4,U112,IF(MDR!$AB$8=$D$5,X112,IF(MDR!$AB$8=$D$6,V112,IF(MDR!$AB$8=$D$7,W112))))))) -> Bitdefender XDR Sensor for MDR - Network | C112: 2 years | D112: 250 - 499 | E112: Bitdefender XDR Sensor for MDR - Network 2 years250 - 499 | G112: 29.23 | H112: =IF(MDR!$AB$8=$D$1,ROUND(G112*$C$3,2),IF(MDR!$AB$8=$D$2,ROUND(G112*$C$3*(1+$T$2),2),IF(MDR!$AB$8=$D$3,ROUND(G112*$C$3*(1+$T$3),2),IF(MDR!$AB$8=$D$4,ROUND(G112*$C$3*(1+$T$4),2),IF(MDR!$AB$8=$D$5,ROUND(G112*$C$3*(1+$T$5),2),IF(MDR!$AB$8=$D$6,ROUND(G112*$C$3*(1+$T$6),2),IF(MDR!$AB$8=$D$7,ROUND(G112*$C$3*(1+$T$7),2)))))))) -> 29.23 | I112: =IF(MDR!$AB$8=$D$1,J112,IF(MDR!$AB$8=$D$2,K112,IF(MDR!$AB$8=$D$3,L112,IF(MDR!$AB$8=$D$4,M112,IF(MDR!$AB$8=$D$5,P112,IF(MDR!$AB$8=$D$6,N112,IF(MDR!$AB$8=$D$7,O112))))))) -> 3117MXBSN240FLZZ | J112: 3117MXBSN240FLZZ | K112: 3117MXBEN240FLZZ | L112: 3117MXBGN240FLZZ | M112: 3117MXBSR240FLZZ | N112: 3117MXBER240FLZZ | O112: 3117MXBGR240FLZZ | P112: 3117MXBCN240FLZZ | R112: Bitdefender XDR Sensor for MDR - Network | S112: Bitdefender XDR Sensor for MDR - Network - EDU | T112: Bitdefender XDR Sensor for MDR - Network - GOV | U112: Bitdefender XDR Sensor for MDR - Network - R | V112: Bitdefender XDR Sensor for MDR - Network - EDU R | W112: Bitdefender XDR Sensor for MDR - Network - GOV R | X112: Bitdefender XDR Sensor for MDR - Network - CUPG
A113: Add-On | B113: =IF(MDR!$AB$8=$D$1,R113,IF(MDR!$AB$8=$D$2,S113,IF(MDR!$AB$8=$D$3,T113,IF(MDR!$AB$8=$D$4,U113,IF(MDR!$AB$8=$D$5,X113,IF(MDR!$AB$8=$D$6,V113,IF(MDR!$AB$8=$D$7,W113))))))) -> Bitdefender XDR Sensor for MDR - Network | C113: 2 years | D113: 500 - 999 | E113: Bitdefender XDR Sensor for MDR - Network 2 years500 - 999 | G113: 27.18 | H113: =IF(MDR!$AB$8=$D$1,ROUND(G113*$C$3,2),IF(MDR!$AB$8=$D$2,ROUND(G113*$C$3*(1+$T$2),2),IF(MDR!$AB$8=$D$3,ROUND(G113*$C$3*(1+$T$3),2),IF(MDR!$AB$8=$D$4,ROUND(G113*$C$3*(1+$T$4),2),IF(MDR!$AB$8=$D$5,ROUND(G113*$C$3*(1+$T$5),2),IF(MDR!$AB$8=$D$6,ROUND(G113*$C$3*(1+$T$6),2),IF(MDR!$AB$8=$D$7,ROUND(G113*$C$3*(1+$T$7),2)))))))) -> 27.18 | I113: =IF(MDR!$AB$8=$D$1,J113,IF(MDR!$AB$8=$D$2,K113,IF(MDR!$AB$8=$D$3,L113,IF(MDR!$AB$8=$D$4,M113,IF(MDR!$AB$8=$D$5,P113,IF(MDR!$AB$8=$D$6,N113,IF(MDR!$AB$8=$D$7,O113))))))) -> 3117MXBSN240GLZZ | J113: 3117MXBSN240GLZZ | K113: 3117MXBEN240GLZZ | L113: 3117MXBGN240GLZZ | M113: 3117MXBSR240GLZZ | N113: 3117MXBER240GLZZ | O113: 3117MXBGR240GLZZ | P113: 3117MXBCN240GLZZ | R113: Bitdefender XDR Sensor for MDR - Network | S113: Bitdefender XDR Sensor for MDR - Network - EDU | T113: Bitdefender XDR Sensor for MDR - Network - GOV | U113: Bitdefender XDR Sensor for MDR - Network - R | V113: Bitdefender XDR Sensor for MDR - Network - EDU R | W113: Bitdefender XDR Sensor for MDR - Network - GOV R | X113: Bitdefender XDR Sensor for MDR - Network - CUPG
A114: Add-On | B114: =IF(MDR!$AB$8=$D$1,R114,IF(MDR!$AB$8=$D$2,S114,IF(MDR!$AB$8=$D$3,T114,IF(MDR!$AB$8=$D$4,U114,IF(MDR!$AB$8=$D$5,X114,IF(MDR!$AB$8=$D$6,V114,IF(MDR!$AB$8=$D$7,W114))))))) -> Bitdefender XDR Sensor for MDR - Network | C114: 2 years | D114: 1000 - 1999 | E114: Bitdefender XDR Sensor for MDR - Network 2 years1000 - 1999 | G114: 25.28 | H114: =IF(MDR!$AB$8=$D$1,ROUND(G114*$C$3,2),IF(MDR!$AB$8=$D$2,ROUND(G114*$C$3*(1+$T$2),2),IF(MDR!$AB$8=$D$3,ROUND(G114*$C$3*(1+$T$3),2),IF(MDR!$AB$8=$D$4,ROUND(G114*$C$3*(1+$T$4),2),IF(MDR!$AB$8=$D$5,ROUND(G114*$C$3*(1+$T$5),2),IF(MDR!$AB$8=$D$6,ROUND(G114*$C$3*(1+$T$6),2),IF(MDR!$AB$8=$D$7,ROUND(G114*$C$3*(1+$T$7),2)))))))) -> 25.28 | I114: =IF(MDR!$AB$8=$D$1,J114,IF(MDR!$AB$8=$D$2,K114,IF(MDR!$AB$8=$D$3,L114,IF(MDR!$AB$8=$D$4,M114,IF(MDR!$AB$8=$D$5,P114,IF(MDR!$AB$8=$D$6,N114,IF(MDR!$AB$8=$D$7,O114))))))) -> 3117MXBSN240PLZZ | J114: 3117MXBSN240PLZZ | K114: 3117MXBEN240PLZZ | L114: 3117MXBGN240PLZZ | M114: 3117MXBSR240PLZZ | N114: 3117MXBER240PLZZ | O114: 3117MXBGR240PLZZ | P114: 3117MXBCN240PLZZ | R114: Bitdefender XDR Sensor for MDR - Network | S114: Bitdefender XDR Sensor for MDR - Network - EDU | T114: Bitdefender XDR Sensor for MDR - Network - GOV | U114: Bitdefender XDR Sensor for MDR - Network - R | V114: Bitdefender XDR Sensor for MDR - Network - EDU R | W114: Bitdefender XDR Sensor for MDR - Network - GOV R | X114: Bitdefender XDR Sensor for MDR - Network - CUPG
A115: Add-On | B115: =IF(MDR!$AB$8=$D$1,R115,IF(MDR!$AB$8=$D$2,S115,IF(MDR!$AB$8=$D$3,T115,IF(MDR!$AB$8=$D$4,U115,IF(MDR!$AB$8=$D$5,X115,IF(MDR!$AB$8=$D$6,V115,IF(MDR!$AB$8=$D$7,W115))))))) -> Bitdefender XDR Sensor for MDR - Network | C115: 2 years | D115: 2000 - 2999 | E115: Bitdefender XDR Sensor for MDR - Network 2 years2000 - 2999 | G115: 23.51 | H115: =IF(MDR!$AB$8=$D$1,ROUND(G115*$C$3,2),IF(MDR!$AB$8=$D$2,ROUND(G115*$C$3*(1+$T$2),2),IF(MDR!$AB$8=$D$3,ROUND(G115*$C$3*(1+$T$3),2),IF(MDR!$AB$8=$D$4,ROUND(G115*$C$3*(1+$T$4),2),IF(MDR!$AB$8=$D$5,ROUND(G115*$C$3*(1+$T$5),2),IF(MDR!$AB$8=$D$6,ROUND(G115*$C$3*(1+$T$6),2),IF(MDR!$AB$8=$D$7,ROUND(G115*$C$3*(1+$T$7),2)))))))) -> 23.51 | I115: =IF(MDR!$AB$8=$D$1,J115,IF(MDR!$AB$8=$D$2,K115,IF(MDR!$AB$8=$D$3,L115,IF(MDR!$AB$8=$D$4,M115,IF(MDR!$AB$8=$D$5,P115,IF(MDR!$AB$8=$D$6,N115,IF(MDR!$AB$8=$D$7,O115))))))) -> 3117MXBSN240QLZZ | J115: 3117MXBSN240QLZZ | K115: 3117MXBEN240QLZZ | L115: 3117MXBGN240QLZZ | M115: 3117MXBSR240QLZZ | N115: 3117MXBER240QLZZ | O115: 3117MXBGR240QLZZ | P115: 3117MXBCN240QLZZ | R115: Bitdefender XDR Sensor for MDR - Network | S115: =CONCATENATE(R115," - EDU") -> Bitdefender XDR Sensor for MDR - Network - EDU | T115: =CONCATENATE(R115," - GOV") -> Bitdefender XDR Sensor for MDR - Network - GOV | U115: =CONCATENATE(R115," - R") -> Bitdefender XDR Sensor for MDR - Network - R | V115: =CONCATENATE(R115," - EDU R") -> Bitdefender XDR Sensor for MDR - Network - EDU R | W115: =CONCATENATE(R115," - GOV R") -> Bitdefender XDR Sensor for MDR - Network - GOV R | X115: =CONCATENATE(R115," - CUPG") -> Bitdefender XDR Sensor for MDR - Network - CUPG
A116: Add-On | B116: =IF(MDR!$AB$8=$D$1,R116,IF(MDR!$AB$8=$D$2,S116,IF(MDR!$AB$8=$D$3,T116,IF(MDR!$AB$8=$D$4,U116,IF(MDR!$AB$8=$D$5,X116,IF(MDR!$AB$8=$D$6,V116,IF(MDR!$AB$8=$D$7,W116))))))) -> Bitdefender XDR Sensor for MDR - Network | C116: 2 years | D116: 3000 - 4999 | E116: Bitdefender XDR Sensor for MDR - Network 2 years3000 - 4999 | G116: 21.87 | H116: =IF(MDR!$AB$8=$D$1,ROUND(G116*$C$3,2),IF(MDR!$AB$8=$D$2,ROUND(G116*$C$3*(1+$T$2),2),IF(MDR!$AB$8=$D$3,ROUND(G116*$C$3*(1+$T$3),2),IF(MDR!$AB$8=$D$4,ROUND(G116*$C$3*(1+$T$4),2),IF(MDR!$AB$8=$D$5,ROUND(G116*$C$3*(1+$T$5),2),IF(MDR!$AB$8=$D$6,ROUND(G116*$C$3*(1+$T$6),2),IF(MDR!$AB$8=$D$7,ROUND(G116*$C$3*(1+$T$7),2)))))))) -> 21.87 | I116: =IF(MDR!$AB$8=$D$1,J116,IF(MDR!$AB$8=$D$2,K116,IF(MDR!$AB$8=$D$3,L116,IF(MDR!$AB$8=$D$4,M116,IF(MDR!$AB$8=$D$5,P116,IF(MDR!$AB$8=$D$6,N116,IF(MDR!$AB$8=$D$7,O116))))))) -> 3117MXBSN240ILZZ | J116: 3117MXBSN240ILZZ | K116: 3117MXBEN240ILZZ | L116: 3117MXBGN240ILZZ | M116: 3117MXBSR240ILZZ | N116: 3117MXBER240ILZZ | O116: 3117MXBGR240ILZZ | P116: 3117MXBCN240ILZZ | R116: Bitdefender XDR Sensor for MDR - Network | S116: Bitdefender XDR Sensor for MDR - Network - EDU | T116: Bitdefender XDR Sensor for MDR - Network - GOV | U116: Bitdefender XDR Sensor for MDR - Network - R | V116: Bitdefender XDR Sensor for MDR - Network - EDU R | W116: Bitdefender XDR Sensor for MDR - Network - GOV R | X116: Bitdefender XDR Sensor for MDR - Network - CUPG
A117: Add-On | B117: =IF(MDR!$AB$8=$D$1,R117,IF(MDR!$AB$8=$D$2,S117,IF(MDR!$AB$8=$D$3,T117,IF(MDR!$AB$8=$D$4,U117,IF(MDR!$AB$8=$D$5,X117,IF(MDR!$AB$8=$D$6,V117,IF(MDR!$AB$8=$D$7,W117))))))) -> Bitdefender XDR Sensor for MDR - Network | C117: 2 years | D117: 5000+ | E117: Bitdefender XDR Sensor for MDR - Network 2 years5000+ | G117: 20.34 | H117: =IF(MDR!$AB$8=$D$1,ROUND(G117*$C$3,2),IF(MDR!$AB$8=$D$2,ROUND(G117*$C$3*(1+$T$2),2),IF(MDR!$AB$8=$D$3,ROUND(G117*$C$3*(1+$T$3),2),IF(MDR!$AB$8=$D$4,ROUND(G117*$C$3*(1+$T$4),2),IF(MDR!$AB$8=$D$5,ROUND(G117*$C$3*(1+$T$5),2),IF(MDR!$AB$8=$D$6,ROUND(G117*$C$3*(1+$T$6),2),IF(MDR!$AB$8=$D$7,ROUND(G117*$C$3*(1+$T$7),2)))))))) -> 20.34 | I117: =IF(MDR!$AB$8=$D$1,J117,IF(MDR!$AB$8=$D$2,K117,IF(MDR!$AB$8=$D$3,L117,IF(MDR!$AB$8=$D$4,M117,IF(MDR!$AB$8=$D$5,P117,IF(MDR!$AB$8=$D$6,N117,IF(MDR!$AB$8=$D$7,O117))))))) -> 3117MXBSN240JLZZ | J117: 3117MXBSN240JLZZ | K117: 3117MXBEN240JLZZ | L117: 3117MXBGN240JLZZ | M117: 3117MXBSR240JLZZ | N117: 3117MXBER240JLZZ | O117: 3117MXBGR240JLZZ | P117: 3117MXBCN240JLZZ | R117: Bitdefender XDR Sensor for MDR - Network | S117: Bitdefender XDR Sensor for MDR - Network - EDU | T117: Bitdefender XDR Sensor for MDR - Network - GOV | U117: Bitdefender XDR Sensor for MDR - Network - R | V117: Bitdefender XDR Sensor for MDR - Network - EDU R | W117: Bitdefender XDR Sensor for MDR - Network - GOV R | X117: Bitdefender XDR Sensor for MDR - Network - CUPG
A118: Add-On | B118: =IF(MDR!$AB$8=$D$1,R118,IF(MDR!$AB$8=$D$2,S118,IF(MDR!$AB$8=$D$3,T118,IF(MDR!$AB$8=$D$4,U118,IF(MDR!$AB$8=$D$5,X118,IF(MDR!$AB$8=$D$6,V118,IF(MDR!$AB$8=$D$7,W118))))))) -> Bitdefender XDR Sensor for MDR - Network | C118: 3 years | D118: 50 - 99 | E118: Bitdefender XDR Sensor for MDR - Network 3 years50 - 99 | G118: 49.59 | H118: =IF(MDR!$AB$8=$D$1,ROUND(G118*$C$3,2),IF(MDR!$AB$8=$D$2,ROUND(G118*$C$3*(1+$T$2),2),IF(MDR!$AB$8=$D$3,ROUND(G118*$C$3*(1+$T$3),2),IF(MDR!$AB$8=$D$4,ROUND(G118*$C$3*(1+$T$4),2),IF(MDR!$AB$8=$D$5,ROUND(G118*$C$3*(1+$T$5),2),IF(MDR!$AB$8=$D$6,ROUND(G118*$C$3*(1+$T$6),2),IF(MDR!$AB$8=$D$7,ROUND(G118*$C$3*(1+$T$7),2)))))))) -> 49.59 | I118: =IF(MDR!$AB$8=$D$1,J118,IF(MDR!$AB$8=$D$2,K118,IF(MDR!$AB$8=$D$3,L118,IF(MDR!$AB$8=$D$4,M118,IF(MDR!$AB$8=$D$5,P118,IF(MDR!$AB$8=$D$6,N118,IF(MDR!$AB$8=$D$7,O118))))))) -> 3117MXBSN360CLZZ | J118: 3117MXBSN360CLZZ | K118: 3117MXBEN360CLZZ | L118: 3117MXBGN360CLZZ | M118: 3117MXBSR360CLZZ | N118: 3117MXBER360CLZZ | O118: 3117MXBGR360CLZZ | P118: 3117MXBCN360CLZZ | R118: Bitdefender XDR Sensor for MDR - Network | S118: Bitdefender XDR Sensor for MDR - Network - EDU | T118: Bitdefender XDR Sensor for MDR - Network - GOV | U118: Bitdefender XDR Sensor for MDR - Network - R | V118: Bitdefender XDR Sensor for MDR - Network - EDU R | W118: Bitdefender XDR Sensor for MDR - Network - GOV R | X118: Bitdefender XDR Sensor for MDR - Network - CUPG
A119: Add-On | B119: =IF(MDR!$AB$8=$D$1,R119,IF(MDR!$AB$8=$D$2,S119,IF(MDR!$AB$8=$D$3,T119,IF(MDR!$AB$8=$D$4,U119,IF(MDR!$AB$8=$D$5,X119,IF(MDR!$AB$8=$D$6,V119,IF(MDR!$AB$8=$D$7,W119))))))) -> Bitdefender XDR Sensor for MDR - Network | C119: 3 years | D119: 100 - 149 | E119: Bitdefender XDR Sensor for MDR - Network 3 years100 - 149 | G119: 46.11 | H119: =IF(MDR!$AB$8=$D$1,ROUND(G119*$C$3,2),IF(MDR!$AB$8=$D$2,ROUND(G119*$C$3*(1+$T$2),2),IF(MDR!$AB$8=$D$3,ROUND(G119*$C$3*(1+$T$3),2),IF(MDR!$AB$8=$D$4,ROUND(G119*$C$3*(1+$T$4),2),IF(MDR!$AB$8=$D$5,ROUND(G119*$C$3*(1+$T$5),2),IF(MDR!$AB$8=$D$6,ROUND(G119*$C$3*(1+$T$6),2),IF(MDR!$AB$8=$D$7,ROUND(G119*$C$3*(1+$T$7),2)))))))) -> 46.11 | I119: =IF(MDR!$AB$8=$D$1,J119,IF(MDR!$AB$8=$D$2,K119,IF(MDR!$AB$8=$D$3,L119,IF(MDR!$AB$8=$D$4,M119,IF(MDR!$AB$8=$D$5,P119,IF(MDR!$AB$8=$D$6,N119,IF(MDR!$AB$8=$D$7,O119))))))) -> 3117MXBSN360DLZZ | J119: 3117MXBSN360DLZZ | K119: 3117MXBEN360DLZZ | L119: 3117MXBGN360DLZZ | M119: 3117MXBSR360DLZZ | N119: 3117MXBER360DLZZ | O119: 3117MXBGR360DLZZ | P119: 3117MXBCN360DLZZ | R119: Bitdefender XDR Sensor for MDR - Network | S119: Bitdefender XDR Sensor for MDR - Network - EDU | T119: Bitdefender XDR Sensor for MDR - Network - GOV | U119: Bitdefender XDR Sensor for MDR - Network - R | V119: Bitdefender XDR Sensor for MDR - Network - EDU R | W119: Bitdefender XDR Sensor for MDR - Network - GOV R | X119: Bitdefender XDR Sensor for MDR - Network - CUPG
A120: Add-On | B120: =IF(MDR!$AB$8=$D$1,R120,IF(MDR!$AB$8=$D$2,S120,IF(MDR!$AB$8=$D$3,T120,IF(MDR!$AB$8=$D$4,U120,IF(MDR!$AB$8=$D$5,X120,IF(MDR!$AB$8=$D$6,V120,IF(MDR!$AB$8=$D$7,W120))))))) -> Bitdefender XDR Sensor for MDR - Network | C120: 3 years | D120: 150 - 249 | E120: Bitdefender XDR Sensor for MDR - Network 3 years150 - 249 | G120: 42.88 | H120: =IF(MDR!$AB$8=$D$1,ROUND(G120*$C$3,2),IF(MDR!$AB$8=$D$2,ROUND(G120*$C$3*(1+$T$2),2),IF(MDR!$AB$8=$D$3,ROUND(G120*$C$3*(1+$T$3),2),IF(MDR!$AB$8=$D$4,ROUND(G120*$C$3*(1+$T$4),2),IF(MDR!$AB$8=$D$5,ROUND(G120*$C$3*(1+$T$5),2),IF(MDR!$AB$8=$D$6,ROUND(G120*$C$3*(1+$T$6),2),IF(MDR!$AB$8=$D$7,ROUND(G120*$C$3*(1+$T$7),2)))))))) -> 42.88 | I120: =IF(MDR!$AB$8=$D$1,J120,IF(MDR!$AB$8=$D$2,K120,IF(MDR!$AB$8=$D$3,L120,IF(MDR!$AB$8=$D$4,M120,IF(MDR!$AB$8=$D$5,P120,IF(MDR!$AB$8=$D$6,N120,IF(MDR!$AB$8=$D$7,O120))))))) -> 3117MXBSN360ELZZ | J120: 3117MXBSN360ELZZ | K120: 3117MXBEN360ELZZ | L120: 3117MXBGN360ELZZ | M120: 3117MXBSR360ELZZ | N120: 3117MXBER360ELZZ | O120: 3117MXBGR360ELZZ | P120: 3117MXBCN360ELZZ | R120: Bitdefender XDR Sensor for MDR - Network | S120: Bitdefender XDR Sensor for MDR - Network - EDU | T120: Bitdefender XDR Sensor for MDR - Network - GOV | U120: Bitdefender XDR Sensor for MDR - Network - R | V120: Bitdefender XDR Sensor for MDR - Network - EDU R | W120: Bitdefender XDR Sensor for MDR - Network - GOV R | X120: Bitdefender XDR Sensor for MDR - Network - CUPG
A121: Add-On | B121: =IF(MDR!$AB$8=$D$1,R121,IF(MDR!$AB$8=$D$2,S121,IF(MDR!$AB$8=$D$3,T121,IF(MDR!$AB$8=$D$4,U121,IF(MDR!$AB$8=$D$5,X121,IF(MDR!$AB$8=$D$6,V121,IF(MDR!$AB$8=$D$7,W121))))))) -> Bitdefender XDR Sensor for MDR - Network | C121: 3 years | D121: 250 - 499 | E121: Bitdefender XDR Sensor for MDR - Network 3 years250 - 499 | G121: 40.73 | H121: =IF(MDR!$AB$8=$D$1,ROUND(G121*$C$3,2),IF(MDR!$AB$8=$D$2,ROUND(G121*$C$3*(1+$T$2),2),IF(MDR!$AB$8=$D$3,ROUND(G121*$C$3*(1+$T$3),2),IF(MDR!$AB$8=$D$4,ROUND(G121*$C$3*(1+$T$4),2),IF(MDR!$AB$8=$D$5,ROUND(G121*$C$3*(1+$T$5),2),IF(MDR!$AB$8=$D$6,ROUND(G121*$C$3*(1+$T$6),2),IF(MDR!$AB$8=$D$7,ROUND(G121*$C$3*(1+$T$7),2)))))))) -> 40.73 | I121: =IF(MDR!$AB$8=$D$1,J121,IF(MDR!$AB$8=$D$2,K121,IF(MDR!$AB$8=$D$3,L121,IF(MDR!$AB$8=$D$4,M121,IF(MDR!$AB$8=$D$5,P121,IF(MDR!$AB$8=$D$6,N121,IF(MDR!$AB$8=$D$7,O121))))))) -> 3117MXBSN360FLZZ | J121: 3117MXBSN360FLZZ | K121: 3117MXBEN360FLZZ | L121: 3117MXBGN360FLZZ | M121: 3117MXBSR360FLZZ | N121: 3117MXBER360FLZZ | O121: 3117MXBGR360FLZZ | P121: 3117MXBCN360FLZZ | R121: Bitdefender XDR Sensor for MDR - Network | S121: Bitdefender XDR Sensor for MDR - Network - EDU | T121: Bitdefender XDR Sensor for MDR - Network - GOV | U121: Bitdefender XDR Sensor for MDR - Network - R | V121: Bitdefender XDR Sensor for MDR - Network - EDU R | W121: Bitdefender XDR Sensor for MDR - Network - GOV R | X121: Bitdefender XDR Sensor for MDR - Network - CUPG
A122: Add-On | B122: =IF(MDR!$AB$8=$D$1,R122,IF(MDR!$AB$8=$D$2,S122,IF(MDR!$AB$8=$D$3,T122,IF(MDR!$AB$8=$D$4,U122,IF(MDR!$AB$8=$D$5,X122,IF(MDR!$AB$8=$D$6,V122,IF(MDR!$AB$8=$D$7,W122))))))) -> Bitdefender XDR Sensor for MDR - Network | C122: 3 years | D122: 500 - 999 | E122: Bitdefender XDR Sensor for MDR - Network 3 years500 - 999 | G122: 37.88 | H122: =IF(MDR!$AB$8=$D$1,ROUND(G122*$C$3,2),IF(MDR!$AB$8=$D$2,ROUND(G122*$C$3*(1+$T$2),2),IF(MDR!$AB$8=$D$3,ROUND(G122*$C$3*(1+$T$3),2),IF(MDR!$AB$8=$D$4,ROUND(G122*$C$3*(1+$T$4),2),IF(MDR!$AB$8=$D$5,ROUND(G122*$C$3*(1+$T$5),2),IF(MDR!$AB$8=$D$6,ROUND(G122*$C$3*(1+$T$6),2),IF(MDR!$AB$8=$D$7,ROUND(G122*$C$3*(1+$T$7),2)))))))) -> 37.88 | I122: =IF(MDR!$AB$8=$D$1,J122,IF(MDR!$AB$8=$D$2,K122,IF(MDR!$AB$8=$D$3,L122,IF(MDR!$AB$8=$D$4,M122,IF(MDR!$AB$8=$D$5,P122,IF(MDR!$AB$8=$D$6,N122,IF(MDR!$AB$8=$D$7,O122))))))) -> 3117MXBSN360GLZZ | J122: 3117MXBSN360GLZZ | K122: 3117MXBEN360GLZZ | L122: 3117MXBGN360GLZZ | M122: 3117MXBSR360GLZZ | N122: 3117MXBER360GLZZ | O122: 3117MXBGR360GLZZ | P122: 3117MXBCN360GLZZ | R122: Bitdefender XDR Sensor for MDR - Network | S122: Bitdefender XDR Sensor for MDR - Network - EDU | T122: Bitdefender XDR Sensor for MDR - Network - GOV | U122: Bitdefender XDR Sensor for MDR - Network - R | V122: Bitdefender XDR Sensor for MDR - Network - EDU R | W122: Bitdefender XDR Sensor for MDR - Network - GOV R | X122: Bitdefender XDR Sensor for MDR - Network - CUPG
A123: Add-On | B123: =IF(MDR!$AB$8=$D$1,R123,IF(MDR!$AB$8=$D$2,S123,IF(MDR!$AB$8=$D$3,T123,IF(MDR!$AB$8=$D$4,U123,IF(MDR!$AB$8=$D$5,X123,IF(MDR!$AB$8=$D$6,V123,IF(MDR!$AB$8=$D$7,W123))))))) -> Bitdefender XDR Sensor for MDR - Network | C123: 3 years | D123: 1000 - 1999 | E123: Bitdefender XDR Sensor for MDR - Network 3 years1000 - 1999 | G123: 35.24 | H123: =IF(MDR!$AB$8=$D$1,ROUND(G123*$C$3,2),IF(MDR!$AB$8=$D$2,ROUND(G123*$C$3*(1+$T$2),2),IF(MDR!$AB$8=$D$3,ROUND(G123*$C$3*(1+$T$3),2),IF(MDR!$AB$8=$D$4,ROUND(G123*$C$3*(1+$T$4),2),IF(MDR!$AB$8=$D$5,ROUND(G123*$C$3*(1+$T$5),2),IF(MDR!$AB$8=$D$6,ROUND(G123*$C$3*(1+$T$6),2),IF(MDR!$AB$8=$D$7,ROUND(G123*$C$3*(1+$T$7),2)))))))) -> 35.24 | I123: =IF(MDR!$AB$8=$D$1,J123,IF(MDR!$AB$8=$D$2,K123,IF(MDR!$AB$8=$D$3,L123,IF(MDR!$AB$8=$D$4,M123,IF(MDR!$AB$8=$D$5,P123,IF(MDR!$AB$8=$D$6,N123,IF(MDR!$AB$8=$D$7,O123))))))) -> 3117MXBSN360PLZZ | J123: 3117MXBSN360PLZZ | K123: 3117MXBEN360PLZZ | L123: 3117MXBGN360PLZZ | M123: 3117MXBSR360PLZZ | N123: 3117MXBER360PLZZ | O123: 3117MXBGR360PLZZ | P123: 3117MXBCN360PLZZ | R123: Bitdefender XDR Sensor for MDR - Network | S123: Bitdefender XDR Sensor for MDR - Network - EDU | T123: Bitdefender XDR Sensor for MDR - Network - GOV | U123: Bitdefender XDR Sensor for MDR - Network - R | V123: Bitdefender XDR Sensor for MDR - Network - EDU R | W123: Bitdefender XDR Sensor for MDR - Network - GOV R | X123: Bitdefender XDR Sensor for MDR - Network - CUPG
A124: Add-On | B124: =IF(MDR!$AB$8=$D$1,R124,IF(MDR!$AB$8=$D$2,S124,IF(MDR!$AB$8=$D$3,T124,IF(MDR!$AB$8=$D$4,U124,IF(MDR!$AB$8=$D$5,X124,IF(MDR!$AB$8=$D$6,V124,IF(MDR!$AB$8=$D$7,W124))))))) -> Bitdefender XDR Sensor for MDR - Network | C124: 3 years | D124: 2000 - 2999 | E124: Bitdefender XDR Sensor for MDR - Network 3 years2000 - 2999 | G124: 32.77 | H124: =IF(MDR!$AB$8=$D$1,ROUND(G124*$C$3,2),IF(MDR!$AB$8=$D$2,ROUND(G124*$C$3*(1+$T$2),2),IF(MDR!$AB$8=$D$3,ROUND(G124*$C$3*(1+$T$3),2),IF(MDR!$AB$8=$D$4,ROUND(G124*$C$3*(1+$T$4),2),IF(MDR!$AB$8=$D$5,ROUND(G124*$C$3*(1+$T$5),2),IF(MDR!$AB$8=$D$6,ROUND(G124*$C$3*(1+$T$6),2),IF(MDR!$AB$8=$D$7,ROUND(G124*$C$3*(1+$T$7),2)))))))) -> 32.77 | I124: =IF(MDR!$AB$8=$D$1,J124,IF(MDR!$AB$8=$D$2,K124,IF(MDR!$AB$8=$D$3,L124,IF(MDR!$AB$8=$D$4,M124,IF(MDR!$AB$8=$D$5,P124,IF(MDR!$AB$8=$D$6,N124,IF(MDR!$AB$8=$D$7,O124))))))) -> 3117MXBSN360QLZZ | J124: 3117MXBSN360QLZZ | K124: 3117MXBEN360QLZZ | L124: 3117MXBGN360QLZZ | M124: 3117MXBSR360QLZZ | N124: 3117MXBER360QLZZ | O124: 3117MXBGR360QLZZ | P124: 3117MXBCN360QLZZ | R124: Bitdefender XDR Sensor for MDR - Network | S124: Bitdefender XDR Sensor for MDR - Network - EDU | T124: Bitdefender XDR Sensor for MDR - Network - GOV | U124: Bitdefender XDR Sensor for MDR - Network - R | V124: Bitdefender XDR Sensor for MDR - Network - EDU R | W124: Bitdefender XDR Sensor for MDR - Network - GOV R | X124: Bitdefender XDR Sensor for MDR - Network - CUPG
A125: Add-On | B125: =IF(MDR!$AB$8=$D$1,R125,IF(MDR!$AB$8=$D$2,S125,IF(MDR!$AB$8=$D$3,T125,IF(MDR!$AB$8=$D$4,U125,IF(MDR!$AB$8=$D$5,X125,IF(MDR!$AB$8=$D$6,V125,IF(MDR!$AB$8=$D$7,W125))))))) -> Bitdefender XDR Sensor for MDR - Network | C125: 3 years | D125: 3000 - 4999 | E125: Bitdefender XDR Sensor for MDR - Network 3 years3000 - 4999 | G125: 30.48 | H125: =IF(MDR!$AB$8=$D$1,ROUND(G125*$C$3,2),IF(MDR!$AB$8=$D$2,ROUND(G125*$C$3*(1+$T$2),2),IF(MDR!$AB$8=$D$3,ROUND(G125*$C$3*(1+$T$3),2),IF(MDR!$AB$8=$D$4,ROUND(G125*$C$3*(1+$T$4),2),IF(MDR!$AB$8=$D$5,ROUND(G125*$C$3*(1+$T$5),2),IF(MDR!$AB$8=$D$6,ROUND(G125*$C$3*(1+$T$6),2),IF(MDR!$AB$8=$D$7,ROUND(G125*$C$3*(1+$T$7),2)))))))) -> 30.48 | I125: =IF(MDR!$AB$8=$D$1,J125,IF(MDR!$AB$8=$D$2,K125,IF(MDR!$AB$8=$D$3,L125,IF(MDR!$AB$8=$D$4,M125,IF(MDR!$AB$8=$D$5,P125,IF(MDR!$AB$8=$D$6,N125,IF(MDR!$AB$8=$D$7,O125))))))) -> 3117MXBSN360ILZZ | J125: 3117MXBSN360ILZZ | K125: 3117MXBEN360ILZZ | L125: 3117MXBGN360ILZZ | M125: 3117MXBSR360ILZZ | N125: 3117MXBER360ILZZ | O125: 3117MXBGR360ILZZ | P125: 3117MXBCN360ILZZ | R125: Bitdefender XDR Sensor for MDR - Network | S125: Bitdefender XDR Sensor for MDR - Network - EDU | T125: Bitdefender XDR Sensor for MDR - Network - GOV | U125: Bitdefender XDR Sensor for MDR - Network - R | V125: Bitdefender XDR Sensor for MDR - Network - EDU R | W125: Bitdefender XDR Sensor for MDR - Network - GOV R | X125: Bitdefender XDR Sensor for MDR - Network - CUPG
A126: Add-On | B126: =IF(MDR!$AB$8=$D$1,R126,IF(MDR!$AB$8=$D$2,S126,IF(MDR!$AB$8=$D$3,T126,IF(MDR!$AB$8=$D$4,U126,IF(MDR!$AB$8=$D$5,X126,IF(MDR!$AB$8=$D$6,V126,IF(MDR!$AB$8=$D$7,W126))))))) -> Bitdefender XDR Sensor for MDR - Network | C126: 3 years | D126: 5000+ | E126: Bitdefender XDR Sensor for MDR - Network 3 years5000+ | G126: 28.34 | H126: =IF(MDR!$AB$8=$D$1,ROUND(G126*$C$3,2),IF(MDR!$AB$8=$D$2,ROUND(G126*$C$3*(1+$T$2),2),IF(MDR!$AB$8=$D$3,ROUND(G126*$C$3*(1+$T$3),2),IF(MDR!$AB$8=$D$4,ROUND(G126*$C$3*(1+$T$4),2),IF(MDR!$AB$8=$D$5,ROUND(G126*$C$3*(1+$T$5),2),IF(MDR!$AB$8=$D$6,ROUND(G126*$C$3*(1+$T$6),2),IF(MDR!$AB$8=$D$7,ROUND(G126*$C$3*(1+$T$7),2)))))))) -> 28.34 | I126: =IF(MDR!$AB$8=$D$1,J126,IF(MDR!$AB$8=$D$2,K126,IF(MDR!$AB$8=$D$3,L126,IF(MDR!$AB$8=$D$4,M126,IF(MDR!$AB$8=$D$5,P126,IF(MDR!$AB$8=$D$6,N126,IF(MDR!$AB$8=$D$7,O126))))))) -> 3117MXBSN360JLZZ | J126: 3117MXBSN360JLZZ | K126: 3117MXBEN360JLZZ | L126: 3117MXBGN360JLZZ | M126: 3117MXBSR360JLZZ | N126: 3117MXBER360JLZZ | O126: 3117MXBGR360JLZZ | P126: 3117MXBCN360JLZZ | R126: Bitdefender XDR Sensor for MDR - Network | S126: Bitdefender XDR Sensor for MDR - Network - EDU | T126: Bitdefender XDR Sensor for MDR - Network - GOV | U126: Bitdefender XDR Sensor for MDR - Network - R | V126: Bitdefender XDR Sensor for MDR - Network - EDU R | W126: Bitdefender XDR Sensor for MDR - Network - GOV R | X126: Bitdefender XDR Sensor for MDR - Network - CUPG

Sheet Base Prod MDR (hidden)
A2: Business Solutions | J2: Consumer with VAT | K2: Business Standard
J3: Consumer without VAT | K3: Education & Non Profit | O3: =IF(Products!$AB$8='Base Prod MDR'!$K$2,'Base Prod MDR'!P3,IF(Products!$AB$8='Base Prod MDR'!$K$3,CONCATENATE('Base Prod MDR'!P3," - EDU"),IF(Products!$AB$8='Base Prod MDR'!$K$4,CONCATENATE(P3," - GOV"),IF(Products!$AB$8='Base Prod MDR'!$K$5,CONCATENATE(P3," - R"),IF(Products!$AB$8='Base Prod MDR'!$K$6,CONCATENATE(P3," - CUPG"),IF(Products!$AB$8='Base Prod MDR'!$K$7,CONCATENATE(P3," - EDU R"),IF(Products!$AB$8='Base Prod MDR'!$K$8,CONCATENATE(P3," - GOV R")))))))) -> FALSE | P3: Bitdefender Small Office Security (Cloud Console)
J4: Business | K4: Government | O4: =IF(Products!$AB$8='Base Prod MDR'!$K$2,'Base Prod MDR'!P4,IF(Products!$AB$8='Base Prod MDR'!$K$3,CONCATENATE('Base Prod MDR'!P4," - EDU"),IF(Products!$AB$8='Base Prod MDR'!$K$4,CONCATENATE(P4," - GOV"),IF(Products!$AB$8='Base Prod MDR'!$K$5,CONCATENATE(P4," - R"),IF(Products!$AB$8='Base Prod MDR'!$K$6,CONCATENATE(P4," - CUPG"),IF(Products!$AB$8='Base Prod MDR'!$K$7,CONCATENATE(P4," - EDU R"),IF(Products!$AB$8='Base Prod MDR'!$K$8,CONCATENATE(P4," - GOV R")))))))) -> FALSE | P4: Bitdefender Small Office Security (On-premise Console)
J5: Previous & Legacy Business | K5: Renew | O5: =IF(Products!$AB$8='Base Prod MDR'!$K$2,'Base Prod MDR'!P5,IF(Products!$AB$8='Base Prod MDR'!$K$3,CONCATENATE('Base Prod MDR'!P5," - EDU"),IF(Products!$AB$8='Base Prod MDR'!$K$4,CONCATENATE(P5," - GOV"),IF(Products!$AB$8='Base Prod MDR'!$K$5,CONCATENATE(P5," - R"),IF(Products!$AB$8='Base Prod MDR'!$K$6,CONCATENATE(P5," - CUPG"),IF(Products!$AB$8='Base Prod MDR'!$K$7,CONCATENATE(P5," - EDU R"),IF(Products!$AB$8='Base Prod MDR'!$K$8,CONCATENATE(P5," - GOV R")))))))) -> FALSE | P5: Bitdefender Security for Endpoints (Cloud Console)
A6: Enter the desired number of units in the appropriate yellow cell to calculate the price. Unless otherwise specified, all the units are users. | K6: Competitive Upgrade | O6: =IF(Products!$AB$8='Base Prod MDR'!$K$2,'Base Prod MDR'!P6,IF(Products!$AB$8='Base Prod MDR'!$K$3,CONCATENATE('Base Prod MDR'!P6," - EDU"),IF(Products!$AB$8='Base Prod MDR'!$K$4,CONCATENATE(P6," - GOV"),IF(Products!$AB$8='Base Prod MDR'!$K$5,CONCATENATE(P6," - R"),IF(Products!$AB$8='Base Prod MDR'!$K$6,CONCATENATE(P6," - CUPG"),IF(Products!$AB$8='Base Prod MDR'!$K$7,CONCATENATE(P6," - EDU R"),IF(Products!$AB$8='Base Prod MDR'!$K$8,CONCATENATE(P6," - GOV R")))))))) -> FALSE | P6: Bitdefender Security for Endpoints (On-premise Console)
K7: Education & Non Profit Renew | O7: =IF(Products!$AB$8='Base Prod MDR'!$K$2,'Base Prod MDR'!P7,IF(Products!$AB$8='Base Prod MDR'!$K$3,CONCATENATE('Base Prod MDR'!P7," - EDU"),IF(Products!$AB$8='Base Prod MDR'!$K$4,CONCATENATE(P7," - GOV"),IF(Products!$AB$8='Base Prod MDR'!$K$5,CONCATENATE(P7," - R"),IF(Products!$AB$8='Base Prod MDR'!$K$6,CONCATENATE(P7," - CUPG"),IF(Products!$AB$8='Base Prod MDR'!$K$7,CONCATENATE(P7," - EDU R"),IF(Products!$AB$8='Base Prod MDR'!$K$8,CONCATENATE(P7," - GOV R")))))))) -> FALSE | P7: Bitdefender Security for Virtual Environments (VDI)
A8: Select Product Type | K8: Government Renew | O8: =IF(Products!$AB$8='Base Prod MDR'!$K$2,'Base Prod MDR'!P8,IF(Products!$AB$8='Base Prod MDR'!$K$3,CONCATENATE('Base Prod MDR'!P8," - EDU"),IF(Products!$AB$8='Base Prod MDR'!$K$4,CONCATENATE(P8," - GOV"),IF(Products!$AB$8='Base Prod MDR'!$K$5,CONCATENATE(P8," - R"),IF(Products!$AB$8='Base Prod MDR'!$K$6,CONCATENATE(P8," - CUPG"),IF(Products!$AB$8='Base Prod MDR'!$K$7,CONCATENATE(P8," - EDU R"),IF(Products!$AB$8='Base Prod MDR'!$K$8,CONCATENATE(P8," - GOV R")))))))) -> FALSE | P8: Bitdefender Security for Virtual Environments (VS)
O9: =IF(Products!$AB$8='Base Prod MDR'!$K$2,'Base Prod MDR'!P9,IF(Products!$AB$8='Base Prod MDR'!$K$3,CONCATENATE('Base Prod MDR'!P9," - EDU"),IF(Products!$AB$8='Base Prod MDR'!$K$4,CONCATENATE(P9," - GOV"),IF(Products!$AB$8='Base Prod MDR'!$K$5,CONCATENATE(P9," - R"),IF(Products!$AB$8='Base Prod MDR'!$K$6,CONCATENATE(P9," - CUPG"),IF(Products!$AB$8='Base Prod MDR'!$K$7,CONCATENATE(P9," - EDU R"),IF(Products!$AB$8='Base Prod MDR'!$K$8,CONCATENATE(P9," - GOV R")))))))) -> FALSE | P9: Bitdefender Security for Mobile
A10: Select Offer Type | D10: Discount from MSRP | G10: ='Base MDR'!C5 -> FALSE | O10: =IF(Products!$AB$8='Base Prod MDR'!$K$2,'Base Prod MDR'!P10,IF(Products!$AB$8='Base Prod MDR'!$K$3,CONCATENATE('Base Prod MDR'!P10," - EDU"),IF(Products!$AB$8='Base Prod MDR'!$K$4,CONCATENATE(P10," - GOV"),IF(Products!$AB$8='Base Prod MDR'!$K$5,CONCATENATE(P10," - R"),IF(Products!$AB$8='Base Prod MDR'!$K$6,CONCATENATE(P10," - CUPG"),IF(Products!$AB$8='Base Prod MDR'!$K$7,CONCATENATE(P10," - EDU R"),IF(Products!$AB$8='Base Prod MDR'!$K$8,CONCATENATE(P10," - GOV R")))))))) -> FALSE | P10: GravityZone Security for Virtual Environments (CPU)
D11: Discount from MSRP | G11: ='Base MDR'!H5 -> 0 | O11: =IF(Products!$AB$8='Base Prod MDR'!$K$2,'Base Prod MDR'!P11,IF(Products!$AB$8='Base Prod MDR'!$K$3,CONCATENATE('Base Prod MDR'!P11," - EDU"),IF(Products!$AB$8='Base Prod MDR'!$K$4,CONCATENATE(P11," - GOV"),IF(Products!$AB$8='Base Prod MDR'!$K$5,CONCATENATE(P11," - R"),IF(Products!$AB$8='Base Prod MDR'!$K$6,CONCATENATE(P11," - CUPG"),IF(Products!$AB$8='Base Prod MDR'!$K$7,CONCATENATE(P11," - EDU R"),IF(Products!$AB$8='Base Prod MDR'!$K$8,CONCATENATE(P11," - GOV R")))))))) -> FALSE | P11: GravityZone Security for Endpoints
A12: Total price per choosen configuration | F12: =SUM(F14:F775) ->  | O12: =IF(Products!$AB$8='Base Prod MDR'!$K$2,'Base Prod MDR'!P12,IF(Products!$AB$8='Base Prod MDR'!$K$3,CONCATENATE('Base Prod MDR'!P12," - EDU"),IF(Products!$AB$8='Base Prod MDR'!$K$4,CONCATENATE(P12," - GOV"),IF(Products!$AB$8='Base Prod MDR'!$K$5,CONCATENATE(P12," - R"),IF(Products!$AB$8='Base Prod MDR'!$K$6,CONCATENATE(P12," - CUPG"),IF(Products!$AB$8='Base Prod MDR'!$K$7,CONCATENATE(P12," - EDU R"),IF(Products!$AB$8='Base Prod MDR'!$K$8,CONCATENATE(P12," - GOV R")))))))) -> FALSE | P12: GravityZone Security for Virtual Environments (VDI)
A13: Product | B13: Period | C13: Users | D13: Price/Unit | E13: # Units | F13: Total Price | G13: Part # | O13: =IF(Products!$AB$8='Base Prod MDR'!$K$2,'Base Prod MDR'!P13,IF(Products!$AB$8='Base Prod MDR'!$K$3,CONCATENATE('Base Prod MDR'!P13," - EDU"),IF(Products!$AB$8='Base Prod MDR'!$K$4,CONCATENATE(P13," - GOV"),IF(Products!$AB$8='Base Prod MDR'!$K$5,CONCATENATE(P13," - R"),IF(Products!$AB$8='Base Prod MDR'!$K$6,CONCATENATE(P13," - CUPG"),IF(Products!$AB$8='Base Prod MDR'!$K$7,CONCATENATE(P13," - EDU R"),IF(Products!$AB$8='Base Prod MDR'!$K$8,CONCATENATE(P13," - GOV R")))))))) -> FALSE | P13: GravityZone Security for Virtual Environments (VS)
A14: =IF(MDR!$AB$7=$J$4,'Base MDR'!B10,IF(MDR!$AB$7=$J$5,'Base MDR'!#REF!,IF(OR(MDR!$AB$7=$J$2,MDR!$AB$7=$J$3),'Base MDR'!Z13))) -> Bitdefender Managed Detection and Response Foundations | B14: =IF(MDR!$AB$7=$J$4,'Base MDR'!C10,IF(MDR!$AB$7=$J$5,'Base MDR'!#REF!,IF(OR(MDR!$AB$7=$J$2,MDR!$AB$7=$J$3),'Base MDR'!#REF!))) -> 1 year | C14: =IF(MDR!$AB$7=$J$4,'Base MDR'!D10,IF(MDR!$AB$7=$J$5,'Base MDR'!#REF!,IF(OR(MDR!$AB$7=$J$2,MDR!$AB$7=$J$3),'Base MDR'!AB13))) -> 50 - 99 | D14: =IFERROR(IF(MDR!$AB$7=$J$3,VLOOKUP(CONCATENATE(A14,B14,C14),'Base MDR'!#REF!,2,FALSE),IF(MDR!$AB$7=$J$2,VLOOKUP(CONCATENATE(A14,B14,C14),'Base MDR'!#REF!,4,FALSE),VLOOKUP(CONCATENATE(A14,B14,C14),'Base MDR'!$E$9:$H$143,4,FALSE))),"") -> 73.53 | E14: =MDR!F14 -> 0 | F14: =IF(ISBLANK(MDR!F14),0,IF(LEFT(MDR!$AB$7,8)="Consumer",D14*E14,IF(C14="500+",IF(E14>=500,E14*D14),IF(C14="5+",IF(E14>=5,E14*D14),IF(C14="1000+",IF(E14>=1000,E14*D14),IF(C14="10000+",IF(E14>=10000,E14*D14),IF(C14="5000+",IF(E14>=5000,E14*D14),IF(AND(E14>=VLOOKUP(C14,$M$24:$P$50,3,FALSE),E14<=VLOOKUP(C14,$M$24:$P50,4,FALSE)),E14*D14)))))))) -> 0 | G14: =IF(MDR!$AB$7=$J$4,'Base MDR'!I10,IF(MDR!$AB$7=$J$5,'Base MDR'!#REF!,IF(OR(MDR!$AB$7=$J$2,MDR!$AB$7=$J$3),'Base MDR'!AE13))) -> 2892MFSSN120CLZZ | O14: =IF(Products!$AB$8='Base Prod MDR'!$K$2,'Base Prod MDR'!P14,IF(Products!$AB$8='Base Prod MDR'!$K$3,CONCATENATE('Base Prod MDR'!P14," - EDU"),IF(Products!$AB$8='Base Prod MDR'!$K$4,CONCATENATE(P14," - GOV"),IF(Products!$AB$8='Base Prod MDR'!$K$5,CONCATENATE(P14," - R"),IF(Products!$AB$8='Base Prod MDR'!$K$6,CONCATENATE(P14," - CUPG"),IF(Products!$AB$8='Base Prod MDR'!$K$7,CONCATENATE(P14," - EDU R"),IF(Products!$AB$8='Base Prod MDR'!$K$8,CONCATENATE(P14," - GOV R")))))))) -> FALSE | P14: GravityZone Security for Mobile
A15: =IF(MDR!$AB$7=$J$4,'Base MDR'!B11,IF(MDR!$AB$7=$J$5,'Base MDR'!#REF!,IF(OR(MDR!$AB$7=$J$2,MDR!$AB$7=$J$3),'Base MDR'!Z14))) -> Bitdefender Managed Detection and Response Foundations | B15: =IF(MDR!$AB$7=$J$4,'Base MDR'!C11,IF(MDR!$AB$7=$J$5,'Base MDR'!#REF!,IF(OR(MDR!$AB$7=$J$2,MDR!$AB$7=$J$3),'Base MDR'!#REF!))) -> 1 year | C15: =IF(MDR!$AB$7=$J$4,'Base MDR'!D11,IF(MDR!$AB$7=$J$5,'Base MDR'!#REF!,IF(OR(MDR!$AB$7=$J$2,MDR!$AB$7=$J$3),'Base MDR'!AB14))) -> 100 - 249 | D15: =IFERROR(IF(MDR!$AB$7=$J$3,VLOOKUP(CONCATENATE(A15,B15,C15),'Base MDR'!#REF!,2,FALSE),IF(MDR!$AB$7=$J$2,VLOOKUP(CONCATENATE(A15,B15,C15),'Base MDR'!#REF!,4,FALSE),VLOOKUP(CONCATENATE(A15,B15,C15),'Base MDR'!$E$9:$H$143,4,FALSE))),"") -> 66.18 | E15: =MDR!F15 -> 0 | F15: =IF(ISBLANK(MDR!F15),0,IF(LEFT(MDR!$AB$7,8)="Consumer",D15*E15,IF(C15="500+",IF(E15>=500,E15*D15),IF(C15="5+",IF(E15>=5,E15*D15),IF(C15="1000+",IF(E15>=1000,E15*D15),IF(C15="10000+",IF(E15>=10000,E15*D15),IF(C15="5000+",IF(E15>=5000,E15*D15),IF(AND(E15>=VLOOKUP(C15,$M$24:$P$50,3,FALSE),E15<=VLOOKUP(C15,$M$24:$P51,4,FALSE)),E15*D15)))))))) -> 0 | G15: =IF(MDR!$AB$7=$J$4,'Base MDR'!I11,IF(MDR!$AB$7=$J$5,'Base MDR'!#REF!,IF(OR(MDR!$AB$7=$J$2,MDR!$AB$7=$J$3),'Base MDR'!AE14))) -> 2892MFSSN120ELZZ | O15: =IF(Products!$AB$8='Base Prod MDR'!$K$2,'Base Prod MDR'!P15,IF(Products!$AB$8='Base Prod MDR'!$K$3,CONCATENATE('Base Prod MDR'!P15," - EDU"),IF(Products!$AB$8='Base Prod MDR'!$K$4,CONCATENATE(P15," - GOV"),IF(Products!$AB$8='Base Prod MDR'!$K$5,CONCATENATE(P15," - R"),IF(Products!$AB$8='Base Prod MDR'!$K$6,CONCATENATE(P15," - CUPG"),IF(Products!$AB$8='Base Prod MDR'!$K$7,CONCATENATE(P15," - EDU R"),IF(Products!$AB$8='Base Prod MDR'!$K$8,CONCATENATE(P15," - GOV R")))))))) -> FALSE | P15: GravityZone Email Security
A16: =IF(MDR!$AB$7=$J$4,'Base MDR'!B12,IF(MDR!$AB$7=$J$5,'Base MDR'!#REF!,IF(OR(MDR!$AB$7=$J$2,MDR!$AB$7=$J$3),'Base MDR'!Z15))) -> Bitdefender Managed Detection and Response Foundations | B16: =IF(MDR!$AB$7=$J$4,'Base MDR'!C12,IF(MDR!$AB$7=$J$5,'Base MDR'!#REF!,IF(OR(MDR!$AB$7=$J$2,MDR!$AB$7=$J$3),'Base MDR'!#REF!))) -> 1 year | C16: =IF(MDR!$AB$7=$J$4,'Base MDR'!D12,IF(MDR!$AB$7=$J$5,'Base MDR'!#REF!,IF(OR(MDR!$AB$7=$J$2,MDR!$AB$7=$J$3),'Base MDR'!AB15))) -> 250 - 500 | D16: =IFERROR(IF(MDR!$AB$7=$J$3,VLOOKUP(CONCATENATE(A16,B16,C16),'Base MDR'!#REF!,2,FALSE),IF(MDR!$AB$7=$J$2,VLOOKUP(CONCATENATE(A16,B16,C16),'Base MDR'!#REF!,4,FALSE),VLOOKUP(CONCATENATE(A16,B16,C16),'Base MDR'!$E$9:$H$143,4,FALSE))),"") -> 59.56 | E16: =MDR!F16 -> 0 | F16: =IF(ISBLANK(MDR!F16),0,IF(LEFT(MDR!$AB$7,8)="Consumer",D16*E16,IF(C16="500+",IF(E16>=500,E16*D16),IF(C16="5+",IF(E16>=5,E16*D16),IF(C16="1000+",IF(E16>=1000,E16*D16),IF(C16="10000+",IF(E16>=10000,E16*D16),IF(C16="5000+",IF(E16>=5000,E16*D16),IF(AND(E16>=VLOOKUP(C16,$M$24:$P$50,3,FALSE),E16<=VLOOKUP(C16,$M$24:$P52,4,FALSE)),E16*D16)))))))) -> 0 | G16: =IF(MDR!$AB$7=$J$4,'Base MDR'!I12,IF(MDR!$AB$7=$J$5,'Base MDR'!#REF!,IF(OR(MDR!$AB$7=$J$2,MDR!$AB$7=$J$3),'Base MDR'!AE15))) -> 2892MFSSN120FLZZ | O16: Gravityzone Ultra 30 days Data Retention Add-on (EDR) | P16: Gravityzone Ultra 30 days Data Retention Add-on (EDR)
A17: =IF(MDR!$AB$7=$J$4,'Base MDR'!B13,IF(MDR!$AB$7=$J$5,'Base MDR'!#REF!,IF(OR(MDR!$AB$7=$J$2,MDR!$AB$7=$J$3),'Base MDR'!Z16))) -> Bitdefender Managed Detection and Response Foundations | B17: =IF(MDR!$AB$7=$J$4,'Base MDR'!C13,IF(MDR!$AB$7=$J$5,'Base MDR'!#REF!,IF(OR(MDR!$AB$7=$J$2,MDR!$AB$7=$J$3),'Base MDR'!#REF!))) -> 2 years | C17: =IF(MDR!$AB$7=$J$4,'Base MDR'!D13,IF(MDR!$AB$7=$J$5,'Base MDR'!#REF!,IF(OR(MDR!$AB$7=$J$2,MDR!$AB$7=$J$3),'Base MDR'!AB16))) -> 50 - 99 | D17: =IFERROR(IF(MDR!$AB$7=$J$3,VLOOKUP(CONCATENATE(A17,B17,C17),'Base MDR'!#REF!,2,FALSE),IF(MDR!$AB$7=$J$2,VLOOKUP(CONCATENATE(A17,B17,C17),'Base MDR'!#REF!,4,FALSE),VLOOKUP(CONCATENATE(A17,B17,C17),'Base MDR'!$E$9:$H$143,4,FALSE))),"") -> 132.36 | E17: =MDR!F17 -> 0 | F17: =IF(ISBLANK(MDR!F17),0,IF(LEFT(MDR!$AB$7,8)="Consumer",D17*E17,IF(C17="500+",IF(E17>=500,E17*D17),IF(C17="5+",IF(E17>=5,E17*D17),IF(C17="1000+",IF(E17>=1000,E17*D17),IF(C17="10000+",IF(E17>=10000,E17*D17),IF(C17="5000+",IF(E17>=5000,E17*D17),IF(AND(E17>=VLOOKUP(C17,$M$24:$P$50,3,FALSE),E17<=VLOOKUP(C17,$M$24:$P53,4,FALSE)),E17*D17)))))))) -> 0 | G17: =IF(MDR!$AB$7=$J$4,'Base MDR'!I13,IF(MDR!$AB$7=$J$5,'Base MDR'!#REF!,IF(OR(MDR!$AB$7=$J$2,MDR!$AB$7=$J$3),'Base MDR'!AE16))) -> 2892MFSSN240CLZZ | O17: Gravityzone Ultra 90 days Data Retention Add-on (EDR) | P17: Gravityzone Ultra 90 days Data Retention Add-on (EDR)
A18: =IF(MDR!$AB$7=$J$4,'Base MDR'!B14,IF(MDR!$AB$7=$J$5,'Base MDR'!#REF!,IF(OR(MDR!$AB$7=$J$2,MDR!$AB$7=$J$3),'Base MDR'!Z17))) -> Bitdefender Managed Detection and Response Foundations | B18: =IF(MDR!$AB$7=$J$4,'Base MDR'!C14,IF(MDR!$AB$7=$J$5,'Base MDR'!#REF!,IF(OR(MDR!$AB$7=$J$2,MDR!$AB$7=$J$3),'Base MDR'!#REF!))) -> 2 years | C18: =IF(MDR!$AB$7=$J$4,'Base MDR'!D14,IF(MDR!$AB$7=$J$5,'Base MDR'!#REF!,IF(OR(MDR!$AB$7=$J$2,MDR!$AB$7=$J$3),'Base MDR'!AB17))) -> 100 - 249 | D18: =IFERROR(IF(MDR!$AB$7=$J$3,VLOOKUP(CONCATENATE(A18,B18,C18),'Base MDR'!#REF!,2,FALSE),IF(MDR!$AB$7=$J$2,VLOOKUP(CONCATENATE(A18,B18,C18),'Base MDR'!#REF!,4,FALSE),VLOOKUP(CONCATENATE(A18,B18,C18),'Base MDR'!$E$9:$H$143,4,FALSE))),"") -> 119.13 | E18: =MDR!F18 -> 0 | F18: =IF(ISBLANK(MDR!F18),0,IF(LEFT(MDR!$AB$7,8)="Consumer",D18*E18,IF(C18="500+",IF(E18>=500,E18*D18),IF(C18="5+",IF(E18>=5,E18*D18),IF(C18="1000+",IF(E18>=1000,E18*D18),IF(C18="10000+",IF(E18>=10000,E18*D18),IF(C18="5000+",IF(E18>=5000,E18*D18),IF(AND(E18>=VLOOKUP(C18,$M$24:$P$50,3,FALSE),E18<=VLOOKUP(C18,$M$24:$P54,4,FALSE)),E18*D18)))))))) -> 0 | G18: =IF(MDR!$AB$7=$J$4,'Base MDR'!I14,IF(MDR!$AB$7=$J$5,'Base MDR'!#REF!,IF(OR(MDR!$AB$7=$J$2,MDR!$AB$7=$J$3),'Base MDR'!AE17))) -> 2892MFSSN240ELZZ | O18: Gravityzone Ultra 180 days Data Retention Add-on (EDR) | P18: Gravityzone Ultra 180 days Data Retention Add-on (EDR)
A19: =IF(MDR!$AB$7=$J$4,'Base MDR'!B15,IF(MDR!$AB$7=$J$5,'Base MDR'!#REF!,IF(OR(MDR!$AB$7=$J$2,MDR!$AB$7=$J$3),'Base MDR'!Z18))) -> Bitdefender Managed Detection and Response Foundations | B19: =IF(MDR!$AB$7=$J$4,'Base MDR'!C15,IF(MDR!$AB$7=$J$5,'Base MDR'!#REF!,IF(OR(MDR!$AB$7=$J$2,MDR!$AB$7=$J$3),'Base MDR'!#REF!))) -> 2 years | C19: =IF(MDR!$AB$7=$J$4,'Base MDR'!D15,IF(MDR!$AB$7=$J$5,'Base MDR'!#REF!,IF(OR(MDR!$AB$7=$J$2,MDR!$AB$7=$J$3),'Base MDR'!AB18))) -> 250 - 500 | D19: =IFERROR(IF(MDR!$AB$7=$J$3,VLOOKUP(CONCATENATE(A19,B19,C19),'Base MDR'!#REF!,2,FALSE),IF(MDR!$AB$7=$J$2,VLOOKUP(CONCATENATE(A19,B19,C19),'Base MDR'!#REF!,4,FALSE),VLOOKUP(CONCATENATE(A19,B19,C19),'Base MDR'!$E$9:$H$143,4,FALSE))),"") -> 107.21 | E19: =MDR!F19 -> 0 | F19: =IF(ISBLANK(MDR!F19),0,IF(LEFT(MDR!$AB$7,8)="Consumer",D19*E19,IF(C19="500+",IF(E19>=500,E19*D19),IF(C19="5+",IF(E19>=5,E19*D19),IF(C19="1000+",IF(E19>=1000,E19*D19),IF(C19="10000+",IF(E19>=10000,E19*D19),IF(C19="5000+",IF(E19>=5000,E19*D19),IF(AND(E19>=VLOOKUP(C19,$M$24:$P$50,3,FALSE),E19<=VLOOKUP(C19,$M$24:$P55,4,FALSE)),E19*D19)))))))) -> 0 | G19: =IF(MDR!$AB$7=$J$4,'Base MDR'!I15,IF(MDR!$AB$7=$J$5,'Base MDR'!#REF!,IF(OR(MDR!$AB$7=$J$2,MDR!$AB$7=$J$3),'Base MDR'!AE18))) -> 2892MFSSN240FLZZ | O19: Gravityzone Ultra Add-on (EDR) | P19: Gravityzone Ultra Add-on (EDR)
A20: =IF(MDR!$AB$7=$J$4,'Base MDR'!B16,IF(MDR!$AB$7=$J$5,'Base MDR'!#REF!,IF(OR(MDR!$AB$7=$J$2,MDR!$AB$7=$J$3),'Base MDR'!#REF!))) -> Bitdefender Managed Detection and Response Foundations | B20: =IF(MDR!$AB$7=$J$4,'Base MDR'!C16,IF(MDR!$AB$7=$J$5,'Base MDR'!#REF!,IF(OR(MDR!$AB$7=$J$2,MDR!$AB$7=$J$3),'Base MDR'!#REF!))) -> 3 years | C20: =IF(MDR!$AB$7=$J$4,'Base MDR'!D16,IF(MDR!$AB$7=$J$5,'Base MDR'!#REF!,IF(OR(MDR!$AB$7=$J$2,MDR!$AB$7=$J$3),'Base MDR'!#REF!))) -> 50 - 99 | D20: =IFERROR(IF(MDR!$AB$7=$J$3,VLOOKUP(CONCATENATE(A20,B20,C20),'Base MDR'!#REF!,2,FALSE),IF(MDR!$AB$7=$J$2,VLOOKUP(CONCATENATE(A20,B20,C20),'Base MDR'!#REF!,4,FALSE),VLOOKUP(CONCATENATE(A20,B20,C20),'Base MDR'!$E$9:$H$143,4,FALSE))),"") -> 187.51 | E20: =MDR!F20 -> 0 | F20: =IF(ISBLANK(MDR!F20),0,IF(LEFT(MDR!$AB$7,8)="Consumer",D20*E20,IF(C20="500+",IF(E20>=500,E20*D20),IF(C20="5+",IF(E20>=5,E20*D20),IF(C20="1000+",IF(E20>=1000,E20*D20),IF(C20="10000+",IF(E20>=10000,E20*D20),IF(C20="5000+",IF(E20>=5000,E20*D20),IF(AND(E20>=VLOOKUP(C20,$M$24:$P$50,3,FALSE),E20<=VLOOKUP(C20,$M$24:$P56,4,FALSE)),E20*D20)))))))) -> 0 | G20: =IF(MDR!$AB$7=$J$4,'Base MDR'!I16,IF(MDR!$AB$7=$J$5,'Base MDR'!#REF!,IF(OR(MDR!$AB$7=$J$2,MDR!$AB$7=$J$3),'Base MDR'!#REF!))) -> 2892MFSSN360CLZZ
A21: =IF(MDR!$AB$7=$J$4,'Base MDR'!B17,IF(MDR!$AB$7=$J$5,'Base MDR'!#REF!,IF(OR(MDR!$AB$7=$J$2,MDR!$AB$7=$J$3),'Base MDR'!#REF!))) -> Bitdefender Managed Detection and Response Foundations | B21: =IF(MDR!$AB$7=$J$4,'Base MDR'!C17,IF(MDR!$AB$7=$J$5,'Base MDR'!#REF!,IF(OR(MDR!$AB$7=$J$2,MDR!$AB$7=$J$3),'Base MDR'!#REF!))) -> 3 years | C21: =IF(MDR!$AB$7=$J$4,'Base MDR'!D17,IF(MDR!$AB$7=$J$5,'Base MDR'!#REF!,IF(OR(MDR!$AB$7=$J$2,MDR!$AB$7=$J$3),'Base MDR'!#REF!))) -> 100 - 249 | D21: =IFERROR(IF(MDR!$AB$7=$J$3,VLOOKUP(CONCATENATE(A21,B21,C21),'Base MDR'!#REF!,2,FALSE),IF(MDR!$AB$7=$J$2,VLOOKUP(CONCATENATE(A21,B21,C21),'Base MDR'!#REF!,4,FALSE),VLOOKUP(CONCATENATE(A21,B21,C21),'Base MDR'!$E$9:$H$143,4,FALSE))),"") -> 168.75 | E21: =MDR!F21 -> 0 | F21: =IF(ISBLANK(MDR!F21),0,IF(LEFT(MDR!$AB$7,8)="Consumer",D21*E21,IF(C21="500+",IF(E21>=500,E21*D21),IF(C21="5+",IF(E21>=5,E21*D21),IF(C21="1000+",IF(E21>=1000,E21*D21),IF(C21="10000+",IF(E21>=10000,E21*D21),IF(C21="5000+",IF(E21>=5000,E21*D21),IF(AND(E21>=VLOOKUP(C21,$M$24:$P$50,3,FALSE),E21<=VLOOKUP(C21,$M$24:$P57,4,FALSE)),E21*D21)))))))) -> 0 | G21: =IF(MDR!$AB$7=$J$4,'Base MDR'!I17,IF(MDR!$AB$7=$J$5,'Base MDR'!#REF!,IF(OR(MDR!$AB$7=$J$2,MDR!$AB$7=$J$3),'Base MDR'!#REF!))) -> 2892MFSSN360ELZZ
A22: =IF(MDR!$AB$7=$J$4,'Base MDR'!B18,IF(MDR!$AB$7=$J$5,'Base MDR'!#REF!,IF(OR(MDR!$AB$7=$J$2,MDR!$AB$7=$J$3),'Base MDR'!#REF!))) -> Bitdefender Managed Detection and Response Foundations | B22: =IF(MDR!$AB$7=$J$4,'Base MDR'!C18,IF(MDR!$AB$7=$J$5,'Base MDR'!#REF!,IF(OR(MDR!$AB$7=$J$2,MDR!$AB$7=$J$3),'Base MDR'!#REF!))) -> 3 years | C22: =IF(MDR!$AB$7=$J$4,'Base MDR'!D18,IF(MDR!$AB$7=$J$5,'Base MDR'!#REF!,IF(OR(MDR!$AB$7=$J$2,MDR!$AB$7=$J$3),'Base MDR'!#REF!))) -> 250 - 500 | D22: =IFERROR(IF(MDR!$AB$7=$J$3,VLOOKUP(CONCATENATE(A22,B22,C22),'Base MDR'!#REF!,2,FALSE),IF(MDR!$AB$7=$J$2,VLOOKUP(CONCATENATE(A22,B22,C22),'Base MDR'!#REF!,4,FALSE),VLOOKUP(CONCATENATE(A22,B22,C22),'Base MDR'!$E$9:$H$143,4,FALSE))),"") -> 151.88 | E22: =MDR!F22 -> 0 | F22: =IF(ISBLANK(MDR!F22),0,IF(LEFT(MDR!$AB$7,8)="Consumer",D22*E22,IF(C22="500+",IF(E22>=500,E22*D22),IF(C22="5+",IF(E22>=5,E22*D22),IF(C22="1000+",IF(E22>=1000,E22*D22),IF(C22="10000+",IF(E22>=10000,E22*D22),IF(C22="5000+",IF(E22>=5000,E22*D22),IF(AND(E22>=VLOOKUP(C22,$M$24:$P$50,3,FALSE),E22<=VLOOKUP(C22,$M$24:$P58,4,FALSE)),E22*D22)))))))) -> 0 | G22: =IF(MDR!$AB$7=$J$4,'Base MDR'!I18,IF(MDR!$AB$7=$J$5,'Base MDR'!#REF!,IF(OR(MDR!$AB$7=$J$2,MDR!$AB$7=$J$3),'Base MDR'!#REF!))) -> 2892MFSSN360FLZZ
A23: =IF(MDR!$AB$7=$J$4,'Base MDR'!B19,IF(MDR!$AB$7=$J$5,'Base MDR'!#REF!,IF(OR(MDR!$AB$7=$J$2,MDR!$AB$7=$J$3),'Base MDR'!#REF!))) -> Bitdefender XDR Sensor for MDR - Productivity Apps | B23: =IF(MDR!$AB$7=$J$4,'Base MDR'!C19,IF(MDR!$AB$7=$J$5,'Base MDR'!#REF!,IF(OR(MDR!$AB$7=$J$2,MDR!$AB$7=$J$3),'Base MDR'!#REF!))) -> 1 year | C23: =IF(MDR!$AB$7=$J$4,'Base MDR'!D19,IF(MDR!$AB$7=$J$5,'Base MDR'!#REF!,IF(OR(MDR!$AB$7=$J$2,MDR!$AB$7=$J$3),'Base MDR'!#REF!))) -> 50 - 99 | D23: =IFERROR(IF(MDR!$AB$7=$J$3,VLOOKUP(CONCATENATE(A23,B23,C23),'Base MDR'!#REF!,2,FALSE),IF(MDR!$AB$7=$J$2,VLOOKUP(CONCATENATE(A23,B23,C23),'Base MDR'!#REF!,4,FALSE),VLOOKUP(CONCATENATE(A23,B23,C23),'Base MDR'!$E$9:$H$143,4,FALSE))),"") -> 23.19 | E23: =MDR!F23 -> 0 | F23: =IF(ISBLANK(MDR!F23),0,IF(LEFT(MDR!$AB$7,8)="Consumer",D23*E23,IF(C23="500+",IF(E23>=500,E23*D23),IF(C23="5+",IF(E23>=5,E23*D23),IF(C23="1000+",IF(E23>=1000,E23*D23),IF(C23="10000+",IF(E23>=10000,E23*D23),IF(C23="5000+",IF(E23>=5000,E23*D23),IF(AND(E23>=VLOOKUP(C23,$M$24:$P$50,3,FALSE),E23<=VLOOKUP(C23,$M$24:$P59,4,FALSE)),E23*D23)))))))) -> 0 | G23: =IF(MDR!$AB$7=$J$4,'Base MDR'!I19,IF(MDR!$AB$7=$J$5,'Base MDR'!#REF!,IF(OR(MDR!$AB$7=$J$2,MDR!$AB$7=$J$3),'Base MDR'!#REF!))) -> 3116MXBSN120CLZZ
A24: =IF(MDR!$AB$7=$J$4,'Base MDR'!B20,IF(MDR!$AB$7=$J$5,'Base MDR'!#REF!,IF(OR(MDR!$AB$7=$J$2,MDR!$AB$7=$J$3),'Base MDR'!#REF!))) -> Bitdefender XDR Sensor for MDR - Productivity Apps | B24: =IF(MDR!$AB$7=$J$4,'Base MDR'!C20,IF(MDR!$AB$7=$J$5,'Base MDR'!#REF!,IF(OR(MDR!$AB$7=$J$2,MDR!$AB$7=$J$3),'Base MDR'!#REF!))) -> 1 year | C24: =IF(MDR!$AB$7=$J$4,'Base MDR'!D20,IF(MDR!$AB$7=$J$5,'Base MDR'!#REF!,IF(OR(MDR!$AB$7=$J$2,MDR!$AB$7=$J$3),'Base MDR'!#REF!))) -> 100 - 149 | D24: =IFERROR(IF(MDR!$AB$7=$J$3,VLOOKUP(CONCATENATE(A24,B24,C24),'Base MDR'!#REF!,2,FALSE),IF(MDR!$AB$7=$J$2,VLOOKUP(CONCATENATE(A24,B24,C24),'Base MDR'!#REF!,4,FALSE),VLOOKUP(CONCATENATE(A24,B24,C24),'Base MDR'!$E$9:$H$143,4,FALSE))),"") -> 21.56 | E24: =MDR!F24 -> 0 | F24: =IF(ISBLANK(MDR!F24),0,IF(LEFT(MDR!$AB$7,8)="Consumer",D24*E24,IF(C24="500+",IF(E24>=500,E24*D24),IF(C24="5+",IF(E24>=5,E24*D24),IF(C24="1000+",IF(E24>=1000,E24*D24),IF(C24="10000+",IF(E24>=10000,E24*D24),IF(C24="5000+",IF(E24>=5000,E24*D24),IF(AND(E24>=VLOOKUP(C24,$M$24:$P$50,3,FALSE),E24<=VLOOKUP(C24,$M$24:$P60,4,FALSE)),E24*D24)))))))) -> 0 | G24: =IF(MDR!$AB$7=$J$4,'Base MDR'!I20,IF(MDR!$AB$7=$J$5,'Base MDR'!#REF!,IF(OR(MDR!$AB$7=$J$2,MDR!$AB$7=$J$3),'Base MDR'!#REF!))) -> 3116MXBSN120DLZZ | M24: 1 - 14 | N24: 1 - 14 | O24: 1 | P24: 14
